{"text_format":"1","workbook":"xlsx","n_sheets":3,"sheets":["Notes","Click here for your run details","Long Course Detail(web version)"],"not_rendered":{"charts":0,"images":0,"macros":1,"external_links":0,"defined_names":8,"comments":1,"pivot_tables":1},"unopened":[],"bounds":{"document_bytes":16777216,"sheet_cells":100000,"rows_first":2000,"rows_last":500,"rows_between":2000,"halvings":0,"cell_chars":16384,"cell_head_chars":4096},"cells_cut":0,"cells_raw":0,"read":"whole","date_system":"1900"}

{"sheet":"Notes","index":0,"n_rows":0,"n_cols":0,"rows_kept":0,"cut":false,"hidden":false,"merged":[]}

{"sheet":"Click here for your run details","index":1,"n_rows":452,"n_cols":10,"rows_kept":452,"cut":false,"hidden":false,"merged":[[4,1,4,4],[0,0,0,9],[1,0,1,9],[2,0,2,9]]}
["2016 Townsville Road Runners Long Course Only Summary"]
["For any queries, please see Michael Fitzsimmons or send an email to results@townvilleroadrunners.com.au Subject = \"Results Query\".\n~ Any runs completed by a member in the 1 month prior to their membership being received will also be counted towards club points.  Runs prior to this are ineligible for club points.\nOnly your best 15 point scoring runs are used for club points."]
["Click on any number shaded yellow below adjacent to your name and a new sheet will appear to show the details for the underlying runs."]
["Run","(All)"]
[null,"Number of Runs By Membership Status"]
["_","No. of Runs Based on Membership Status"]
["Surname / First Name","# of Member Runs Eligible for Club Points","# of Member Runs  Ineligible for Club Points ~","# of Non-Member Runs (Ineligible for Club Points)","All Runs","Member/Non-Member","Average Place\n-All Runs","Club Championship Points (Best 15)","No. of Runs Counted for points (Best 15)","Average Club Points per Run (Best 15)"]
[" No Name Recorded",null,null,5,5,{"$f":"IF(AND(SUM(B8:C8)>0,SUM(B8:C8)<99),\"Member\",\"Non-Member\")","v":"Non-Member"},{"$f":"SUMIFS(Table2[[#All],[Overall Place]],Table2[[#All],[Surname / First Name]],$A8)/E8","v":52.8},{"$f":"SUMIFS(Table2[[#All],[Club Points]],Table2[[#All],[Surname / First Name]],'Click here for your run details'!A8,Table2[[#All],[Excluded from Top 15 Run (Y/N)]],\"N\")","v":0},{"$f":"COUNTIFS(Table2[[#All],[Surname / First Name]],'Click here for your run details'!A8,Table2[[#All],[Excluded from Top 15 Run (Y/N)]],\"N\")","v":0},{"$f":"IFERROR(H8/I8,0)","v":0}]
["Abdullan Aden",null,null,1,1,{"$f":"IF(AND(SUM(B9:C9)>0,SUM(B9:C9)<99),\"Member\",\"Non-Member\")","v":"Non-Member"},{"$f":"SUMIFS(Table2[[#All],[Overall Place]],Table2[[#All],[Surname / First Name]],$A9)/E9","v":23},{"$f":"SUMIFS(Table2[[#All],[Club Points]],Table2[[#All],[Surname / First Name]],'Click here for your run details'!A9,Table2[[#All],[Excluded from Top 15 Run (Y/N)]],\"N\")","v":0},{"$f":"COUNTIFS(Table2[[#All],[Surname / First Name]],'Click here for your run details'!A9,Table2[[#All],[Excluded from Top 15 Run (Y/N)]],\"N\")","v":0},0]
["Adrichem Jeannie",null,null,1,1,"Non-Member",{"$f":"SUMIFS(Table2[[#All],[Overall Place]],Table2[[#All],[Surname / First Name]],$A10)/E10","v":73},{"$f":"SUMIFS(Table2[[#All],[Club Points]],Table2[[#All],[Surname / First Name]],'Click here for your run details'!A10,Table2[[#All],[Excluded from Top 15 Run (Y/N)]],\"N\")","v":0},{"$f":"COUNTIFS(Table2[[#All],[Surname / First Name]],'Click here for your run details'!A10,Table2[[#All],[Excluded from Top 15 Run (Y/N)]],\"N\")","v":0},0]
["Agius Shawn",null,null,1,1,"Non-Member",{"$f":"SUMIFS(Table2[[#All],[Overall Place]],Table2[[#All],[Surname / First Name]],$A11)/E11","v":12},{"$f":"SUMIFS(Table2[[#All],[Club Points]],Table2[[#All],[Surname / First Name]],'Click here for your run details'!A11,Table2[[#All],[Excluded from Top 15 Run (Y/N)]],\"N\")","v":0},{"$f":"COUNTIFS(Table2[[#All],[Surname / First Name]],'Click here for your run details'!A11,Table2[[#All],[Excluded from Top 15 Run (Y/N)]],\"N\")","v":0},0]
["Alexopoulos Imelda",2,null,null,2,"Member",{"$f":"SUMIFS(Table2[[#All],[Overall Place]],Table2[[#All],[Surname / First Name]],$A12)/E12","v":60},{"$f":"SUMIFS(Table2[[#All],[Club Points]],Table2[[#All],[Surname / First Name]],'Click here for your run details'!A12,Table2[[#All],[Excluded from Top 15 Run (Y/N)]],\"N\")","v":207},{"$f":"COUNTIFS(Table2[[#All],[Surname / First Name]],'Click here for your run details'!A12,Table2[[#All],[Excluded from Top 15 Run (Y/N)]],\"N\")","v":2},103.5]
["Allen Nick",null,null,1,1,"Non-Member",{"$f":"SUMIFS(Table2[[#All],[Overall Place]],Table2[[#All],[Surname / First Name]],$A13)/E13","v":46},{"$f":"SUMIFS(Table2[[#All],[Club Points]],Table2[[#All],[Surname / First Name]],'Click here for your run details'!A13,Table2[[#All],[Excluded from Top 15 Run (Y/N)]],\"N\")","v":0},{"$f":"COUNTIFS(Table2[[#All],[Surname / First Name]],'Click here for your run details'!A13,Table2[[#All],[Excluded from Top 15 Run (Y/N)]],\"N\")","v":0},0]
["Andersen David",null,null,2,2,"Non-Member",{"$f":"SUMIFS(Table2[[#All],[Overall Place]],Table2[[#All],[Surname / First Name]],$A14)/E14","v":74},{"$f":"SUMIFS(Table2[[#All],[Club Points]],Table2[[#All],[Surname / First Name]],'Click here for your run details'!A14,Table2[[#All],[Excluded from Top 15 Run (Y/N)]],\"N\")","v":0},{"$f":"COUNTIFS(Table2[[#All],[Surname / First Name]],'Click here for your run details'!A14,Table2[[#All],[Excluded from Top 15 Run (Y/N)]],\"N\")","v":0},0]
["Anderson Ian",null,null,1,1,"Non-Member",{"$f":"SUMIFS(Table2[[#All],[Overall Place]],Table2[[#All],[Surname / First Name]],$A15)/E15","v":5},{"$f":"SUMIFS(Table2[[#All],[Club Points]],Table2[[#All],[Surname / First Name]],'Click here for your run details'!A15,Table2[[#All],[Excluded from Top 15 Run (Y/N)]],\"N\")","v":0},{"$f":"COUNTIFS(Table2[[#All],[Surname / First Name]],'Click here for your run details'!A15,Table2[[#All],[Excluded from Top 15 Run (Y/N)]],\"N\")","v":0},0]
["Anderson Julia",null,null,2,2,"Non-Member",{"$f":"SUMIFS(Table2[[#All],[Overall Place]],Table2[[#All],[Surname / First Name]],$A16)/E16","v":4},{"$f":"SUMIFS(Table2[[#All],[Club Points]],Table2[[#All],[Surname / First Name]],'Click here for your run details'!A16,Table2[[#All],[Excluded from Top 15 Run (Y/N)]],\"N\")","v":0},{"$f":"COUNTIFS(Table2[[#All],[Surname / First Name]],'Click here for your run details'!A16,Table2[[#All],[Excluded from Top 15 Run (Y/N)]],\"N\")","v":0},0]
["Andres Greg",null,null,1,1,"Non-Member",{"$f":"SUMIFS(Table2[[#All],[Overall Place]],Table2[[#All],[Surname / First Name]],$A17)/E17","v":22},{"$f":"SUMIFS(Table2[[#All],[Club Points]],Table2[[#All],[Surname / First Name]],'Click here for your run details'!A17,Table2[[#All],[Excluded from Top 15 Run (Y/N)]],\"N\")","v":0},{"$f":"COUNTIFS(Table2[[#All],[Surname / First Name]],'Click here for your run details'!A17,Table2[[#All],[Excluded from Top 15 Run (Y/N)]],\"N\")","v":0},0]
["Andress Greg",null,null,2,2,"Non-Member",{"$f":"SUMIFS(Table2[[#All],[Overall Place]],Table2[[#All],[Surname / First Name]],$A18)/E18","v":16},{"$f":"SUMIFS(Table2[[#All],[Club Points]],Table2[[#All],[Surname / First Name]],'Click here for your run details'!A18,Table2[[#All],[Excluded from Top 15 Run (Y/N)]],\"N\")","v":0},{"$f":"COUNTIFS(Table2[[#All],[Surname / First Name]],'Click here for your run details'!A18,Table2[[#All],[Excluded from Top 15 Run (Y/N)]],\"N\")","v":0},0]
["Argent Troy",null,null,4,4,"Non-Member",{"$f":"SUMIFS(Table2[[#All],[Overall Place]],Table2[[#All],[Surname / First Name]],$A19)/E19","v":1.5},{"$f":"SUMIFS(Table2[[#All],[Club Points]],Table2[[#All],[Surname / First Name]],'Click here for your run details'!A19,Table2[[#All],[Excluded from Top 15 Run (Y/N)]],\"N\")","v":0},{"$f":"COUNTIFS(Table2[[#All],[Surname / First Name]],'Click here for your run details'!A19,Table2[[#All],[Excluded from Top 15 Run (Y/N)]],\"N\")","v":0},0]
["Armit Brian",10,null,null,10,"Member",{"$f":"SUMIFS(Table2[[#All],[Overall Place]],Table2[[#All],[Surname / First Name]],$A20)/E20","v":52.5},{"$f":"SUMIFS(Table2[[#All],[Club Points]],Table2[[#All],[Surname / First Name]],'Click here for your run details'!A20,Table2[[#All],[Excluded from Top 15 Run (Y/N)]],\"N\")","v":1082},{"$f":"COUNTIFS(Table2[[#All],[Surname / First Name]],'Click here for your run details'!A20,Table2[[#All],[Excluded from Top 15 Run (Y/N)]],\"N\")","v":10},108.2]
["Armstrong Sophie",null,null,2,2,"Non-Member",{"$f":"SUMIFS(Table2[[#All],[Overall Place]],Table2[[#All],[Surname / First Name]],$A21)/E21","v":67},{"$f":"SUMIFS(Table2[[#All],[Club Points]],Table2[[#All],[Surname / First Name]],'Click here for your run details'!A21,Table2[[#All],[Excluded from Top 15 Run (Y/N)]],\"N\")","v":0},{"$f":"COUNTIFS(Table2[[#All],[Surname / First Name]],'Click here for your run details'!A21,Table2[[#All],[Excluded from Top 15 Run (Y/N)]],\"N\")","v":0},0]
["Baker Nick",null,null,1,1,"Non-Member",{"$f":"SUMIFS(Table2[[#All],[Overall Place]],Table2[[#All],[Surname / First Name]],$A22)/E22","v":52},{"$f":"SUMIFS(Table2[[#All],[Club Points]],Table2[[#All],[Surname / First Name]],'Click here for your run details'!A22,Table2[[#All],[Excluded from Top 15 Run (Y/N)]],\"N\")","v":0},{"$f":"COUNTIFS(Table2[[#All],[Surname / First Name]],'Click here for your run details'!A22,Table2[[#All],[Excluded from Top 15 Run (Y/N)]],\"N\")","v":0},0]
["Banaghan Peter",null,null,1,1,"Non-Member",{"$f":"SUMIFS(Table2[[#All],[Overall Place]],Table2[[#All],[Surname / First Name]],$A23)/E23","v":49},{"$f":"SUMIFS(Table2[[#All],[Club Points]],Table2[[#All],[Surname / First Name]],'Click here for your run details'!A23,Table2[[#All],[Excluded from Top 15 Run (Y/N)]],\"N\")","v":0},{"$f":"COUNTIFS(Table2[[#All],[Surname / First Name]],'Click here for your run details'!A23,Table2[[#All],[Excluded from Top 15 Run (Y/N)]],\"N\")","v":0},0]
["Barber Belinda",3,null,null,3,"Member",{"$f":"SUMIFS(Table2[[#All],[Overall Place]],Table2[[#All],[Surname / First Name]],$A24)/E24","v":74},{"$f":"SUMIFS(Table2[[#All],[Club Points]],Table2[[#All],[Surname / First Name]],'Click here for your run details'!A24,Table2[[#All],[Excluded from Top 15 Run (Y/N)]],\"N\")","v":273},{"$f":"COUNTIFS(Table2[[#All],[Surname / First Name]],'Click here for your run details'!A24,Table2[[#All],[Excluded from Top 15 Run (Y/N)]],\"N\")","v":3},91]
["Beacom-Halliday Om",null,null,2,2,"Non-Member",{"$f":"SUMIFS(Table2[[#All],[Overall Place]],Table2[[#All],[Surname / First Name]],$A25)/E25","v":41},{"$f":"SUMIFS(Table2[[#All],[Club Points]],Table2[[#All],[Surname / First Name]],'Click here for your run details'!A25,Table2[[#All],[Excluded from Top 15 Run (Y/N)]],\"N\")","v":0},{"$f":"COUNTIFS(Table2[[#All],[Surname / First Name]],'Click here for your run details'!A25,Table2[[#All],[Excluded from Top 15 Run (Y/N)]],\"N\")","v":0},0]
["Beavis Dave",null,null,1,1,"Non-Member",{"$f":"SUMIFS(Table2[[#All],[Overall Place]],Table2[[#All],[Surname / First Name]],$A26)/E26","v":46},{"$f":"SUMIFS(Table2[[#All],[Club Points]],Table2[[#All],[Surname / First Name]],'Click here for your run details'!A26,Table2[[#All],[Excluded from Top 15 Run (Y/N)]],\"N\")","v":0},{"$f":"COUNTIFS(Table2[[#All],[Surname / First Name]],'Click here for your run details'!A26,Table2[[#All],[Excluded from Top 15 Run (Y/N)]],\"N\")","v":0},0]
["BECK BETTY",1,null,null,1,"Member",{"$f":"SUMIFS(Table2[[#All],[Overall Place]],Table2[[#All],[Surname / First Name]],$A27)/E27","v":109},{"$f":"SUMIFS(Table2[[#All],[Club Points]],Table2[[#All],[Surname / First Name]],'Click here for your run details'!A27,Table2[[#All],[Excluded from Top 15 Run (Y/N)]],\"N\")","v":111},{"$f":"COUNTIFS(Table2[[#All],[Surname / First Name]],'Click here for your run details'!A27,Table2[[#All],[Excluded from Top 15 Run (Y/N)]],\"N\")","v":1},111]
["Beil Lyndie",30,null,null,30,"Member",{"$f":"SUMIFS(Table2[[#All],[Overall Place]],Table2[[#All],[Surname / First Name]],$A28)/E28","v":70.666666666666671},{"$f":"SUMIFS(Table2[[#All],[Club Points]],Table2[[#All],[Surname / First Name]],'Click here for your run details'!A28,Table2[[#All],[Excluded from Top 15 Run (Y/N)]],\"N\")","v":1626},{"$f":"COUNTIFS(Table2[[#All],[Surname / First Name]],'Click here for your run details'!A28,Table2[[#All],[Excluded from Top 15 Run (Y/N)]],\"N\")","v":15},108.4]
["Benedetto Giordan",null,null,3,3,"Non-Member",{"$f":"SUMIFS(Table2[[#All],[Overall Place]],Table2[[#All],[Surname / First Name]],$A29)/E29","v":68},{"$f":"SUMIFS(Table2[[#All],[Club Points]],Table2[[#All],[Surname / First Name]],'Click here for your run details'!A29,Table2[[#All],[Excluded from Top 15 Run (Y/N)]],\"N\")","v":0},{"$f":"COUNTIFS(Table2[[#All],[Surname / First Name]],'Click here for your run details'!A29,Table2[[#All],[Excluded from Top 15 Run (Y/N)]],\"N\")","v":0},0]
["Bingly Sonia",null,null,1,1,"Non-Member",{"$f":"SUMIFS(Table2[[#All],[Overall Place]],Table2[[#All],[Surname / First Name]],$A30)/E30","v":78},{"$f":"SUMIFS(Table2[[#All],[Club Points]],Table2[[#All],[Surname / First Name]],'Click here for your run details'!A30,Table2[[#All],[Excluded from Top 15 Run (Y/N)]],\"N\")","v":0},{"$f":"COUNTIFS(Table2[[#All],[Surname / First Name]],'Click here for your run details'!A30,Table2[[#All],[Excluded from Top 15 Run (Y/N)]],\"N\")","v":0},0]
["Bird Deven",null,null,2,2,"Non-Member",{"$f":"SUMIFS(Table2[[#All],[Overall Place]],Table2[[#All],[Surname / First Name]],$A31)/E31","v":16.5},{"$f":"SUMIFS(Table2[[#All],[Club Points]],Table2[[#All],[Surname / First Name]],'Click here for your run details'!A31,Table2[[#All],[Excluded from Top 15 Run (Y/N)]],\"N\")","v":0},{"$f":"COUNTIFS(Table2[[#All],[Surname / First Name]],'Click here for your run details'!A31,Table2[[#All],[Excluded from Top 15 Run (Y/N)]],\"N\")","v":0},0]
["Bish John",null,null,1,1,"Non-Member",{"$f":"SUMIFS(Table2[[#All],[Overall Place]],Table2[[#All],[Surname / First Name]],$A32)/E32","v":29},{"$f":"SUMIFS(Table2[[#All],[Club Points]],Table2[[#All],[Surname / First Name]],'Click here for your run details'!A32,Table2[[#All],[Excluded from Top 15 Run (Y/N)]],\"N\")","v":0},{"$f":"COUNTIFS(Table2[[#All],[Surname / First Name]],'Click here for your run details'!A32,Table2[[#All],[Excluded from Top 15 Run (Y/N)]],\"N\")","v":0},0]
["Bishop Kay",null,null,1,1,"Non-Member",{"$f":"SUMIFS(Table2[[#All],[Overall Place]],Table2[[#All],[Surname / First Name]],$A33)/E33","v":97},{"$f":"SUMIFS(Table2[[#All],[Club Points]],Table2[[#All],[Surname / First Name]],'Click here for your run details'!A33,Table2[[#All],[Excluded from Top 15 Run (Y/N)]],\"N\")","v":0},{"$f":"COUNTIFS(Table2[[#All],[Surname / First Name]],'Click here for your run details'!A33,Table2[[#All],[Excluded from Top 15 Run (Y/N)]],\"N\")","v":0},0]
["Bisset Jim",null,null,1,1,"Non-Member",{"$f":"SUMIFS(Table2[[#All],[Overall Place]],Table2[[#All],[Surname / First Name]],$A34)/E34","v":55},{"$f":"SUMIFS(Table2[[#All],[Club Points]],Table2[[#All],[Surname / First Name]],'Click here for your run details'!A34,Table2[[#All],[Excluded from Top 15 Run (Y/N)]],\"N\")","v":0},{"$f":"COUNTIFS(Table2[[#All],[Surname / First Name]],'Click here for your run details'!A34,Table2[[#All],[Excluded from Top 15 Run (Y/N)]],\"N\")","v":0},0]
["Boschen Matthew",17,null,null,17,"Member",{"$f":"SUMIFS(Table2[[#All],[Overall Place]],Table2[[#All],[Surname / First Name]],$A35)/E35","v":7.9411764705882355},{"$f":"SUMIFS(Table2[[#All],[Club Points]],Table2[[#All],[Surname / First Name]],'Click here for your run details'!A35,Table2[[#All],[Excluded from Top 15 Run (Y/N)]],\"N\")","v":2191},{"$f":"COUNTIFS(Table2[[#All],[Surname / First Name]],'Click here for your run details'!A35,Table2[[#All],[Excluded from Top 15 Run (Y/N)]],\"N\")","v":15},146.06666666666666]
["Bosco Vince",null,null,1,1,"Non-Member",{"$f":"SUMIFS(Table2[[#All],[Overall Place]],Table2[[#All],[Surname / First Name]],$A36)/E36","v":1},{"$f":"SUMIFS(Table2[[#All],[Club Points]],Table2[[#All],[Surname / First Name]],'Click here for your run details'!A36,Table2[[#All],[Excluded from Top 15 Run (Y/N)]],\"N\")","v":0},{"$f":"COUNTIFS(Table2[[#All],[Surname / First Name]],'Click here for your run details'!A36,Table2[[#All],[Excluded from Top 15 Run (Y/N)]],\"N\")","v":0},0]
["Bosworth Clare",7,null,null,7,"Member",{"$f":"SUMIFS(Table2[[#All],[Overall Place]],Table2[[#All],[Surname / First Name]],$A37)/E37","v":75.142857142857139},{"$f":"SUMIFS(Table2[[#All],[Club Points]],Table2[[#All],[Surname / First Name]],'Click here for your run details'!A37,Table2[[#All],[Excluded from Top 15 Run (Y/N)]],\"N\")","v":629},{"$f":"COUNTIFS(Table2[[#All],[Surname / First Name]],'Click here for your run details'!A37,Table2[[#All],[Excluded from Top 15 Run (Y/N)]],\"N\")","v":7},89.857142857142861]
["Bosworth Georill",null,null,1,1,"Non-Member",{"$f":"SUMIFS(Table2[[#All],[Overall Place]],Table2[[#All],[Surname / First Name]],$A38)/E38","v":116},{"$f":"SUMIFS(Table2[[#All],[Club Points]],Table2[[#All],[Surname / First Name]],'Click here for your run details'!A38,Table2[[#All],[Excluded from Top 15 Run (Y/N)]],\"N\")","v":0},{"$f":"COUNTIFS(Table2[[#All],[Surname / First Name]],'Click here for your run details'!A38,Table2[[#All],[Excluded from Top 15 Run (Y/N)]],\"N\")","v":0},0]
["Bradley Fraser",24,null,null,24,"Member",{"$f":"SUMIFS(Table2[[#All],[Overall Place]],Table2[[#All],[Surname / First Name]],$A39)/E39","v":28.958333333333332},{"$f":"SUMIFS(Table2[[#All],[Club Points]],Table2[[#All],[Surname / First Name]],'Click here for your run details'!A39,Table2[[#All],[Excluded from Top 15 Run (Y/N)]],\"N\")","v":1965},{"$f":"COUNTIFS(Table2[[#All],[Surname / First Name]],'Click here for your run details'!A39,Table2[[#All],[Excluded from Top 15 Run (Y/N)]],\"N\")","v":15},131]
["Bradshaw Carola",null,null,1,1,"Non-Member",{"$f":"SUMIFS(Table2[[#All],[Overall Place]],Table2[[#All],[Surname / First Name]],$A40)/E40","v":48},{"$f":"SUMIFS(Table2[[#All],[Club Points]],Table2[[#All],[Surname / First Name]],'Click here for your run details'!A40,Table2[[#All],[Excluded from Top 15 Run (Y/N)]],\"N\")","v":0},{"$f":"COUNTIFS(Table2[[#All],[Surname / First Name]],'Click here for your run details'!A40,Table2[[#All],[Excluded from Top 15 Run (Y/N)]],\"N\")","v":0},0]
["Brodmann Ariadne",null,null,1,1,"Non-Member",{"$f":"SUMIFS(Table2[[#All],[Overall Place]],Table2[[#All],[Surname / First Name]],$A41)/E41","v":81},{"$f":"SUMIFS(Table2[[#All],[Club Points]],Table2[[#All],[Surname / First Name]],'Click here for your run details'!A41,Table2[[#All],[Excluded from Top 15 Run (Y/N)]],\"N\")","v":0},{"$f":"COUNTIFS(Table2[[#All],[Surname / First Name]],'Click here for your run details'!A41,Table2[[#All],[Excluded from Top 15 Run (Y/N)]],\"N\")","v":0},0]
["Bromham Gary",null,null,1,1,"Non-Member",{"$f":"SUMIFS(Table2[[#All],[Overall Place]],Table2[[#All],[Surname / First Name]],$A42)/E42","v":61},{"$f":"SUMIFS(Table2[[#All],[Club Points]],Table2[[#All],[Surname / First Name]],'Click here for your run details'!A42,Table2[[#All],[Excluded from Top 15 Run (Y/N)]],\"N\")","v":0},{"$f":"COUNTIFS(Table2[[#All],[Surname / First Name]],'Click here for your run details'!A42,Table2[[#All],[Excluded from Top 15 Run (Y/N)]],\"N\")","v":0},0]
["Brooke-Taylor David",13,null,null,13,"Member",{"$f":"SUMIFS(Table2[[#All],[Overall Place]],Table2[[#All],[Surname / First Name]],$A43)/E43","v":72.230769230769226},{"$f":"SUMIFS(Table2[[#All],[Club Points]],Table2[[#All],[Surname / First Name]],'Click here for your run details'!A43,Table2[[#All],[Excluded from Top 15 Run (Y/N)]],\"N\")","v":1260},{"$f":"COUNTIFS(Table2[[#All],[Surname / First Name]],'Click here for your run details'!A43,Table2[[#All],[Excluded from Top 15 Run (Y/N)]],\"N\")","v":13},96.92307692307692]
["Brooks Steve",2,null,null,2,"Member",{"$f":"SUMIFS(Table2[[#All],[Overall Place]],Table2[[#All],[Surname / First Name]],$A44)/E44","v":38},{"$f":"SUMIFS(Table2[[#All],[Club Points]],Table2[[#All],[Surname / First Name]],'Click here for your run details'!A44,Table2[[#All],[Excluded from Top 15 Run (Y/N)]],\"N\")","v":236},{"$f":"COUNTIFS(Table2[[#All],[Surname / First Name]],'Click here for your run details'!A44,Table2[[#All],[Excluded from Top 15 Run (Y/N)]],\"N\")","v":2},118]
["Brown Jenny",20,null,null,20,"Member",{"$f":"SUMIFS(Table2[[#All],[Overall Place]],Table2[[#All],[Surname / First Name]],$A45)/E45","v":65.2},{"$f":"SUMIFS(Table2[[#All],[Club Points]],Table2[[#All],[Surname / First Name]],'Click here for your run details'!A45,Table2[[#All],[Excluded from Top 15 Run (Y/N)]],\"N\")","v":1616},{"$f":"COUNTIFS(Table2[[#All],[Surname / First Name]],'Click here for your run details'!A45,Table2[[#All],[Excluded from Top 15 Run (Y/N)]],\"N\")","v":15},107.73333333333333]
["Brown Trevor",null,null,1,1,"Non-Member",{"$f":"SUMIFS(Table2[[#All],[Overall Place]],Table2[[#All],[Surname / First Name]],$A46)/E46","v":28},{"$f":"SUMIFS(Table2[[#All],[Club Points]],Table2[[#All],[Surname / First Name]],'Click here for your run details'!A46,Table2[[#All],[Excluded from Top 15 Run (Y/N)]],\"N\")","v":0},{"$f":"COUNTIFS(Table2[[#All],[Surname / First Name]],'Click here for your run details'!A46,Table2[[#All],[Excluded from Top 15 Run (Y/N)]],\"N\")","v":0},0]
["Brunker Julie",14,null,null,14,"Member",{"$f":"SUMIFS(Table2[[#All],[Overall Place]],Table2[[#All],[Surname / First Name]],$A47)/E47","v":25.214285714285715},{"$f":"SUMIFS(Table2[[#All],[Club Points]],Table2[[#All],[Surname / First Name]],'Click here for your run details'!A47,Table2[[#All],[Excluded from Top 15 Run (Y/N)]],\"N\")","v":1824},{"$f":"COUNTIFS(Table2[[#All],[Surname / First Name]],'Click here for your run details'!A47,Table2[[#All],[Excluded from Top 15 Run (Y/N)]],\"N\")","v":14},130.28571428571428]
["Buchholz Mark",21,null,null,21,"Member",{"$f":"SUMIFS(Table2[[#All],[Overall Place]],Table2[[#All],[Surname / First Name]],$A48)/E48","v":2.9047619047619047},{"$f":"SUMIFS(Table2[[#All],[Club Points]],Table2[[#All],[Surname / First Name]],'Click here for your run details'!A48,Table2[[#All],[Excluded from Top 15 Run (Y/N)]],\"N\")","v":2239},{"$f":"COUNTIFS(Table2[[#All],[Surname / First Name]],'Click here for your run details'!A48,Table2[[#All],[Excluded from Top 15 Run (Y/N)]],\"N\")","v":15},149.26666666666668]
["Budden Craig",null,null,7,7,"Non-Member",{"$f":"SUMIFS(Table2[[#All],[Overall Place]],Table2[[#All],[Surname / First Name]],$A49)/E49","v":3.8571428571428572},{"$f":"SUMIFS(Table2[[#All],[Club Points]],Table2[[#All],[Surname / First Name]],'Click here for your run details'!A49,Table2[[#All],[Excluded from Top 15 Run (Y/N)]],\"N\")","v":0},{"$f":"COUNTIFS(Table2[[#All],[Surname / First Name]],'Click here for your run details'!A49,Table2[[#All],[Excluded from Top 15 Run (Y/N)]],\"N\")","v":0},0]
["Burns Norm",null,null,1,1,"Non-Member",{"$f":"SUMIFS(Table2[[#All],[Overall Place]],Table2[[#All],[Surname / First Name]],$A50)/E50","v":3},{"$f":"SUMIFS(Table2[[#All],[Club Points]],Table2[[#All],[Surname / First Name]],'Click here for your run details'!A50,Table2[[#All],[Excluded from Top 15 Run (Y/N)]],\"N\")","v":0},{"$f":"COUNTIFS(Table2[[#All],[Surname / First Name]],'Click here for your run details'!A50,Table2[[#All],[Excluded from Top 15 Run (Y/N)]],\"N\")","v":0},0]
["Burrowe Melanie",null,null,1,1,"Non-Member",{"$f":"SUMIFS(Table2[[#All],[Overall Place]],Table2[[#All],[Surname / First Name]],$A51)/E51","v":119},{"$f":"SUMIFS(Table2[[#All],[Club Points]],Table2[[#All],[Surname / First Name]],'Click here for your run details'!A51,Table2[[#All],[Excluded from Top 15 Run (Y/N)]],\"N\")","v":0},{"$f":"COUNTIFS(Table2[[#All],[Surname / First Name]],'Click here for your run details'!A51,Table2[[#All],[Excluded from Top 15 Run (Y/N)]],\"N\")","v":0},0]
["Caddy Tim",null,null,1,1,"Non-Member",{"$f":"SUMIFS(Table2[[#All],[Overall Place]],Table2[[#All],[Surname / First Name]],$A52)/E52","v":37},{"$f":"SUMIFS(Table2[[#All],[Club Points]],Table2[[#All],[Surname / First Name]],'Click here for your run details'!A52,Table2[[#All],[Excluded from Top 15 Run (Y/N)]],\"N\")","v":0},{"$f":"COUNTIFS(Table2[[#All],[Surname / First Name]],'Click here for your run details'!A52,Table2[[#All],[Excluded from Top 15 Run (Y/N)]],\"N\")","v":0},0]
["Cahill Rachel",null,null,4,4,"Non-Member",{"$f":"SUMIFS(Table2[[#All],[Overall Place]],Table2[[#All],[Surname / First Name]],$A53)/E53","v":57.25},{"$f":"SUMIFS(Table2[[#All],[Club Points]],Table2[[#All],[Surname / First Name]],'Click here for your run details'!A53,Table2[[#All],[Excluded from Top 15 Run (Y/N)]],\"N\")","v":0},{"$f":"COUNTIFS(Table2[[#All],[Surname / First Name]],'Click here for your run details'!A53,Table2[[#All],[Excluded from Top 15 Run (Y/N)]],\"N\")","v":0},0]
["Camakaris Catrina",11,null,null,11,"Member",{"$f":"SUMIFS(Table2[[#All],[Overall Place]],Table2[[#All],[Surname / First Name]],$A54)/E54","v":76.727272727272734},{"$f":"SUMIFS(Table2[[#All],[Club Points]],Table2[[#All],[Surname / First Name]],'Click here for your run details'!A54,Table2[[#All],[Excluded from Top 15 Run (Y/N)]],\"N\")","v":996},{"$f":"COUNTIFS(Table2[[#All],[Surname / First Name]],'Click here for your run details'!A54,Table2[[#All],[Excluded from Top 15 Run (Y/N)]],\"N\")","v":11},90.545454545454547]
["Cameron Susanah",null,null,2,2,"Non-Member",{"$f":"SUMIFS(Table2[[#All],[Overall Place]],Table2[[#All],[Surname / First Name]],$A55)/E55","v":90.5},{"$f":"SUMIFS(Table2[[#All],[Club Points]],Table2[[#All],[Surname / First Name]],'Click here for your run details'!A55,Table2[[#All],[Excluded from Top 15 Run (Y/N)]],\"N\")","v":0},{"$f":"COUNTIFS(Table2[[#All],[Surname / First Name]],'Click here for your run details'!A55,Table2[[#All],[Excluded from Top 15 Run (Y/N)]],\"N\")","v":0},0]
["Carter Brendan",13,null,null,13,"Member",{"$f":"SUMIFS(Table2[[#All],[Overall Place]],Table2[[#All],[Surname / First Name]],$A56)/E56","v":21.384615384615383},{"$f":"SUMIFS(Table2[[#All],[Club Points]],Table2[[#All],[Surname / First Name]],'Click here for your run details'!A56,Table2[[#All],[Excluded from Top 15 Run (Y/N)]],\"N\")","v":1737},{"$f":"COUNTIFS(Table2[[#All],[Surname / First Name]],'Click here for your run details'!A56,Table2[[#All],[Excluded from Top 15 Run (Y/N)]],\"N\")","v":13},133.61538461538461]
["Catterall Ian R",5,null,null,5,"Member",{"$f":"SUMIFS(Table2[[#All],[Overall Place]],Table2[[#All],[Surname / First Name]],$A57)/E57","v":71.599999999999994},{"$f":"SUMIFS(Table2[[#All],[Club Points]],Table2[[#All],[Surname / First Name]],'Click here for your run details'!A57,Table2[[#All],[Excluded from Top 15 Run (Y/N)]],\"N\")","v":483},{"$f":"COUNTIFS(Table2[[#All],[Surname / First Name]],'Click here for your run details'!A57,Table2[[#All],[Excluded from Top 15 Run (Y/N)]],\"N\")","v":5},96.6]
["Chapman-Mears Verity",null,null,1,1,"Non-Member",{"$f":"SUMIFS(Table2[[#All],[Overall Place]],Table2[[#All],[Surname / First Name]],$A58)/E58","v":66},{"$f":"SUMIFS(Table2[[#All],[Club Points]],Table2[[#All],[Surname / First Name]],'Click here for your run details'!A58,Table2[[#All],[Excluded from Top 15 Run (Y/N)]],\"N\")","v":0},{"$f":"COUNTIFS(Table2[[#All],[Surname / First Name]],'Click here for your run details'!A58,Table2[[#All],[Excluded from Top 15 Run (Y/N)]],\"N\")","v":0},0]
["Cheers Scott",null,null,4,4,"Non-Member",{"$f":"SUMIFS(Table2[[#All],[Overall Place]],Table2[[#All],[Surname / First Name]],$A59)/E59","v":27.75},{"$f":"SUMIFS(Table2[[#All],[Club Points]],Table2[[#All],[Surname / First Name]],'Click here for your run details'!A59,Table2[[#All],[Excluded from Top 15 Run (Y/N)]],\"N\")","v":0},{"$f":"COUNTIFS(Table2[[#All],[Surname / First Name]],'Click here for your run details'!A59,Table2[[#All],[Excluded from Top 15 Run (Y/N)]],\"N\")","v":0},0]
["Clifford Tayla",null,null,2,2,"Non-Member",{"$f":"SUMIFS(Table2[[#All],[Overall Place]],Table2[[#All],[Surname / First Name]],$A60)/E60","v":29},{"$f":"SUMIFS(Table2[[#All],[Club Points]],Table2[[#All],[Surname / First Name]],'Click here for your run details'!A60,Table2[[#All],[Excluded from Top 15 Run (Y/N)]],\"N\")","v":0},{"$f":"COUNTIFS(Table2[[#All],[Surname / First Name]],'Click here for your run details'!A60,Table2[[#All],[Excluded from Top 15 Run (Y/N)]],\"N\")","v":0},0]
["Coe Damian",null,null,1,1,"Non-Member",{"$f":"SUMIFS(Table2[[#All],[Overall Place]],Table2[[#All],[Surname / First Name]],$A61)/E61","v":34},{"$f":"SUMIFS(Table2[[#All],[Club Points]],Table2[[#All],[Surname / First Name]],'Click here for your run details'!A61,Table2[[#All],[Excluded from Top 15 Run (Y/N)]],\"N\")","v":0},{"$f":"COUNTIFS(Table2[[#All],[Surname / First Name]],'Click here for your run details'!A61,Table2[[#All],[Excluded from Top 15 Run (Y/N)]],\"N\")","v":0},0]
["Coelho Dilip",null,null,2,2,"Non-Member",{"$f":"SUMIFS(Table2[[#All],[Overall Place]],Table2[[#All],[Surname / First Name]],$A62)/E62","v":1.5},{"$f":"SUMIFS(Table2[[#All],[Club Points]],Table2[[#All],[Surname / First Name]],'Click here for your run details'!A62,Table2[[#All],[Excluded from Top 15 Run (Y/N)]],\"N\")","v":0},{"$f":"COUNTIFS(Table2[[#All],[Surname / First Name]],'Click here for your run details'!A62,Table2[[#All],[Excluded from Top 15 Run (Y/N)]],\"N\")","v":0},0]
["Collins Sarah",10,null,null,10,"Member",{"$f":"SUMIFS(Table2[[#All],[Overall Place]],Table2[[#All],[Surname / First Name]],$A63)/E63","v":53.3},{"$f":"SUMIFS(Table2[[#All],[Club Points]],Table2[[#All],[Surname / First Name]],'Click here for your run details'!A63,Table2[[#All],[Excluded from Top 15 Run (Y/N)]],\"N\")","v":1074},{"$f":"COUNTIFS(Table2[[#All],[Surname / First Name]],'Click here for your run details'!A63,Table2[[#All],[Excluded from Top 15 Run (Y/N)]],\"N\")","v":10},107.4]
["Connor Jade",null,null,1,1,"Non-Member",{"$f":"SUMIFS(Table2[[#All],[Overall Place]],Table2[[#All],[Surname / First Name]],$A64)/E64","v":54},{"$f":"SUMIFS(Table2[[#All],[Club Points]],Table2[[#All],[Surname / First Name]],'Click here for your run details'!A64,Table2[[#All],[Excluded from Top 15 Run (Y/N)]],\"N\")","v":0},{"$f":"COUNTIFS(Table2[[#All],[Surname / First Name]],'Click here for your run details'!A64,Table2[[#All],[Excluded from Top 15 Run (Y/N)]],\"N\")","v":0},0]
["Coons-Mueller Sherry",null,null,1,1,"Non-Member",{"$f":"SUMIFS(Table2[[#All],[Overall Place]],Table2[[#All],[Surname / First Name]],$A65)/E65","v":58},{"$f":"SUMIFS(Table2[[#All],[Club Points]],Table2[[#All],[Surname / First Name]],'Click here for your run details'!A65,Table2[[#All],[Excluded from Top 15 Run (Y/N)]],\"N\")","v":0},{"$f":"COUNTIFS(Table2[[#All],[Surname / First Name]],'Click here for your run details'!A65,Table2[[#All],[Excluded from Top 15 Run (Y/N)]],\"N\")","v":0},0]
["Cooper Belinda",null,null,1,1,"Non-Member",{"$f":"SUMIFS(Table2[[#All],[Overall Place]],Table2[[#All],[Surname / First Name]],$A66)/E66","v":26},{"$f":"SUMIFS(Table2[[#All],[Club Points]],Table2[[#All],[Surname / First Name]],'Click here for your run details'!A66,Table2[[#All],[Excluded from Top 15 Run (Y/N)]],\"N\")","v":0},{"$f":"COUNTIFS(Table2[[#All],[Surname / First Name]],'Click here for your run details'!A66,Table2[[#All],[Excluded from Top 15 Run (Y/N)]],\"N\")","v":0},0]
["Cooper Ben",null,null,1,1,"Non-Member",{"$f":"SUMIFS(Table2[[#All],[Overall Place]],Table2[[#All],[Surname / First Name]],$A67)/E67","v":1},{"$f":"SUMIFS(Table2[[#All],[Club Points]],Table2[[#All],[Surname / First Name]],'Click here for your run details'!A67,Table2[[#All],[Excluded from Top 15 Run (Y/N)]],\"N\")","v":0},{"$f":"COUNTIFS(Table2[[#All],[Surname / First Name]],'Click here for your run details'!A67,Table2[[#All],[Excluded from Top 15 Run (Y/N)]],\"N\")","v":0},0]
["Copp Philip",7,null,null,7,"Member",{"$f":"SUMIFS(Table2[[#All],[Overall Place]],Table2[[#All],[Surname / First Name]],$A68)/E68","v":4.7142857142857144},{"$f":"SUMIFS(Table2[[#All],[Club Points]],Table2[[#All],[Surname / First Name]],'Click here for your run details'!A68,Table2[[#All],[Excluded from Top 15 Run (Y/N)]],\"N\")","v":1031},{"$f":"COUNTIFS(Table2[[#All],[Surname / First Name]],'Click here for your run details'!A68,Table2[[#All],[Excluded from Top 15 Run (Y/N)]],\"N\")","v":7},147.28571428571428]
["Corkhill Richard",null,null,1,1,"Non-Member",{"$f":"SUMIFS(Table2[[#All],[Overall Place]],Table2[[#All],[Surname / First Name]],$A69)/E69","v":71},{"$f":"SUMIFS(Table2[[#All],[Club Points]],Table2[[#All],[Surname / First Name]],'Click here for your run details'!A69,Table2[[#All],[Excluded from Top 15 Run (Y/N)]],\"N\")","v":0},{"$f":"COUNTIFS(Table2[[#All],[Surname / First Name]],'Click here for your run details'!A69,Table2[[#All],[Excluded from Top 15 Run (Y/N)]],\"N\")","v":0},0]
["Cornell Janet",null,null,3,3,"Non-Member",{"$f":"SUMIFS(Table2[[#All],[Overall Place]],Table2[[#All],[Surname / First Name]],$A70)/E70","v":65.666666666666671},{"$f":"SUMIFS(Table2[[#All],[Club Points]],Table2[[#All],[Surname / First Name]],'Click here for your run details'!A70,Table2[[#All],[Excluded from Top 15 Run (Y/N)]],\"N\")","v":0},{"$f":"COUNTIFS(Table2[[#All],[Surname / First Name]],'Click here for your run details'!A70,Table2[[#All],[Excluded from Top 15 Run (Y/N)]],\"N\")","v":0},0]
["Costello Emma",null,null,1,1,"Non-Member",{"$f":"SUMIFS(Table2[[#All],[Overall Place]],Table2[[#All],[Surname / First Name]],$A71)/E71","v":61},{"$f":"SUMIFS(Table2[[#All],[Club Points]],Table2[[#All],[Surname / First Name]],'Click here for your run details'!A71,Table2[[#All],[Excluded from Top 15 Run (Y/N)]],\"N\")","v":0},{"$f":"COUNTIFS(Table2[[#All],[Surname / First Name]],'Click here for your run details'!A71,Table2[[#All],[Excluded from Top 15 Run (Y/N)]],\"N\")","v":0},0]
["Cox Sherry",19,null,null,19,"Member",{"$f":"SUMIFS(Table2[[#All],[Overall Place]],Table2[[#All],[Surname / First Name]],$A72)/E72","v":42.210526315789473},{"$f":"SUMIFS(Table2[[#All],[Club Points]],Table2[[#All],[Surname / First Name]],'Click here for your run details'!A72,Table2[[#All],[Excluded from Top 15 Run (Y/N)]],\"N\")","v":1795},{"$f":"COUNTIFS(Table2[[#All],[Surname / First Name]],'Click here for your run details'!A72,Table2[[#All],[Excluded from Top 15 Run (Y/N)]],\"N\")","v":15},{"$f":"IFERROR(H72/I72,0)","v":119.66666666666667}]
["Crawford Les",27,null,null,27,{"$f":"IF(AND(SUM(B73:C73)>0,SUM(B73:C73)<99),\"Member\",\"Non-Member\")","v":"Member"},{"$f":"SUMIFS(Table2[[#All],[Overall Place]],Table2[[#All],[Surname / First Name]],$A73)/E73","v":21.592592592592592},{"$f":"SUMIFS(Table2[[#All],[Club Points]],Table2[[#All],[Surname / First Name]],'Click here for your run details'!A73,Table2[[#All],[Excluded from Top 15 Run (Y/N)]],\"N\")","v":2034},{"$f":"COUNTIFS(Table2[[#All],[Surname / First Name]],'Click here for your run details'!A73,Table2[[#All],[Excluded from Top 15 Run (Y/N)]],\"N\")","v":15},135.6]
["Crawley John",null,null,1,1,"Non-Member",{"$f":"SUMIFS(Table2[[#All],[Overall Place]],Table2[[#All],[Surname / First Name]],$A74)/E74","v":29},{"$f":"SUMIFS(Table2[[#All],[Club Points]],Table2[[#All],[Surname / First Name]],'Click here for your run details'!A74,Table2[[#All],[Excluded from Top 15 Run (Y/N)]],\"N\")","v":0},{"$f":"COUNTIFS(Table2[[#All],[Surname / First Name]],'Click here for your run details'!A74,Table2[[#All],[Excluded from Top 15 Run (Y/N)]],\"N\")","v":0},0]
["Cullen David",14,2,null,16,"Member",{"$f":"SUMIFS(Table2[[#All],[Overall Place]],Table2[[#All],[Surname / First Name]],$A75)/E75","v":25.5625},{"$f":"SUMIFS(Table2[[#All],[Club Points]],Table2[[#All],[Surname / First Name]],'Click here for your run details'!A75,Table2[[#All],[Excluded from Top 15 Run (Y/N)]],\"N\")","v":1846},{"$f":"COUNTIFS(Table2[[#All],[Surname / First Name]],'Click here for your run details'!A75,Table2[[#All],[Excluded from Top 15 Run (Y/N)]],\"N\")","v":14},131.85714285714286]
["Daamen Antony",23,null,null,23,"Member",{"$f":"SUMIFS(Table2[[#All],[Overall Place]],Table2[[#All],[Surname / First Name]],$A76)/E76","v":55},{"$f":"SUMIFS(Table2[[#All],[Club Points]],Table2[[#All],[Surname / First Name]],'Click here for your run details'!A76,Table2[[#All],[Excluded from Top 15 Run (Y/N)]],\"N\")","v":1725},{"$f":"COUNTIFS(Table2[[#All],[Surname / First Name]],'Click here for your run details'!A76,Table2[[#All],[Excluded from Top 15 Run (Y/N)]],\"N\")","v":15},115]
["Daniel Peter",4,null,null,4,"Member",{"$f":"SUMIFS(Table2[[#All],[Overall Place]],Table2[[#All],[Surname / First Name]],$A77)/E77","v":66},{"$f":"SUMIFS(Table2[[#All],[Club Points]],Table2[[#All],[Surname / First Name]],'Click here for your run details'!A77,Table2[[#All],[Excluded from Top 15 Run (Y/N)]],\"N\")","v":387},{"$f":"COUNTIFS(Table2[[#All],[Surname / First Name]],'Click here for your run details'!A77,Table2[[#All],[Excluded from Top 15 Run (Y/N)]],\"N\")","v":4},96.75]
["Daniel Ryan",null,null,3,3,"Non-Member",{"$f":"SUMIFS(Table2[[#All],[Overall Place]],Table2[[#All],[Surname / First Name]],$A78)/E78","v":68},{"$f":"SUMIFS(Table2[[#All],[Club Points]],Table2[[#All],[Surname / First Name]],'Click here for your run details'!A78,Table2[[#All],[Excluded from Top 15 Run (Y/N)]],\"N\")","v":0},{"$f":"COUNTIFS(Table2[[#All],[Surname / First Name]],'Click here for your run details'!A78,Table2[[#All],[Excluded from Top 15 Run (Y/N)]],\"N\")","v":0},0]
["Daroon Lowe",null,null,1,1,"Non-Member",{"$f":"SUMIFS(Table2[[#All],[Overall Place]],Table2[[#All],[Surname / First Name]],$A79)/E79","v":38},{"$f":"SUMIFS(Table2[[#All],[Club Points]],Table2[[#All],[Surname / First Name]],'Click here for your run details'!A79,Table2[[#All],[Excluded from Top 15 Run (Y/N)]],\"N\")","v":0},{"$f":"COUNTIFS(Table2[[#All],[Surname / First Name]],'Click here for your run details'!A79,Table2[[#All],[Excluded from Top 15 Run (Y/N)]],\"N\")","v":0},0]
["Daunt Belinda",3,null,null,3,"Member",{"$f":"SUMIFS(Table2[[#All],[Overall Place]],Table2[[#All],[Surname / First Name]],$A80)/E80","v":48.333333333333336},{"$f":"SUMIFS(Table2[[#All],[Club Points]],Table2[[#All],[Surname / First Name]],'Click here for your run details'!A80,Table2[[#All],[Excluded from Top 15 Run (Y/N)]],\"N\")","v":338},{"$f":"COUNTIFS(Table2[[#All],[Surname / First Name]],'Click here for your run details'!A80,Table2[[#All],[Excluded from Top 15 Run (Y/N)]],\"N\")","v":3},112.66666666666667]
["Davies Glen",7,null,null,7,"Member",{"$f":"SUMIFS(Table2[[#All],[Overall Place]],Table2[[#All],[Surname / First Name]],$A81)/E81","v":40.571428571428569},{"$f":"SUMIFS(Table2[[#All],[Club Points]],Table2[[#All],[Surname / First Name]],'Click here for your run details'!A81,Table2[[#All],[Excluded from Top 15 Run (Y/N)]],\"N\")","v":827},{"$f":"COUNTIFS(Table2[[#All],[Surname / First Name]],'Click here for your run details'!A81,Table2[[#All],[Excluded from Top 15 Run (Y/N)]],\"N\")","v":7},118.14285714285714]
["Davies Liz",null,null,1,1,"Non-Member",{"$f":"SUMIFS(Table2[[#All],[Overall Place]],Table2[[#All],[Surname / First Name]],$A82)/E82","v":21},{"$f":"SUMIFS(Table2[[#All],[Club Points]],Table2[[#All],[Surname / First Name]],'Click here for your run details'!A82,Table2[[#All],[Excluded from Top 15 Run (Y/N)]],\"N\")","v":0},{"$f":"COUNTIFS(Table2[[#All],[Surname / First Name]],'Click here for your run details'!A82,Table2[[#All],[Excluded from Top 15 Run (Y/N)]],\"N\")","v":0},0]
["Dawes Mike",null,null,1,1,"Non-Member",{"$f":"SUMIFS(Table2[[#All],[Overall Place]],Table2[[#All],[Surname / First Name]],$A83)/E83","v":69},{"$f":"SUMIFS(Table2[[#All],[Club Points]],Table2[[#All],[Surname / First Name]],'Click here for your run details'!A83,Table2[[#All],[Excluded from Top 15 Run (Y/N)]],\"N\")","v":0},{"$f":"COUNTIFS(Table2[[#All],[Surname / First Name]],'Click here for your run details'!A83,Table2[[#All],[Excluded from Top 15 Run (Y/N)]],\"N\")","v":0},0]
["Dawson William",2,null,null,2,"Member",{"$f":"SUMIFS(Table2[[#All],[Overall Place]],Table2[[#All],[Surname / First Name]],$A84)/E84","v":58.5},{"$f":"SUMIFS(Table2[[#All],[Club Points]],Table2[[#All],[Surname / First Name]],'Click here for your run details'!A84,Table2[[#All],[Excluded from Top 15 Run (Y/N)]],\"N\")","v":218},{"$f":"COUNTIFS(Table2[[#All],[Surname / First Name]],'Click here for your run details'!A84,Table2[[#All],[Excluded from Top 15 Run (Y/N)]],\"N\")","v":2},109]
["Day Paul",15,null,null,15,"Member",{"$f":"SUMIFS(Table2[[#All],[Overall Place]],Table2[[#All],[Surname / First Name]],$A85)/E85","v":26.266666666666666},{"$f":"SUMIFS(Table2[[#All],[Club Points]],Table2[[#All],[Surname / First Name]],'Click here for your run details'!A85,Table2[[#All],[Excluded from Top 15 Run (Y/N)]],\"N\")","v":1946},{"$f":"COUNTIFS(Table2[[#All],[Surname / First Name]],'Click here for your run details'!A85,Table2[[#All],[Excluded from Top 15 Run (Y/N)]],\"N\")","v":15},129.73333333333332]
["De Jeresy Louise",null,null,1,1,"Non-Member",{"$f":"SUMIFS(Table2[[#All],[Overall Place]],Table2[[#All],[Surname / First Name]],$A86)/E86","v":72},{"$f":"SUMIFS(Table2[[#All],[Club Points]],Table2[[#All],[Surname / First Name]],'Click here for your run details'!A86,Table2[[#All],[Excluded from Top 15 Run (Y/N)]],\"N\")","v":0},{"$f":"COUNTIFS(Table2[[#All],[Surname / First Name]],'Click here for your run details'!A86,Table2[[#All],[Excluded from Top 15 Run (Y/N)]],\"N\")","v":0},0]
["De Jeresy Stephen",null,null,1,1,"Non-Member",{"$f":"SUMIFS(Table2[[#All],[Overall Place]],Table2[[#All],[Surname / First Name]],$A87)/E87","v":71},{"$f":"SUMIFS(Table2[[#All],[Club Points]],Table2[[#All],[Surname / First Name]],'Click here for your run details'!A87,Table2[[#All],[Excluded from Top 15 Run (Y/N)]],\"N\")","v":0},{"$f":"COUNTIFS(Table2[[#All],[Surname / First Name]],'Click here for your run details'!A87,Table2[[#All],[Excluded from Top 15 Run (Y/N)]],\"N\")","v":0},0]
["De Jersey Louise",null,null,1,1,"Non-Member",{"$f":"SUMIFS(Table2[[#All],[Overall Place]],Table2[[#All],[Surname / First Name]],$A88)/E88","v":71},{"$f":"SUMIFS(Table2[[#All],[Club Points]],Table2[[#All],[Surname / First Name]],'Click here for your run details'!A88,Table2[[#All],[Excluded from Top 15 Run (Y/N)]],\"N\")","v":0},{"$f":"COUNTIFS(Table2[[#All],[Surname / First Name]],'Click here for your run details'!A88,Table2[[#All],[Excluded from Top 15 Run (Y/N)]],\"N\")","v":0},0]
["De Jersey Oliver",null,null,1,1,"Non-Member",{"$f":"SUMIFS(Table2[[#All],[Overall Place]],Table2[[#All],[Surname / First Name]],$A89)/E89","v":13},{"$f":"SUMIFS(Table2[[#All],[Club Points]],Table2[[#All],[Surname / First Name]],'Click here for your run details'!A89,Table2[[#All],[Excluded from Top 15 Run (Y/N)]],\"N\")","v":0},{"$f":"COUNTIFS(Table2[[#All],[Surname / First Name]],'Click here for your run details'!A89,Table2[[#All],[Excluded from Top 15 Run (Y/N)]],\"N\")","v":0},{"$f":"IFERROR(H89/I89,0)","v":0}]
["De Jersey Sophie",null,null,1,1,"Non-Member",{"$f":"SUMIFS(Table2[[#All],[Overall Place]],Table2[[#All],[Surname / First Name]],$A90)/E90","v":54},{"$f":"SUMIFS(Table2[[#All],[Club Points]],Table2[[#All],[Surname / First Name]],'Click here for your run details'!A90,Table2[[#All],[Excluded from Top 15 Run (Y/N)]],\"N\")","v":0},{"$f":"COUNTIFS(Table2[[#All],[Surname / First Name]],'Click here for your run details'!A90,Table2[[#All],[Excluded from Top 15 Run (Y/N)]],\"N\")","v":0},{"$f":"IFERROR(H90/I90,0)","v":0}]
["De Jersey Stephen",null,null,1,1,"Non-Member",{"$f":"SUMIFS(Table2[[#All],[Overall Place]],Table2[[#All],[Surname / First Name]],$A91)/E91","v":56},{"$f":"SUMIFS(Table2[[#All],[Club Points]],Table2[[#All],[Surname / First Name]],'Click here for your run details'!A91,Table2[[#All],[Excluded from Top 15 Run (Y/N)]],\"N\")","v":0},{"$f":"COUNTIFS(Table2[[#All],[Surname / First Name]],'Click here for your run details'!A91,Table2[[#All],[Excluded from Top 15 Run (Y/N)]],\"N\")","v":0},0]
["De Jong Jaap",17,null,null,17,"Member",{"$f":"SUMIFS(Table2[[#All],[Overall Place]],Table2[[#All],[Surname / First Name]],$A92)/E92","v":74.764705882352942},{"$f":"SUMIFS(Table2[[#All],[Club Points]],Table2[[#All],[Surname / First Name]],'Click here for your run details'!A92,Table2[[#All],[Excluded from Top 15 Run (Y/N)]],\"N\")","v":1453},{"$f":"COUNTIFS(Table2[[#All],[Surname / First Name]],'Click here for your run details'!A92,Table2[[#All],[Excluded from Top 15 Run (Y/N)]],\"N\")","v":15},96.86666666666666]
["Desailly Nicole",16,null,null,16,"Member",{"$f":"SUMIFS(Table2[[#All],[Overall Place]],Table2[[#All],[Surname / First Name]],$A93)/E93","v":40.4375},{"$f":"SUMIFS(Table2[[#All],[Club Points]],Table2[[#All],[Surname / First Name]],'Click here for your run details'!A93,Table2[[#All],[Excluded from Top 15 Run (Y/N)]],\"N\")","v":1812},{"$f":"COUNTIFS(Table2[[#All],[Surname / First Name]],'Click here for your run details'!A93,Table2[[#All],[Excluded from Top 15 Run (Y/N)]],\"N\")","v":15},120.8]
["Di Giacomo Simon",12,1,null,13,"Member",{"$f":"SUMIFS(Table2[[#All],[Overall Place]],Table2[[#All],[Surname / First Name]],$A94)/E94","v":8.1538461538461533},{"$f":"SUMIFS(Table2[[#All],[Club Points]],Table2[[#All],[Surname / First Name]],'Click here for your run details'!A94,Table2[[#All],[Excluded from Top 15 Run (Y/N)]],\"N\")","v":1739},{"$f":"COUNTIFS(Table2[[#All],[Surname / First Name]],'Click here for your run details'!A94,Table2[[#All],[Excluded from Top 15 Run (Y/N)]],\"N\")","v":12},144.91666666666666]
["Dicketts Kelly",5,null,null,5,"Member",{"$f":"SUMIFS(Table2[[#All],[Overall Place]],Table2[[#All],[Surname / First Name]],$A95)/E95","v":62.8},{"$f":"SUMIFS(Table2[[#All],[Club Points]],Table2[[#All],[Surname / First Name]],'Click here for your run details'!A95,Table2[[#All],[Excluded from Top 15 Run (Y/N)]],\"N\")","v":504},{"$f":"COUNTIFS(Table2[[#All],[Surname / First Name]],'Click here for your run details'!A95,Table2[[#All],[Excluded from Top 15 Run (Y/N)]],\"N\")","v":5},100.8]
["Doherty Bill",24,null,null,24,"Member",{"$f":"SUMIFS(Table2[[#All],[Overall Place]],Table2[[#All],[Surname / First Name]],$A96)/E96","v":23.291666666666668},{"$f":"SUMIFS(Table2[[#All],[Club Points]],Table2[[#All],[Surname / First Name]],'Click here for your run details'!A96,Table2[[#All],[Excluded from Top 15 Run (Y/N)]],\"N\")","v":2032},{"$f":"COUNTIFS(Table2[[#All],[Surname / First Name]],'Click here for your run details'!A96,Table2[[#All],[Excluded from Top 15 Run (Y/N)]],\"N\")","v":15},135.46666666666667]
["Doherty Margot",5,null,null,5,"Member",{"$f":"SUMIFS(Table2[[#All],[Overall Place]],Table2[[#All],[Surname / First Name]],$A97)/E97","v":54.8},{"$f":"SUMIFS(Table2[[#All],[Club Points]],Table2[[#All],[Surname / First Name]],'Click here for your run details'!A97,Table2[[#All],[Excluded from Top 15 Run (Y/N)]],\"N\")","v":527},{"$f":"COUNTIFS(Table2[[#All],[Surname / First Name]],'Click here for your run details'!A97,Table2[[#All],[Excluded from Top 15 Run (Y/N)]],\"N\")","v":5},105.4]
["Doherty Rosie",11,null,null,11,"Member",{"$f":"SUMIFS(Table2[[#All],[Overall Place]],Table2[[#All],[Surname / First Name]],$A98)/E98","v":66.818181818181813},{"$f":"SUMIFS(Table2[[#All],[Club Points]],Table2[[#All],[Surname / First Name]],'Click here for your run details'!A98,Table2[[#All],[Excluded from Top 15 Run (Y/N)]],\"N\")","v":1109},{"$f":"COUNTIFS(Table2[[#All],[Surname / First Name]],'Click here for your run details'!A98,Table2[[#All],[Excluded from Top 15 Run (Y/N)]],\"N\")","v":11},100.81818181818181]
["Doherty Susan",24,null,null,24,"Member",{"$f":"SUMIFS(Table2[[#All],[Overall Place]],Table2[[#All],[Surname / First Name]],$A99)/E99","v":66.833333333333329},{"$f":"SUMIFS(Table2[[#All],[Club Points]],Table2[[#All],[Surname / First Name]],'Click here for your run details'!A99,Table2[[#All],[Excluded from Top 15 Run (Y/N)]],\"N\")","v":1634},{"$f":"COUNTIFS(Table2[[#All],[Surname / First Name]],'Click here for your run details'!A99,Table2[[#All],[Excluded from Top 15 Run (Y/N)]],\"N\")","v":15},108.93333333333334]
["Dohnaler Janet",null,null,1,1,"Non-Member",{"$f":"SUMIFS(Table2[[#All],[Overall Place]],Table2[[#All],[Surname / First Name]],$A100)/E100","v":84},{"$f":"SUMIFS(Table2[[#All],[Club Points]],Table2[[#All],[Surname / First Name]],'Click here for your run details'!A100,Table2[[#All],[Excluded from Top 15 Run (Y/N)]],\"N\")","v":0},{"$f":"COUNTIFS(Table2[[#All],[Surname / First Name]],'Click here for your run details'!A100,Table2[[#All],[Excluded from Top 15 Run (Y/N)]],\"N\")","v":0},0]
["Donoghue Mary",21,null,null,21,"Member",{"$f":"SUMIFS(Table2[[#All],[Overall Place]],Table2[[#All],[Surname / First Name]],$A101)/E101","v":66.19047619047619},{"$f":"SUMIFS(Table2[[#All],[Club Points]],Table2[[#All],[Surname / First Name]],'Click here for your run details'!A101,Table2[[#All],[Excluded from Top 15 Run (Y/N)]],\"N\")","v":1603},{"$f":"COUNTIFS(Table2[[#All],[Surname / First Name]],'Click here for your run details'!A101,Table2[[#All],[Excluded from Top 15 Run (Y/N)]],\"N\")","v":15},106.86666666666666]
["Donoghue Michael",25,null,null,25,"Member",{"$f":"SUMIFS(Table2[[#All],[Overall Place]],Table2[[#All],[Surname / First Name]],$A102)/E102","v":40.24},{"$f":"SUMIFS(Table2[[#All],[Club Points]],Table2[[#All],[Surname / First Name]],'Click here for your run details'!A102,Table2[[#All],[Excluded from Top 15 Run (Y/N)]],\"N\")","v":1859},{"$f":"COUNTIFS(Table2[[#All],[Surname / First Name]],'Click here for your run details'!A102,Table2[[#All],[Excluded from Top 15 Run (Y/N)]],\"N\")","v":15},123.93333333333334]
["Dowel Lee",3,null,null,3,"Member",{"$f":"SUMIFS(Table2[[#All],[Overall Place]],Table2[[#All],[Surname / First Name]],$A103)/E103","v":75.333333333333329},{"$f":"SUMIFS(Table2[[#All],[Club Points]],Table2[[#All],[Surname / First Name]],'Click here for your run details'!A103,Table2[[#All],[Excluded from Top 15 Run (Y/N)]],\"N\")","v":272},{"$f":"COUNTIFS(Table2[[#All],[Surname / First Name]],'Click here for your run details'!A103,Table2[[#All],[Excluded from Top 15 Run (Y/N)]],\"N\")","v":3},90.666666666666671]
["Dowel Mark",3,null,null,3,"Member",{"$f":"SUMIFS(Table2[[#All],[Overall Place]],Table2[[#All],[Surname / First Name]],$A104)/E104","v":56},{"$f":"SUMIFS(Table2[[#All],[Club Points]],Table2[[#All],[Surname / First Name]],'Click here for your run details'!A104,Table2[[#All],[Excluded from Top 15 Run (Y/N)]],\"N\")","v":314},{"$f":"COUNTIFS(Table2[[#All],[Surname / First Name]],'Click here for your run details'!A104,Table2[[#All],[Excluded from Top 15 Run (Y/N)]],\"N\")","v":3},104.66666666666667]
["Dowling Bradley",1,null,null,1,"Member",{"$f":"SUMIFS(Table2[[#All],[Overall Place]],Table2[[#All],[Surname / First Name]],$A105)/E105","v":31},{"$f":"SUMIFS(Table2[[#All],[Club Points]],Table2[[#All],[Surname / First Name]],'Click here for your run details'!A105,Table2[[#All],[Excluded from Top 15 Run (Y/N)]],\"N\")","v":125},{"$f":"COUNTIFS(Table2[[#All],[Surname / First Name]],'Click here for your run details'!A105,Table2[[#All],[Excluded from Top 15 Run (Y/N)]],\"N\")","v":1},125]
["dowling donna",1,null,null,1,"Member",{"$f":"SUMIFS(Table2[[#All],[Overall Place]],Table2[[#All],[Surname / First Name]],$A106)/E106","v":62},{"$f":"SUMIFS(Table2[[#All],[Club Points]],Table2[[#All],[Surname / First Name]],'Click here for your run details'!A106,Table2[[#All],[Excluded from Top 15 Run (Y/N)]],\"N\")","v":131},{"$f":"COUNTIFS(Table2[[#All],[Surname / First Name]],'Click here for your run details'!A106,Table2[[#All],[Excluded from Top 15 Run (Y/N)]],\"N\")","v":1},131]
["Doyle Rachel",7,null,null,7,"Member",{"$f":"SUMIFS(Table2[[#All],[Overall Place]],Table2[[#All],[Surname / First Name]],$A107)/E107","v":59.142857142857146},{"$f":"SUMIFS(Table2[[#All],[Club Points]],Table2[[#All],[Surname / First Name]],'Click here for your run details'!A107,Table2[[#All],[Excluded from Top 15 Run (Y/N)]],\"N\")","v":718},{"$f":"COUNTIFS(Table2[[#All],[Surname / First Name]],'Click here for your run details'!A107,Table2[[#All],[Excluded from Top 15 Run (Y/N)]],\"N\")","v":7},102.57142857142857]
["Drummond Karin",null,null,1,1,"Non-Member",{"$f":"SUMIFS(Table2[[#All],[Overall Place]],Table2[[#All],[Surname / First Name]],$A108)/E108","v":23},{"$f":"SUMIFS(Table2[[#All],[Club Points]],Table2[[#All],[Surname / First Name]],'Click here for your run details'!A108,Table2[[#All],[Excluded from Top 15 Run (Y/N)]],\"N\")","v":0},{"$f":"COUNTIFS(Table2[[#All],[Surname / First Name]],'Click here for your run details'!A108,Table2[[#All],[Excluded from Top 15 Run (Y/N)]],\"N\")","v":0},0]
["Dunstan James",null,null,1,1,"Non-Member",{"$f":"SUMIFS(Table2[[#All],[Overall Place]],Table2[[#All],[Surname / First Name]],$A109)/E109","v":25},{"$f":"SUMIFS(Table2[[#All],[Club Points]],Table2[[#All],[Surname / First Name]],'Click here for your run details'!A109,Table2[[#All],[Excluded from Top 15 Run (Y/N)]],\"N\")","v":0},{"$f":"COUNTIFS(Table2[[#All],[Surname / First Name]],'Click here for your run details'!A109,Table2[[#All],[Excluded from Top 15 Run (Y/N)]],\"N\")","v":0},0]
["Dunstan Jamie",null,null,1,1,"Non-Member",{"$f":"SUMIFS(Table2[[#All],[Overall Place]],Table2[[#All],[Surname / First Name]],$A110)/E110","v":23},{"$f":"SUMIFS(Table2[[#All],[Club Points]],Table2[[#All],[Surname / First Name]],'Click here for your run details'!A110,Table2[[#All],[Excluded from Top 15 Run (Y/N)]],\"N\")","v":0},{"$f":"COUNTIFS(Table2[[#All],[Surname / First Name]],'Click here for your run details'!A110,Table2[[#All],[Excluded from Top 15 Run (Y/N)]],\"N\")","v":0},0]
["Dunsten James",null,null,2,2,"Non-Member",{"$f":"SUMIFS(Table2[[#All],[Overall Place]],Table2[[#All],[Surname / First Name]],$A111)/E111","v":13.5},{"$f":"SUMIFS(Table2[[#All],[Club Points]],Table2[[#All],[Surname / First Name]],'Click here for your run details'!A111,Table2[[#All],[Excluded from Top 15 Run (Y/N)]],\"N\")","v":0},{"$f":"COUNTIFS(Table2[[#All],[Surname / First Name]],'Click here for your run details'!A111,Table2[[#All],[Excluded from Top 15 Run (Y/N)]],\"N\")","v":0},0]
["Ellershaw Robert",14,null,null,14,"Member",{"$f":"SUMIFS(Table2[[#All],[Overall Place]],Table2[[#All],[Surname / First Name]],$A112)/E112","v":34.071428571428569},{"$f":"SUMIFS(Table2[[#All],[Club Points]],Table2[[#All],[Surname / First Name]],'Click here for your run details'!A112,Table2[[#All],[Excluded from Top 15 Run (Y/N)]],\"N\")","v":1724},{"$f":"COUNTIFS(Table2[[#All],[Surname / First Name]],'Click here for your run details'!A112,Table2[[#All],[Excluded from Top 15 Run (Y/N)]],\"N\")","v":14},123.14285714285714]
["Ellett Greg",null,null,1,1,"Non-Member",{"$f":"SUMIFS(Table2[[#All],[Overall Place]],Table2[[#All],[Surname / First Name]],$A113)/E113","v":4},{"$f":"SUMIFS(Table2[[#All],[Club Points]],Table2[[#All],[Surname / First Name]],'Click here for your run details'!A113,Table2[[#All],[Excluded from Top 15 Run (Y/N)]],\"N\")","v":0},{"$f":"COUNTIFS(Table2[[#All],[Surname / First Name]],'Click here for your run details'!A113,Table2[[#All],[Excluded from Top 15 Run (Y/N)]],\"N\")","v":0},0]
["Elliott Clinton",null,null,1,1,"Non-Member",{"$f":"SUMIFS(Table2[[#All],[Overall Place]],Table2[[#All],[Surname / First Name]],$A114)/E114","v":17},{"$f":"SUMIFS(Table2[[#All],[Club Points]],Table2[[#All],[Surname / First Name]],'Click here for your run details'!A114,Table2[[#All],[Excluded from Top 15 Run (Y/N)]],\"N\")","v":0},{"$f":"COUNTIFS(Table2[[#All],[Surname / First Name]],'Click here for your run details'!A114,Table2[[#All],[Excluded from Top 15 Run (Y/N)]],\"N\")","v":0},0]
["Eriksen Dale",11,null,null,11,"Member",{"$f":"SUMIFS(Table2[[#All],[Overall Place]],Table2[[#All],[Surname / First Name]],$A115)/E115","v":50.727272727272727},{"$f":"SUMIFS(Table2[[#All],[Club Points]],Table2[[#All],[Surname / First Name]],'Click here for your run details'!A115,Table2[[#All],[Excluded from Top 15 Run (Y/N)]],\"N\")","v":1225},{"$f":"COUNTIFS(Table2[[#All],[Surname / First Name]],'Click here for your run details'!A115,Table2[[#All],[Excluded from Top 15 Run (Y/N)]],\"N\")","v":11},111.36363636363636]
["Eusson John",null,null,1,1,"Non-Member",{"$f":"SUMIFS(Table2[[#All],[Overall Place]],Table2[[#All],[Surname / First Name]],$A116)/E116","v":26},{"$f":"SUMIFS(Table2[[#All],[Club Points]],Table2[[#All],[Surname / First Name]],'Click here for your run details'!A116,Table2[[#All],[Excluded from Top 15 Run (Y/N)]],\"N\")","v":0},{"$f":"COUNTIFS(Table2[[#All],[Surname / First Name]],'Click here for your run details'!A116,Table2[[#All],[Excluded from Top 15 Run (Y/N)]],\"N\")","v":0},0]
["Evans Derrick",19,null,null,19,"Member",{"$f":"SUMIFS(Table2[[#All],[Overall Place]],Table2[[#All],[Surname / First Name]],$A117)/E117","v":19.736842105263158},{"$f":"SUMIFS(Table2[[#All],[Club Points]],Table2[[#All],[Surname / First Name]],'Click here for your run details'!A117,Table2[[#All],[Excluded from Top 15 Run (Y/N)]],\"N\")","v":2048},{"$f":"COUNTIFS(Table2[[#All],[Surname / First Name]],'Click here for your run details'!A117,Table2[[#All],[Excluded from Top 15 Run (Y/N)]],\"N\")","v":15},136.53333333333333]
["Evas Sorene",null,null,1,1,"Non-Member",{"$f":"SUMIFS(Table2[[#All],[Overall Place]],Table2[[#All],[Surname / First Name]],$A118)/E118","v":88},{"$f":"SUMIFS(Table2[[#All],[Club Points]],Table2[[#All],[Surname / First Name]],'Click here for your run details'!A118,Table2[[#All],[Excluded from Top 15 Run (Y/N)]],\"N\")","v":0},{"$f":"COUNTIFS(Table2[[#All],[Surname / First Name]],'Click here for your run details'!A118,Table2[[#All],[Excluded from Top 15 Run (Y/N)]],\"N\")","v":0},0]
["Fanning Jenny",null,null,1,1,"Non-Member",{"$f":"SUMIFS(Table2[[#All],[Overall Place]],Table2[[#All],[Surname / First Name]],$A119)/E119","v":82},{"$f":"SUMIFS(Table2[[#All],[Club Points]],Table2[[#All],[Surname / First Name]],'Click here for your run details'!A119,Table2[[#All],[Excluded from Top 15 Run (Y/N)]],\"N\")","v":0},{"$f":"COUNTIFS(Table2[[#All],[Surname / First Name]],'Click here for your run details'!A119,Table2[[#All],[Excluded from Top 15 Run (Y/N)]],\"N\")","v":0},0]
["Fanning Terence",8,2,null,10,"Member",{"$f":"SUMIFS(Table2[[#All],[Overall Place]],Table2[[#All],[Surname / First Name]],$A120)/E120","v":46.4},{"$f":"SUMIFS(Table2[[#All],[Club Points]],Table2[[#All],[Surname / First Name]],'Click here for your run details'!A120,Table2[[#All],[Excluded from Top 15 Run (Y/N)]],\"N\")","v":933},{"$f":"COUNTIFS(Table2[[#All],[Surname / First Name]],'Click here for your run details'!A120,Table2[[#All],[Excluded from Top 15 Run (Y/N)]],\"N\")","v":8},116.625]
["Farmer Matthew",null,null,1,1,"Non-Member",{"$f":"SUMIFS(Table2[[#All],[Overall Place]],Table2[[#All],[Surname / First Name]],$A121)/E121","v":13},{"$f":"SUMIFS(Table2[[#All],[Club Points]],Table2[[#All],[Surname / First Name]],'Click here for your run details'!A121,Table2[[#All],[Excluded from Top 15 Run (Y/N)]],\"N\")","v":0},{"$f":"COUNTIFS(Table2[[#All],[Surname / First Name]],'Click here for your run details'!A121,Table2[[#All],[Excluded from Top 15 Run (Y/N)]],\"N\")","v":0},0]
["Ferguson Catherine",null,null,1,1,"Non-Member",{"$f":"SUMIFS(Table2[[#All],[Overall Place]],Table2[[#All],[Surname / First Name]],$A122)/E122","v":68},{"$f":"SUMIFS(Table2[[#All],[Club Points]],Table2[[#All],[Surname / First Name]],'Click here for your run details'!A122,Table2[[#All],[Excluded from Top 15 Run (Y/N)]],\"N\")","v":0},{"$f":"COUNTIFS(Table2[[#All],[Surname / First Name]],'Click here for your run details'!A122,Table2[[#All],[Excluded from Top 15 Run (Y/N)]],\"N\")","v":0},0]
["Fitzsimmons Michael",21,null,null,21,"Member",{"$f":"SUMIFS(Table2[[#All],[Overall Place]],Table2[[#All],[Surname / First Name]],$A123)/E123","v":13.904761904761905},{"$f":"SUMIFS(Table2[[#All],[Club Points]],Table2[[#All],[Surname / First Name]],'Click here for your run details'!A123,Table2[[#All],[Excluded from Top 15 Run (Y/N)]],\"N\")","v":2123},{"$f":"COUNTIFS(Table2[[#All],[Surname / First Name]],'Click here for your run details'!A123,Table2[[#All],[Excluded from Top 15 Run (Y/N)]],\"N\")","v":15},141.53333333333333]
["Flores Monique",null,null,7,7,"Non-Member",{"$f":"SUMIFS(Table2[[#All],[Overall Place]],Table2[[#All],[Surname / First Name]],$A124)/E124","v":16.428571428571427},{"$f":"SUMIFS(Table2[[#All],[Club Points]],Table2[[#All],[Surname / First Name]],'Click here for your run details'!A124,Table2[[#All],[Excluded from Top 15 Run (Y/N)]],\"N\")","v":0},{"$f":"COUNTIFS(Table2[[#All],[Surname / First Name]],'Click here for your run details'!A124,Table2[[#All],[Excluded from Top 15 Run (Y/N)]],\"N\")","v":0},0]
["Flynn-Pittar Dee",13,null,null,13,"Member",{"$f":"SUMIFS(Table2[[#All],[Overall Place]],Table2[[#All],[Surname / First Name]],$A125)/E125","v":30.53846153846154},{"$f":"SUMIFS(Table2[[#All],[Club Points]],Table2[[#All],[Surname / First Name]],'Click here for your run details'!A125,Table2[[#All],[Excluded from Top 15 Run (Y/N)]],\"N\")","v":1638},{"$f":"COUNTIFS(Table2[[#All],[Surname / First Name]],'Click here for your run details'!A125,Table2[[#All],[Excluded from Top 15 Run (Y/N)]],\"N\")","v":13},126]
["Flynn-Pittar Isis",15,6,null,21,"Member",{"$f":"SUMIFS(Table2[[#All],[Overall Place]],Table2[[#All],[Surname / First Name]],$A126)/E126","v":25.952380952380953},{"$f":"SUMIFS(Table2[[#All],[Club Points]],Table2[[#All],[Surname / First Name]],'Click here for your run details'!A126,Table2[[#All],[Excluded from Top 15 Run (Y/N)]],\"N\")","v":1979},{"$f":"COUNTIFS(Table2[[#All],[Surname / First Name]],'Click here for your run details'!A126,Table2[[#All],[Excluded from Top 15 Run (Y/N)]],\"N\")","v":15},131.93333333333334]
["Fox Adam",null,null,1,1,"Non-Member",{"$f":"SUMIFS(Table2[[#All],[Overall Place]],Table2[[#All],[Surname / First Name]],$A127)/E127","v":16},{"$f":"SUMIFS(Table2[[#All],[Club Points]],Table2[[#All],[Surname / First Name]],'Click here for your run details'!A127,Table2[[#All],[Excluded from Top 15 Run (Y/N)]],\"N\")","v":0},{"$f":"COUNTIFS(Table2[[#All],[Surname / First Name]],'Click here for your run details'!A127,Table2[[#All],[Excluded from Top 15 Run (Y/N)]],\"N\")","v":0},0]
["Francis Alley",null,null,1,1,"Non-Member",{"$f":"SUMIFS(Table2[[#All],[Overall Place]],Table2[[#All],[Surname / First Name]],$A128)/E128","v":55},{"$f":"SUMIFS(Table2[[#All],[Club Points]],Table2[[#All],[Surname / First Name]],'Click here for your run details'!A128,Table2[[#All],[Excluded from Top 15 Run (Y/N)]],\"N\")","v":0},{"$f":"COUNTIFS(Table2[[#All],[Surname / First Name]],'Click here for your run details'!A128,Table2[[#All],[Excluded from Top 15 Run (Y/N)]],\"N\")","v":0},0]
["Frazer Ian",17,null,null,17,"Member",{"$f":"SUMIFS(Table2[[#All],[Overall Place]],Table2[[#All],[Surname / First Name]],$A129)/E129","v":32.352941176470587},{"$f":"SUMIFS(Table2[[#All],[Club Points]],Table2[[#All],[Surname / First Name]],'Click here for your run details'!A129,Table2[[#All],[Excluded from Top 15 Run (Y/N)]],\"N\")","v":1885},{"$f":"COUNTIFS(Table2[[#All],[Surname / First Name]],'Click here for your run details'!A129,Table2[[#All],[Excluded from Top 15 Run (Y/N)]],\"N\")","v":15},125.66666666666667]
["Freislich Natalie",2,null,null,2,"Member",{"$f":"SUMIFS(Table2[[#All],[Overall Place]],Table2[[#All],[Surname / First Name]],$A130)/E130","v":79.5},{"$f":"SUMIFS(Table2[[#All],[Club Points]],Table2[[#All],[Surname / First Name]],'Click here for your run details'!A130,Table2[[#All],[Excluded from Top 15 Run (Y/N)]],\"N\")","v":180},{"$f":"COUNTIFS(Table2[[#All],[Surname / First Name]],'Click here for your run details'!A130,Table2[[#All],[Excluded from Top 15 Run (Y/N)]],\"N\")","v":2},90]
["Frossling Annika",3,null,null,3,"Member",{"$f":"SUMIFS(Table2[[#All],[Overall Place]],Table2[[#All],[Surname / First Name]],$A131)/E131","v":56.666666666666664},{"$f":"SUMIFS(Table2[[#All],[Club Points]],Table2[[#All],[Surname / First Name]],'Click here for your run details'!A131,Table2[[#All],[Excluded from Top 15 Run (Y/N)]],\"N\")","v":351},{"$f":"COUNTIFS(Table2[[#All],[Surname / First Name]],'Click here for your run details'!A131,Table2[[#All],[Excluded from Top 15 Run (Y/N)]],\"N\")","v":3},117]
["Garnett Adrian",13,null,null,13,"Member",{"$f":"SUMIFS(Table2[[#All],[Overall Place]],Table2[[#All],[Surname / First Name]],$A132)/E132","v":5.5384615384615383},{"$f":"SUMIFS(Table2[[#All],[Club Points]],Table2[[#All],[Surname / First Name]],'Click here for your run details'!A132,Table2[[#All],[Excluded from Top 15 Run (Y/N)]],\"N\")","v":1905},{"$f":"COUNTIFS(Table2[[#All],[Surname / First Name]],'Click here for your run details'!A132,Table2[[#All],[Excluded from Top 15 Run (Y/N)]],\"N\")","v":13},146.53846153846155]
["Garvie Diane",9,null,null,9,"Member",{"$f":"SUMIFS(Table2[[#All],[Overall Place]],Table2[[#All],[Surname / First Name]],$A133)/E133","v":65.111111111111114},{"$f":"SUMIFS(Table2[[#All],[Club Points]],Table2[[#All],[Surname / First Name]],'Click here for your run details'!A133,Table2[[#All],[Excluded from Top 15 Run (Y/N)]],\"N\")","v":891},{"$f":"COUNTIFS(Table2[[#All],[Surname / First Name]],'Click here for your run details'!A133,Table2[[#All],[Excluded from Top 15 Run (Y/N)]],\"N\")","v":9},99]
["Gifford Kelly",11,null,null,11,"Member",{"$f":"SUMIFS(Table2[[#All],[Overall Place]],Table2[[#All],[Surname / First Name]],$A134)/E134","v":46.81818181818182},{"$f":"SUMIFS(Table2[[#All],[Club Points]],Table2[[#All],[Surname / First Name]],'Click here for your run details'!A134,Table2[[#All],[Excluded from Top 15 Run (Y/N)]],\"N\")","v":1260},{"$f":"COUNTIFS(Table2[[#All],[Surname / First Name]],'Click here for your run details'!A134,Table2[[#All],[Excluded from Top 15 Run (Y/N)]],\"N\")","v":11},114.54545454545455]
["Gilboy Arthur",null,null,3,3,"Non-Member",{"$f":"SUMIFS(Table2[[#All],[Overall Place]],Table2[[#All],[Surname / First Name]],$A135)/E135","v":63.666666666666664},{"$f":"SUMIFS(Table2[[#All],[Club Points]],Table2[[#All],[Surname / First Name]],'Click here for your run details'!A135,Table2[[#All],[Excluded from Top 15 Run (Y/N)]],\"N\")","v":0},{"$f":"COUNTIFS(Table2[[#All],[Surname / First Name]],'Click here for your run details'!A135,Table2[[#All],[Excluded from Top 15 Run (Y/N)]],\"N\")","v":0},0]
["Gillham Angela",1,null,null,1,"Member",{"$f":"SUMIFS(Table2[[#All],[Overall Place]],Table2[[#All],[Surname / First Name]],$A136)/E136","v":80},{"$f":"SUMIFS(Table2[[#All],[Club Points]],Table2[[#All],[Surname / First Name]],'Click here for your run details'!A136,Table2[[#All],[Excluded from Top 15 Run (Y/N)]],\"N\")","v":79},{"$f":"COUNTIFS(Table2[[#All],[Surname / First Name]],'Click here for your run details'!A136,Table2[[#All],[Excluded from Top 15 Run (Y/N)]],\"N\")","v":1},79]
["Gillham Claudia",5,null,null,5,{"$f":"IF(AND(SUM(B137:C137)>0,SUM(B137:C137)<99),\"Member\",\"Non-Member\")","v":"Member"},{"$f":"SUMIFS(Table2[[#All],[Overall Place]],Table2[[#All],[Surname / First Name]],$A137)/E137","v":99},{"$f":"SUMIFS(Table2[[#All],[Club Points]],Table2[[#All],[Surname / First Name]],'Click here for your run details'!A137,Table2[[#All],[Excluded from Top 15 Run (Y/N)]],\"N\")","v":357},{"$f":"COUNTIFS(Table2[[#All],[Surname / First Name]],'Click here for your run details'!A137,Table2[[#All],[Excluded from Top 15 Run (Y/N)]],\"N\")","v":5},71.400000000000006]
["Godier Jason",null,null,2,2,"Non-Member",{"$f":"SUMIFS(Table2[[#All],[Overall Place]],Table2[[#All],[Surname / First Name]],$A138)/E138","v":25},{"$f":"SUMIFS(Table2[[#All],[Club Points]],Table2[[#All],[Surname / First Name]],'Click here for your run details'!A138,Table2[[#All],[Excluded from Top 15 Run (Y/N)]],\"N\")","v":0},{"$f":"COUNTIFS(Table2[[#All],[Surname / First Name]],'Click here for your run details'!A138,Table2[[#All],[Excluded from Top 15 Run (Y/N)]],\"N\")","v":0},0]
["Goding Garry",null,null,1,1,"Non-Member",{"$f":"SUMIFS(Table2[[#All],[Overall Place]],Table2[[#All],[Surname / First Name]],$A139)/E139","v":30},{"$f":"SUMIFS(Table2[[#All],[Club Points]],Table2[[#All],[Surname / First Name]],'Click here for your run details'!A139,Table2[[#All],[Excluded from Top 15 Run (Y/N)]],\"N\")","v":0},{"$f":"COUNTIFS(Table2[[#All],[Surname / First Name]],'Click here for your run details'!A139,Table2[[#All],[Excluded from Top 15 Run (Y/N)]],\"N\")","v":0},0]
["Gordon Tony",6,null,null,6,"Member",{"$f":"SUMIFS(Table2[[#All],[Overall Place]],Table2[[#All],[Surname / First Name]],$A140)/E140","v":16.166666666666668},{"$f":"SUMIFS(Table2[[#All],[Club Points]],Table2[[#All],[Surname / First Name]],'Click here for your run details'!A140,Table2[[#All],[Excluded from Top 15 Run (Y/N)]],\"N\")","v":821},{"$f":"COUNTIFS(Table2[[#All],[Surname / First Name]],'Click here for your run details'!A140,Table2[[#All],[Excluded from Top 15 Run (Y/N)]],\"N\")","v":6},136.83333333333334]
["Gough Justin",null,null,1,1,"Non-Member",{"$f":"SUMIFS(Table2[[#All],[Overall Place]],Table2[[#All],[Surname / First Name]],$A141)/E141","v":37},{"$f":"SUMIFS(Table2[[#All],[Club Points]],Table2[[#All],[Surname / First Name]],'Click here for your run details'!A141,Table2[[#All],[Excluded from Top 15 Run (Y/N)]],\"N\")","v":0},{"$f":"COUNTIFS(Table2[[#All],[Surname / First Name]],'Click here for your run details'!A141,Table2[[#All],[Excluded from Top 15 Run (Y/N)]],\"N\")","v":0},0]
["Gower Adam",null,null,1,1,"Non-Member",{"$f":"SUMIFS(Table2[[#All],[Overall Place]],Table2[[#All],[Surname / First Name]],$A142)/E142","v":24},{"$f":"SUMIFS(Table2[[#All],[Club Points]],Table2[[#All],[Surname / First Name]],'Click here for your run details'!A142,Table2[[#All],[Excluded from Top 15 Run (Y/N)]],\"N\")","v":0},{"$f":"COUNTIFS(Table2[[#All],[Surname / First Name]],'Click here for your run details'!A142,Table2[[#All],[Excluded from Top 15 Run (Y/N)]],\"N\")","v":0},0]
["Groat Veronica",3,null,null,3,"Member",{"$f":"SUMIFS(Table2[[#All],[Overall Place]],Table2[[#All],[Surname / First Name]],$A143)/E143","v":49.333333333333336},{"$f":"SUMIFS(Table2[[#All],[Club Points]],Table2[[#All],[Surname / First Name]],'Click here for your run details'!A143,Table2[[#All],[Excluded from Top 15 Run (Y/N)]],\"N\")","v":336},{"$f":"COUNTIFS(Table2[[#All],[Surname / First Name]],'Click here for your run details'!A143,Table2[[#All],[Excluded from Top 15 Run (Y/N)]],\"N\")","v":3},112]
["Groose John",null,null,1,1,"Non-Member",{"$f":"SUMIFS(Table2[[#All],[Overall Place]],Table2[[#All],[Surname / First Name]],$A144)/E144","v":67},{"$f":"SUMIFS(Table2[[#All],[Club Points]],Table2[[#All],[Surname / First Name]],'Click here for your run details'!A144,Table2[[#All],[Excluded from Top 15 Run (Y/N)]],\"N\")","v":0},{"$f":"COUNTIFS(Table2[[#All],[Surname / First Name]],'Click here for your run details'!A144,Table2[[#All],[Excluded from Top 15 Run (Y/N)]],\"N\")","v":0},0]
["Grubba Tracey",null,null,1,1,"Non-Member",{"$f":"SUMIFS(Table2[[#All],[Overall Place]],Table2[[#All],[Surname / First Name]],$A145)/E145","v":80},{"$f":"SUMIFS(Table2[[#All],[Club Points]],Table2[[#All],[Surname / First Name]],'Click here for your run details'!A145,Table2[[#All],[Excluded from Top 15 Run (Y/N)]],\"N\")","v":0},{"$f":"COUNTIFS(Table2[[#All],[Surname / First Name]],'Click here for your run details'!A145,Table2[[#All],[Excluded from Top 15 Run (Y/N)]],\"N\")","v":0},0]
["Gustavson Russell",null,null,6,6,"Non-Member",{"$f":"SUMIFS(Table2[[#All],[Overall Place]],Table2[[#All],[Surname / First Name]],$A146)/E146","v":48.5},{"$f":"SUMIFS(Table2[[#All],[Club Points]],Table2[[#All],[Surname / First Name]],'Click here for your run details'!A146,Table2[[#All],[Excluded from Top 15 Run (Y/N)]],\"N\")","v":0},{"$f":"COUNTIFS(Table2[[#All],[Surname / First Name]],'Click here for your run details'!A146,Table2[[#All],[Excluded from Top 15 Run (Y/N)]],\"N\")","v":0},0]
["Guy William",14,null,null,14,"Member",{"$f":"SUMIFS(Table2[[#All],[Overall Place]],Table2[[#All],[Surname / First Name]],$A147)/E147","v":23.928571428571427},{"$f":"SUMIFS(Table2[[#All],[Club Points]],Table2[[#All],[Surname / First Name]],'Click here for your run details'!A147,Table2[[#All],[Excluded from Top 15 Run (Y/N)]],\"N\")","v":1838},{"$f":"COUNTIFS(Table2[[#All],[Surname / First Name]],'Click here for your run details'!A147,Table2[[#All],[Excluded from Top 15 Run (Y/N)]],\"N\")","v":14},131.28571428571428]
["Hampton Dave",10,null,null,10,"Member",{"$f":"SUMIFS(Table2[[#All],[Overall Place]],Table2[[#All],[Surname / First Name]],$A148)/E148","v":68.2},{"$f":"SUMIFS(Table2[[#All],[Club Points]],Table2[[#All],[Surname / First Name]],'Click here for your run details'!A148,Table2[[#All],[Excluded from Top 15 Run (Y/N)]],\"N\")","v":997},{"$f":"COUNTIFS(Table2[[#All],[Surname / First Name]],'Click here for your run details'!A148,Table2[[#All],[Excluded from Top 15 Run (Y/N)]],\"N\")","v":10},99.7]
["Hannay Andrew",10,null,null,10,"Member",{"$f":"SUMIFS(Table2[[#All],[Overall Place]],Table2[[#All],[Surname / First Name]],$A149)/E149","v":58.1},{"$f":"SUMIFS(Table2[[#All],[Club Points]],Table2[[#All],[Surname / First Name]],'Click here for your run details'!A149,Table2[[#All],[Excluded from Top 15 Run (Y/N)]],\"N\")","v":1054},{"$f":"COUNTIFS(Table2[[#All],[Surname / First Name]],'Click here for your run details'!A149,Table2[[#All],[Excluded from Top 15 Run (Y/N)]],\"N\")","v":10},105.4]
["Harding Michael",20,null,null,20,"Member",{"$f":"SUMIFS(Table2[[#All],[Overall Place]],Table2[[#All],[Surname / First Name]],$A150)/E150","v":2.2999999999999998},{"$f":"SUMIFS(Table2[[#All],[Club Points]],Table2[[#All],[Surname / First Name]],'Click here for your run details'!A150,Table2[[#All],[Excluded from Top 15 Run (Y/N)]],\"N\")","v":2241},{"$f":"COUNTIFS(Table2[[#All],[Surname / First Name]],'Click here for your run details'!A150,Table2[[#All],[Excluded from Top 15 Run (Y/N)]],\"N\")","v":15},149.4]
["Harris James",null,null,1,1,"Non-Member",{"$f":"SUMIFS(Table2[[#All],[Overall Place]],Table2[[#All],[Surname / First Name]],$A151)/E151","v":36},{"$f":"SUMIFS(Table2[[#All],[Club Points]],Table2[[#All],[Surname / First Name]],'Click here for your run details'!A151,Table2[[#All],[Excluded from Top 15 Run (Y/N)]],\"N\")","v":0},{"$f":"COUNTIFS(Table2[[#All],[Surname / First Name]],'Click here for your run details'!A151,Table2[[#All],[Excluded from Top 15 Run (Y/N)]],\"N\")","v":0},0]
["Hartwell Ngaire",null,null,1,1,"Non-Member",{"$f":"SUMIFS(Table2[[#All],[Overall Place]],Table2[[#All],[Surname / First Name]],$A152)/E152","v":74},{"$f":"SUMIFS(Table2[[#All],[Club Points]],Table2[[#All],[Surname / First Name]],'Click here for your run details'!A152,Table2[[#All],[Excluded from Top 15 Run (Y/N)]],\"N\")","v":0},{"$f":"COUNTIFS(Table2[[#All],[Surname / First Name]],'Click here for your run details'!A152,Table2[[#All],[Excluded from Top 15 Run (Y/N)]],\"N\")","v":0},0]
["Hastewell Brad",null,null,1,1,"Non-Member",{"$f":"SUMIFS(Table2[[#All],[Overall Place]],Table2[[#All],[Surname / First Name]],$A153)/E153","v":31},{"$f":"SUMIFS(Table2[[#All],[Club Points]],Table2[[#All],[Surname / First Name]],'Click here for your run details'!A153,Table2[[#All],[Excluded from Top 15 Run (Y/N)]],\"N\")","v":0},{"$f":"COUNTIFS(Table2[[#All],[Surname / First Name]],'Click here for your run details'!A153,Table2[[#All],[Excluded from Top 15 Run (Y/N)]],\"N\")","v":0},0]
["Hatchard Nicole",null,null,2,2,"Non-Member",{"$f":"SUMIFS(Table2[[#All],[Overall Place]],Table2[[#All],[Surname / First Name]],$A154)/E154","v":46.5},{"$f":"SUMIFS(Table2[[#All],[Club Points]],Table2[[#All],[Surname / First Name]],'Click here for your run details'!A154,Table2[[#All],[Excluded from Top 15 Run (Y/N)]],\"N\")","v":0},{"$f":"COUNTIFS(Table2[[#All],[Surname / First Name]],'Click here for your run details'!A154,Table2[[#All],[Excluded from Top 15 Run (Y/N)]],\"N\")","v":0},{"$f":"IFERROR(H154/I154,0)","v":0}]
["Hawey Loretto",null,null,1,1,"Non-Member",{"$f":"SUMIFS(Table2[[#All],[Overall Place]],Table2[[#All],[Surname / First Name]],$A155)/E155","v":60},{"$f":"SUMIFS(Table2[[#All],[Club Points]],Table2[[#All],[Surname / First Name]],'Click here for your run details'!A155,Table2[[#All],[Excluded from Top 15 Run (Y/N)]],\"N\")","v":0},{"$f":"COUNTIFS(Table2[[#All],[Surname / First Name]],'Click here for your run details'!A155,Table2[[#All],[Excluded from Top 15 Run (Y/N)]],\"N\")","v":0},0]
["Heames Sam",null,null,7,7,"Non-Member",{"$f":"SUMIFS(Table2[[#All],[Overall Place]],Table2[[#All],[Surname / First Name]],$A156)/E156","v":5.2857142857142856},{"$f":"SUMIFS(Table2[[#All],[Club Points]],Table2[[#All],[Surname / First Name]],'Click here for your run details'!A156,Table2[[#All],[Excluded from Top 15 Run (Y/N)]],\"N\")","v":0},{"$f":"COUNTIFS(Table2[[#All],[Surname / First Name]],'Click here for your run details'!A156,Table2[[#All],[Excluded from Top 15 Run (Y/N)]],\"N\")","v":0},0]
["Heames# Sam",null,null,1,1,"Non-Member",{"$f":"SUMIFS(Table2[[#All],[Overall Place]],Table2[[#All],[Surname / First Name]],$A157)/E157","v":6},{"$f":"SUMIFS(Table2[[#All],[Club Points]],Table2[[#All],[Surname / First Name]],'Click here for your run details'!A157,Table2[[#All],[Excluded from Top 15 Run (Y/N)]],\"N\")","v":0},{"$f":"COUNTIFS(Table2[[#All],[Surname / First Name]],'Click here for your run details'!A157,Table2[[#All],[Excluded from Top 15 Run (Y/N)]],\"N\")","v":0},0]
["Hearn Jennifer",7,null,null,7,"Member",{"$f":"SUMIFS(Table2[[#All],[Overall Place]],Table2[[#All],[Surname / First Name]],$A158)/E158","v":77},{"$f":"SUMIFS(Table2[[#All],[Club Points]],Table2[[#All],[Surname / First Name]],'Click here for your run details'!A158,Table2[[#All],[Excluded from Top 15 Run (Y/N)]],\"N\")","v":635},{"$f":"COUNTIFS(Table2[[#All],[Surname / First Name]],'Click here for your run details'!A158,Table2[[#All],[Excluded from Top 15 Run (Y/N)]],\"N\")","v":7},90.714285714285708]
["Hedges David",null,null,1,1,"Non-Member",{"$f":"SUMIFS(Table2[[#All],[Overall Place]],Table2[[#All],[Surname / First Name]],$A159)/E159","v":38},{"$f":"SUMIFS(Table2[[#All],[Club Points]],Table2[[#All],[Surname / First Name]],'Click here for your run details'!A159,Table2[[#All],[Excluded from Top 15 Run (Y/N)]],\"N\")","v":0},{"$f":"COUNTIFS(Table2[[#All],[Surname / First Name]],'Click here for your run details'!A159,Table2[[#All],[Excluded from Top 15 Run (Y/N)]],\"N\")","v":0},0]
["Henderson Daniel",null,null,1,1,"Non-Member",{"$f":"SUMIFS(Table2[[#All],[Overall Place]],Table2[[#All],[Surname / First Name]],$A160)/E160","v":6},{"$f":"SUMIFS(Table2[[#All],[Club Points]],Table2[[#All],[Surname / First Name]],'Click here for your run details'!A160,Table2[[#All],[Excluded from Top 15 Run (Y/N)]],\"N\")","v":0},{"$f":"COUNTIFS(Table2[[#All],[Surname / First Name]],'Click here for your run details'!A160,Table2[[#All],[Excluded from Top 15 Run (Y/N)]],\"N\")","v":0},0]
["Hiette Casey",null,null,4,4,"Non-Member",{"$f":"SUMIFS(Table2[[#All],[Overall Place]],Table2[[#All],[Surname / First Name]],$A161)/E161","v":26.25},{"$f":"SUMIFS(Table2[[#All],[Club Points]],Table2[[#All],[Surname / First Name]],'Click here for your run details'!A161,Table2[[#All],[Excluded from Top 15 Run (Y/N)]],\"N\")","v":0},{"$f":"COUNTIFS(Table2[[#All],[Surname / First Name]],'Click here for your run details'!A161,Table2[[#All],[Excluded from Top 15 Run (Y/N)]],\"N\")","v":0},0]
["Hiette Terry",7,null,null,7,"Member",{"$f":"SUMIFS(Table2[[#All],[Overall Place]],Table2[[#All],[Surname / First Name]],$A162)/E162","v":27.428571428571427},{"$f":"SUMIFS(Table2[[#All],[Club Points]],Table2[[#All],[Surname / First Name]],'Click here for your run details'!A162,Table2[[#All],[Excluded from Top 15 Run (Y/N)]],\"N\")","v":908},{"$f":"COUNTIFS(Table2[[#All],[Surname / First Name]],'Click here for your run details'!A162,Table2[[#All],[Excluded from Top 15 Run (Y/N)]],\"N\")","v":7},129.71428571428572]
["Hisuchi Tk",null,null,1,1,"Non-Member",{"$f":"SUMIFS(Table2[[#All],[Overall Place]],Table2[[#All],[Surname / First Name]],$A163)/E163","v":31},{"$f":"SUMIFS(Table2[[#All],[Club Points]],Table2[[#All],[Surname / First Name]],'Click here for your run details'!A163,Table2[[#All],[Excluded from Top 15 Run (Y/N)]],\"N\")","v":0},{"$f":"COUNTIFS(Table2[[#All],[Surname / First Name]],'Click here for your run details'!A163,Table2[[#All],[Excluded from Top 15 Run (Y/N)]],\"N\")","v":0},0]
["Hobbs Lucas",null,null,1,1,"Non-Member",{"$f":"SUMIFS(Table2[[#All],[Overall Place]],Table2[[#All],[Surname / First Name]],$A164)/E164","v":46},{"$f":"SUMIFS(Table2[[#All],[Club Points]],Table2[[#All],[Surname / First Name]],'Click here for your run details'!A164,Table2[[#All],[Excluded from Top 15 Run (Y/N)]],\"N\")","v":0},{"$f":"COUNTIFS(Table2[[#All],[Surname / First Name]],'Click here for your run details'!A164,Table2[[#All],[Excluded from Top 15 Run (Y/N)]],\"N\")","v":0},0]
["Hobson Cheryl",5,null,null,5,"Member",{"$f":"SUMIFS(Table2[[#All],[Overall Place]],Table2[[#All],[Surname / First Name]],$A165)/E165","v":93.4},{"$f":"SUMIFS(Table2[[#All],[Club Points]],Table2[[#All],[Surname / First Name]],'Click here for your run details'!A165,Table2[[#All],[Excluded from Top 15 Run (Y/N)]],\"N\")","v":376},{"$f":"COUNTIFS(Table2[[#All],[Surname / First Name]],'Click here for your run details'!A165,Table2[[#All],[Excluded from Top 15 Run (Y/N)]],\"N\")","v":5},75.2]
["Hoet# Greet",null,null,1,1,"Non-Member",{"$f":"SUMIFS(Table2[[#All],[Overall Place]],Table2[[#All],[Surname / First Name]],$A166)/E166","v":58},{"$f":"SUMIFS(Table2[[#All],[Club Points]],Table2[[#All],[Surname / First Name]],'Click here for your run details'!A166,Table2[[#All],[Excluded from Top 15 Run (Y/N)]],\"N\")","v":0},{"$f":"COUNTIFS(Table2[[#All],[Surname / First Name]],'Click here for your run details'!A166,Table2[[#All],[Excluded from Top 15 Run (Y/N)]],\"N\")","v":0},0]
["Hoggan John",9,null,null,9,"Member",{"$f":"SUMIFS(Table2[[#All],[Overall Place]],Table2[[#All],[Surname / First Name]],$A167)/E167","v":37.888888888888886},{"$f":"SUMIFS(Table2[[#All],[Club Points]],Table2[[#All],[Surname / First Name]],'Click here for your run details'!A167,Table2[[#All],[Excluded from Top 15 Run (Y/N)]],\"N\")","v":1082},{"$f":"COUNTIFS(Table2[[#All],[Surname / First Name]],'Click here for your run details'!A167,Table2[[#All],[Excluded from Top 15 Run (Y/N)]],\"N\")","v":9},120.22222222222223]
["Hooper Garry",6,null,null,6,"Member",{"$f":"SUMIFS(Table2[[#All],[Overall Place]],Table2[[#All],[Surname / First Name]],$A168)/E168","v":69.833333333333329},{"$f":"SUMIFS(Table2[[#All],[Club Points]],Table2[[#All],[Surname / First Name]],'Click here for your run details'!A168,Table2[[#All],[Excluded from Top 15 Run (Y/N)]],\"N\")","v":580},{"$f":"COUNTIFS(Table2[[#All],[Surname / First Name]],'Click here for your run details'!A168,Table2[[#All],[Excluded from Top 15 Run (Y/N)]],\"N\")","v":6},96.666666666666671]
["Hooper Jan",9,null,null,9,"Member",{"$f":"SUMIFS(Table2[[#All],[Overall Place]],Table2[[#All],[Surname / First Name]],$A169)/E169","v":82.777777777777771},{"$f":"SUMIFS(Table2[[#All],[Club Points]],Table2[[#All],[Surname / First Name]],'Click here for your run details'!A169,Table2[[#All],[Excluded from Top 15 Run (Y/N)]],\"N\")","v":777},{"$f":"COUNTIFS(Table2[[#All],[Surname / First Name]],'Click here for your run details'!A169,Table2[[#All],[Excluded from Top 15 Run (Y/N)]],\"N\")","v":9},86.333333333333329]
["Horrocks Paul",null,null,1,1,"Non-Member",{"$f":"SUMIFS(Table2[[#All],[Overall Place]],Table2[[#All],[Surname / First Name]],$A170)/E170","v":88},{"$f":"SUMIFS(Table2[[#All],[Club Points]],Table2[[#All],[Surname / First Name]],'Click here for your run details'!A170,Table2[[#All],[Excluded from Top 15 Run (Y/N)]],\"N\")","v":0},{"$f":"COUNTIFS(Table2[[#All],[Surname / First Name]],'Click here for your run details'!A170,Table2[[#All],[Excluded from Top 15 Run (Y/N)]],\"N\")","v":0},0]
["Horscroft Susan",8,null,null,8,"Member",{"$f":"SUMIFS(Table2[[#All],[Overall Place]],Table2[[#All],[Surname / First Name]],$A171)/E171","v":79.25},{"$f":"SUMIFS(Table2[[#All],[Club Points]],Table2[[#All],[Surname / First Name]],'Click here for your run details'!A171,Table2[[#All],[Excluded from Top 15 Run (Y/N)]],\"N\")","v":741},{"$f":"COUNTIFS(Table2[[#All],[Surname / First Name]],'Click here for your run details'!A171,Table2[[#All],[Excluded from Top 15 Run (Y/N)]],\"N\")","v":8},92.625]
["Howarth Dane",null,null,1,1,"Non-Member",{"$f":"SUMIFS(Table2[[#All],[Overall Place]],Table2[[#All],[Surname / First Name]],$A172)/E172","v":25},{"$f":"SUMIFS(Table2[[#All],[Club Points]],Table2[[#All],[Surname / First Name]],'Click here for your run details'!A172,Table2[[#All],[Excluded from Top 15 Run (Y/N)]],\"N\")","v":0},{"$f":"COUNTIFS(Table2[[#All],[Surname / First Name]],'Click here for your run details'!A172,Table2[[#All],[Excluded from Top 15 Run (Y/N)]],\"N\")","v":0},0]
["Howarth Dave",null,null,1,1,"Non-Member",{"$f":"SUMIFS(Table2[[#All],[Overall Place]],Table2[[#All],[Surname / First Name]],$A173)/E173","v":29},{"$f":"SUMIFS(Table2[[#All],[Club Points]],Table2[[#All],[Surname / First Name]],'Click here for your run details'!A173,Table2[[#All],[Excluded from Top 15 Run (Y/N)]],\"N\")","v":0},{"$f":"COUNTIFS(Table2[[#All],[Surname / First Name]],'Click here for your run details'!A173,Table2[[#All],[Excluded from Top 15 Run (Y/N)]],\"N\")","v":0},0]
["Hudson Allan",null,null,1,1,"Non-Member",{"$f":"SUMIFS(Table2[[#All],[Overall Place]],Table2[[#All],[Surname / First Name]],$A174)/E174","v":103},{"$f":"SUMIFS(Table2[[#All],[Club Points]],Table2[[#All],[Surname / First Name]],'Click here for your run details'!A174,Table2[[#All],[Excluded from Top 15 Run (Y/N)]],\"N\")","v":0},{"$f":"COUNTIFS(Table2[[#All],[Surname / First Name]],'Click here for your run details'!A174,Table2[[#All],[Excluded from Top 15 Run (Y/N)]],\"N\")","v":0},0]
["Hunter Matthew",7,null,null,7,"Member",{"$f":"SUMIFS(Table2[[#All],[Overall Place]],Table2[[#All],[Surname / First Name]],$A175)/E175","v":26.571428571428573},{"$f":"SUMIFS(Table2[[#All],[Club Points]],Table2[[#All],[Surname / First Name]],'Click here for your run details'!A175,Table2[[#All],[Excluded from Top 15 Run (Y/N)]],\"N\")","v":923},{"$f":"COUNTIFS(Table2[[#All],[Surname / First Name]],'Click here for your run details'!A175,Table2[[#All],[Excluded from Top 15 Run (Y/N)]],\"N\")","v":7},131.85714285714286]
["Hunter Michael",5,null,null,5,"Member",{"$f":"SUMIFS(Table2[[#All],[Overall Place]],Table2[[#All],[Surname / First Name]],$A176)/E176","v":30.6},{"$f":"SUMIFS(Table2[[#All],[Club Points]],Table2[[#All],[Surname / First Name]],'Click here for your run details'!A176,Table2[[#All],[Excluded from Top 15 Run (Y/N)]],\"N\")","v":635},{"$f":"COUNTIFS(Table2[[#All],[Surname / First Name]],'Click here for your run details'!A176,Table2[[#All],[Excluded from Top 15 Run (Y/N)]],\"N\")","v":5},127]
["Hutcheson Steven",5,null,null,5,"Member",{"$f":"SUMIFS(Table2[[#All],[Overall Place]],Table2[[#All],[Surname / First Name]],$A177)/E177","v":12.8},{"$f":"SUMIFS(Table2[[#All],[Club Points]],Table2[[#All],[Surname / First Name]],'Click here for your run details'!A177,Table2[[#All],[Excluded from Top 15 Run (Y/N)]],\"N\")","v":702},{"$f":"COUNTIFS(Table2[[#All],[Surname / First Name]],'Click here for your run details'!A177,Table2[[#All],[Excluded from Top 15 Run (Y/N)]],\"N\")","v":5},140.4]
["Hutchinson Di",null,null,1,1,"Non-Member",{"$f":"SUMIFS(Table2[[#All],[Overall Place]],Table2[[#All],[Surname / First Name]],$A178)/E178","v":89},{"$f":"SUMIFS(Table2[[#All],[Club Points]],Table2[[#All],[Surname / First Name]],'Click here for your run details'!A178,Table2[[#All],[Excluded from Top 15 Run (Y/N)]],\"N\")","v":0},{"$f":"COUNTIFS(Table2[[#All],[Surname / First Name]],'Click here for your run details'!A178,Table2[[#All],[Excluded from Top 15 Run (Y/N)]],\"N\")","v":0},0]
["Hyde Jevyn",18,null,null,18,"Member",{"$f":"SUMIFS(Table2[[#All],[Overall Place]],Table2[[#All],[Surname / First Name]],$A179)/E179","v":16.111111111111111},{"$f":"SUMIFS(Table2[[#All],[Club Points]],Table2[[#All],[Surname / First Name]],'Click here for your run details'!A179,Table2[[#All],[Excluded from Top 15 Run (Y/N)]],\"N\")","v":2138},{"$f":"COUNTIFS(Table2[[#All],[Surname / First Name]],'Click here for your run details'!A179,Table2[[#All],[Excluded from Top 15 Run (Y/N)]],\"N\")","v":15},142.53333333333333]
["Hyde Natalie",null,null,1,1,"Non-Member",{"$f":"SUMIFS(Table2[[#All],[Overall Place]],Table2[[#All],[Surname / First Name]],$A180)/E180","v":105},{"$f":"SUMIFS(Table2[[#All],[Club Points]],Table2[[#All],[Surname / First Name]],'Click here for your run details'!A180,Table2[[#All],[Excluded from Top 15 Run (Y/N)]],\"N\")","v":0},{"$f":"COUNTIFS(Table2[[#All],[Surname / First Name]],'Click here for your run details'!A180,Table2[[#All],[Excluded from Top 15 Run (Y/N)]],\"N\")","v":0},0]
["Hynes Shane",7,null,null,7,"Member",{"$f":"SUMIFS(Table2[[#All],[Overall Place]],Table2[[#All],[Surname / First Name]],$A181)/E181","v":2.5714285714285716},{"$f":"SUMIFS(Table2[[#All],[Club Points]],Table2[[#All],[Surname / First Name]],'Click here for your run details'!A181,Table2[[#All],[Excluded from Top 15 Run (Y/N)]],\"N\")","v":1043},{"$f":"COUNTIFS(Table2[[#All],[Surname / First Name]],'Click here for your run details'!A181,Table2[[#All],[Excluded from Top 15 Run (Y/N)]],\"N\")","v":7},149]
["Illman Stuart",16,null,null,16,"Member",{"$f":"SUMIFS(Table2[[#All],[Overall Place]],Table2[[#All],[Surname / First Name]],$A182)/E182","v":15.5},{"$f":"SUMIFS(Table2[[#All],[Club Points]],Table2[[#All],[Surname / First Name]],'Click here for your run details'!A182,Table2[[#All],[Excluded from Top 15 Run (Y/N)]],\"N\")","v":2094},{"$f":"COUNTIFS(Table2[[#All],[Surname / First Name]],'Click here for your run details'!A182,Table2[[#All],[Excluded from Top 15 Run (Y/N)]],\"N\")","v":15},139.6]
["Isepy Chris",12,null,null,12,"Member",{"$f":"SUMIFS(Table2[[#All],[Overall Place]],Table2[[#All],[Surname / First Name]],$A183)/E183","v":55.916666666666664},{"$f":"SUMIFS(Table2[[#All],[Club Points]],Table2[[#All],[Surname / First Name]],'Click here for your run details'!A183,Table2[[#All],[Excluded from Top 15 Run (Y/N)]],\"N\")","v":1272},{"$f":"COUNTIFS(Table2[[#All],[Surname / First Name]],'Click here for your run details'!A183,Table2[[#All],[Excluded from Top 15 Run (Y/N)]],\"N\")","v":12},106]
["Ives Jim",7,null,null,7,"Member",{"$f":"SUMIFS(Table2[[#All],[Overall Place]],Table2[[#All],[Surname / First Name]],$A184)/E184","v":81.428571428571431},{"$f":"SUMIFS(Table2[[#All],[Club Points]],Table2[[#All],[Surname / First Name]],'Click here for your run details'!A184,Table2[[#All],[Excluded from Top 15 Run (Y/N)]],\"N\")","v":640},{"$f":"COUNTIFS(Table2[[#All],[Surname / First Name]],'Click here for your run details'!A184,Table2[[#All],[Excluded from Top 15 Run (Y/N)]],\"N\")","v":7},91.428571428571431]
["Jaycock Russell",null,null,1,1,"Non-Member",{"$f":"SUMIFS(Table2[[#All],[Overall Place]],Table2[[#All],[Surname / First Name]],$A185)/E185","v":92},{"$f":"SUMIFS(Table2[[#All],[Club Points]],Table2[[#All],[Surname / First Name]],'Click here for your run details'!A185,Table2[[#All],[Excluded from Top 15 Run (Y/N)]],\"N\")","v":0},{"$f":"COUNTIFS(Table2[[#All],[Surname / First Name]],'Click here for your run details'!A185,Table2[[#All],[Excluded from Top 15 Run (Y/N)]],\"N\")","v":0},0]
["Jenkins Cass",null,null,7,7,"Non-Member",{"$f":"SUMIFS(Table2[[#All],[Overall Place]],Table2[[#All],[Surname / First Name]],$A186)/E186","v":50.428571428571431},{"$f":"SUMIFS(Table2[[#All],[Club Points]],Table2[[#All],[Surname / First Name]],'Click here for your run details'!A186,Table2[[#All],[Excluded from Top 15 Run (Y/N)]],\"N\")","v":0},{"$f":"COUNTIFS(Table2[[#All],[Surname / First Name]],'Click here for your run details'!A186,Table2[[#All],[Excluded from Top 15 Run (Y/N)]],\"N\")","v":0},0]
["Jenkins Peter",null,null,1,1,"Non-Member",{"$f":"SUMIFS(Table2[[#All],[Overall Place]],Table2[[#All],[Surname / First Name]],$A187)/E187","v":62},{"$f":"SUMIFS(Table2[[#All],[Club Points]],Table2[[#All],[Surname / First Name]],'Click here for your run details'!A187,Table2[[#All],[Excluded from Top 15 Run (Y/N)]],\"N\")","v":0},{"$f":"COUNTIFS(Table2[[#All],[Surname / First Name]],'Click here for your run details'!A187,Table2[[#All],[Excluded from Top 15 Run (Y/N)]],\"N\")","v":0},0]
["Johnson Cat",14,null,null,14,"Member",{"$f":"SUMIFS(Table2[[#All],[Overall Place]],Table2[[#All],[Surname / First Name]],$A188)/E188","v":63.642857142857146},{"$f":"SUMIFS(Table2[[#All],[Club Points]],Table2[[#All],[Surname / First Name]],'Click here for your run details'!A188,Table2[[#All],[Excluded from Top 15 Run (Y/N)]],\"N\")","v":1415},{"$f":"COUNTIFS(Table2[[#All],[Surname / First Name]],'Click here for your run details'!A188,Table2[[#All],[Excluded from Top 15 Run (Y/N)]],\"N\")","v":14},101.07142857142857]
["Johnson Lia",11,null,null,11,"Member",{"$f":"SUMIFS(Table2[[#All],[Overall Place]],Table2[[#All],[Surname / First Name]],$A189)/E189","v":50.272727272727273},{"$f":"SUMIFS(Table2[[#All],[Club Points]],Table2[[#All],[Surname / First Name]],'Click here for your run details'!A189,Table2[[#All],[Excluded from Top 15 Run (Y/N)]],\"N\")","v":1217},{"$f":"COUNTIFS(Table2[[#All],[Surname / First Name]],'Click here for your run details'!A189,Table2[[#All],[Excluded from Top 15 Run (Y/N)]],\"N\")","v":11},110.63636363636364]
["Jones Addie",null,null,1,1,"Non-Member",{"$f":"SUMIFS(Table2[[#All],[Overall Place]],Table2[[#All],[Surname / First Name]],$A190)/E190","v":52},{"$f":"SUMIFS(Table2[[#All],[Club Points]],Table2[[#All],[Surname / First Name]],'Click here for your run details'!A190,Table2[[#All],[Excluded from Top 15 Run (Y/N)]],\"N\")","v":0},{"$f":"COUNTIFS(Table2[[#All],[Surname / First Name]],'Click here for your run details'!A190,Table2[[#All],[Excluded from Top 15 Run (Y/N)]],\"N\")","v":0},0]
["Jones Lisa",3,null,null,3,"Member",{"$f":"SUMIFS(Table2[[#All],[Overall Place]],Table2[[#All],[Surname / First Name]],$A191)/E191","v":52},{"$f":"SUMIFS(Table2[[#All],[Club Points]],Table2[[#All],[Surname / First Name]],'Click here for your run details'!A191,Table2[[#All],[Excluded from Top 15 Run (Y/N)]],\"N\")","v":333},{"$f":"COUNTIFS(Table2[[#All],[Surname / First Name]],'Click here for your run details'!A191,Table2[[#All],[Excluded from Top 15 Run (Y/N)]],\"N\")","v":3},111]
["Jowett Anna",4,null,null,4,"Member",{"$f":"SUMIFS(Table2[[#All],[Overall Place]],Table2[[#All],[Surname / First Name]],$A192)/E192","v":47.75},{"$f":"SUMIFS(Table2[[#All],[Club Points]],Table2[[#All],[Surname / First Name]],'Click here for your run details'!A192,Table2[[#All],[Excluded from Top 15 Run (Y/N)]],\"N\")","v":451},{"$f":"COUNTIFS(Table2[[#All],[Surname / First Name]],'Click here for your run details'!A192,Table2[[#All],[Excluded from Top 15 Run (Y/N)]],\"N\")","v":4},112.75]
["Keir Therese",16,null,null,16,"Member",{"$f":"SUMIFS(Table2[[#All],[Overall Place]],Table2[[#All],[Surname / First Name]],$A193)/E193","v":69.3125},{"$f":"SUMIFS(Table2[[#All],[Club Points]],Table2[[#All],[Surname / First Name]],'Click here for your run details'!A193,Table2[[#All],[Excluded from Top 15 Run (Y/N)]],\"N\")","v":1470},{"$f":"COUNTIFS(Table2[[#All],[Surname / First Name]],'Click here for your run details'!A193,Table2[[#All],[Excluded from Top 15 Run (Y/N)]],\"N\")","v":15},98]
["Keller Dave",null,null,1,1,"Non-Member",{"$f":"SUMIFS(Table2[[#All],[Overall Place]],Table2[[#All],[Surname / First Name]],$A194)/E194","v":34},{"$f":"SUMIFS(Table2[[#All],[Club Points]],Table2[[#All],[Surname / First Name]],'Click here for your run details'!A194,Table2[[#All],[Excluded from Top 15 Run (Y/N)]],\"N\")","v":0},{"$f":"COUNTIFS(Table2[[#All],[Surname / First Name]],'Click here for your run details'!A194,Table2[[#All],[Excluded from Top 15 Run (Y/N)]],\"N\")","v":0},0]
["Kelly Dave",null,null,6,6,"Non-Member",{"$f":"SUMIFS(Table2[[#All],[Overall Place]],Table2[[#All],[Surname / First Name]],$A195)/E195","v":45.166666666666664},{"$f":"SUMIFS(Table2[[#All],[Club Points]],Table2[[#All],[Surname / First Name]],'Click here for your run details'!A195,Table2[[#All],[Excluded from Top 15 Run (Y/N)]],\"N\")","v":0},{"$f":"COUNTIFS(Table2[[#All],[Surname / First Name]],'Click here for your run details'!A195,Table2[[#All],[Excluded from Top 15 Run (Y/N)]],\"N\")","v":0},0]
["Kelly David",null,null,1,1,"Non-Member",{"$f":"SUMIFS(Table2[[#All],[Overall Place]],Table2[[#All],[Surname / First Name]],$A196)/E196","v":29},{"$f":"SUMIFS(Table2[[#All],[Club Points]],Table2[[#All],[Surname / First Name]],'Click here for your run details'!A196,Table2[[#All],[Excluded from Top 15 Run (Y/N)]],\"N\")","v":0},{"$f":"COUNTIFS(Table2[[#All],[Surname / First Name]],'Click here for your run details'!A196,Table2[[#All],[Excluded from Top 15 Run (Y/N)]],\"N\")","v":0},0]
["Kelly Isobel",1,null,null,1,"Member",{"$f":"SUMIFS(Table2[[#All],[Overall Place]],Table2[[#All],[Surname / First Name]],$A197)/E197","v":11},{"$f":"SUMIFS(Table2[[#All],[Club Points]],Table2[[#All],[Surname / First Name]],'Click here for your run details'!A197,Table2[[#All],[Excluded from Top 15 Run (Y/N)]],\"N\")","v":140},{"$f":"COUNTIFS(Table2[[#All],[Surname / First Name]],'Click here for your run details'!A197,Table2[[#All],[Excluded from Top 15 Run (Y/N)]],\"N\")","v":1},140]
["Kelly Miranda",null,null,1,1,"Non-Member",{"$f":"SUMIFS(Table2[[#All],[Overall Place]],Table2[[#All],[Surname / First Name]],$A198)/E198","v":74},{"$f":"SUMIFS(Table2[[#All],[Club Points]],Table2[[#All],[Surname / First Name]],'Click here for your run details'!A198,Table2[[#All],[Excluded from Top 15 Run (Y/N)]],\"N\")","v":0},{"$f":"COUNTIFS(Table2[[#All],[Surname / First Name]],'Click here for your run details'!A198,Table2[[#All],[Excluded from Top 15 Run (Y/N)]],\"N\")","v":0},0]
["Kelly# Dave",null,null,1,1,"Non-Member",{"$f":"SUMIFS(Table2[[#All],[Overall Place]],Table2[[#All],[Surname / First Name]],$A199)/E199","v":48},{"$f":"SUMIFS(Table2[[#All],[Club Points]],Table2[[#All],[Surname / First Name]],'Click here for your run details'!A199,Table2[[#All],[Excluded from Top 15 Run (Y/N)]],\"N\")","v":0},{"$f":"COUNTIFS(Table2[[#All],[Surname / First Name]],'Click here for your run details'!A199,Table2[[#All],[Excluded from Top 15 Run (Y/N)]],\"N\")","v":0},0]
["Kelso Sylvia",3,null,null,3,"Member",{"$f":"SUMIFS(Table2[[#All],[Overall Place]],Table2[[#All],[Surname / First Name]],$A200)/E200","v":116.33333333333333},{"$f":"SUMIFS(Table2[[#All],[Club Points]],Table2[[#All],[Surname / First Name]],'Click here for your run details'!A200,Table2[[#All],[Excluded from Top 15 Run (Y/N)]],\"N\")","v":181},{"$f":"COUNTIFS(Table2[[#All],[Surname / First Name]],'Click here for your run details'!A200,Table2[[#All],[Excluded from Top 15 Run (Y/N)]],\"N\")","v":3},60.333333333333336]
["Kemei Joseph",null,null,17,17,{"$f":"IF(AND(SUM(B201:C201)>0,SUM(B201:C201)<99),\"Member\",\"Non-Member\")","v":"Non-Member"},{"$f":"SUMIFS(Table2[[#All],[Overall Place]],Table2[[#All],[Surname / First Name]],$A201)/E201","v":15.058823529411764},{"$f":"SUMIFS(Table2[[#All],[Club Points]],Table2[[#All],[Surname / First Name]],'Click here for your run details'!A201,Table2[[#All],[Excluded from Top 15 Run (Y/N)]],\"N\")","v":0},{"$f":"COUNTIFS(Table2[[#All],[Surname / First Name]],'Click here for your run details'!A201,Table2[[#All],[Excluded from Top 15 Run (Y/N)]],\"N\")","v":0},0]
["Kennedy Gillian",8,null,null,8,"Member",{"$f":"SUMIFS(Table2[[#All],[Overall Place]],Table2[[#All],[Surname / First Name]],$A202)/E202","v":42.125},{"$f":"SUMIFS(Table2[[#All],[Club Points]],Table2[[#All],[Surname / First Name]],'Click here for your run details'!A202,Table2[[#All],[Excluded from Top 15 Run (Y/N)]],\"N\")","v":947},{"$f":"COUNTIFS(Table2[[#All],[Surname / First Name]],'Click here for your run details'!A202,Table2[[#All],[Excluded from Top 15 Run (Y/N)]],\"N\")","v":8},118.375]
["Kenny Eamon",null,null,1,1,"Non-Member",{"$f":"SUMIFS(Table2[[#All],[Overall Place]],Table2[[#All],[Surname / First Name]],$A203)/E203","v":37},{"$f":"SUMIFS(Table2[[#All],[Club Points]],Table2[[#All],[Surname / First Name]],'Click here for your run details'!A203,Table2[[#All],[Excluded from Top 15 Run (Y/N)]],\"N\")","v":0},{"$f":"COUNTIFS(Table2[[#All],[Surname / First Name]],'Click here for your run details'!A203,Table2[[#All],[Excluded from Top 15 Run (Y/N)]],\"N\")","v":0},0]
["Kerby William",null,null,3,3,"Non-Member",{"$f":"SUMIFS(Table2[[#All],[Overall Place]],Table2[[#All],[Surname / First Name]],$A204)/E204","v":13.333333333333334},{"$f":"SUMIFS(Table2[[#All],[Club Points]],Table2[[#All],[Surname / First Name]],'Click here for your run details'!A204,Table2[[#All],[Excluded from Top 15 Run (Y/N)]],\"N\")","v":0},{"$f":"COUNTIFS(Table2[[#All],[Surname / First Name]],'Click here for your run details'!A204,Table2[[#All],[Excluded from Top 15 Run (Y/N)]],\"N\")","v":0},0]
["Kerridge Liam",null,null,1,1,"Non-Member",{"$f":"SUMIFS(Table2[[#All],[Overall Place]],Table2[[#All],[Surname / First Name]],$A205)/E205","v":56},{"$f":"SUMIFS(Table2[[#All],[Club Points]],Table2[[#All],[Surname / First Name]],'Click here for your run details'!A205,Table2[[#All],[Excluded from Top 15 Run (Y/N)]],\"N\")","v":0},{"$f":"COUNTIFS(Table2[[#All],[Surname / First Name]],'Click here for your run details'!A205,Table2[[#All],[Excluded from Top 15 Run (Y/N)]],\"N\")","v":0},0]
["Kerrisk Jason",null,null,2,2,"Non-Member",{"$f":"SUMIFS(Table2[[#All],[Overall Place]],Table2[[#All],[Surname / First Name]],$A206)/E206","v":2.5},{"$f":"SUMIFS(Table2[[#All],[Club Points]],Table2[[#All],[Surname / First Name]],'Click here for your run details'!A206,Table2[[#All],[Excluded from Top 15 Run (Y/N)]],\"N\")","v":0},{"$f":"COUNTIFS(Table2[[#All],[Surname / First Name]],'Click here for your run details'!A206,Table2[[#All],[Excluded from Top 15 Run (Y/N)]],\"N\")","v":0},0]
["Kerrisk John",null,null,9,9,"Non-Member",{"$f":"SUMIFS(Table2[[#All],[Overall Place]],Table2[[#All],[Surname / First Name]],$A207)/E207","v":41.555555555555557},{"$f":"SUMIFS(Table2[[#All],[Club Points]],Table2[[#All],[Surname / First Name]],'Click here for your run details'!A207,Table2[[#All],[Excluded from Top 15 Run (Y/N)]],\"N\")","v":0},{"$f":"COUNTIFS(Table2[[#All],[Surname / First Name]],'Click here for your run details'!A207,Table2[[#All],[Excluded from Top 15 Run (Y/N)]],\"N\")","v":0},0]
["Kewy Dave",null,null,1,1,"Non-Member",{"$f":"SUMIFS(Table2[[#All],[Overall Place]],Table2[[#All],[Surname / First Name]],$A208)/E208","v":49},{"$f":"SUMIFS(Table2[[#All],[Club Points]],Table2[[#All],[Surname / First Name]],'Click here for your run details'!A208,Table2[[#All],[Excluded from Top 15 Run (Y/N)]],\"N\")","v":0},{"$f":"COUNTIFS(Table2[[#All],[Surname / First Name]],'Click here for your run details'!A208,Table2[[#All],[Excluded from Top 15 Run (Y/N)]],\"N\")","v":0},0]
["Kiernan Sophie",11,null,null,11,"Member",{"$f":"SUMIFS(Table2[[#All],[Overall Place]],Table2[[#All],[Surname / First Name]],$A209)/E209","v":33},{"$f":"SUMIFS(Table2[[#All],[Club Points]],Table2[[#All],[Surname / First Name]],'Click here for your run details'!A209,Table2[[#All],[Excluded from Top 15 Run (Y/N)]],\"N\")","v":1360},{"$f":"COUNTIFS(Table2[[#All],[Surname / First Name]],'Click here for your run details'!A209,Table2[[#All],[Excluded from Top 15 Run (Y/N)]],\"N\")","v":11},123.63636363636364]
["Kim Gill",null,null,1,1,"Non-Member",{"$f":"SUMIFS(Table2[[#All],[Overall Place]],Table2[[#All],[Surname / First Name]],$A210)/E210","v":39},{"$f":"SUMIFS(Table2[[#All],[Club Points]],Table2[[#All],[Surname / First Name]],'Click here for your run details'!A210,Table2[[#All],[Excluded from Top 15 Run (Y/N)]],\"N\")","v":0},{"$f":"COUNTIFS(Table2[[#All],[Surname / First Name]],'Click here for your run details'!A210,Table2[[#All],[Excluded from Top 15 Run (Y/N)]],\"N\")","v":0},0]
["Kimei Joseph",null,null,1,1,"Non-Member",{"$f":"SUMIFS(Table2[[#All],[Overall Place]],Table2[[#All],[Surname / First Name]],$A211)/E211","v":13},{"$f":"SUMIFS(Table2[[#All],[Club Points]],Table2[[#All],[Surname / First Name]],'Click here for your run details'!A211,Table2[[#All],[Excluded from Top 15 Run (Y/N)]],\"N\")","v":0},{"$f":"COUNTIFS(Table2[[#All],[Surname / First Name]],'Click here for your run details'!A211,Table2[[#All],[Excluded from Top 15 Run (Y/N)]],\"N\")","v":0},0]
["Kimei# Joseph",null,null,1,1,"Non-Member",{"$f":"SUMIFS(Table2[[#All],[Overall Place]],Table2[[#All],[Surname / First Name]],$A212)/E212","v":21},{"$f":"SUMIFS(Table2[[#All],[Club Points]],Table2[[#All],[Surname / First Name]],'Click here for your run details'!A212,Table2[[#All],[Excluded from Top 15 Run (Y/N)]],\"N\")","v":0},{"$f":"COUNTIFS(Table2[[#All],[Surname / First Name]],'Click here for your run details'!A212,Table2[[#All],[Excluded from Top 15 Run (Y/N)]],\"N\")","v":0},0]
["King Virginia",null,null,1,1,"Non-Member",{"$f":"SUMIFS(Table2[[#All],[Overall Place]],Table2[[#All],[Surname / First Name]],$A213)/E213","v":60},{"$f":"SUMIFS(Table2[[#All],[Club Points]],Table2[[#All],[Surname / First Name]],'Click here for your run details'!A213,Table2[[#All],[Excluded from Top 15 Run (Y/N)]],\"N\")","v":0},{"$f":"COUNTIFS(Table2[[#All],[Surname / First Name]],'Click here for your run details'!A213,Table2[[#All],[Excluded from Top 15 Run (Y/N)]],\"N\")","v":0},0]
["Kirby Adrian",4,null,null,4,"Member",{"$f":"SUMIFS(Table2[[#All],[Overall Place]],Table2[[#All],[Surname / First Name]],$A214)/E214","v":37.25},{"$f":"SUMIFS(Table2[[#All],[Club Points]],Table2[[#All],[Surname / First Name]],'Click here for your run details'!A214,Table2[[#All],[Excluded from Top 15 Run (Y/N)]],\"N\")","v":484},{"$f":"COUNTIFS(Table2[[#All],[Surname / First Name]],'Click here for your run details'!A214,Table2[[#All],[Excluded from Top 15 Run (Y/N)]],\"N\")","v":4},121]
["Kirby Lee",null,null,4,4,"Non-Member",{"$f":"SUMIFS(Table2[[#All],[Overall Place]],Table2[[#All],[Surname / First Name]],$A215)/E215","v":11.5},{"$f":"SUMIFS(Table2[[#All],[Club Points]],Table2[[#All],[Surname / First Name]],'Click here for your run details'!A215,Table2[[#All],[Excluded from Top 15 Run (Y/N)]],\"N\")","v":0},{"$f":"COUNTIFS(Table2[[#All],[Surname / First Name]],'Click here for your run details'!A215,Table2[[#All],[Excluded from Top 15 Run (Y/N)]],\"N\")","v":0},0]
["Kirby# Lee",null,null,1,1,"Non-Member",{"$f":"SUMIFS(Table2[[#All],[Overall Place]],Table2[[#All],[Surname / First Name]],$A216)/E216","v":13},{"$f":"SUMIFS(Table2[[#All],[Club Points]],Table2[[#All],[Surname / First Name]],'Click here for your run details'!A216,Table2[[#All],[Excluded from Top 15 Run (Y/N)]],\"N\")","v":0},{"$f":"COUNTIFS(Table2[[#All],[Surname / First Name]],'Click here for your run details'!A216,Table2[[#All],[Excluded from Top 15 Run (Y/N)]],\"N\")","v":0},0]
["Kirchner Jim",2,null,null,2,"Member",{"$f":"SUMIFS(Table2[[#All],[Overall Place]],Table2[[#All],[Surname / First Name]],$A217)/E217","v":66},{"$f":"SUMIFS(Table2[[#All],[Club Points]],Table2[[#All],[Surname / First Name]],'Click here for your run details'!A217,Table2[[#All],[Excluded from Top 15 Run (Y/N)]],\"N\")","v":196},{"$f":"COUNTIFS(Table2[[#All],[Surname / First Name]],'Click here for your run details'!A217,Table2[[#All],[Excluded from Top 15 Run (Y/N)]],\"N\")","v":2},98]
["Knowles Sandra",1,null,null,1,"Member",{"$f":"SUMIFS(Table2[[#All],[Overall Place]],Table2[[#All],[Surname / First Name]],$A218)/E218","v":45},{"$f":"SUMIFS(Table2[[#All],[Club Points]],Table2[[#All],[Surname / First Name]],'Click here for your run details'!A218,Table2[[#All],[Excluded from Top 15 Run (Y/N)]],\"N\")","v":114},{"$f":"COUNTIFS(Table2[[#All],[Surname / First Name]],'Click here for your run details'!A218,Table2[[#All],[Excluded from Top 15 Run (Y/N)]],\"N\")","v":1},{"$f":"IFERROR(H218/I218,0)","v":114}]
["Kow Davis",null,null,1,1,"Non-Member",{"$f":"SUMIFS(Table2[[#All],[Overall Place]],Table2[[#All],[Surname / First Name]],$A219)/E219","v":38},{"$f":"SUMIFS(Table2[[#All],[Club Points]],Table2[[#All],[Surname / First Name]],'Click here for your run details'!A219,Table2[[#All],[Excluded from Top 15 Run (Y/N)]],\"N\")","v":0},{"$f":"COUNTIFS(Table2[[#All],[Surname / First Name]],'Click here for your run details'!A219,Table2[[#All],[Excluded from Top 15 Run (Y/N)]],\"N\")","v":0},0]
["Labuschagne Celeste",17,null,null,17,"Member",{"$f":"SUMIFS(Table2[[#All],[Overall Place]],Table2[[#All],[Surname / First Name]],$A220)/E220","v":63.411764705882355},{"$f":"SUMIFS(Table2[[#All],[Club Points]],Table2[[#All],[Surname / First Name]],'Click here for your run details'!A220,Table2[[#All],[Excluded from Top 15 Run (Y/N)]],\"N\")","v":1555},{"$f":"COUNTIFS(Table2[[#All],[Surname / First Name]],'Click here for your run details'!A220,Table2[[#All],[Excluded from Top 15 Run (Y/N)]],\"N\")","v":15},103.66666666666667]
["Labuschagne Rosemarie",23,null,null,23,"Member",{"$f":"SUMIFS(Table2[[#All],[Overall Place]],Table2[[#All],[Surname / First Name]],$A221)/E221","v":54.695652173913047},{"$f":"SUMIFS(Table2[[#All],[Club Points]],Table2[[#All],[Surname / First Name]],'Click here for your run details'!A221,Table2[[#All],[Excluded from Top 15 Run (Y/N)]],\"N\")","v":1731},{"$f":"COUNTIFS(Table2[[#All],[Surname / First Name]],'Click here for your run details'!A221,Table2[[#All],[Excluded from Top 15 Run (Y/N)]],\"N\")","v":15},115.4]
["Lahiff Peter",4,null,null,4,"Member",{"$f":"SUMIFS(Table2[[#All],[Overall Place]],Table2[[#All],[Surname / First Name]],$A222)/E222","v":75},{"$f":"SUMIFS(Table2[[#All],[Club Points]],Table2[[#All],[Surname / First Name]],'Click here for your run details'!A222,Table2[[#All],[Excluded from Top 15 Run (Y/N)]],\"N\")","v":371},{"$f":"COUNTIFS(Table2[[#All],[Surname / First Name]],'Click here for your run details'!A222,Table2[[#All],[Excluded from Top 15 Run (Y/N)]],\"N\")","v":4},92.75]
["Latouf Sean",null,null,1,1,"Non-Member",{"$f":"SUMIFS(Table2[[#All],[Overall Place]],Table2[[#All],[Surname / First Name]],$A223)/E223","v":21},{"$f":"SUMIFS(Table2[[#All],[Club Points]],Table2[[#All],[Surname / First Name]],'Click here for your run details'!A223,Table2[[#All],[Excluded from Top 15 Run (Y/N)]],\"N\")","v":0},{"$f":"COUNTIFS(Table2[[#All],[Surname / First Name]],'Click here for your run details'!A223,Table2[[#All],[Excluded from Top 15 Run (Y/N)]],\"N\")","v":0},0]
["Law Karinne",null,null,2,2,"Non-Member",{"$f":"SUMIFS(Table2[[#All],[Overall Place]],Table2[[#All],[Surname / First Name]],$A224)/E224","v":34.5},{"$f":"SUMIFS(Table2[[#All],[Club Points]],Table2[[#All],[Surname / First Name]],'Click here for your run details'!A224,Table2[[#All],[Excluded from Top 15 Run (Y/N)]],\"N\")","v":0},{"$f":"COUNTIFS(Table2[[#All],[Surname / First Name]],'Click here for your run details'!A224,Table2[[#All],[Excluded from Top 15 Run (Y/N)]],\"N\")","v":0},0]
["Lean Scott",null,null,1,1,"Non-Member",{"$f":"SUMIFS(Table2[[#All],[Overall Place]],Table2[[#All],[Surname / First Name]],$A225)/E225","v":75},{"$f":"SUMIFS(Table2[[#All],[Club Points]],Table2[[#All],[Surname / First Name]],'Click here for your run details'!A225,Table2[[#All],[Excluded from Top 15 Run (Y/N)]],\"N\")","v":0},{"$f":"COUNTIFS(Table2[[#All],[Surname / First Name]],'Click here for your run details'!A225,Table2[[#All],[Excluded from Top 15 Run (Y/N)]],\"N\")","v":0},0]
["Leitch Cam",13,null,null,13,"Member",{"$f":"SUMIFS(Table2[[#All],[Overall Place]],Table2[[#All],[Surname / First Name]],$A226)/E226","v":73.92307692307692},{"$f":"SUMIFS(Table2[[#All],[Club Points]],Table2[[#All],[Surname / First Name]],'Click here for your run details'!A226,Table2[[#All],[Excluded from Top 15 Run (Y/N)]],\"N\")","v":1204},{"$f":"COUNTIFS(Table2[[#All],[Surname / First Name]],'Click here for your run details'!A226,Table2[[#All],[Excluded from Top 15 Run (Y/N)]],\"N\")","v":13},92.615384615384613]
["Letizia Brian",4,null,null,4,"Member",{"$f":"SUMIFS(Table2[[#All],[Overall Place]],Table2[[#All],[Surname / First Name]],$A227)/E227","v":83},{"$f":"SUMIFS(Table2[[#All],[Club Points]],Table2[[#All],[Surname / First Name]],'Click here for your run details'!A227,Table2[[#All],[Excluded from Top 15 Run (Y/N)]],\"N\")","v":341},{"$f":"COUNTIFS(Table2[[#All],[Surname / First Name]],'Click here for your run details'!A227,Table2[[#All],[Excluded from Top 15 Run (Y/N)]],\"N\")","v":4},85.25]
["Lew Brendan",2,null,null,2,"Member",{"$f":"SUMIFS(Table2[[#All],[Overall Place]],Table2[[#All],[Surname / First Name]],$A228)/E228","v":42},{"$f":"SUMIFS(Table2[[#All],[Club Points]],Table2[[#All],[Surname / First Name]],'Click here for your run details'!A228,Table2[[#All],[Excluded from Top 15 Run (Y/N)]],\"N\")","v":236},{"$f":"COUNTIFS(Table2[[#All],[Surname / First Name]],'Click here for your run details'!A228,Table2[[#All],[Excluded from Top 15 Run (Y/N)]],\"N\")","v":2},118]
["Lightbound Paul",null,null,1,1,"Non-Member",{"$f":"SUMIFS(Table2[[#All],[Overall Place]],Table2[[#All],[Surname / First Name]],$A229)/E229","v":32},{"$f":"SUMIFS(Table2[[#All],[Club Points]],Table2[[#All],[Surname / First Name]],'Click here for your run details'!A229,Table2[[#All],[Excluded from Top 15 Run (Y/N)]],\"N\")","v":0},{"$f":"COUNTIFS(Table2[[#All],[Surname / First Name]],'Click here for your run details'!A229,Table2[[#All],[Excluded from Top 15 Run (Y/N)]],\"N\")","v":0},0]
["Lindsey Craig",null,null,1,1,"Non-Member",{"$f":"SUMIFS(Table2[[#All],[Overall Place]],Table2[[#All],[Surname / First Name]],$A230)/E230","v":52},{"$f":"SUMIFS(Table2[[#All],[Club Points]],Table2[[#All],[Surname / First Name]],'Click here for your run details'!A230,Table2[[#All],[Excluded from Top 15 Run (Y/N)]],\"N\")","v":0},{"$f":"COUNTIFS(Table2[[#All],[Surname / First Name]],'Click here for your run details'!A230,Table2[[#All],[Excluded from Top 15 Run (Y/N)]],\"N\")","v":0},0]
["Linning Clayton",null,null,1,1,"Non-Member",{"$f":"SUMIFS(Table2[[#All],[Overall Place]],Table2[[#All],[Surname / First Name]],$A231)/E231","v":44},{"$f":"SUMIFS(Table2[[#All],[Club Points]],Table2[[#All],[Surname / First Name]],'Click here for your run details'!A231,Table2[[#All],[Excluded from Top 15 Run (Y/N)]],\"N\")","v":0},{"$f":"COUNTIFS(Table2[[#All],[Surname / First Name]],'Click here for your run details'!A231,Table2[[#All],[Excluded from Top 15 Run (Y/N)]],\"N\")","v":0},0]
["Lipsey Jaymie",null,null,3,3,"Non-Member",{"$f":"SUMIFS(Table2[[#All],[Overall Place]],Table2[[#All],[Surname / First Name]],$A232)/E232","v":53.333333333333336},{"$f":"SUMIFS(Table2[[#All],[Club Points]],Table2[[#All],[Surname / First Name]],'Click here for your run details'!A232,Table2[[#All],[Excluded from Top 15 Run (Y/N)]],\"N\")","v":0},{"$f":"COUNTIFS(Table2[[#All],[Surname / First Name]],'Click here for your run details'!A232,Table2[[#All],[Excluded from Top 15 Run (Y/N)]],\"N\")","v":0},0]
["Livock Jayden",null,null,1,1,"Non-Member",{"$f":"SUMIFS(Table2[[#All],[Overall Place]],Table2[[#All],[Surname / First Name]],$A233)/E233","v":85},{"$f":"SUMIFS(Table2[[#All],[Club Points]],Table2[[#All],[Surname / First Name]],'Click here for your run details'!A233,Table2[[#All],[Excluded from Top 15 Run (Y/N)]],\"N\")","v":0},{"$f":"COUNTIFS(Table2[[#All],[Surname / First Name]],'Click here for your run details'!A233,Table2[[#All],[Excluded from Top 15 Run (Y/N)]],\"N\")","v":0},0]
["Lloyd Andrew",null,null,1,1,"Non-Member",{"$f":"SUMIFS(Table2[[#All],[Overall Place]],Table2[[#All],[Surname / First Name]],$A234)/E234","v":23},{"$f":"SUMIFS(Table2[[#All],[Club Points]],Table2[[#All],[Surname / First Name]],'Click here for your run details'!A234,Table2[[#All],[Excluded from Top 15 Run (Y/N)]],\"N\")","v":0},{"$f":"COUNTIFS(Table2[[#All],[Surname / First Name]],'Click here for your run details'!A234,Table2[[#All],[Excluded from Top 15 Run (Y/N)]],\"N\")","v":0},0]
["Lloyd Rose",null,null,1,1,"Non-Member",{"$f":"SUMIFS(Table2[[#All],[Overall Place]],Table2[[#All],[Surname / First Name]],$A235)/E235","v":76},{"$f":"SUMIFS(Table2[[#All],[Club Points]],Table2[[#All],[Surname / First Name]],'Click here for your run details'!A235,Table2[[#All],[Excluded from Top 15 Run (Y/N)]],\"N\")","v":0},{"$f":"COUNTIFS(Table2[[#All],[Surname / First Name]],'Click here for your run details'!A235,Table2[[#All],[Excluded from Top 15 Run (Y/N)]],\"N\")","v":0},0]
["Lubicz Troy",null,null,1,1,"Non-Member",{"$f":"SUMIFS(Table2[[#All],[Overall Place]],Table2[[#All],[Surname / First Name]],$A236)/E236","v":40},{"$f":"SUMIFS(Table2[[#All],[Club Points]],Table2[[#All],[Surname / First Name]],'Click here for your run details'!A236,Table2[[#All],[Excluded from Top 15 Run (Y/N)]],\"N\")","v":0},{"$f":"COUNTIFS(Table2[[#All],[Surname / First Name]],'Click here for your run details'!A236,Table2[[#All],[Excluded from Top 15 Run (Y/N)]],\"N\")","v":0},0]
["MacDonalds Leed",null,null,1,1,"Non-Member",{"$f":"SUMIFS(Table2[[#All],[Overall Place]],Table2[[#All],[Surname / First Name]],$A237)/E237","v":53},{"$f":"SUMIFS(Table2[[#All],[Club Points]],Table2[[#All],[Surname / First Name]],'Click here for your run details'!A237,Table2[[#All],[Excluded from Top 15 Run (Y/N)]],\"N\")","v":0},{"$f":"COUNTIFS(Table2[[#All],[Surname / First Name]],'Click here for your run details'!A237,Table2[[#All],[Excluded from Top 15 Run (Y/N)]],\"N\")","v":0},0]
["Machin Alan",null,null,2,2,"Non-Member",{"$f":"SUMIFS(Table2[[#All],[Overall Place]],Table2[[#All],[Surname / First Name]],$A238)/E238","v":42},{"$f":"SUMIFS(Table2[[#All],[Club Points]],Table2[[#All],[Surname / First Name]],'Click here for your run details'!A238,Table2[[#All],[Excluded from Top 15 Run (Y/N)]],\"N\")","v":0},{"$f":"COUNTIFS(Table2[[#All],[Surname / First Name]],'Click here for your run details'!A238,Table2[[#All],[Excluded from Top 15 Run (Y/N)]],\"N\")","v":0},0]
["Machin Angus",null,null,1,1,"Non-Member",{"$f":"SUMIFS(Table2[[#All],[Overall Place]],Table2[[#All],[Surname / First Name]],$A239)/E239","v":12},{"$f":"SUMIFS(Table2[[#All],[Club Points]],Table2[[#All],[Surname / First Name]],'Click here for your run details'!A239,Table2[[#All],[Excluded from Top 15 Run (Y/N)]],\"N\")","v":0},{"$f":"COUNTIFS(Table2[[#All],[Surname / First Name]],'Click here for your run details'!A239,Table2[[#All],[Excluded from Top 15 Run (Y/N)]],\"N\")","v":0},0]
["Machin Jamie",8,3,null,11,"Member",{"$f":"SUMIFS(Table2[[#All],[Overall Place]],Table2[[#All],[Surname / First Name]],$A240)/E240","v":31.272727272727273},{"$f":"SUMIFS(Table2[[#All],[Club Points]],Table2[[#All],[Surname / First Name]],'Click here for your run details'!A240,Table2[[#All],[Excluded from Top 15 Run (Y/N)]],\"N\")","v":1021},{"$f":"COUNTIFS(Table2[[#All],[Surname / First Name]],'Click here for your run details'!A240,Table2[[#All],[Excluded from Top 15 Run (Y/N)]],\"N\")","v":8},127.625]
["Machin Pook",12,5,null,17,"Member",{"$f":"SUMIFS(Table2[[#All],[Overall Place]],Table2[[#All],[Surname / First Name]],$A241)/E241","v":67.117647058823536},{"$f":"SUMIFS(Table2[[#All],[Club Points]],Table2[[#All],[Surname / First Name]],'Click here for your run details'!A241,Table2[[#All],[Excluded from Top 15 Run (Y/N)]],\"N\")","v":1259},{"$f":"COUNTIFS(Table2[[#All],[Surname / First Name]],'Click here for your run details'!A241,Table2[[#All],[Excluded from Top 15 Run (Y/N)]],\"N\")","v":12},104.91666666666667]
["Madill Robyn",null,null,1,1,"Non-Member",{"$f":"SUMIFS(Table2[[#All],[Overall Place]],Table2[[#All],[Surname / First Name]],$A242)/E242","v":47},{"$f":"SUMIFS(Table2[[#All],[Club Points]],Table2[[#All],[Surname / First Name]],'Click here for your run details'!A242,Table2[[#All],[Excluded from Top 15 Run (Y/N)]],\"N\")","v":0},{"$f":"COUNTIFS(Table2[[#All],[Surname / First Name]],'Click here for your run details'!A242,Table2[[#All],[Excluded from Top 15 Run (Y/N)]],\"N\")","v":0},0]
["Maguire Gerry",8,null,null,8,"Member",{"$f":"SUMIFS(Table2[[#All],[Overall Place]],Table2[[#All],[Surname / First Name]],$A243)/E243","v":14.375},{"$f":"SUMIFS(Table2[[#All],[Club Points]],Table2[[#All],[Surname / First Name]],'Click here for your run details'!A243,Table2[[#All],[Excluded from Top 15 Run (Y/N)]],\"N\")","v":1112},{"$f":"COUNTIFS(Table2[[#All],[Surname / First Name]],'Click here for your run details'!A243,Table2[[#All],[Excluded from Top 15 Run (Y/N)]],\"N\")","v":8},139]
["Maguire Liz",4,null,null,4,"Member",{"$f":"SUMIFS(Table2[[#All],[Overall Place]],Table2[[#All],[Surname / First Name]],$A244)/E244","v":6.75},{"$f":"SUMIFS(Table2[[#All],[Club Points]],Table2[[#All],[Surname / First Name]],'Click here for your run details'!A244,Table2[[#All],[Excluded from Top 15 Run (Y/N)]],\"N\")","v":580},{"$f":"COUNTIFS(Table2[[#All],[Surname / First Name]],'Click here for your run details'!A244,Table2[[#All],[Excluded from Top 15 Run (Y/N)]],\"N\")","v":4},145]
["Maguire Matthew",1,null,null,1,"Member",{"$f":"SUMIFS(Table2[[#All],[Overall Place]],Table2[[#All],[Surname / First Name]],$A245)/E245","v":33},{"$f":"SUMIFS(Table2[[#All],[Club Points]],Table2[[#All],[Surname / First Name]],'Click here for your run details'!A245,Table2[[#All],[Excluded from Top 15 Run (Y/N)]],\"N\")","v":138},{"$f":"COUNTIFS(Table2[[#All],[Surname / First Name]],'Click here for your run details'!A245,Table2[[#All],[Excluded from Top 15 Run (Y/N)]],\"N\")","v":1},138]
["Malan Carstan",null,null,1,1,"Non-Member",{"$f":"SUMIFS(Table2[[#All],[Overall Place]],Table2[[#All],[Surname / First Name]],$A246)/E246","v":36},{"$f":"SUMIFS(Table2[[#All],[Club Points]],Table2[[#All],[Surname / First Name]],'Click here for your run details'!A246,Table2[[#All],[Excluded from Top 15 Run (Y/N)]],\"N\")","v":0},{"$f":"COUNTIFS(Table2[[#All],[Surname / First Name]],'Click here for your run details'!A246,Table2[[#All],[Excluded from Top 15 Run (Y/N)]],\"N\")","v":0},0]
["Malan Carsten",null,null,12,12,"Non-Member",{"$f":"SUMIFS(Table2[[#All],[Overall Place]],Table2[[#All],[Surname / First Name]],$A247)/E247","v":53.416666666666664},{"$f":"SUMIFS(Table2[[#All],[Club Points]],Table2[[#All],[Surname / First Name]],'Click here for your run details'!A247,Table2[[#All],[Excluded from Top 15 Run (Y/N)]],\"N\")","v":0},{"$f":"COUNTIFS(Table2[[#All],[Surname / First Name]],'Click here for your run details'!A247,Table2[[#All],[Excluded from Top 15 Run (Y/N)]],\"N\")","v":0},0]
["Marano John",4,null,null,4,"Member",{"$f":"SUMIFS(Table2[[#All],[Overall Place]],Table2[[#All],[Surname / First Name]],$A248)/E248","v":98},{"$f":"SUMIFS(Table2[[#All],[Club Points]],Table2[[#All],[Surname / First Name]],'Click here for your run details'!A248,Table2[[#All],[Excluded from Top 15 Run (Y/N)]],\"N\")","v":299},{"$f":"COUNTIFS(Table2[[#All],[Surname / First Name]],'Click here for your run details'!A248,Table2[[#All],[Excluded from Top 15 Run (Y/N)]],\"N\")","v":4},74.75]
["Markwot Karen",null,null,1,1,"Non-Member",{"$f":"SUMIFS(Table2[[#All],[Overall Place]],Table2[[#All],[Surname / First Name]],$A249)/E249","v":54},{"$f":"SUMIFS(Table2[[#All],[Club Points]],Table2[[#All],[Surname / First Name]],'Click here for your run details'!A249,Table2[[#All],[Excluded from Top 15 Run (Y/N)]],\"N\")","v":0},{"$f":"COUNTIFS(Table2[[#All],[Surname / First Name]],'Click here for your run details'!A249,Table2[[#All],[Excluded from Top 15 Run (Y/N)]],\"N\")","v":0},0]
["Marrinan Isa",21,null,null,21,"Member",{"$f":"SUMIFS(Table2[[#All],[Overall Place]],Table2[[#All],[Surname / First Name]],$A250)/E250","v":54.19047619047619},{"$f":"SUMIFS(Table2[[#All],[Club Points]],Table2[[#All],[Surname / First Name]],'Click here for your run details'!A250,Table2[[#All],[Excluded from Top 15 Run (Y/N)]],\"N\")","v":1703},{"$f":"COUNTIFS(Table2[[#All],[Surname / First Name]],'Click here for your run details'!A250,Table2[[#All],[Excluded from Top 15 Run (Y/N)]],\"N\")","v":15},113.53333333333333]
["Marrinan Michael",18,null,null,18,"Member",{"$f":"SUMIFS(Table2[[#All],[Overall Place]],Table2[[#All],[Surname / First Name]],$A251)/E251","v":11.333333333333334},{"$f":"SUMIFS(Table2[[#All],[Club Points]],Table2[[#All],[Surname / First Name]],'Click here for your run details'!A251,Table2[[#All],[Excluded from Top 15 Run (Y/N)]],\"N\")","v":2140},{"$f":"COUNTIFS(Table2[[#All],[Surname / First Name]],'Click here for your run details'!A251,Table2[[#All],[Excluded from Top 15 Run (Y/N)]],\"N\")","v":15},142.66666666666666]
["Marsh Oliver",null,null,1,1,"Non-Member",{"$f":"SUMIFS(Table2[[#All],[Overall Place]],Table2[[#All],[Surname / First Name]],$A252)/E252","v":13},{"$f":"SUMIFS(Table2[[#All],[Club Points]],Table2[[#All],[Surname / First Name]],'Click here for your run details'!A252,Table2[[#All],[Excluded from Top 15 Run (Y/N)]],\"N\")","v":0},{"$f":"COUNTIFS(Table2[[#All],[Surname / First Name]],'Click here for your run details'!A252,Table2[[#All],[Excluded from Top 15 Run (Y/N)]],\"N\")","v":0},0]
["Marshall Paul",null,null,1,1,"Non-Member",{"$f":"SUMIFS(Table2[[#All],[Overall Place]],Table2[[#All],[Surname / First Name]],$A253)/E253","v":11},{"$f":"SUMIFS(Table2[[#All],[Club Points]],Table2[[#All],[Surname / First Name]],'Click here for your run details'!A253,Table2[[#All],[Excluded from Top 15 Run (Y/N)]],\"N\")","v":0},{"$f":"COUNTIFS(Table2[[#All],[Surname / First Name]],'Click here for your run details'!A253,Table2[[#All],[Excluded from Top 15 Run (Y/N)]],\"N\")","v":0},0]
["Martin Lyle",null,null,1,1,"Non-Member",{"$f":"SUMIFS(Table2[[#All],[Overall Place]],Table2[[#All],[Surname / First Name]],$A254)/E254","v":21},{"$f":"SUMIFS(Table2[[#All],[Club Points]],Table2[[#All],[Surname / First Name]],'Click here for your run details'!A254,Table2[[#All],[Excluded from Top 15 Run (Y/N)]],\"N\")","v":0},{"$f":"COUNTIFS(Table2[[#All],[Surname / First Name]],'Click here for your run details'!A254,Table2[[#All],[Excluded from Top 15 Run (Y/N)]],\"N\")","v":0},0]
["May Jarrah",null,null,2,2,"Non-Member",{"$f":"SUMIFS(Table2[[#All],[Overall Place]],Table2[[#All],[Surname / First Name]],$A255)/E255","v":34.5},{"$f":"SUMIFS(Table2[[#All],[Club Points]],Table2[[#All],[Surname / First Name]],'Click here for your run details'!A255,Table2[[#All],[Excluded from Top 15 Run (Y/N)]],\"N\")","v":0},{"$f":"COUNTIFS(Table2[[#All],[Surname / First Name]],'Click here for your run details'!A255,Table2[[#All],[Excluded from Top 15 Run (Y/N)]],\"N\")","v":0},0]
["Mayhew Susan",10,null,null,10,"Member",{"$f":"SUMIFS(Table2[[#All],[Overall Place]],Table2[[#All],[Surname / First Name]],$A256)/E256","v":46.6},{"$f":"SUMIFS(Table2[[#All],[Club Points]],Table2[[#All],[Surname / First Name]],'Click here for your run details'!A256,Table2[[#All],[Excluded from Top 15 Run (Y/N)]],\"N\")","v":1145},{"$f":"COUNTIFS(Table2[[#All],[Surname / First Name]],'Click here for your run details'!A256,Table2[[#All],[Excluded from Top 15 Run (Y/N)]],\"N\")","v":10},114.5]
["Mcallister Helen",null,null,1,1,"Non-Member",{"$f":"SUMIFS(Table2[[#All],[Overall Place]],Table2[[#All],[Surname / First Name]],$A257)/E257","v":78},{"$f":"SUMIFS(Table2[[#All],[Club Points]],Table2[[#All],[Surname / First Name]],'Click here for your run details'!A257,Table2[[#All],[Excluded from Top 15 Run (Y/N)]],\"N\")","v":0},{"$f":"COUNTIFS(Table2[[#All],[Surname / First Name]],'Click here for your run details'!A257,Table2[[#All],[Excluded from Top 15 Run (Y/N)]],\"N\")","v":0},0]
["Mcconochie Shelly",null,null,1,1,"Non-Member",{"$f":"SUMIFS(Table2[[#All],[Overall Place]],Table2[[#All],[Surname / First Name]],$A258)/E258","v":76},{"$f":"SUMIFS(Table2[[#All],[Club Points]],Table2[[#All],[Surname / First Name]],'Click here for your run details'!A258,Table2[[#All],[Excluded from Top 15 Run (Y/N)]],\"N\")","v":0},{"$f":"COUNTIFS(Table2[[#All],[Surname / First Name]],'Click here for your run details'!A258,Table2[[#All],[Excluded from Top 15 Run (Y/N)]],\"N\")","v":0},0]
["Mccormmac Cara",null,null,1,1,"Non-Member",{"$f":"SUMIFS(Table2[[#All],[Overall Place]],Table2[[#All],[Surname / First Name]],$A259)/E259","v":76},{"$f":"SUMIFS(Table2[[#All],[Club Points]],Table2[[#All],[Surname / First Name]],'Click here for your run details'!A259,Table2[[#All],[Excluded from Top 15 Run (Y/N)]],\"N\")","v":0},{"$f":"COUNTIFS(Table2[[#All],[Surname / First Name]],'Click here for your run details'!A259,Table2[[#All],[Excluded from Top 15 Run (Y/N)]],\"N\")","v":0},0]
["Mcdonald Warren",4,null,null,4,"Member",{"$f":"SUMIFS(Table2[[#All],[Overall Place]],Table2[[#All],[Surname / First Name]],$A260)/E260","v":63},{"$f":"SUMIFS(Table2[[#All],[Club Points]],Table2[[#All],[Surname / First Name]],'Click here for your run details'!A260,Table2[[#All],[Excluded from Top 15 Run (Y/N)]],\"N\")","v":395},{"$f":"COUNTIFS(Table2[[#All],[Surname / First Name]],'Click here for your run details'!A260,Table2[[#All],[Excluded from Top 15 Run (Y/N)]],\"N\")","v":4},98.75]
["Mcdonald Wayne",null,null,1,1,"Non-Member",{"$f":"SUMIFS(Table2[[#All],[Overall Place]],Table2[[#All],[Surname / First Name]],$A261)/E261","v":20},{"$f":"SUMIFS(Table2[[#All],[Club Points]],Table2[[#All],[Surname / First Name]],'Click here for your run details'!A261,Table2[[#All],[Excluded from Top 15 Run (Y/N)]],\"N\")","v":0},{"$f":"COUNTIFS(Table2[[#All],[Surname / First Name]],'Click here for your run details'!A261,Table2[[#All],[Excluded from Top 15 Run (Y/N)]],\"N\")","v":0},0]
["Mcdowell Raewyn",null,null,1,1,"Non-Member",{"$f":"SUMIFS(Table2[[#All],[Overall Place]],Table2[[#All],[Surname / First Name]],$A262)/E262","v":29},{"$f":"SUMIFS(Table2[[#All],[Club Points]],Table2[[#All],[Surname / First Name]],'Click here for your run details'!A262,Table2[[#All],[Excluded from Top 15 Run (Y/N)]],\"N\")","v":0},{"$f":"COUNTIFS(Table2[[#All],[Surname / First Name]],'Click here for your run details'!A262,Table2[[#All],[Excluded from Top 15 Run (Y/N)]],\"N\")","v":0},0]
["Mcgurry Patrick",null,null,1,1,"Non-Member",{"$f":"SUMIFS(Table2[[#All],[Overall Place]],Table2[[#All],[Surname / First Name]],$A263)/E263","v":71},{"$f":"SUMIFS(Table2[[#All],[Club Points]],Table2[[#All],[Surname / First Name]],'Click here for your run details'!A263,Table2[[#All],[Excluded from Top 15 Run (Y/N)]],\"N\")","v":0},{"$f":"COUNTIFS(Table2[[#All],[Surname / First Name]],'Click here for your run details'!A263,Table2[[#All],[Excluded from Top 15 Run (Y/N)]],\"N\")","v":0},0]
["Mcinnes Scott",15,null,null,15,"Member",{"$f":"SUMIFS(Table2[[#All],[Overall Place]],Table2[[#All],[Surname / First Name]],$A264)/E264","v":44.6},{"$f":"SUMIFS(Table2[[#All],[Club Points]],Table2[[#All],[Surname / First Name]],'Click here for your run details'!A264,Table2[[#All],[Excluded from Top 15 Run (Y/N)]],\"N\")","v":1731},{"$f":"COUNTIFS(Table2[[#All],[Surname / First Name]],'Click here for your run details'!A264,Table2[[#All],[Excluded from Top 15 Run (Y/N)]],\"N\")","v":15},115.4]
["Mckeon Alana",null,null,5,5,{"$f":"IF(AND(SUM(B265:C265)>0,SUM(B265:C265)<99),\"Member\",\"Non-Member\")","v":"Non-Member"},{"$f":"SUMIFS(Table2[[#All],[Overall Place]],Table2[[#All],[Surname / First Name]],$A265)/E265","v":58.2},{"$f":"SUMIFS(Table2[[#All],[Club Points]],Table2[[#All],[Surname / First Name]],'Click here for your run details'!A265,Table2[[#All],[Excluded from Top 15 Run (Y/N)]],\"N\")","v":0},{"$f":"COUNTIFS(Table2[[#All],[Surname / First Name]],'Click here for your run details'!A265,Table2[[#All],[Excluded from Top 15 Run (Y/N)]],\"N\")","v":0},0]
["Mckeon Cathy",null,null,2,2,"Non-Member",{"$f":"SUMIFS(Table2[[#All],[Overall Place]],Table2[[#All],[Surname / First Name]],$A266)/E266","v":76},{"$f":"SUMIFS(Table2[[#All],[Club Points]],Table2[[#All],[Surname / First Name]],'Click here for your run details'!A266,Table2[[#All],[Excluded from Top 15 Run (Y/N)]],\"N\")","v":0},{"$f":"COUNTIFS(Table2[[#All],[Surname / First Name]],'Click here for your run details'!A266,Table2[[#All],[Excluded from Top 15 Run (Y/N)]],\"N\")","v":0},0]
["Mclean Craig",null,null,1,1,"Non-Member",{"$f":"SUMIFS(Table2[[#All],[Overall Place]],Table2[[#All],[Surname / First Name]],$A267)/E267","v":73},{"$f":"SUMIFS(Table2[[#All],[Club Points]],Table2[[#All],[Surname / First Name]],'Click here for your run details'!A267,Table2[[#All],[Excluded from Top 15 Run (Y/N)]],\"N\")","v":0},{"$f":"COUNTIFS(Table2[[#All],[Surname / First Name]],'Click here for your run details'!A267,Table2[[#All],[Excluded from Top 15 Run (Y/N)]],\"N\")","v":0},0]
["McMahon Alan",null,null,1,1,"Non-Member",{"$f":"SUMIFS(Table2[[#All],[Overall Place]],Table2[[#All],[Surname / First Name]],$A268)/E268","v":51},{"$f":"SUMIFS(Table2[[#All],[Club Points]],Table2[[#All],[Surname / First Name]],'Click here for your run details'!A268,Table2[[#All],[Excluded from Top 15 Run (Y/N)]],\"N\")","v":0},{"$f":"COUNTIFS(Table2[[#All],[Surname / First Name]],'Click here for your run details'!A268,Table2[[#All],[Excluded from Top 15 Run (Y/N)]],\"N\")","v":0},0]
["Mcnabb Jim",17,null,null,17,"Member",{"$f":"SUMIFS(Table2[[#All],[Overall Place]],Table2[[#All],[Surname / First Name]],$A269)/E269","v":50.529411764705884},{"$f":"SUMIFS(Table2[[#All],[Club Points]],Table2[[#All],[Surname / First Name]],'Click here for your run details'!A269,Table2[[#All],[Excluded from Top 15 Run (Y/N)]],\"N\")","v":1720},{"$f":"COUNTIFS(Table2[[#All],[Surname / First Name]],'Click here for your run details'!A269,Table2[[#All],[Excluded from Top 15 Run (Y/N)]],\"N\")","v":15},114.66666666666667]
["Mentor Andre",13,null,null,13,"Member",{"$f":"SUMIFS(Table2[[#All],[Overall Place]],Table2[[#All],[Surname / First Name]],$A270)/E270","v":17.923076923076923},{"$f":"SUMIFS(Table2[[#All],[Club Points]],Table2[[#All],[Surname / First Name]],'Click here for your run details'!A270,Table2[[#All],[Excluded from Top 15 Run (Y/N)]],\"N\")","v":1774},{"$f":"COUNTIFS(Table2[[#All],[Surname / First Name]],'Click here for your run details'!A270,Table2[[#All],[Excluded from Top 15 Run (Y/N)]],\"N\")","v":13},136.46153846153845]
["Merton Holley",null,null,1,1,"Non-Member",{"$f":"SUMIFS(Table2[[#All],[Overall Place]],Table2[[#All],[Surname / First Name]],$A271)/E271","v":25},{"$f":"SUMIFS(Table2[[#All],[Club Points]],Table2[[#All],[Surname / First Name]],'Click here for your run details'!A271,Table2[[#All],[Excluded from Top 15 Run (Y/N)]],\"N\")","v":0},{"$f":"COUNTIFS(Table2[[#All],[Surname / First Name]],'Click here for your run details'!A271,Table2[[#All],[Excluded from Top 15 Run (Y/N)]],\"N\")","v":0},0]
["Mewman Pat",null,null,1,1,"Non-Member",{"$f":"SUMIFS(Table2[[#All],[Overall Place]],Table2[[#All],[Surname / First Name]],$A272)/E272","v":31},{"$f":"SUMIFS(Table2[[#All],[Club Points]],Table2[[#All],[Surname / First Name]],'Click here for your run details'!A272,Table2[[#All],[Excluded from Top 15 Run (Y/N)]],\"N\")","v":0},{"$f":"COUNTIFS(Table2[[#All],[Surname / First Name]],'Click here for your run details'!A272,Table2[[#All],[Excluded from Top 15 Run (Y/N)]],\"N\")","v":0},0]
["Milani Marianne",null,null,1,1,"Non-Member",{"$f":"SUMIFS(Table2[[#All],[Overall Place]],Table2[[#All],[Surname / First Name]],$A273)/E273","v":89},{"$f":"SUMIFS(Table2[[#All],[Club Points]],Table2[[#All],[Surname / First Name]],'Click here for your run details'!A273,Table2[[#All],[Excluded from Top 15 Run (Y/N)]],\"N\")","v":0},{"$f":"COUNTIFS(Table2[[#All],[Surname / First Name]],'Click here for your run details'!A273,Table2[[#All],[Excluded from Top 15 Run (Y/N)]],\"N\")","v":0},0]
["Miles Danny",null,null,1,1,"Non-Member",{"$f":"SUMIFS(Table2[[#All],[Overall Place]],Table2[[#All],[Surname / First Name]],$A274)/E274","v":83},{"$f":"SUMIFS(Table2[[#All],[Club Points]],Table2[[#All],[Surname / First Name]],'Click here for your run details'!A274,Table2[[#All],[Excluded from Top 15 Run (Y/N)]],\"N\")","v":0},{"$f":"COUNTIFS(Table2[[#All],[Surname / First Name]],'Click here for your run details'!A274,Table2[[#All],[Excluded from Top 15 Run (Y/N)]],\"N\")","v":0},0]
["Miles Stephanie",null,null,1,1,"Non-Member",{"$f":"SUMIFS(Table2[[#All],[Overall Place]],Table2[[#All],[Surname / First Name]],$A275)/E275","v":39},{"$f":"SUMIFS(Table2[[#All],[Club Points]],Table2[[#All],[Surname / First Name]],'Click here for your run details'!A275,Table2[[#All],[Excluded from Top 15 Run (Y/N)]],\"N\")","v":0},{"$f":"COUNTIFS(Table2[[#All],[Surname / First Name]],'Click here for your run details'!A275,Table2[[#All],[Excluded from Top 15 Run (Y/N)]],\"N\")","v":0},0]
["Miller Anne",null,null,11,11,"Non-Member",{"$f":"SUMIFS(Table2[[#All],[Overall Place]],Table2[[#All],[Surname / First Name]],$A276)/E276","v":46.909090909090907},{"$f":"SUMIFS(Table2[[#All],[Club Points]],Table2[[#All],[Surname / First Name]],'Click here for your run details'!A276,Table2[[#All],[Excluded from Top 15 Run (Y/N)]],\"N\")","v":0},{"$f":"COUNTIFS(Table2[[#All],[Surname / First Name]],'Click here for your run details'!A276,Table2[[#All],[Excluded from Top 15 Run (Y/N)]],\"N\")","v":0},0]
["Moore Chris",null,null,1,1,"Non-Member",{"$f":"SUMIFS(Table2[[#All],[Overall Place]],Table2[[#All],[Surname / First Name]],$A277)/E277","v":33},{"$f":"SUMIFS(Table2[[#All],[Club Points]],Table2[[#All],[Surname / First Name]],'Click here for your run details'!A277,Table2[[#All],[Excluded from Top 15 Run (Y/N)]],\"N\")","v":0},{"$f":"COUNTIFS(Table2[[#All],[Surname / First Name]],'Click here for your run details'!A277,Table2[[#All],[Excluded from Top 15 Run (Y/N)]],\"N\")","v":0},0]
["Moore Stuart",4,null,null,4,"Member",{"$f":"SUMIFS(Table2[[#All],[Overall Place]],Table2[[#All],[Surname / First Name]],$A278)/E278","v":20.75},{"$f":"SUMIFS(Table2[[#All],[Club Points]],Table2[[#All],[Surname / First Name]],'Click here for your run details'!A278,Table2[[#All],[Excluded from Top 15 Run (Y/N)]],\"N\")","v":538},{"$f":"COUNTIFS(Table2[[#All],[Surname / First Name]],'Click here for your run details'!A278,Table2[[#All],[Excluded from Top 15 Run (Y/N)]],\"N\")","v":4},134.5]
["Morf Christi ",null,null,1,1,"Non-Member",{"$f":"SUMIFS(Table2[[#All],[Overall Place]],Table2[[#All],[Surname / First Name]],$A279)/E279","v":64},{"$f":"SUMIFS(Table2[[#All],[Club Points]],Table2[[#All],[Surname / First Name]],'Click here for your run details'!A279,Table2[[#All],[Excluded from Top 15 Run (Y/N)]],\"N\")","v":0},{"$f":"COUNTIFS(Table2[[#All],[Surname / First Name]],'Click here for your run details'!A279,Table2[[#All],[Excluded from Top 15 Run (Y/N)]],\"N\")","v":0},0]
["Morf Cristi",null,null,1,1,"Non-Member",{"$f":"SUMIFS(Table2[[#All],[Overall Place]],Table2[[#All],[Surname / First Name]],$A280)/E280","v":56},{"$f":"SUMIFS(Table2[[#All],[Club Points]],Table2[[#All],[Surname / First Name]],'Click here for your run details'!A280,Table2[[#All],[Excluded from Top 15 Run (Y/N)]],\"N\")","v":0},{"$f":"COUNTIFS(Table2[[#All],[Surname / First Name]],'Click here for your run details'!A280,Table2[[#All],[Excluded from Top 15 Run (Y/N)]],\"N\")","v":0},0]
["Morgan Emma",null,null,6,6,"Non-Member",{"$f":"SUMIFS(Table2[[#All],[Overall Place]],Table2[[#All],[Surname / First Name]],$A281)/E281","v":37.166666666666664},{"$f":"SUMIFS(Table2[[#All],[Club Points]],Table2[[#All],[Surname / First Name]],'Click here for your run details'!A281,Table2[[#All],[Excluded from Top 15 Run (Y/N)]],\"N\")","v":0},{"$f":"COUNTIFS(Table2[[#All],[Surname / First Name]],'Click here for your run details'!A281,Table2[[#All],[Excluded from Top 15 Run (Y/N)]],\"N\")","v":0},0]
["Morton Michelle",null,null,1,1,"Non-Member",{"$f":"SUMIFS(Table2[[#All],[Overall Place]],Table2[[#All],[Surname / First Name]],$A282)/E282","v":69},{"$f":"SUMIFS(Table2[[#All],[Club Points]],Table2[[#All],[Surname / First Name]],'Click here for your run details'!A282,Table2[[#All],[Excluded from Top 15 Run (Y/N)]],\"N\")","v":0},{"$f":"COUNTIFS(Table2[[#All],[Surname / First Name]],'Click here for your run details'!A282,Table2[[#All],[Excluded from Top 15 Run (Y/N)]],\"N\")","v":0},{"$f":"IFERROR(H282/I282,0)","v":0}]
["Moseley Jordan",1,null,null,1,"Member",{"$f":"SUMIFS(Table2[[#All],[Overall Place]],Table2[[#All],[Surname / First Name]],$A283)/E283","v":19},{"$f":"SUMIFS(Table2[[#All],[Club Points]],Table2[[#All],[Surname / First Name]],'Click here for your run details'!A283,Table2[[#All],[Excluded from Top 15 Run (Y/N)]],\"N\")","v":136},{"$f":"COUNTIFS(Table2[[#All],[Surname / First Name]],'Click here for your run details'!A283,Table2[[#All],[Excluded from Top 15 Run (Y/N)]],\"N\")","v":1},136]
["Mueller-Coons Mic",2,2,null,4,"Member",{"$f":"SUMIFS(Table2[[#All],[Overall Place]],Table2[[#All],[Surname / First Name]],$A284)/E284","v":38.5},{"$f":"SUMIFS(Table2[[#All],[Club Points]],Table2[[#All],[Surname / First Name]],'Click here for your run details'!A284,Table2[[#All],[Excluded from Top 15 Run (Y/N)]],\"N\")","v":239},{"$f":"COUNTIFS(Table2[[#All],[Surname / First Name]],'Click here for your run details'!A284,Table2[[#All],[Excluded from Top 15 Run (Y/N)]],\"N\")","v":2},119.5]
["Mugambi Sheba",11,null,null,11,"Member",{"$f":"SUMIFS(Table2[[#All],[Overall Place]],Table2[[#All],[Surname / First Name]],$A285)/E285","v":42.81818181818182},{"$f":"SUMIFS(Table2[[#All],[Club Points]],Table2[[#All],[Surname / First Name]],'Click here for your run details'!A285,Table2[[#All],[Excluded from Top 15 Run (Y/N)]],\"N\")","v":1306},{"$f":"COUNTIFS(Table2[[#All],[Surname / First Name]],'Click here for your run details'!A285,Table2[[#All],[Excluded from Top 15 Run (Y/N)]],\"N\")","v":11},118.72727272727273]
["Muhlenberg Conny",10,null,null,10,"Member",{"$f":"SUMIFS(Table2[[#All],[Overall Place]],Table2[[#All],[Surname / First Name]],$A286)/E286","v":62.5},{"$f":"SUMIFS(Table2[[#All],[Club Points]],Table2[[#All],[Surname / First Name]],'Click here for your run details'!A286,Table2[[#All],[Excluded from Top 15 Run (Y/N)]],\"N\")","v":1010},{"$f":"COUNTIFS(Table2[[#All],[Surname / First Name]],'Click here for your run details'!A286,Table2[[#All],[Excluded from Top 15 Run (Y/N)]],\"N\")","v":10},101]
["Murakami Fiona",4,null,null,4,"Member",{"$f":"SUMIFS(Table2[[#All],[Overall Place]],Table2[[#All],[Surname / First Name]],$A287)/E287","v":49.75},{"$f":"SUMIFS(Table2[[#All],[Club Points]],Table2[[#All],[Surname / First Name]],'Click here for your run details'!A287,Table2[[#All],[Excluded from Top 15 Run (Y/N)]],\"N\")","v":433},{"$f":"COUNTIFS(Table2[[#All],[Surname / First Name]],'Click here for your run details'!A287,Table2[[#All],[Excluded from Top 15 Run (Y/N)]],\"N\")","v":4},108.25]
["Murphy Sam",null,null,1,1,"Non-Member",{"$f":"SUMIFS(Table2[[#All],[Overall Place]],Table2[[#All],[Surname / First Name]],$A288)/E288","v":1},{"$f":"SUMIFS(Table2[[#All],[Club Points]],Table2[[#All],[Surname / First Name]],'Click here for your run details'!A288,Table2[[#All],[Excluded from Top 15 Run (Y/N)]],\"N\")","v":0},{"$f":"COUNTIFS(Table2[[#All],[Surname / First Name]],'Click here for your run details'!A288,Table2[[#All],[Excluded from Top 15 Run (Y/N)]],\"N\")","v":0},0]
["Nahrung David",10,null,null,10,"Member",{"$f":"SUMIFS(Table2[[#All],[Overall Place]],Table2[[#All],[Surname / First Name]],$A289)/E289","v":29.1},{"$f":"SUMIFS(Table2[[#All],[Club Points]],Table2[[#All],[Surname / First Name]],'Click here for your run details'!A289,Table2[[#All],[Excluded from Top 15 Run (Y/N)]],\"N\")","v":1273},{"$f":"COUNTIFS(Table2[[#All],[Surname / First Name]],'Click here for your run details'!A289,Table2[[#All],[Excluded from Top 15 Run (Y/N)]],\"N\")","v":10},127.3]
["Name Recorded No",null,null,1,1,"Non-Member",{"$f":"SUMIFS(Table2[[#All],[Overall Place]],Table2[[#All],[Surname / First Name]],$A290)/E290","v":65},{"$f":"SUMIFS(Table2[[#All],[Club Points]],Table2[[#All],[Surname / First Name]],'Click here for your run details'!A290,Table2[[#All],[Excluded from Top 15 Run (Y/N)]],\"N\")","v":0},{"$f":"COUNTIFS(Table2[[#All],[Surname / First Name]],'Click here for your run details'!A290,Table2[[#All],[Excluded from Top 15 Run (Y/N)]],\"N\")","v":0},0]
["Neimanis Greta",5,1,null,6,"Member",{"$f":"SUMIFS(Table2[[#All],[Overall Place]],Table2[[#All],[Surname / First Name]],$A291)/E291","v":61.833333333333336},{"$f":"SUMIFS(Table2[[#All],[Club Points]],Table2[[#All],[Surname / First Name]],'Click here for your run details'!A291,Table2[[#All],[Excluded from Top 15 Run (Y/N)]],\"N\")","v":523},{"$f":"COUNTIFS(Table2[[#All],[Surname / First Name]],'Click here for your run details'!A291,Table2[[#All],[Excluded from Top 15 Run (Y/N)]],\"N\")","v":5},104.6]
["Neimanis Kathleen",3,1,null,4,"Member",{"$f":"SUMIFS(Table2[[#All],[Overall Place]],Table2[[#All],[Surname / First Name]],$A292)/E292","v":79.5},{"$f":"SUMIFS(Table2[[#All],[Club Points]],Table2[[#All],[Surname / First Name]],'Click here for your run details'!A292,Table2[[#All],[Excluded from Top 15 Run (Y/N)]],\"N\")","v":281},{"$f":"COUNTIFS(Table2[[#All],[Surname / First Name]],'Click here for your run details'!A292,Table2[[#All],[Excluded from Top 15 Run (Y/N)]],\"N\")","v":3},93.666666666666671]
["Neimanis Peter",6,null,null,6,"Member",{"$f":"SUMIFS(Table2[[#All],[Overall Place]],Table2[[#All],[Surname / First Name]],$A293)/E293","v":29.666666666666668},{"$f":"SUMIFS(Table2[[#All],[Club Points]],Table2[[#All],[Surname / First Name]],'Click here for your run details'!A293,Table2[[#All],[Excluded from Top 15 Run (Y/N)]],\"N\")","v":761},{"$f":"COUNTIFS(Table2[[#All],[Surname / First Name]],'Click here for your run details'!A293,Table2[[#All],[Excluded from Top 15 Run (Y/N)]],\"N\")","v":6},126.83333333333333]
["Nelson Jesslyn",14,null,null,14,"Member",{"$f":"SUMIFS(Table2[[#All],[Overall Place]],Table2[[#All],[Surname / First Name]],$A294)/E294","v":42},{"$f":"SUMIFS(Table2[[#All],[Club Points]],Table2[[#All],[Surname / First Name]],'Click here for your run details'!A294,Table2[[#All],[Excluded from Top 15 Run (Y/N)]],\"N\")","v":1651},{"$f":"COUNTIFS(Table2[[#All],[Surname / First Name]],'Click here for your run details'!A294,Table2[[#All],[Excluded from Top 15 Run (Y/N)]],\"N\")","v":14},117.92857142857143]
["Nethery Yideg",null,null,3,3,"Non-Member",{"$f":"SUMIFS(Table2[[#All],[Overall Place]],Table2[[#All],[Surname / First Name]],$A295)/E295","v":8.3333333333333339},{"$f":"SUMIFS(Table2[[#All],[Club Points]],Table2[[#All],[Surname / First Name]],'Click here for your run details'!A295,Table2[[#All],[Excluded from Top 15 Run (Y/N)]],\"N\")","v":0},{"$f":"COUNTIFS(Table2[[#All],[Surname / First Name]],'Click here for your run details'!A295,Table2[[#All],[Excluded from Top 15 Run (Y/N)]],\"N\")","v":0},0]
["Newman Lyn",15,null,null,15,"Member",{"$f":"SUMIFS(Table2[[#All],[Overall Place]],Table2[[#All],[Surname / First Name]],$A296)/E296","v":34.06666666666667},{"$f":"SUMIFS(Table2[[#All],[Club Points]],Table2[[#All],[Surname / First Name]],'Click here for your run details'!A296,Table2[[#All],[Excluded from Top 15 Run (Y/N)]],\"N\")","v":1854},{"$f":"COUNTIFS(Table2[[#All],[Surname / First Name]],'Click here for your run details'!A296,Table2[[#All],[Excluded from Top 15 Run (Y/N)]],\"N\")","v":15},{"$f":"IFERROR(H296/I296,0)","v":123.6}]
["Newman# Pat",null,null,1,1,"Non-Member",{"$f":"SUMIFS(Table2[[#All],[Overall Place]],Table2[[#All],[Surname / First Name]],$A297)/E297","v":30},{"$f":"SUMIFS(Table2[[#All],[Club Points]],Table2[[#All],[Surname / First Name]],'Click here for your run details'!A297,Table2[[#All],[Excluded from Top 15 Run (Y/N)]],\"N\")","v":0},{"$f":"COUNTIFS(Table2[[#All],[Surname / First Name]],'Click here for your run details'!A297,Table2[[#All],[Excluded from Top 15 Run (Y/N)]],\"N\")","v":0},0]
["Newnham Colleen",17,null,null,17,"Member",{"$f":"SUMIFS(Table2[[#All],[Overall Place]],Table2[[#All],[Surname / First Name]],$A298)/E298","v":43.764705882352942},{"$f":"SUMIFS(Table2[[#All],[Club Points]],Table2[[#All],[Surname / First Name]],'Click here for your run details'!A298,Table2[[#All],[Excluded from Top 15 Run (Y/N)]],\"N\")","v":1781},{"$f":"COUNTIFS(Table2[[#All],[Surname / First Name]],'Click here for your run details'!A298,Table2[[#All],[Excluded from Top 15 Run (Y/N)]],\"N\")","v":15},118.73333333333333]
["Nicholson Trevor",19,null,null,19,"Member",{"$f":"SUMIFS(Table2[[#All],[Overall Place]],Table2[[#All],[Surname / First Name]],$A299)/E299","v":30.684210526315791},{"$f":"SUMIFS(Table2[[#All],[Club Points]],Table2[[#All],[Surname / First Name]],'Click here for your run details'!A299,Table2[[#All],[Excluded from Top 15 Run (Y/N)]],\"N\")","v":1923},{"$f":"COUNTIFS(Table2[[#All],[Surname / First Name]],'Click here for your run details'!A299,Table2[[#All],[Excluded from Top 15 Run (Y/N)]],\"N\")","v":15},128.19999999999999]
["Nolan Adam",null,null,1,1,"Non-Member",{"$f":"SUMIFS(Table2[[#All],[Overall Place]],Table2[[#All],[Surname / First Name]],$A300)/E300","v":26},{"$f":"SUMIFS(Table2[[#All],[Club Points]],Table2[[#All],[Surname / First Name]],'Click here for your run details'!A300,Table2[[#All],[Excluded from Top 15 Run (Y/N)]],\"N\")","v":0},{"$f":"COUNTIFS(Table2[[#All],[Surname / First Name]],'Click here for your run details'!A300,Table2[[#All],[Excluded from Top 15 Run (Y/N)]],\"N\")","v":0},0]
["Norra Bernie",null,null,1,1,"Non-Member",{"$f":"SUMIFS(Table2[[#All],[Overall Place]],Table2[[#All],[Surname / First Name]],$A301)/E301","v":16},{"$f":"SUMIFS(Table2[[#All],[Club Points]],Table2[[#All],[Surname / First Name]],'Click here for your run details'!A301,Table2[[#All],[Excluded from Top 15 Run (Y/N)]],\"N\")","v":0},{"$f":"COUNTIFS(Table2[[#All],[Surname / First Name]],'Click here for your run details'!A301,Table2[[#All],[Excluded from Top 15 Run (Y/N)]],\"N\")","v":0},0]
["Norris Bernie",null,null,10,10,"Non-Member",{"$f":"SUMIFS(Table2[[#All],[Overall Place]],Table2[[#All],[Surname / First Name]],$A302)/E302","v":26.4},{"$f":"SUMIFS(Table2[[#All],[Club Points]],Table2[[#All],[Surname / First Name]],'Click here for your run details'!A302,Table2[[#All],[Excluded from Top 15 Run (Y/N)]],\"N\")","v":0},{"$f":"COUNTIFS(Table2[[#All],[Surname / First Name]],'Click here for your run details'!A302,Table2[[#All],[Excluded from Top 15 Run (Y/N)]],\"N\")","v":0},0]
["Norris# Bernie",null,null,1,1,"Non-Member",{"$f":"SUMIFS(Table2[[#All],[Overall Place]],Table2[[#All],[Surname / First Name]],$A303)/E303","v":46},{"$f":"SUMIFS(Table2[[#All],[Club Points]],Table2[[#All],[Surname / First Name]],'Click here for your run details'!A303,Table2[[#All],[Excluded from Top 15 Run (Y/N)]],\"N\")","v":0},{"$f":"COUNTIFS(Table2[[#All],[Surname / First Name]],'Click here for your run details'!A303,Table2[[#All],[Excluded from Top 15 Run (Y/N)]],\"N\")","v":0},0]
["Northfield Rodney",null,null,1,1,"Non-Member",{"$f":"SUMIFS(Table2[[#All],[Overall Place]],Table2[[#All],[Surname / First Name]],$A304)/E304","v":46},{"$f":"SUMIFS(Table2[[#All],[Club Points]],Table2[[#All],[Surname / First Name]],'Click here for your run details'!A304,Table2[[#All],[Excluded from Top 15 Run (Y/N)]],\"N\")","v":0},{"$f":"COUNTIFS(Table2[[#All],[Surname / First Name]],'Click here for your run details'!A304,Table2[[#All],[Excluded from Top 15 Run (Y/N)]],\"N\")","v":0},0]
["Norton Nancy",7,null,null,7,"Member",{"$f":"SUMIFS(Table2[[#All],[Overall Place]],Table2[[#All],[Surname / First Name]],$A305)/E305","v":76.571428571428569},{"$f":"SUMIFS(Table2[[#All],[Club Points]],Table2[[#All],[Surname / First Name]],'Click here for your run details'!A305,Table2[[#All],[Excluded from Top 15 Run (Y/N)]],\"N\")","v":625},{"$f":"COUNTIFS(Table2[[#All],[Surname / First Name]],'Click here for your run details'!A305,Table2[[#All],[Excluded from Top 15 Run (Y/N)]],\"N\")","v":7},89.285714285714292]
["Nuttall John",14,null,null,14,"Member",{"$f":"SUMIFS(Table2[[#All],[Overall Place]],Table2[[#All],[Surname / First Name]],$A306)/E306","v":20.857142857142858},{"$f":"SUMIFS(Table2[[#All],[Club Points]],Table2[[#All],[Surname / First Name]],'Click here for your run details'!A306,Table2[[#All],[Excluded from Top 15 Run (Y/N)]],\"N\")","v":1896},{"$f":"COUNTIFS(Table2[[#All],[Surname / First Name]],'Click here for your run details'!A306,Table2[[#All],[Excluded from Top 15 Run (Y/N)]],\"N\")","v":14},135.42857142857142]
["Oats Cheryl",null,null,7,7,"Non-Member",{"$f":"SUMIFS(Table2[[#All],[Overall Place]],Table2[[#All],[Surname / First Name]],$A307)/E307","v":77.428571428571431},{"$f":"SUMIFS(Table2[[#All],[Club Points]],Table2[[#All],[Surname / First Name]],'Click here for your run details'!A307,Table2[[#All],[Excluded from Top 15 Run (Y/N)]],\"N\")","v":0},{"$f":"COUNTIFS(Table2[[#All],[Surname / First Name]],'Click here for your run details'!A307,Table2[[#All],[Excluded from Top 15 Run (Y/N)]],\"N\")","v":0},0]
["O'Connor Theresa",null,null,1,1,"Non-Member",{"$f":"SUMIFS(Table2[[#All],[Overall Place]],Table2[[#All],[Surname / First Name]],$A308)/E308","v":63},{"$f":"SUMIFS(Table2[[#All],[Club Points]],Table2[[#All],[Surname / First Name]],'Click here for your run details'!A308,Table2[[#All],[Excluded from Top 15 Run (Y/N)]],\"N\")","v":0},{"$f":"COUNTIFS(Table2[[#All],[Surname / First Name]],'Click here for your run details'!A308,Table2[[#All],[Excluded from Top 15 Run (Y/N)]],\"N\")","v":0},0]
["Olsen John",10,null,null,10,"Member",{"$f":"SUMIFS(Table2[[#All],[Overall Place]],Table2[[#All],[Surname / First Name]],$A309)/E309","v":79},{"$f":"SUMIFS(Table2[[#All],[Club Points]],Table2[[#All],[Surname / First Name]],'Click here for your run details'!A309,Table2[[#All],[Excluded from Top 15 Run (Y/N)]],\"N\")","v":907},{"$f":"COUNTIFS(Table2[[#All],[Surname / First Name]],'Click here for your run details'!A309,Table2[[#All],[Excluded from Top 15 Run (Y/N)]],\"N\")","v":10},90.7]
["O'Regan Paul",9,null,null,9,"Member",{"$f":"SUMIFS(Table2[[#All],[Overall Place]],Table2[[#All],[Surname / First Name]],$A310)/E310","v":27},{"$f":"SUMIFS(Table2[[#All],[Club Points]],Table2[[#All],[Surname / First Name]],'Click here for your run details'!A310,Table2[[#All],[Excluded from Top 15 Run (Y/N)]],\"N\")","v":1158},{"$f":"COUNTIFS(Table2[[#All],[Surname / First Name]],'Click here for your run details'!A310,Table2[[#All],[Excluded from Top 15 Run (Y/N)]],\"N\")","v":9},128.66666666666666]
["O'Regan Simon",14,null,null,14,"Member",{"$f":"SUMIFS(Table2[[#All],[Overall Place]],Table2[[#All],[Surname / First Name]],$A311)/E311","v":1.1428571428571428},{"$f":"SUMIFS(Table2[[#All],[Club Points]],Table2[[#All],[Surname / First Name]],'Click here for your run details'!A311,Table2[[#All],[Excluded from Top 15 Run (Y/N)]],\"N\")","v":2100},{"$f":"COUNTIFS(Table2[[#All],[Surname / First Name]],'Click here for your run details'!A311,Table2[[#All],[Excluded from Top 15 Run (Y/N)]],\"N\")","v":14},150]
["O'Reilly Phil",19,null,null,19,"Member",{"$f":"SUMIFS(Table2[[#All],[Overall Place]],Table2[[#All],[Surname / First Name]],$A312)/E312","v":39.578947368421055},{"$f":"SUMIFS(Table2[[#All],[Club Points]],Table2[[#All],[Surname / First Name]],'Click here for your run details'!A312,Table2[[#All],[Excluded from Top 15 Run (Y/N)]],\"N\")","v":1837},{"$f":"COUNTIFS(Table2[[#All],[Surname / First Name]],'Click here for your run details'!A312,Table2[[#All],[Excluded from Top 15 Run (Y/N)]],\"N\")","v":15},122.46666666666667]
["Orth Michael",null,null,1,1,"Non-Member",{"$f":"SUMIFS(Table2[[#All],[Overall Place]],Table2[[#All],[Surname / First Name]],$A313)/E313","v":67},{"$f":"SUMIFS(Table2[[#All],[Club Points]],Table2[[#All],[Surname / First Name]],'Click here for your run details'!A313,Table2[[#All],[Excluded from Top 15 Run (Y/N)]],\"N\")","v":0},{"$f":"COUNTIFS(Table2[[#All],[Surname / First Name]],'Click here for your run details'!A313,Table2[[#All],[Excluded from Top 15 Run (Y/N)]],\"N\")","v":0},0]
["Orth Sarah",null,null,2,2,"Non-Member",{"$f":"SUMIFS(Table2[[#All],[Overall Place]],Table2[[#All],[Surname / First Name]],$A314)/E314","v":61.5},{"$f":"SUMIFS(Table2[[#All],[Club Points]],Table2[[#All],[Surname / First Name]],'Click here for your run details'!A314,Table2[[#All],[Excluded from Top 15 Run (Y/N)]],\"N\")","v":0},{"$f":"COUNTIFS(Table2[[#All],[Surname / First Name]],'Click here for your run details'!A314,Table2[[#All],[Excluded from Top 15 Run (Y/N)]],\"N\")","v":0},0]
["Otto Annaliese",15,null,null,15,"Member",{"$f":"SUMIFS(Table2[[#All],[Overall Place]],Table2[[#All],[Surname / First Name]],$A315)/E315","v":59.533333333333331},{"$f":"SUMIFS(Table2[[#All],[Club Points]],Table2[[#All],[Surname / First Name]],'Click here for your run details'!A315,Table2[[#All],[Excluded from Top 15 Run (Y/N)]],\"N\")","v":1574},{"$f":"COUNTIFS(Table2[[#All],[Surname / First Name]],'Click here for your run details'!A315,Table2[[#All],[Excluded from Top 15 Run (Y/N)]],\"N\")","v":15},104.93333333333334]
["Pahoff J",null,null,1,1,"Non-Member",{"$f":"SUMIFS(Table2[[#All],[Overall Place]],Table2[[#All],[Surname / First Name]],$A316)/E316","v":50},{"$f":"SUMIFS(Table2[[#All],[Club Points]],Table2[[#All],[Surname / First Name]],'Click here for your run details'!A316,Table2[[#All],[Excluded from Top 15 Run (Y/N)]],\"N\")","v":0},{"$f":"COUNTIFS(Table2[[#All],[Surname / First Name]],'Click here for your run details'!A316,Table2[[#All],[Excluded from Top 15 Run (Y/N)]],\"N\")","v":1},0]
["Pain Tilley",6,null,null,6,"Member",{"$f":"SUMIFS(Table2[[#All],[Overall Place]],Table2[[#All],[Surname / First Name]],$A317)/E317","v":85.666666666666671},{"$f":"SUMIFS(Table2[[#All],[Club Points]],Table2[[#All],[Surname / First Name]],'Click here for your run details'!A317,Table2[[#All],[Excluded from Top 15 Run (Y/N)]],\"N\")","v":494},{"$f":"COUNTIFS(Table2[[#All],[Surname / First Name]],'Click here for your run details'!A317,Table2[[#All],[Excluded from Top 15 Run (Y/N)]],\"N\")","v":6},82.333333333333329]
["Palmer James",null,null,1,1,"Non-Member",{"$f":"SUMIFS(Table2[[#All],[Overall Place]],Table2[[#All],[Surname / First Name]],$A318)/E318","v":107},{"$f":"SUMIFS(Table2[[#All],[Club Points]],Table2[[#All],[Surname / First Name]],'Click here for your run details'!A318,Table2[[#All],[Excluded from Top 15 Run (Y/N)]],\"N\")","v":0},{"$f":"COUNTIFS(Table2[[#All],[Surname / First Name]],'Click here for your run details'!A318,Table2[[#All],[Excluded from Top 15 Run (Y/N)]],\"N\")","v":0},0]
["Palmer Luke",2,null,null,2,"Member",{"$f":"SUMIFS(Table2[[#All],[Overall Place]],Table2[[#All],[Surname / First Name]],$A319)/E319","v":83.5},{"$f":"SUMIFS(Table2[[#All],[Club Points]],Table2[[#All],[Surname / First Name]],'Click here for your run details'!A319,Table2[[#All],[Excluded from Top 15 Run (Y/N)]],\"N\")","v":172},{"$f":"COUNTIFS(Table2[[#All],[Surname / First Name]],'Click here for your run details'!A319,Table2[[#All],[Excluded from Top 15 Run (Y/N)]],\"N\")","v":2},86]
["Palmer Tim",null,null,1,1,"Non-Member",{"$f":"SUMIFS(Table2[[#All],[Overall Place]],Table2[[#All],[Surname / First Name]],$A320)/E320","v":108},{"$f":"SUMIFS(Table2[[#All],[Club Points]],Table2[[#All],[Surname / First Name]],'Click here for your run details'!A320,Table2[[#All],[Excluded from Top 15 Run (Y/N)]],\"N\")","v":0},{"$f":"COUNTIFS(Table2[[#All],[Surname / First Name]],'Click here for your run details'!A320,Table2[[#All],[Excluded from Top 15 Run (Y/N)]],\"N\")","v":0},0]
["Parker Rod",1,null,null,1,"Member",{"$f":"SUMIFS(Table2[[#All],[Overall Place]],Table2[[#All],[Surname / First Name]],$A321)/E321","v":66},{"$f":"SUMIFS(Table2[[#All],[Club Points]],Table2[[#All],[Surname / First Name]],'Click here for your run details'!A321,Table2[[#All],[Excluded from Top 15 Run (Y/N)]],\"N\")","v":96},{"$f":"COUNTIFS(Table2[[#All],[Surname / First Name]],'Click here for your run details'!A321,Table2[[#All],[Excluded from Top 15 Run (Y/N)]],\"N\")","v":1},96]
["Patteson Kathy",null,null,9,9,"Non-Member",{"$f":"SUMIFS(Table2[[#All],[Overall Place]],Table2[[#All],[Surname / First Name]],$A322)/E322","v":72.111111111111114},{"$f":"SUMIFS(Table2[[#All],[Club Points]],Table2[[#All],[Surname / First Name]],'Click here for your run details'!A322,Table2[[#All],[Excluded from Top 15 Run (Y/N)]],\"N\")","v":0},{"$f":"COUNTIFS(Table2[[#All],[Surname / First Name]],'Click here for your run details'!A322,Table2[[#All],[Excluded from Top 15 Run (Y/N)]],\"N\")","v":0},0]
["Pearce Jayson",null,null,8,8,"Non-Member",{"$f":"SUMIFS(Table2[[#All],[Overall Place]],Table2[[#All],[Surname / First Name]],$A323)/E323","v":80.375},{"$f":"SUMIFS(Table2[[#All],[Club Points]],Table2[[#All],[Surname / First Name]],'Click here for your run details'!A323,Table2[[#All],[Excluded from Top 15 Run (Y/N)]],\"N\")","v":0},{"$f":"COUNTIFS(Table2[[#All],[Surname / First Name]],'Click here for your run details'!A323,Table2[[#All],[Excluded from Top 15 Run (Y/N)]],\"N\")","v":0},0]
["Pearson Krystal",7,null,null,7,"Member",{"$f":"SUMIFS(Table2[[#All],[Overall Place]],Table2[[#All],[Surname / First Name]],$A324)/E324","v":35.428571428571431},{"$f":"SUMIFS(Table2[[#All],[Club Points]],Table2[[#All],[Surname / First Name]],'Click here for your run details'!A324,Table2[[#All],[Excluded from Top 15 Run (Y/N)]],\"N\")","v":848},{"$f":"COUNTIFS(Table2[[#All],[Surname / First Name]],'Click here for your run details'!A324,Table2[[#All],[Excluded from Top 15 Run (Y/N)]],\"N\")","v":7},121.14285714285714]
["Pettingill Dylan",null,null,1,1,"Non-Member",{"$f":"SUMIFS(Table2[[#All],[Overall Place]],Table2[[#All],[Surname / First Name]],$A325)/E325","v":49},{"$f":"SUMIFS(Table2[[#All],[Club Points]],Table2[[#All],[Surname / First Name]],'Click here for your run details'!A325,Table2[[#All],[Excluded from Top 15 Run (Y/N)]],\"N\")","v":0},{"$f":"COUNTIFS(Table2[[#All],[Surname / First Name]],'Click here for your run details'!A325,Table2[[#All],[Excluded from Top 15 Run (Y/N)]],\"N\")","v":0},0]
["Pickering Jeralyn",null,null,1,1,"Non-Member",{"$f":"SUMIFS(Table2[[#All],[Overall Place]],Table2[[#All],[Surname / First Name]],$A326)/E326","v":16},{"$f":"SUMIFS(Table2[[#All],[Club Points]],Table2[[#All],[Surname / First Name]],'Click here for your run details'!A326,Table2[[#All],[Excluded from Top 15 Run (Y/N)]],\"N\")","v":0},{"$f":"COUNTIFS(Table2[[#All],[Surname / First Name]],'Click here for your run details'!A326,Table2[[#All],[Excluded from Top 15 Run (Y/N)]],\"N\")","v":0},0]
["Pierce Sam",null,null,1,1,"Non-Member",{"$f":"SUMIFS(Table2[[#All],[Overall Place]],Table2[[#All],[Surname / First Name]],$A327)/E327","v":3},{"$f":"SUMIFS(Table2[[#All],[Club Points]],Table2[[#All],[Surname / First Name]],'Click here for your run details'!A327,Table2[[#All],[Excluded from Top 15 Run (Y/N)]],\"N\")","v":0},{"$f":"COUNTIFS(Table2[[#All],[Surname / First Name]],'Click here for your run details'!A327,Table2[[#All],[Excluded from Top 15 Run (Y/N)]],\"N\")","v":0},0]
["Pitkethly Alex",null,null,1,1,"Non-Member",{"$f":"SUMIFS(Table2[[#All],[Overall Place]],Table2[[#All],[Surname / First Name]],$A328)/E328","v":7},{"$f":"SUMIFS(Table2[[#All],[Club Points]],Table2[[#All],[Surname / First Name]],'Click here for your run details'!A328,Table2[[#All],[Excluded from Top 15 Run (Y/N)]],\"N\")","v":0},{"$f":"COUNTIFS(Table2[[#All],[Surname / First Name]],'Click here for your run details'!A328,Table2[[#All],[Excluded from Top 15 Run (Y/N)]],\"N\")","v":0},0]
["Prasser Mark",2,null,null,2,{"$f":"IF(AND(SUM(B329:C329)>0,SUM(B329:C329)<99),\"Member\",\"Non-Member\")","v":"Member"},{"$f":"SUMIFS(Table2[[#All],[Overall Place]],Table2[[#All],[Surname / First Name]],$A329)/E329","v":42},{"$f":"SUMIFS(Table2[[#All],[Club Points]],Table2[[#All],[Surname / First Name]],'Click here for your run details'!A329,Table2[[#All],[Excluded from Top 15 Run (Y/N)]],\"N\")","v":230},{"$f":"COUNTIFS(Table2[[#All],[Surname / First Name]],'Click here for your run details'!A329,Table2[[#All],[Excluded from Top 15 Run (Y/N)]],\"N\")","v":2},{"$f":"IFERROR(H329/I329,0)","v":115}]
["Pratt Kathryn",null,null,1,1,"Non-Member",{"$f":"SUMIFS(Table2[[#All],[Overall Place]],Table2[[#All],[Surname / First Name]],$A330)/E330","v":68},{"$f":"SUMIFS(Table2[[#All],[Club Points]],Table2[[#All],[Surname / First Name]],'Click here for your run details'!A330,Table2[[#All],[Excluded from Top 15 Run (Y/N)]],\"N\")","v":0},{"$f":"COUNTIFS(Table2[[#All],[Surname / First Name]],'Click here for your run details'!A330,Table2[[#All],[Excluded from Top 15 Run (Y/N)]],\"N\")","v":0},0]
["Pretorius Christiaan",18,null,null,18,"Member",{"$f":"SUMIFS(Table2[[#All],[Overall Place]],Table2[[#All],[Surname / First Name]],$A331)/E331","v":11.888888888888889},{"$f":"SUMIFS(Table2[[#All],[Club Points]],Table2[[#All],[Surname / First Name]],'Click here for your run details'!A331,Table2[[#All],[Excluded from Top 15 Run (Y/N)]],\"N\")","v":2144},{"$f":"COUNTIFS(Table2[[#All],[Surname / First Name]],'Click here for your run details'!A331,Table2[[#All],[Excluded from Top 15 Run (Y/N)]],\"N\")","v":15},142.93333333333334]
["Puance Jayson",null,null,1,1,"Non-Member",{"$f":"SUMIFS(Table2[[#All],[Overall Place]],Table2[[#All],[Surname / First Name]],$A332)/E332","v":30},{"$f":"SUMIFS(Table2[[#All],[Club Points]],Table2[[#All],[Surname / First Name]],'Click here for your run details'!A332,Table2[[#All],[Excluded from Top 15 Run (Y/N)]],\"N\")","v":0},{"$f":"COUNTIFS(Table2[[#All],[Surname / First Name]],'Click here for your run details'!A332,Table2[[#All],[Excluded from Top 15 Run (Y/N)]],\"N\")","v":0},0]
["Punshon Michael",5,null,null,5,"Member",{"$f":"SUMIFS(Table2[[#All],[Overall Place]],Table2[[#All],[Surname / First Name]],$A333)/E333","v":19.600000000000001},{"$f":"SUMIFS(Table2[[#All],[Club Points]],Table2[[#All],[Surname / First Name]],'Click here for your run details'!A333,Table2[[#All],[Excluded from Top 15 Run (Y/N)]],\"N\")","v":687},{"$f":"COUNTIFS(Table2[[#All],[Surname / First Name]],'Click here for your run details'!A333,Table2[[#All],[Excluded from Top 15 Run (Y/N)]],\"N\")","v":5},137.4]
["Quinn Johanna",1,null,null,1,"Member",{"$f":"SUMIFS(Table2[[#All],[Overall Place]],Table2[[#All],[Surname / First Name]],$A334)/E334","v":77},{"$f":"SUMIFS(Table2[[#All],[Club Points]],Table2[[#All],[Surname / First Name]],'Click here for your run details'!A334,Table2[[#All],[Excluded from Top 15 Run (Y/N)]],\"N\")","v":85},{"$f":"COUNTIFS(Table2[[#All],[Surname / First Name]],'Click here for your run details'!A334,Table2[[#All],[Excluded from Top 15 Run (Y/N)]],\"N\")","v":1},{"$f":"IFERROR(H334/I334,0)","v":85}]
["Quinnes Darryl",null,null,1,1,"Non-Member",{"$f":"SUMIFS(Table2[[#All],[Overall Place]],Table2[[#All],[Surname / First Name]],$A335)/E335","v":38},{"$f":"SUMIFS(Table2[[#All],[Club Points]],Table2[[#All],[Surname / First Name]],'Click here for your run details'!A335,Table2[[#All],[Excluded from Top 15 Run (Y/N)]],\"N\")","v":0},{"$f":"COUNTIFS(Table2[[#All],[Surname / First Name]],'Click here for your run details'!A335,Table2[[#All],[Excluded from Top 15 Run (Y/N)]],\"N\")","v":0},0]
["Quinney# Darryl",null,null,1,1,"Non-Member",{"$f":"SUMIFS(Table2[[#All],[Overall Place]],Table2[[#All],[Surname / First Name]],$A336)/E336","v":35},{"$f":"SUMIFS(Table2[[#All],[Club Points]],Table2[[#All],[Surname / First Name]],'Click here for your run details'!A336,Table2[[#All],[Excluded from Top 15 Run (Y/N)]],\"N\")","v":0},{"$f":"COUNTIFS(Table2[[#All],[Surname / First Name]],'Click here for your run details'!A336,Table2[[#All],[Excluded from Top 15 Run (Y/N)]],\"N\")","v":0},0]
["Ra Margaret",null,null,1,1,"Non-Member",{"$f":"SUMIFS(Table2[[#All],[Overall Place]],Table2[[#All],[Surname / First Name]],$A337)/E337","v":57},{"$f":"SUMIFS(Table2[[#All],[Club Points]],Table2[[#All],[Surname / First Name]],'Click here for your run details'!A337,Table2[[#All],[Excluded from Top 15 Run (Y/N)]],\"N\")","v":0},{"$f":"COUNTIFS(Table2[[#All],[Surname / First Name]],'Click here for your run details'!A337,Table2[[#All],[Excluded from Top 15 Run (Y/N)]],\"N\")","v":0},0]
["Rains Alex",null,null,1,1,"Non-Member",{"$f":"SUMIFS(Table2[[#All],[Overall Place]],Table2[[#All],[Surname / First Name]],$A338)/E338","v":28},{"$f":"SUMIFS(Table2[[#All],[Club Points]],Table2[[#All],[Surname / First Name]],'Click here for your run details'!A338,Table2[[#All],[Excluded from Top 15 Run (Y/N)]],\"N\")","v":0},{"$f":"COUNTIFS(Table2[[#All],[Surname / First Name]],'Click here for your run details'!A338,Table2[[#All],[Excluded from Top 15 Run (Y/N)]],\"N\")","v":0},0]
["Rayner Mark",null,null,1,1,"Non-Member",{"$f":"SUMIFS(Table2[[#All],[Overall Place]],Table2[[#All],[Surname / First Name]],$A339)/E339","v":97},{"$f":"SUMIFS(Table2[[#All],[Club Points]],Table2[[#All],[Surname / First Name]],'Click here for your run details'!A339,Table2[[#All],[Excluded from Top 15 Run (Y/N)]],\"N\")","v":0},{"$f":"COUNTIFS(Table2[[#All],[Surname / First Name]],'Click here for your run details'!A339,Table2[[#All],[Excluded from Top 15 Run (Y/N)]],\"N\")","v":0},0]
["Rayner Nicole",null,null,1,1,"Non-Member",{"$f":"SUMIFS(Table2[[#All],[Overall Place]],Table2[[#All],[Surname / First Name]],$A340)/E340","v":98},{"$f":"SUMIFS(Table2[[#All],[Club Points]],Table2[[#All],[Surname / First Name]],'Click here for your run details'!A340,Table2[[#All],[Excluded from Top 15 Run (Y/N)]],\"N\")","v":0},{"$f":"COUNTIFS(Table2[[#All],[Surname / First Name]],'Click here for your run details'!A340,Table2[[#All],[Excluded from Top 15 Run (Y/N)]],\"N\")","v":0},0]
["Reeve Blake",null,null,1,1,"Non-Member",{"$f":"SUMIFS(Table2[[#All],[Overall Place]],Table2[[#All],[Surname / First Name]],$A341)/E341","v":45},{"$f":"SUMIFS(Table2[[#All],[Club Points]],Table2[[#All],[Surname / First Name]],'Click here for your run details'!A341,Table2[[#All],[Excluded from Top 15 Run (Y/N)]],\"N\")","v":0},{"$f":"COUNTIFS(Table2[[#All],[Surname / First Name]],'Click here for your run details'!A341,Table2[[#All],[Excluded from Top 15 Run (Y/N)]],\"N\")","v":0},0]
["Reilly Dave",null,null,1,1,"Non-Member",{"$f":"SUMIFS(Table2[[#All],[Overall Place]],Table2[[#All],[Surname / First Name]],$A342)/E342","v":42},{"$f":"SUMIFS(Table2[[#All],[Club Points]],Table2[[#All],[Surname / First Name]],'Click here for your run details'!A342,Table2[[#All],[Excluded from Top 15 Run (Y/N)]],\"N\")","v":0},{"$f":"COUNTIFS(Table2[[#All],[Surname / First Name]],'Click here for your run details'!A342,Table2[[#All],[Excluded from Top 15 Run (Y/N)]],\"N\")","v":0},0]
["Reynolds Dan",11,null,null,11,"Member",{"$f":"SUMIFS(Table2[[#All],[Overall Place]],Table2[[#All],[Surname / First Name]],$A343)/E343","v":31.272727272727273},{"$f":"SUMIFS(Table2[[#All],[Club Points]],Table2[[#All],[Surname / First Name]],'Click here for your run details'!A343,Table2[[#All],[Excluded from Top 15 Run (Y/N)]],\"N\")","v":1383},{"$f":"COUNTIFS(Table2[[#All],[Surname / First Name]],'Click here for your run details'!A343,Table2[[#All],[Excluded from Top 15 Run (Y/N)]],\"N\")","v":11},125.72727272727273]
["Rich Keith",14,null,null,14,"Member",{"$f":"SUMIFS(Table2[[#All],[Overall Place]],Table2[[#All],[Surname / First Name]],$A344)/E344","v":47.357142857142854},{"$f":"SUMIFS(Table2[[#All],[Club Points]],Table2[[#All],[Surname / First Name]],'Click here for your run details'!A344,Table2[[#All],[Excluded from Top 15 Run (Y/N)]],\"N\")","v":1583},{"$f":"COUNTIFS(Table2[[#All],[Surname / First Name]],'Click here for your run details'!A344,Table2[[#All],[Excluded from Top 15 Run (Y/N)]],\"N\")","v":14},113.07142857142857]
["Roberto Garcia",null,null,1,1,{"$f":"IF(AND(SUM(B345:C345)>0,SUM(B345:C345)<99),\"Member\",\"Non-Member\")","v":"Non-Member"},{"$f":"SUMIFS(Table2[[#All],[Overall Place]],Table2[[#All],[Surname / First Name]],$A345)/E345","v":30},{"$f":"SUMIFS(Table2[[#All],[Club Points]],Table2[[#All],[Surname / First Name]],'Click here for your run details'!A345,Table2[[#All],[Excluded from Top 15 Run (Y/N)]],\"N\")","v":0},{"$f":"COUNTIFS(Table2[[#All],[Surname / First Name]],'Click here for your run details'!A345,Table2[[#All],[Excluded from Top 15 Run (Y/N)]],\"N\")","v":0},{"$f":"IFERROR(H345/I345,0)","v":0}]
["Roberts Karen",4,null,null,4,"Member",{"$f":"SUMIFS(Table2[[#All],[Overall Place]],Table2[[#All],[Surname / First Name]],$A346)/E346","v":88.25},{"$f":"SUMIFS(Table2[[#All],[Club Points]],Table2[[#All],[Surname / First Name]],'Click here for your run details'!A346,Table2[[#All],[Excluded from Top 15 Run (Y/N)]],\"N\")","v":330},{"$f":"COUNTIFS(Table2[[#All],[Surname / First Name]],'Click here for your run details'!A346,Table2[[#All],[Excluded from Top 15 Run (Y/N)]],\"N\")","v":4},82.5]
["Roberts Len",null,null,1,1,"Non-Member",{"$f":"SUMIFS(Table2[[#All],[Overall Place]],Table2[[#All],[Surname / First Name]],$A347)/E347","v":41},{"$f":"SUMIFS(Table2[[#All],[Club Points]],Table2[[#All],[Surname / First Name]],'Click here for your run details'!A347,Table2[[#All],[Excluded from Top 15 Run (Y/N)]],\"N\")","v":0},{"$f":"COUNTIFS(Table2[[#All],[Surname / First Name]],'Click here for your run details'!A347,Table2[[#All],[Excluded from Top 15 Run (Y/N)]],\"N\")","v":0},0]
["Robets Stephen",null,null,1,1,"Non-Member",{"$f":"SUMIFS(Table2[[#All],[Overall Place]],Table2[[#All],[Surname / First Name]],$A348)/E348","v":60},{"$f":"SUMIFS(Table2[[#All],[Club Points]],Table2[[#All],[Surname / First Name]],'Click here for your run details'!A348,Table2[[#All],[Excluded from Top 15 Run (Y/N)]],\"N\")","v":0},{"$f":"COUNTIFS(Table2[[#All],[Surname / First Name]],'Click here for your run details'!A348,Table2[[#All],[Excluded from Top 15 Run (Y/N)]],\"N\")","v":0},0]
["Rodden John",null,null,1,1,"Non-Member",{"$f":"SUMIFS(Table2[[#All],[Overall Place]],Table2[[#All],[Surname / First Name]],$A349)/E349","v":65},{"$f":"SUMIFS(Table2[[#All],[Club Points]],Table2[[#All],[Surname / First Name]],'Click here for your run details'!A349,Table2[[#All],[Excluded from Top 15 Run (Y/N)]],\"N\")","v":0},{"$f":"COUNTIFS(Table2[[#All],[Surname / First Name]],'Click here for your run details'!A349,Table2[[#All],[Excluded from Top 15 Run (Y/N)]],\"N\")","v":0},0]
["Rubenach Mike",18,null,null,18,"Member",{"$f":"SUMIFS(Table2[[#All],[Overall Place]],Table2[[#All],[Surname / First Name]],$A350)/E350","v":61.888888888888886},{"$f":"SUMIFS(Table2[[#All],[Club Points]],Table2[[#All],[Surname / First Name]],'Click here for your run details'!A350,Table2[[#All],[Excluded from Top 15 Run (Y/N)]],\"N\")","v":1596},{"$f":"COUNTIFS(Table2[[#All],[Surname / First Name]],'Click here for your run details'!A350,Table2[[#All],[Excluded from Top 15 Run (Y/N)]],\"N\")","v":15},106.4]
["Russell Susan",null,null,1,1,"Non-Member",{"$f":"SUMIFS(Table2[[#All],[Overall Place]],Table2[[#All],[Surname / First Name]],$A351)/E351","v":102},{"$f":"SUMIFS(Table2[[#All],[Club Points]],Table2[[#All],[Surname / First Name]],'Click here for your run details'!A351,Table2[[#All],[Excluded from Top 15 Run (Y/N)]],\"N\")","v":0},{"$f":"COUNTIFS(Table2[[#All],[Surname / First Name]],'Click here for your run details'!A351,Table2[[#All],[Excluded from Top 15 Run (Y/N)]],\"N\")","v":0},0]
["Rutherford Trish",1,null,null,1,"Member",{"$f":"SUMIFS(Table2[[#All],[Overall Place]],Table2[[#All],[Surname / First Name]],$A352)/E352","v":15},{"$f":"SUMIFS(Table2[[#All],[Club Points]],Table2[[#All],[Surname / First Name]],'Click here for your run details'!A352,Table2[[#All],[Excluded from Top 15 Run (Y/N)]],\"N\")","v":136},{"$f":"COUNTIFS(Table2[[#All],[Surname / First Name]],'Click here for your run details'!A352,Table2[[#All],[Excluded from Top 15 Run (Y/N)]],\"N\")","v":1},136]
["Ryan Colin",1,null,null,1,"Member",{"$f":"SUMIFS(Table2[[#All],[Overall Place]],Table2[[#All],[Surname / First Name]],$A353)/E353","v":44},{"$f":"SUMIFS(Table2[[#All],[Club Points]],Table2[[#All],[Surname / First Name]],'Click here for your run details'!A353,Table2[[#All],[Excluded from Top 15 Run (Y/N)]],\"N\")","v":116},{"$f":"COUNTIFS(Table2[[#All],[Surname / First Name]],'Click here for your run details'!A353,Table2[[#All],[Excluded from Top 15 Run (Y/N)]],\"N\")","v":1},116]
["Ryan Tom",null,null,3,3,"Non-Member",{"$f":"SUMIFS(Table2[[#All],[Overall Place]],Table2[[#All],[Surname / First Name]],$A354)/E354","v":63.666666666666664},{"$f":"SUMIFS(Table2[[#All],[Club Points]],Table2[[#All],[Surname / First Name]],'Click here for your run details'!A354,Table2[[#All],[Excluded from Top 15 Run (Y/N)]],\"N\")","v":0},{"$f":"COUNTIFS(Table2[[#All],[Surname / First Name]],'Click here for your run details'!A354,Table2[[#All],[Excluded from Top 15 Run (Y/N)]],\"N\")","v":0},0]
["Ryan Zac",null,null,1,1,"Non-Member",{"$f":"SUMIFS(Table2[[#All],[Overall Place]],Table2[[#All],[Surname / First Name]],$A355)/E355","v":30},{"$f":"SUMIFS(Table2[[#All],[Club Points]],Table2[[#All],[Surname / First Name]],'Click here for your run details'!A355,Table2[[#All],[Excluded from Top 15 Run (Y/N)]],\"N\")","v":0},{"$f":"COUNTIFS(Table2[[#All],[Surname / First Name]],'Click here for your run details'!A355,Table2[[#All],[Excluded from Top 15 Run (Y/N)]],\"N\")","v":0},0]
["Sandley Leanne",null,null,1,1,"Non-Member",{"$f":"SUMIFS(Table2[[#All],[Overall Place]],Table2[[#All],[Surname / First Name]],$A356)/E356","v":55},{"$f":"SUMIFS(Table2[[#All],[Club Points]],Table2[[#All],[Surname / First Name]],'Click here for your run details'!A356,Table2[[#All],[Excluded from Top 15 Run (Y/N)]],\"N\")","v":0},{"$f":"COUNTIFS(Table2[[#All],[Surname / First Name]],'Click here for your run details'!A356,Table2[[#All],[Excluded from Top 15 Run (Y/N)]],\"N\")","v":0},0]
["Sansalone Luca",null,null,3,3,"Non-Member",{"$f":"SUMIFS(Table2[[#All],[Overall Place]],Table2[[#All],[Surname / First Name]],$A357)/E357","v":41.333333333333336},{"$f":"SUMIFS(Table2[[#All],[Club Points]],Table2[[#All],[Surname / First Name]],'Click here for your run details'!A357,Table2[[#All],[Excluded from Top 15 Run (Y/N)]],\"N\")","v":0},{"$f":"COUNTIFS(Table2[[#All],[Surname / First Name]],'Click here for your run details'!A357,Table2[[#All],[Excluded from Top 15 Run (Y/N)]],\"N\")","v":0},0]
["Scandlyn Keith",null,null,1,1,"Non-Member",{"$f":"SUMIFS(Table2[[#All],[Overall Place]],Table2[[#All],[Surname / First Name]],$A358)/E358","v":41},{"$f":"SUMIFS(Table2[[#All],[Club Points]],Table2[[#All],[Surname / First Name]],'Click here for your run details'!A358,Table2[[#All],[Excluded from Top 15 Run (Y/N)]],\"N\")","v":0},{"$f":"COUNTIFS(Table2[[#All],[Surname / First Name]],'Click here for your run details'!A358,Table2[[#All],[Excluded from Top 15 Run (Y/N)]],\"N\")","v":0},0]
["Schadel Patrick",null,null,1,1,"Non-Member",{"$f":"SUMIFS(Table2[[#All],[Overall Place]],Table2[[#All],[Surname / First Name]],$A359)/E359","v":91},{"$f":"SUMIFS(Table2[[#All],[Club Points]],Table2[[#All],[Surname / First Name]],'Click here for your run details'!A359,Table2[[#All],[Excluded from Top 15 Run (Y/N)]],\"N\")","v":0},{"$f":"COUNTIFS(Table2[[#All],[Surname / First Name]],'Click here for your run details'!A359,Table2[[#All],[Excluded from Top 15 Run (Y/N)]],\"N\")","v":0},0]
["Schadel Shona",2,null,null,2,"Member",{"$f":"SUMIFS(Table2[[#All],[Overall Place]],Table2[[#All],[Surname / First Name]],$A360)/E360","v":82},{"$f":"SUMIFS(Table2[[#All],[Club Points]],Table2[[#All],[Surname / First Name]],'Click here for your run details'!A360,Table2[[#All],[Excluded from Top 15 Run (Y/N)]],\"N\")","v":163},{"$f":"COUNTIFS(Table2[[#All],[Surname / First Name]],'Click here for your run details'!A360,Table2[[#All],[Excluded from Top 15 Run (Y/N)]],\"N\")","v":2},81.5]
["Schick Gerard",15,null,null,15,"Member",{"$f":"SUMIFS(Table2[[#All],[Overall Place]],Table2[[#All],[Surname / First Name]],$A361)/E361","v":18.8},{"$f":"SUMIFS(Table2[[#All],[Club Points]],Table2[[#All],[Surname / First Name]],'Click here for your run details'!A361,Table2[[#All],[Excluded from Top 15 Run (Y/N)]],\"N\")","v":2031},{"$f":"COUNTIFS(Table2[[#All],[Surname / First Name]],'Click here for your run details'!A361,Table2[[#All],[Excluded from Top 15 Run (Y/N)]],\"N\")","v":15},135.4]
["Schmitt Riana",10,null,null,10,"Member",{"$f":"SUMIFS(Table2[[#All],[Overall Place]],Table2[[#All],[Surname / First Name]],$A362)/E362","v":32},{"$f":"SUMIFS(Table2[[#All],[Club Points]],Table2[[#All],[Surname / First Name]],'Click here for your run details'!A362,Table2[[#All],[Excluded from Top 15 Run (Y/N)]],\"N\")","v":1252},{"$f":"COUNTIFS(Table2[[#All],[Surname / First Name]],'Click here for your run details'!A362,Table2[[#All],[Excluded from Top 15 Run (Y/N)]],\"N\")","v":10},125.2]
["Schmitt Travis",9,null,null,9,"Member",{"$f":"SUMIFS(Table2[[#All],[Overall Place]],Table2[[#All],[Surname / First Name]],$A363)/E363","v":29.111111111111111},{"$f":"SUMIFS(Table2[[#All],[Club Points]],Table2[[#All],[Surname / First Name]],'Click here for your run details'!A363,Table2[[#All],[Excluded from Top 15 Run (Y/N)]],\"N\")","v":1151},{"$f":"COUNTIFS(Table2[[#All],[Surname / First Name]],'Click here for your run details'!A363,Table2[[#All],[Excluded from Top 15 Run (Y/N)]],\"N\")","v":9},127.88888888888889]
["Schonfeldt-Roy Sonja",19,null,null,19,"Member",{"$f":"SUMIFS(Table2[[#All],[Overall Place]],Table2[[#All],[Surname / First Name]],$A364)/E364","v":12.578947368421053},{"$f":"SUMIFS(Table2[[#All],[Club Points]],Table2[[#All],[Surname / First Name]],'Click here for your run details'!A364,Table2[[#All],[Excluded from Top 15 Run (Y/N)]],\"N\")","v":2126},{"$f":"COUNTIFS(Table2[[#All],[Surname / First Name]],'Click here for your run details'!A364,Table2[[#All],[Excluded from Top 15 Run (Y/N)]],\"N\")","v":15},141.73333333333332]
["Scott Joseph",2,null,null,2,"Member",{"$f":"SUMIFS(Table2[[#All],[Overall Place]],Table2[[#All],[Surname / First Name]],$A365)/E365","v":69.5},{"$f":"SUMIFS(Table2[[#All],[Club Points]],Table2[[#All],[Surname / First Name]],'Click here for your run details'!A365,Table2[[#All],[Excluded from Top 15 Run (Y/N)]],\"N\")","v":194},{"$f":"COUNTIFS(Table2[[#All],[Surname / First Name]],'Click here for your run details'!A365,Table2[[#All],[Excluded from Top 15 Run (Y/N)]],\"N\")","v":2},97]
["Scott Tim",null,null,1,1,"Non-Member",{"$f":"SUMIFS(Table2[[#All],[Overall Place]],Table2[[#All],[Surname / First Name]],$A366)/E366","v":17},{"$f":"SUMIFS(Table2[[#All],[Club Points]],Table2[[#All],[Surname / First Name]],'Click here for your run details'!A366,Table2[[#All],[Excluded from Top 15 Run (Y/N)]],\"N\")","v":0},{"$f":"COUNTIFS(Table2[[#All],[Surname / First Name]],'Click here for your run details'!A366,Table2[[#All],[Excluded from Top 15 Run (Y/N)]],\"N\")","v":0},0]
["Searfe Kieran",null,null,1,1,"Non-Member",{"$f":"SUMIFS(Table2[[#All],[Overall Place]],Table2[[#All],[Surname / First Name]],$A367)/E367","v":18},{"$f":"SUMIFS(Table2[[#All],[Club Points]],Table2[[#All],[Surname / First Name]],'Click here for your run details'!A367,Table2[[#All],[Excluded from Top 15 Run (Y/N)]],\"N\")","v":0},{"$f":"COUNTIFS(Table2[[#All],[Surname / First Name]],'Click here for your run details'!A367,Table2[[#All],[Excluded from Top 15 Run (Y/N)]],\"N\")","v":0},0]
["Sellers Tim",null,null,1,1,"Non-Member",{"$f":"SUMIFS(Table2[[#All],[Overall Place]],Table2[[#All],[Surname / First Name]],$A368)/E368","v":58},{"$f":"SUMIFS(Table2[[#All],[Club Points]],Table2[[#All],[Surname / First Name]],'Click here for your run details'!A368,Table2[[#All],[Excluded from Top 15 Run (Y/N)]],\"N\")","v":0},{"$f":"COUNTIFS(Table2[[#All],[Surname / First Name]],'Click here for your run details'!A368,Table2[[#All],[Excluded from Top 15 Run (Y/N)]],\"N\")","v":0},0]
["Sense Richmond",null,null,1,1,"Non-Member",{"$f":"SUMIFS(Table2[[#All],[Overall Place]],Table2[[#All],[Surname / First Name]],$A369)/E369","v":6},{"$f":"SUMIFS(Table2[[#All],[Club Points]],Table2[[#All],[Surname / First Name]],'Click here for your run details'!A369,Table2[[#All],[Excluded from Top 15 Run (Y/N)]],\"N\")","v":0},{"$f":"COUNTIFS(Table2[[#All],[Surname / First Name]],'Click here for your run details'!A369,Table2[[#All],[Excluded from Top 15 Run (Y/N)]],\"N\")","v":0},0]
["Sewell Dave",9,null,null,9,"Member",{"$f":"SUMIFS(Table2[[#All],[Overall Place]],Table2[[#All],[Surname / First Name]],$A370)/E370","v":23.666666666666668},{"$f":"SUMIFS(Table2[[#All],[Club Points]],Table2[[#All],[Surname / First Name]],'Click here for your run details'!A370,Table2[[#All],[Excluded from Top 15 Run (Y/N)]],\"N\")","v":1183},{"$f":"COUNTIFS(Table2[[#All],[Surname / First Name]],'Click here for your run details'!A370,Table2[[#All],[Excluded from Top 15 Run (Y/N)]],\"N\")","v":9},131.44444444444446]
["Sewell Lara",8,null,null,8,"Member",{"$f":"SUMIFS(Table2[[#All],[Overall Place]],Table2[[#All],[Surname / First Name]],$A371)/E371","v":28.875},{"$f":"SUMIFS(Table2[[#All],[Club Points]],Table2[[#All],[Surname / First Name]],'Click here for your run details'!A371,Table2[[#All],[Excluded from Top 15 Run (Y/N)]],\"N\")","v":1019},{"$f":"COUNTIFS(Table2[[#All],[Surname / First Name]],'Click here for your run details'!A371,Table2[[#All],[Excluded from Top 15 Run (Y/N)]],\"N\")","v":8},127.375]
["Shields Jeremy",1,null,null,1,"Member",{"$f":"SUMIFS(Table2[[#All],[Overall Place]],Table2[[#All],[Surname / First Name]],$A372)/E372","v":9},{"$f":"SUMIFS(Table2[[#All],[Club Points]],Table2[[#All],[Surname / First Name]],'Click here for your run details'!A372,Table2[[#All],[Excluded from Top 15 Run (Y/N)]],\"N\")","v":144},{"$f":"COUNTIFS(Table2[[#All],[Surname / First Name]],'Click here for your run details'!A372,Table2[[#All],[Excluded from Top 15 Run (Y/N)]],\"N\")","v":1},144]
["Siandri Zita",null,null,3,3,"Non-Member",{"$f":"SUMIFS(Table2[[#All],[Overall Place]],Table2[[#All],[Surname / First Name]],$A373)/E373","v":78},{"$f":"SUMIFS(Table2[[#All],[Club Points]],Table2[[#All],[Surname / First Name]],'Click here for your run details'!A373,Table2[[#All],[Excluded from Top 15 Run (Y/N)]],\"N\")","v":0},{"$f":"COUNTIFS(Table2[[#All],[Surname / First Name]],'Click here for your run details'!A373,Table2[[#All],[Excluded from Top 15 Run (Y/N)]],\"N\")","v":0},0]
["Sibley Jack",11,null,null,11,"Member",{"$f":"SUMIFS(Table2[[#All],[Overall Place]],Table2[[#All],[Surname / First Name]],$A374)/E374","v":88},{"$f":"SUMIFS(Table2[[#All],[Club Points]],Table2[[#All],[Surname / First Name]],'Click here for your run details'!A374,Table2[[#All],[Excluded from Top 15 Run (Y/N)]],\"N\")","v":882},{"$f":"COUNTIFS(Table2[[#All],[Surname / First Name]],'Click here for your run details'!A374,Table2[[#All],[Excluded from Top 15 Run (Y/N)]],\"N\")","v":11},80.181818181818187]
["Silke Doug",1,null,null,1,"Member",{"$f":"SUMIFS(Table2[[#All],[Overall Place]],Table2[[#All],[Surname / First Name]],$A375)/E375","v":43},{"$f":"SUMIFS(Table2[[#All],[Club Points]],Table2[[#All],[Surname / First Name]],'Click here for your run details'!A375,Table2[[#All],[Excluded from Top 15 Run (Y/N)]],\"N\")","v":116},{"$f":"COUNTIFS(Table2[[#All],[Surname / First Name]],'Click here for your run details'!A375,Table2[[#All],[Excluded from Top 15 Run (Y/N)]],\"N\")","v":1},116]
["Simpson Chris",null,null,5,5,"Non-Member",{"$f":"SUMIFS(Table2[[#All],[Overall Place]],Table2[[#All],[Surname / First Name]],$A376)/E376","v":53.4},{"$f":"SUMIFS(Table2[[#All],[Club Points]],Table2[[#All],[Surname / First Name]],'Click here for your run details'!A376,Table2[[#All],[Excluded from Top 15 Run (Y/N)]],\"N\")","v":0},{"$f":"COUNTIFS(Table2[[#All],[Surname / First Name]],'Click here for your run details'!A376,Table2[[#All],[Excluded from Top 15 Run (Y/N)]],\"N\")","v":0},0]
["Simpson Samantha",null,null,1,1,"Non-Member",{"$f":"SUMIFS(Table2[[#All],[Overall Place]],Table2[[#All],[Surname / First Name]],$A377)/E377","v":28},{"$f":"SUMIFS(Table2[[#All],[Club Points]],Table2[[#All],[Surname / First Name]],'Click here for your run details'!A377,Table2[[#All],[Excluded from Top 15 Run (Y/N)]],\"N\")","v":0},{"$f":"COUNTIFS(Table2[[#All],[Surname / First Name]],'Click here for your run details'!A377,Table2[[#All],[Excluded from Top 15 Run (Y/N)]],\"N\")","v":0},0]
["Sinah Sam",null,null,1,1,"Non-Member",{"$f":"SUMIFS(Table2[[#All],[Overall Place]],Table2[[#All],[Surname / First Name]],$A378)/E378","v":118},{"$f":"SUMIFS(Table2[[#All],[Club Points]],Table2[[#All],[Surname / First Name]],'Click here for your run details'!A378,Table2[[#All],[Excluded from Top 15 Run (Y/N)]],\"N\")","v":0},{"$f":"COUNTIFS(Table2[[#All],[Surname / First Name]],'Click here for your run details'!A378,Table2[[#All],[Excluded from Top 15 Run (Y/N)]],\"N\")","v":0},0]
["Singleton Maree",null,null,4,4,"Non-Member",{"$f":"SUMIFS(Table2[[#All],[Overall Place]],Table2[[#All],[Surname / First Name]],$A379)/E379","v":39.75},{"$f":"SUMIFS(Table2[[#All],[Club Points]],Table2[[#All],[Surname / First Name]],'Click here for your run details'!A379,Table2[[#All],[Excluded from Top 15 Run (Y/N)]],\"N\")","v":0},{"$f":"COUNTIFS(Table2[[#All],[Surname / First Name]],'Click here for your run details'!A379,Table2[[#All],[Excluded from Top 15 Run (Y/N)]],\"N\")","v":0},0]
["Singleton Trish",null,null,1,1,"Non-Member",{"$f":"SUMIFS(Table2[[#All],[Overall Place]],Table2[[#All],[Surname / First Name]],$A380)/E380","v":120},{"$f":"SUMIFS(Table2[[#All],[Club Points]],Table2[[#All],[Surname / First Name]],'Click here for your run details'!A380,Table2[[#All],[Excluded from Top 15 Run (Y/N)]],\"N\")","v":0},{"$f":"COUNTIFS(Table2[[#All],[Surname / First Name]],'Click here for your run details'!A380,Table2[[#All],[Excluded from Top 15 Run (Y/N)]],\"N\")","v":0},0]
["Slatcher Matthew",null,null,2,2,"Non-Member",{"$f":"SUMIFS(Table2[[#All],[Overall Place]],Table2[[#All],[Surname / First Name]],$A381)/E381","v":49},{"$f":"SUMIFS(Table2[[#All],[Club Points]],Table2[[#All],[Surname / First Name]],'Click here for your run details'!A381,Table2[[#All],[Excluded from Top 15 Run (Y/N)]],\"N\")","v":0},{"$f":"COUNTIFS(Table2[[#All],[Surname / First Name]],'Click here for your run details'!A381,Table2[[#All],[Excluded from Top 15 Run (Y/N)]],\"N\")","v":0},0]
["Smales Clayton",14,null,null,14,"Member",{"$f":"SUMIFS(Table2[[#All],[Overall Place]],Table2[[#All],[Surname / First Name]],$A382)/E382","v":36.857142857142854},{"$f":"SUMIFS(Table2[[#All],[Club Points]],Table2[[#All],[Surname / First Name]],'Click here for your run details'!A382,Table2[[#All],[Excluded from Top 15 Run (Y/N)]],\"N\")","v":1696},{"$f":"COUNTIFS(Table2[[#All],[Surname / First Name]],'Click here for your run details'!A382,Table2[[#All],[Excluded from Top 15 Run (Y/N)]],\"N\")","v":14},121.14285714285714]
["Smigle Rickie",null,null,1,1,"Non-Member",{"$f":"SUMIFS(Table2[[#All],[Overall Place]],Table2[[#All],[Surname / First Name]],$A383)/E383","v":20},{"$f":"SUMIFS(Table2[[#All],[Club Points]],Table2[[#All],[Surname / First Name]],'Click here for your run details'!A383,Table2[[#All],[Excluded from Top 15 Run (Y/N)]],\"N\")","v":0},{"$f":"COUNTIFS(Table2[[#All],[Surname / First Name]],'Click here for your run details'!A383,Table2[[#All],[Excluded from Top 15 Run (Y/N)]],\"N\")","v":0},0]
["Smith Aaron",null,null,2,2,"Non-Member",{"$f":"SUMIFS(Table2[[#All],[Overall Place]],Table2[[#All],[Surname / First Name]],$A384)/E384","v":76},{"$f":"SUMIFS(Table2[[#All],[Club Points]],Table2[[#All],[Surname / First Name]],'Click here for your run details'!A384,Table2[[#All],[Excluded from Top 15 Run (Y/N)]],\"N\")","v":0},{"$f":"COUNTIFS(Table2[[#All],[Surname / First Name]],'Click here for your run details'!A384,Table2[[#All],[Excluded from Top 15 Run (Y/N)]],\"N\")","v":0},0]
["Smith Justin",6,null,null,6,"Member",{"$f":"SUMIFS(Table2[[#All],[Overall Place]],Table2[[#All],[Surname / First Name]],$A385)/E385","v":30.833333333333332},{"$f":"SUMIFS(Table2[[#All],[Club Points]],Table2[[#All],[Surname / First Name]],'Click here for your run details'!A385,Table2[[#All],[Excluded from Top 15 Run (Y/N)]],\"N\")","v":758},{"$f":"COUNTIFS(Table2[[#All],[Surname / First Name]],'Click here for your run details'!A385,Table2[[#All],[Excluded from Top 15 Run (Y/N)]],\"N\")","v":6},126.33333333333333]
["Smith Kelly",null,null,1,1,"Non-Member",{"$f":"SUMIFS(Table2[[#All],[Overall Place]],Table2[[#All],[Surname / First Name]],$A386)/E386","v":85},{"$f":"SUMIFS(Table2[[#All],[Club Points]],Table2[[#All],[Surname / First Name]],'Click here for your run details'!A386,Table2[[#All],[Excluded from Top 15 Run (Y/N)]],\"N\")","v":0},{"$f":"COUNTIFS(Table2[[#All],[Surname / First Name]],'Click here for your run details'!A386,Table2[[#All],[Excluded from Top 15 Run (Y/N)]],\"N\")","v":0},0]
["Smith Mathew",16,null,null,16,"Member",{"$f":"SUMIFS(Table2[[#All],[Overall Place]],Table2[[#All],[Surname / First Name]],$A387)/E387","v":64.875},{"$f":"SUMIFS(Table2[[#All],[Club Points]],Table2[[#All],[Surname / First Name]],'Click here for your run details'!A387,Table2[[#All],[Excluded from Top 15 Run (Y/N)]],\"N\")","v":1524},{"$f":"COUNTIFS(Table2[[#All],[Surname / First Name]],'Click here for your run details'!A387,Table2[[#All],[Excluded from Top 15 Run (Y/N)]],\"N\")","v":15},101.6]
["Smith Wendy",null,null,1,1,"Non-Member",{"$f":"SUMIFS(Table2[[#All],[Overall Place]],Table2[[#All],[Surname / First Name]],$A388)/E388","v":62},{"$f":"SUMIFS(Table2[[#All],[Club Points]],Table2[[#All],[Surname / First Name]],'Click here for your run details'!A388,Table2[[#All],[Excluded from Top 15 Run (Y/N)]],\"N\")","v":0},{"$f":"COUNTIFS(Table2[[#All],[Surname / First Name]],'Click here for your run details'!A388,Table2[[#All],[Excluded from Top 15 Run (Y/N)]],\"N\")","v":0},0]
["Spriggs Jye",null,null,1,1,"Non-Member",{"$f":"SUMIFS(Table2[[#All],[Overall Place]],Table2[[#All],[Surname / First Name]],$A389)/E389","v":4},{"$f":"SUMIFS(Table2[[#All],[Club Points]],Table2[[#All],[Surname / First Name]],'Click here for your run details'!A389,Table2[[#All],[Excluded from Top 15 Run (Y/N)]],\"N\")","v":0},{"$f":"COUNTIFS(Table2[[#All],[Surname / First Name]],'Click here for your run details'!A389,Table2[[#All],[Excluded from Top 15 Run (Y/N)]],\"N\")","v":0},0]
["Springall Gabriella",18,null,null,18,"Member",{"$f":"SUMIFS(Table2[[#All],[Overall Place]],Table2[[#All],[Surname / First Name]],$A390)/E390","v":6.2777777777777777},{"$f":"SUMIFS(Table2[[#All],[Club Points]],Table2[[#All],[Surname / First Name]],'Click here for your run details'!A390,Table2[[#All],[Excluded from Top 15 Run (Y/N)]],\"N\")","v":2199},{"$f":"COUNTIFS(Table2[[#All],[Surname / First Name]],'Click here for your run details'!A390,Table2[[#All],[Excluded from Top 15 Run (Y/N)]],\"N\")","v":15},146.6]
["Stacey Joanne",4,null,null,4,"Member",{"$f":"SUMIFS(Table2[[#All],[Overall Place]],Table2[[#All],[Surname / First Name]],$A391)/E391","v":27.5},{"$f":"SUMIFS(Table2[[#All],[Club Points]],Table2[[#All],[Surname / First Name]],'Click here for your run details'!A391,Table2[[#All],[Excluded from Top 15 Run (Y/N)]],\"N\")","v":515},{"$f":"COUNTIFS(Table2[[#All],[Surname / First Name]],'Click here for your run details'!A391,Table2[[#All],[Excluded from Top 15 Run (Y/N)]],\"N\")","v":4},128.75]
["Stafford Erin",19,null,null,19,"Member",{"$f":"SUMIFS(Table2[[#All],[Overall Place]],Table2[[#All],[Surname / First Name]],$A392)/E392","v":14.368421052631579},{"$f":"SUMIFS(Table2[[#All],[Club Points]],Table2[[#All],[Surname / First Name]],'Click here for your run details'!A392,Table2[[#All],[Excluded from Top 15 Run (Y/N)]],\"N\")","v":2105},{"$f":"COUNTIFS(Table2[[#All],[Surname / First Name]],'Click here for your run details'!A392,Table2[[#All],[Excluded from Top 15 Run (Y/N)]],\"N\")","v":15},140.33333333333334]
["Standlay Leanne",null,null,2,2,"Non-Member",{"$f":"SUMIFS(Table2[[#All],[Overall Place]],Table2[[#All],[Surname / First Name]],$A393)/E393","v":49},{"$f":"SUMIFS(Table2[[#All],[Club Points]],Table2[[#All],[Surname / First Name]],'Click here for your run details'!A393,Table2[[#All],[Excluded from Top 15 Run (Y/N)]],\"N\")","v":0},{"$f":"COUNTIFS(Table2[[#All],[Surname / First Name]],'Click here for your run details'!A393,Table2[[#All],[Excluded from Top 15 Run (Y/N)]],\"N\")","v":0},0]
["Stanley Owen",1,null,null,1,"Member",{"$f":"SUMIFS(Table2[[#All],[Overall Place]],Table2[[#All],[Surname / First Name]],$A394)/E394","v":62},{"$f":"SUMIFS(Table2[[#All],[Club Points]],Table2[[#All],[Surname / First Name]],'Click here for your run details'!A394,Table2[[#All],[Excluded from Top 15 Run (Y/N)]],\"N\")","v":107},{"$f":"COUNTIFS(Table2[[#All],[Surname / First Name]],'Click here for your run details'!A394,Table2[[#All],[Excluded from Top 15 Run (Y/N)]],\"N\")","v":1},107]
["Stanton Geoff",5,null,null,5,"Member",{"$f":"SUMIFS(Table2[[#All],[Overall Place]],Table2[[#All],[Surname / First Name]],$A395)/E395","v":35.799999999999997},{"$f":"SUMIFS(Table2[[#All],[Club Points]],Table2[[#All],[Surname / First Name]],'Click here for your run details'!A395,Table2[[#All],[Excluded from Top 15 Run (Y/N)]],\"N\")","v":611},{"$f":"COUNTIFS(Table2[[#All],[Surname / First Name]],'Click here for your run details'!A395,Table2[[#All],[Excluded from Top 15 Run (Y/N)]],\"N\")","v":5},122.2]
["Stedman Sam",2,null,null,2,"Member",{"$f":"SUMIFS(Table2[[#All],[Overall Place]],Table2[[#All],[Surname / First Name]],$A396)/E396","v":1},{"$f":"SUMIFS(Table2[[#All],[Club Points]],Table2[[#All],[Surname / First Name]],'Click here for your run details'!A396,Table2[[#All],[Excluded from Top 15 Run (Y/N)]],\"N\")","v":300},{"$f":"COUNTIFS(Table2[[#All],[Surname / First Name]],'Click here for your run details'!A396,Table2[[#All],[Excluded from Top 15 Run (Y/N)]],\"N\")","v":2},150]
["Steel Dianne",null,null,1,1,"Non-Member",{"$f":"SUMIFS(Table2[[#All],[Overall Place]],Table2[[#All],[Surname / First Name]],$A397)/E397","v":78},{"$f":"SUMIFS(Table2[[#All],[Club Points]],Table2[[#All],[Surname / First Name]],'Click here for your run details'!A397,Table2[[#All],[Excluded from Top 15 Run (Y/N)]],\"N\")","v":0},{"$f":"COUNTIFS(Table2[[#All],[Surname / First Name]],'Click here for your run details'!A397,Table2[[#All],[Excluded from Top 15 Run (Y/N)]],\"N\")","v":0},0]
["Stewart Vijaya",null,null,5,5,"Non-Member",{"$f":"SUMIFS(Table2[[#All],[Overall Place]],Table2[[#All],[Surname / First Name]],$A398)/E398","v":62.4},{"$f":"SUMIFS(Table2[[#All],[Club Points]],Table2[[#All],[Surname / First Name]],'Click here for your run details'!A398,Table2[[#All],[Excluded from Top 15 Run (Y/N)]],\"N\")","v":0},{"$f":"COUNTIFS(Table2[[#All],[Surname / First Name]],'Click here for your run details'!A398,Table2[[#All],[Excluded from Top 15 Run (Y/N)]],\"N\")","v":0},0]
["Strid Angela",1,null,null,1,"Member",{"$f":"SUMIFS(Table2[[#All],[Overall Place]],Table2[[#All],[Surname / First Name]],$A399)/E399","v":78},{"$f":"SUMIFS(Table2[[#All],[Club Points]],Table2[[#All],[Surname / First Name]],'Click here for your run details'!A399,Table2[[#All],[Excluded from Top 15 Run (Y/N)]],\"N\")","v":93},{"$f":"COUNTIFS(Table2[[#All],[Surname / First Name]],'Click here for your run details'!A399,Table2[[#All],[Excluded from Top 15 Run (Y/N)]],\"N\")","v":1},93]
["Stripp Deon",27,null,null,27,"Member",{"$f":"SUMIFS(Table2[[#All],[Overall Place]],Table2[[#All],[Surname / First Name]],$A400)/E400","v":6.333333333333333},{"$f":"SUMIFS(Table2[[#All],[Club Points]],Table2[[#All],[Surname / First Name]],'Click here for your run details'!A400,Table2[[#All],[Excluded from Top 15 Run (Y/N)]],\"N\")","v":2206},{"$f":"COUNTIFS(Table2[[#All],[Surname / First Name]],'Click here for your run details'!A400,Table2[[#All],[Excluded from Top 15 Run (Y/N)]],\"N\")","v":15},147.06666666666666]
["Sturtz James",null,null,7,7,"Non-Member",{"$f":"SUMIFS(Table2[[#All],[Overall Place]],Table2[[#All],[Surname / First Name]],$A401)/E401","v":36},{"$f":"SUMIFS(Table2[[#All],[Club Points]],Table2[[#All],[Surname / First Name]],'Click here for your run details'!A401,Table2[[#All],[Excluded from Top 15 Run (Y/N)]],\"N\")","v":0},{"$f":"COUNTIFS(Table2[[#All],[Surname / First Name]],'Click here for your run details'!A401,Table2[[#All],[Excluded from Top 15 Run (Y/N)]],\"N\")","v":0},0]
["Sue Yek William",16,null,null,16,"Member",{"$f":"SUMIFS(Table2[[#All],[Overall Place]],Table2[[#All],[Surname / First Name]],$A402)/E402","v":63.75},{"$f":"SUMIFS(Table2[[#All],[Club Points]],Table2[[#All],[Surname / First Name]],'Click here for your run details'!A402,Table2[[#All],[Excluded from Top 15 Run (Y/N)]],\"N\")","v":1531},{"$f":"COUNTIFS(Table2[[#All],[Surname / First Name]],'Click here for your run details'!A402,Table2[[#All],[Excluded from Top 15 Run (Y/N)]],\"N\")","v":15},102.06666666666666]
["Sun Sizhong",11,null,null,11,"Member",{"$f":"SUMIFS(Table2[[#All],[Overall Place]],Table2[[#All],[Surname / First Name]],$A403)/E403","v":10.363636363636363},{"$f":"SUMIFS(Table2[[#All],[Club Points]],Table2[[#All],[Surname / First Name]],'Click here for your run details'!A403,Table2[[#All],[Excluded from Top 15 Run (Y/N)]],\"N\")","v":1570},{"$f":"COUNTIFS(Table2[[#All],[Surname / First Name]],'Click here for your run details'!A403,Table2[[#All],[Excluded from Top 15 Run (Y/N)]],\"N\")","v":11},142.72727272727272]
["Szczotko Matthew",null,null,1,1,"Non-Member",{"$f":"SUMIFS(Table2[[#All],[Overall Place]],Table2[[#All],[Surname / First Name]],$A404)/E404","v":71},{"$f":"SUMIFS(Table2[[#All],[Club Points]],Table2[[#All],[Surname / First Name]],'Click here for your run details'!A404,Table2[[#All],[Excluded from Top 15 Run (Y/N)]],\"N\")","v":0},{"$f":"COUNTIFS(Table2[[#All],[Surname / First Name]],'Click here for your run details'!A404,Table2[[#All],[Excluded from Top 15 Run (Y/N)]],\"N\")","v":0},0]
["Tanner Geoff",null,null,3,3,"Non-Member",{"$f":"SUMIFS(Table2[[#All],[Overall Place]],Table2[[#All],[Surname / First Name]],$A405)/E405","v":29.333333333333332},{"$f":"SUMIFS(Table2[[#All],[Club Points]],Table2[[#All],[Surname / First Name]],'Click here for your run details'!A405,Table2[[#All],[Excluded from Top 15 Run (Y/N)]],\"N\")","v":0},{"$f":"COUNTIFS(Table2[[#All],[Surname / First Name]],'Click here for your run details'!A405,Table2[[#All],[Excluded from Top 15 Run (Y/N)]],\"N\")","v":0},0]
["Thompson Marie",null,null,1,1,"Non-Member",{"$f":"SUMIFS(Table2[[#All],[Overall Place]],Table2[[#All],[Surname / First Name]],$A406)/E406","v":48},{"$f":"SUMIFS(Table2[[#All],[Club Points]],Table2[[#All],[Surname / First Name]],'Click here for your run details'!A406,Table2[[#All],[Excluded from Top 15 Run (Y/N)]],\"N\")","v":0},{"$f":"COUNTIFS(Table2[[#All],[Surname / First Name]],'Click here for your run details'!A406,Table2[[#All],[Excluded from Top 15 Run (Y/N)]],\"N\")","v":0},0]
["Thompson Rachael",1,null,null,1,"Member",{"$f":"SUMIFS(Table2[[#All],[Overall Place]],Table2[[#All],[Surname / First Name]],$A407)/E407","v":54},{"$f":"SUMIFS(Table2[[#All],[Club Points]],Table2[[#All],[Surname / First Name]],'Click here for your run details'!A407,Table2[[#All],[Excluded from Top 15 Run (Y/N)]],\"N\")","v":111},{"$f":"COUNTIFS(Table2[[#All],[Surname / First Name]],'Click here for your run details'!A407,Table2[[#All],[Excluded from Top 15 Run (Y/N)]],\"N\")","v":1},111]
["Thompson Wally",5,null,null,5,"Member",{"$f":"SUMIFS(Table2[[#All],[Overall Place]],Table2[[#All],[Surname / First Name]],$A408)/E408","v":98.4},{"$f":"SUMIFS(Table2[[#All],[Club Points]],Table2[[#All],[Surname / First Name]],'Click here for your run details'!A408,Table2[[#All],[Excluded from Top 15 Run (Y/N)]],\"N\")","v":379},{"$f":"COUNTIFS(Table2[[#All],[Surname / First Name]],'Click here for your run details'!A408,Table2[[#All],[Excluded from Top 15 Run (Y/N)]],\"N\")","v":5},75.8]
["Tirendi Francesco",25,null,null,25,{"$f":"IF(AND(SUM(B409:C409)>0,SUM(B409:C409)<99),\"Member\",\"Non-Member\")","v":"Member"},{"$f":"SUMIFS(Table2[[#All],[Overall Place]],Table2[[#All],[Surname / First Name]],$A409)/E409","v":50.24},{"$f":"SUMIFS(Table2[[#All],[Club Points]],Table2[[#All],[Surname / First Name]],'Click here for your run details'!A409,Table2[[#All],[Excluded from Top 15 Run (Y/N)]],\"N\")","v":1774},{"$f":"COUNTIFS(Table2[[#All],[Surname / First Name]],'Click here for your run details'!A409,Table2[[#All],[Excluded from Top 15 Run (Y/N)]],\"N\")","v":15},{"$f":"IFERROR(H409/I409,0)","v":118.26666666666667}]
["Tracey Krissi",null,null,1,1,"Non-Member",{"$f":"SUMIFS(Table2[[#All],[Overall Place]],Table2[[#All],[Surname / First Name]],$A410)/E410","v":43},{"$f":"SUMIFS(Table2[[#All],[Club Points]],Table2[[#All],[Surname / First Name]],'Click here for your run details'!A410,Table2[[#All],[Excluded from Top 15 Run (Y/N)]],\"N\")","v":0},{"$f":"COUNTIFS(Table2[[#All],[Surname / First Name]],'Click here for your run details'!A410,Table2[[#All],[Excluded from Top 15 Run (Y/N)]],\"N\")","v":0},0]
["Tracy Kristine",null,null,1,1,"Non-Member",{"$f":"SUMIFS(Table2[[#All],[Overall Place]],Table2[[#All],[Surname / First Name]],$A411)/E411","v":40},{"$f":"SUMIFS(Table2[[#All],[Club Points]],Table2[[#All],[Surname / First Name]],'Click here for your run details'!A411,Table2[[#All],[Excluded from Top 15 Run (Y/N)]],\"N\")","v":0},{"$f":"COUNTIFS(Table2[[#All],[Surname / First Name]],'Click here for your run details'!A411,Table2[[#All],[Excluded from Top 15 Run (Y/N)]],\"N\")","v":0},0]
["Tsang Deffy",10,null,null,10,"Member",{"$f":"SUMIFS(Table2[[#All],[Overall Place]],Table2[[#All],[Surname / First Name]],$A412)/E412","v":51.5},{"$f":"SUMIFS(Table2[[#All],[Club Points]],Table2[[#All],[Surname / First Name]],'Click here for your run details'!A412,Table2[[#All],[Excluded from Top 15 Run (Y/N)]],\"N\")","v":1095},{"$f":"COUNTIFS(Table2[[#All],[Surname / First Name]],'Click here for your run details'!A412,Table2[[#All],[Excluded from Top 15 Run (Y/N)]],\"N\")","v":10},109.5]
["Turnbull Deahne",15,null,null,15,"Member",{"$f":"SUMIFS(Table2[[#All],[Overall Place]],Table2[[#All],[Surname / First Name]],$A413)/E413","v":5.333333333333333},{"$f":"SUMIFS(Table2[[#All],[Club Points]],Table2[[#All],[Surname / First Name]],'Click here for your run details'!A413,Table2[[#All],[Excluded from Top 15 Run (Y/N)]],\"N\")","v":2199},{"$f":"COUNTIFS(Table2[[#All],[Surname / First Name]],'Click here for your run details'!A413,Table2[[#All],[Excluded from Top 15 Run (Y/N)]],\"N\")","v":15},146.6]
["Turnbull Len",null,null,1,1,"Non-Member",{"$f":"SUMIFS(Table2[[#All],[Overall Place]],Table2[[#All],[Surname / First Name]],$A414)/E414","v":27},{"$f":"SUMIFS(Table2[[#All],[Club Points]],Table2[[#All],[Surname / First Name]],'Click here for your run details'!A414,Table2[[#All],[Excluded from Top 15 Run (Y/N)]],\"N\")","v":0},{"$f":"COUNTIFS(Table2[[#All],[Surname / First Name]],'Click here for your run details'!A414,Table2[[#All],[Excluded from Top 15 Run (Y/N)]],\"N\")","v":0},0]
["Turner Katie",3,null,null,3,"Member",{"$f":"SUMIFS(Table2[[#All],[Overall Place]],Table2[[#All],[Surname / First Name]],$A415)/E415","v":89.333333333333329},{"$f":"SUMIFS(Table2[[#All],[Club Points]],Table2[[#All],[Surname / First Name]],'Click here for your run details'!A415,Table2[[#All],[Excluded from Top 15 Run (Y/N)]],\"N\")","v":235},{"$f":"COUNTIFS(Table2[[#All],[Surname / First Name]],'Click here for your run details'!A415,Table2[[#All],[Excluded from Top 15 Run (Y/N)]],\"N\")","v":3},78.333333333333329]
["Turner Loren",null,null,1,1,"Non-Member",{"$f":"SUMIFS(Table2[[#All],[Overall Place]],Table2[[#All],[Surname / First Name]],$A416)/E416","v":104},{"$f":"SUMIFS(Table2[[#All],[Club Points]],Table2[[#All],[Surname / First Name]],'Click here for your run details'!A416,Table2[[#All],[Excluded from Top 15 Run (Y/N)]],\"N\")","v":0},{"$f":"COUNTIFS(Table2[[#All],[Surname / First Name]],'Click here for your run details'!A416,Table2[[#All],[Excluded from Top 15 Run (Y/N)]],\"N\")","v":0},0]
["Vance David",null,null,11,11,"Non-Member",{"$f":"SUMIFS(Table2[[#All],[Overall Place]],Table2[[#All],[Surname / First Name]],$A417)/E417","v":10.090909090909092},{"$f":"SUMIFS(Table2[[#All],[Club Points]],Table2[[#All],[Surname / First Name]],'Click here for your run details'!A417,Table2[[#All],[Excluded from Top 15 Run (Y/N)]],\"N\")","v":0},{"$f":"COUNTIFS(Table2[[#All],[Surname / First Name]],'Click here for your run details'!A417,Table2[[#All],[Excluded from Top 15 Run (Y/N)]],\"N\")","v":0},0]
["Vincent Anoushka",null,null,3,3,"Non-Member",{"$f":"SUMIFS(Table2[[#All],[Overall Place]],Table2[[#All],[Surname / First Name]],$A418)/E418","v":45.666666666666664},{"$f":"SUMIFS(Table2[[#All],[Club Points]],Table2[[#All],[Surname / First Name]],'Click here for your run details'!A418,Table2[[#All],[Excluded from Top 15 Run (Y/N)]],\"N\")","v":0},{"$f":"COUNTIFS(Table2[[#All],[Surname / First Name]],'Click here for your run details'!A418,Table2[[#All],[Excluded from Top 15 Run (Y/N)]],\"N\")","v":0},0]
["Vollmerhause Scott",20,null,null,20,"Member",{"$f":"SUMIFS(Table2[[#All],[Overall Place]],Table2[[#All],[Surname / First Name]],$A419)/E419","v":26.1},{"$f":"SUMIFS(Table2[[#All],[Club Points]],Table2[[#All],[Surname / First Name]],'Click here for your run details'!A419,Table2[[#All],[Excluded from Top 15 Run (Y/N)]],\"N\")","v":1983},{"$f":"COUNTIFS(Table2[[#All],[Surname / First Name]],'Click here for your run details'!A419,Table2[[#All],[Excluded from Top 15 Run (Y/N)]],\"N\")","v":15},132.19999999999999]
["Wabber Simon",null,null,1,1,"Non-Member",{"$f":"SUMIFS(Table2[[#All],[Overall Place]],Table2[[#All],[Surname / First Name]],$A420)/E420","v":10},{"$f":"SUMIFS(Table2[[#All],[Club Points]],Table2[[#All],[Surname / First Name]],'Click here for your run details'!A420,Table2[[#All],[Excluded from Top 15 Run (Y/N)]],\"N\")","v":0},{"$f":"COUNTIFS(Table2[[#All],[Surname / First Name]],'Click here for your run details'!A420,Table2[[#All],[Excluded from Top 15 Run (Y/N)]],\"N\")","v":0},0]
["Wallis Cameron",22,null,null,22,"Member",{"$f":"SUMIFS(Table2[[#All],[Overall Place]],Table2[[#All],[Surname / First Name]],$A421)/E421","v":7.7272727272727275},{"$f":"SUMIFS(Table2[[#All],[Club Points]],Table2[[#All],[Surname / First Name]],'Click here for your run details'!A421,Table2[[#All],[Excluded from Top 15 Run (Y/N)]],\"N\")","v":2194},{"$f":"COUNTIFS(Table2[[#All],[Surname / First Name]],'Click here for your run details'!A421,Table2[[#All],[Excluded from Top 15 Run (Y/N)]],\"N\")","v":15},146.26666666666668]
["Walsh John",12,null,null,12,"Member",{"$f":"SUMIFS(Table2[[#All],[Overall Place]],Table2[[#All],[Surname / First Name]],$A422)/E422","v":42},{"$f":"SUMIFS(Table2[[#All],[Club Points]],Table2[[#All],[Surname / First Name]],'Click here for your run details'!A422,Table2[[#All],[Excluded from Top 15 Run (Y/N)]],\"N\")","v":1409},{"$f":"COUNTIFS(Table2[[#All],[Surname / First Name]],'Click here for your run details'!A422,Table2[[#All],[Excluded from Top 15 Run (Y/N)]],\"N\")","v":12},117.41666666666667]
["Ware Melissa",null,null,1,1,"Non-Member",{"$f":"SUMIFS(Table2[[#All],[Overall Place]],Table2[[#All],[Surname / First Name]],$A423)/E423","v":78},{"$f":"SUMIFS(Table2[[#All],[Club Points]],Table2[[#All],[Surname / First Name]],'Click here for your run details'!A423,Table2[[#All],[Excluded from Top 15 Run (Y/N)]],\"N\")","v":0},{"$f":"COUNTIFS(Table2[[#All],[Surname / First Name]],'Click here for your run details'!A423,Table2[[#All],[Excluded from Top 15 Run (Y/N)]],\"N\")","v":0},0]
["Watkins Meredith",17,null,null,17,"Member",{"$f":"SUMIFS(Table2[[#All],[Overall Place]],Table2[[#All],[Surname / First Name]],$A424)/E424","v":14.529411764705882},{"$f":"SUMIFS(Table2[[#All],[Club Points]],Table2[[#All],[Surname / First Name]],'Click here for your run details'!A424,Table2[[#All],[Excluded from Top 15 Run (Y/N)]],\"N\")","v":2103},{"$f":"COUNTIFS(Table2[[#All],[Surname / First Name]],'Click here for your run details'!A424,Table2[[#All],[Excluded from Top 15 Run (Y/N)]],\"N\")","v":15},140.19999999999999]
["Watson Shane",null,null,1,1,"Non-Member",{"$f":"SUMIFS(Table2[[#All],[Overall Place]],Table2[[#All],[Surname / First Name]],$A425)/E425","v":39},{"$f":"SUMIFS(Table2[[#All],[Club Points]],Table2[[#All],[Surname / First Name]],'Click here for your run details'!A425,Table2[[#All],[Excluded from Top 15 Run (Y/N)]],\"N\")","v":0},{"$f":"COUNTIFS(Table2[[#All],[Surname / First Name]],'Click here for your run details'!A425,Table2[[#All],[Excluded from Top 15 Run (Y/N)]],\"N\")","v":0},0]
["Watts Shiloh",null,null,1,1,"Non-Member",{"$f":"SUMIFS(Table2[[#All],[Overall Place]],Table2[[#All],[Surname / First Name]],$A426)/E426","v":4},{"$f":"SUMIFS(Table2[[#All],[Club Points]],Table2[[#All],[Surname / First Name]],'Click here for your run details'!A426,Table2[[#All],[Excluded from Top 15 Run (Y/N)]],\"N\")","v":0},{"$f":"COUNTIFS(Table2[[#All],[Surname / First Name]],'Click here for your run details'!A426,Table2[[#All],[Excluded from Top 15 Run (Y/N)]],\"N\")","v":0},0]
["Webber Bridget",null,null,1,1,"Non-Member",{"$f":"SUMIFS(Table2[[#All],[Overall Place]],Table2[[#All],[Surname / First Name]],$A427)/E427","v":32},{"$f":"SUMIFS(Table2[[#All],[Club Points]],Table2[[#All],[Surname / First Name]],'Click here for your run details'!A427,Table2[[#All],[Excluded from Top 15 Run (Y/N)]],\"N\")","v":0},{"$f":"COUNTIFS(Table2[[#All],[Surname / First Name]],'Click here for your run details'!A427,Table2[[#All],[Excluded from Top 15 Run (Y/N)]],\"N\")","v":0},0]
["Weever Simon",null,null,1,1,"Non-Member",{"$f":"SUMIFS(Table2[[#All],[Overall Place]],Table2[[#All],[Surname / First Name]],$A428)/E428","v":28},{"$f":"SUMIFS(Table2[[#All],[Club Points]],Table2[[#All],[Surname / First Name]],'Click here for your run details'!A428,Table2[[#All],[Excluded from Top 15 Run (Y/N)]],\"N\")","v":0},{"$f":"COUNTIFS(Table2[[#All],[Surname / First Name]],'Click here for your run details'!A428,Table2[[#All],[Excluded from Top 15 Run (Y/N)]],\"N\")","v":0},0]
["Weller Simon",null,null,3,3,"Non-Member",{"$f":"SUMIFS(Table2[[#All],[Overall Place]],Table2[[#All],[Surname / First Name]],$A429)/E429","v":33.666666666666664},{"$f":"SUMIFS(Table2[[#All],[Club Points]],Table2[[#All],[Surname / First Name]],'Click here for your run details'!A429,Table2[[#All],[Excluded from Top 15 Run (Y/N)]],\"N\")","v":0},{"$f":"COUNTIFS(Table2[[#All],[Surname / First Name]],'Click here for your run details'!A429,Table2[[#All],[Excluded from Top 15 Run (Y/N)]],\"N\")","v":0},0]
["Wells Sharyn",null,null,1,1,"Non-Member",{"$f":"SUMIFS(Table2[[#All],[Overall Place]],Table2[[#All],[Surname / First Name]],$A430)/E430","v":26},{"$f":"SUMIFS(Table2[[#All],[Club Points]],Table2[[#All],[Surname / First Name]],'Click here for your run details'!A430,Table2[[#All],[Excluded from Top 15 Run (Y/N)]],\"N\")","v":0},{"$f":"COUNTIFS(Table2[[#All],[Surname / First Name]],'Click here for your run details'!A430,Table2[[#All],[Excluded from Top 15 Run (Y/N)]],\"N\")","v":0},0]
["Wenta Jason",null,null,1,1,"Non-Member",{"$f":"SUMIFS(Table2[[#All],[Overall Place]],Table2[[#All],[Surname / First Name]],$A431)/E431","v":51},{"$f":"SUMIFS(Table2[[#All],[Club Points]],Table2[[#All],[Surname / First Name]],'Click here for your run details'!A431,Table2[[#All],[Excluded from Top 15 Run (Y/N)]],\"N\")","v":0},{"$f":"COUNTIFS(Table2[[#All],[Surname / First Name]],'Click here for your run details'!A431,Table2[[#All],[Excluded from Top 15 Run (Y/N)]],\"N\")","v":0},0]
["Werbeloff Gavin",15,null,null,15,"Member",{"$f":"SUMIFS(Table2[[#All],[Overall Place]],Table2[[#All],[Surname / First Name]],$A432)/E432","v":12.266666666666667},{"$f":"SUMIFS(Table2[[#All],[Club Points]],Table2[[#All],[Surname / First Name]],'Click here for your run details'!A432,Table2[[#All],[Excluded from Top 15 Run (Y/N)]],\"N\")","v":2114},{"$f":"COUNTIFS(Table2[[#All],[Surname / First Name]],'Click here for your run details'!A432,Table2[[#All],[Excluded from Top 15 Run (Y/N)]],\"N\")","v":15},140.93333333333334]
["West Dane",null,null,1,1,"Non-Member",{"$f":"SUMIFS(Table2[[#All],[Overall Place]],Table2[[#All],[Surname / First Name]],$A433)/E433","v":82},{"$f":"SUMIFS(Table2[[#All],[Club Points]],Table2[[#All],[Surname / First Name]],'Click here for your run details'!A433,Table2[[#All],[Excluded from Top 15 Run (Y/N)]],\"N\")","v":0},{"$f":"COUNTIFS(Table2[[#All],[Surname / First Name]],'Click here for your run details'!A433,Table2[[#All],[Excluded from Top 15 Run (Y/N)]],\"N\")","v":0},0]
["Wever Simon",null,null,8,8,"Non-Member",{"$f":"SUMIFS(Table2[[#All],[Overall Place]],Table2[[#All],[Surname / First Name]],$A434)/E434","v":30.125},{"$f":"SUMIFS(Table2[[#All],[Club Points]],Table2[[#All],[Surname / First Name]],'Click here for your run details'!A434,Table2[[#All],[Excluded from Top 15 Run (Y/N)]],\"N\")","v":0},{"$f":"COUNTIFS(Table2[[#All],[Surname / First Name]],'Click here for your run details'!A434,Table2[[#All],[Excluded from Top 15 Run (Y/N)]],\"N\")","v":0},0]
["Wharton David",11,null,null,11,"Member",{"$f":"SUMIFS(Table2[[#All],[Overall Place]],Table2[[#All],[Surname / First Name]],$A435)/E435","v":47},{"$f":"SUMIFS(Table2[[#All],[Club Points]],Table2[[#All],[Surname / First Name]],'Click here for your run details'!A435,Table2[[#All],[Excluded from Top 15 Run (Y/N)]],\"N\")","v":1253},{"$f":"COUNTIFS(Table2[[#All],[Surname / First Name]],'Click here for your run details'!A435,Table2[[#All],[Excluded from Top 15 Run (Y/N)]],\"N\")","v":11},113.90909090909091]
["Whatow Bayley",null,null,1,1,"Non-Member",{"$f":"SUMIFS(Table2[[#All],[Overall Place]],Table2[[#All],[Surname / First Name]],$A436)/E436","v":57},{"$f":"SUMIFS(Table2[[#All],[Club Points]],Table2[[#All],[Surname / First Name]],'Click here for your run details'!A436,Table2[[#All],[Excluded from Top 15 Run (Y/N)]],\"N\")","v":0},{"$f":"COUNTIFS(Table2[[#All],[Surname / First Name]],'Click here for your run details'!A436,Table2[[#All],[Excluded from Top 15 Run (Y/N)]],\"N\")","v":0},0]
["Wheeler Jude",null,null,17,17,"Non-Member",{"$f":"SUMIFS(Table2[[#All],[Overall Place]],Table2[[#All],[Surname / First Name]],$A437)/E437","v":31.647058823529413},{"$f":"SUMIFS(Table2[[#All],[Club Points]],Table2[[#All],[Surname / First Name]],'Click here for your run details'!A437,Table2[[#All],[Excluded from Top 15 Run (Y/N)]],\"N\")","v":0},{"$f":"COUNTIFS(Table2[[#All],[Surname / First Name]],'Click here for your run details'!A437,Table2[[#All],[Excluded from Top 15 Run (Y/N)]],\"N\")","v":0},0]
["White Jodie",null,null,1,1,"Non-Member",{"$f":"SUMIFS(Table2[[#All],[Overall Place]],Table2[[#All],[Surname / First Name]],$A438)/E438","v":59},{"$f":"SUMIFS(Table2[[#All],[Club Points]],Table2[[#All],[Surname / First Name]],'Click here for your run details'!A438,Table2[[#All],[Excluded from Top 15 Run (Y/N)]],\"N\")","v":0},{"$f":"COUNTIFS(Table2[[#All],[Surname / First Name]],'Click here for your run details'!A438,Table2[[#All],[Excluded from Top 15 Run (Y/N)]],\"N\")","v":0},0]
["Whittle Darrin",null,null,1,1,"Non-Member",{"$f":"SUMIFS(Table2[[#All],[Overall Place]],Table2[[#All],[Surname / First Name]],$A439)/E439","v":58},{"$f":"SUMIFS(Table2[[#All],[Club Points]],Table2[[#All],[Surname / First Name]],'Click here for your run details'!A439,Table2[[#All],[Excluded from Top 15 Run (Y/N)]],\"N\")","v":0},{"$f":"COUNTIFS(Table2[[#All],[Surname / First Name]],'Click here for your run details'!A439,Table2[[#All],[Excluded from Top 15 Run (Y/N)]],\"N\")","v":0},0]
["Whittle Sara",null,null,5,5,"Non-Member",{"$f":"SUMIFS(Table2[[#All],[Overall Place]],Table2[[#All],[Surname / First Name]],$A440)/E440","v":54.8},{"$f":"SUMIFS(Table2[[#All],[Club Points]],Table2[[#All],[Surname / First Name]],'Click here for your run details'!A440,Table2[[#All],[Excluded from Top 15 Run (Y/N)]],\"N\")","v":0},{"$f":"COUNTIFS(Table2[[#All],[Surname / First Name]],'Click here for your run details'!A440,Table2[[#All],[Excluded from Top 15 Run (Y/N)]],\"N\")","v":0},0]
["Whitty Chris",null,null,1,1,"Non-Member",{"$f":"SUMIFS(Table2[[#All],[Overall Place]],Table2[[#All],[Surname / First Name]],$A441)/E441","v":15},{"$f":"SUMIFS(Table2[[#All],[Club Points]],Table2[[#All],[Surname / First Name]],'Click here for your run details'!A441,Table2[[#All],[Excluded from Top 15 Run (Y/N)]],\"N\")","v":0},{"$f":"COUNTIFS(Table2[[#All],[Surname / First Name]],'Click here for your run details'!A441,Table2[[#All],[Excluded from Top 15 Run (Y/N)]],\"N\")","v":0},0]
["Wickam Alisa",null,null,2,2,"Non-Member",{"$f":"SUMIFS(Table2[[#All],[Overall Place]],Table2[[#All],[Surname / First Name]],$A442)/E442","v":27},{"$f":"SUMIFS(Table2[[#All],[Club Points]],Table2[[#All],[Surname / First Name]],'Click here for your run details'!A442,Table2[[#All],[Excluded from Top 15 Run (Y/N)]],\"N\")","v":0},{"$f":"COUNTIFS(Table2[[#All],[Surname / First Name]],'Click here for your run details'!A442,Table2[[#All],[Excluded from Top 15 Run (Y/N)]],\"N\")","v":0},0]
["Wickam Gavin",null,null,1,1,"Non-Member",{"$f":"SUMIFS(Table2[[#All],[Overall Place]],Table2[[#All],[Surname / First Name]],$A443)/E443","v":6},{"$f":"SUMIFS(Table2[[#All],[Club Points]],Table2[[#All],[Surname / First Name]],'Click here for your run details'!A443,Table2[[#All],[Excluded from Top 15 Run (Y/N)]],\"N\")","v":0},{"$f":"COUNTIFS(Table2[[#All],[Surname / First Name]],'Click here for your run details'!A443,Table2[[#All],[Excluded from Top 15 Run (Y/N)]],\"N\")","v":0},0]
["Wilkinson Jane",null,null,1,1,"Non-Member",{"$f":"SUMIFS(Table2[[#All],[Overall Place]],Table2[[#All],[Surname / First Name]],$A444)/E444","v":32},{"$f":"SUMIFS(Table2[[#All],[Club Points]],Table2[[#All],[Surname / First Name]],'Click here for your run details'!A444,Table2[[#All],[Excluded from Top 15 Run (Y/N)]],\"N\")","v":0},{"$f":"COUNTIFS(Table2[[#All],[Surname / First Name]],'Click here for your run details'!A444,Table2[[#All],[Excluded from Top 15 Run (Y/N)]],\"N\")","v":0},0]
["Williams Vic",null,null,1,1,"Non-Member",{"$f":"SUMIFS(Table2[[#All],[Overall Place]],Table2[[#All],[Surname / First Name]],$A445)/E445","v":110},{"$f":"SUMIFS(Table2[[#All],[Club Points]],Table2[[#All],[Surname / First Name]],'Click here for your run details'!A445,Table2[[#All],[Excluded from Top 15 Run (Y/N)]],\"N\")","v":0},{"$f":"COUNTIFS(Table2[[#All],[Surname / First Name]],'Click here for your run details'!A445,Table2[[#All],[Excluded from Top 15 Run (Y/N)]],\"N\")","v":0},0]
["Wilton Brad",null,null,1,1,"Non-Member",{"$f":"SUMIFS(Table2[[#All],[Overall Place]],Table2[[#All],[Surname / First Name]],$A446)/E446","v":35},{"$f":"SUMIFS(Table2[[#All],[Club Points]],Table2[[#All],[Surname / First Name]],'Click here for your run details'!A446,Table2[[#All],[Excluded from Top 15 Run (Y/N)]],\"N\")","v":0},{"$f":"COUNTIFS(Table2[[#All],[Surname / First Name]],'Click here for your run details'!A446,Table2[[#All],[Excluded from Top 15 Run (Y/N)]],\"N\")","v":0},0]
["Wing Gordon",5,null,null,5,"Member",{"$f":"SUMIFS(Table2[[#All],[Overall Place]],Table2[[#All],[Surname / First Name]],$A447)/E447","v":17.2},{"$f":"SUMIFS(Table2[[#All],[Club Points]],Table2[[#All],[Surname / First Name]],'Click here for your run details'!A447,Table2[[#All],[Excluded from Top 15 Run (Y/N)]],\"N\")","v":695},{"$f":"COUNTIFS(Table2[[#All],[Surname / First Name]],'Click here for your run details'!A447,Table2[[#All],[Excluded from Top 15 Run (Y/N)]],\"N\")","v":5},139]
["Winter Sarah",null,null,1,1,"Non-Member",{"$f":"SUMIFS(Table2[[#All],[Overall Place]],Table2[[#All],[Surname / First Name]],$A448)/E448","v":81},{"$f":"SUMIFS(Table2[[#All],[Club Points]],Table2[[#All],[Surname / First Name]],'Click here for your run details'!A448,Table2[[#All],[Excluded from Top 15 Run (Y/N)]],\"N\")","v":0},{"$f":"COUNTIFS(Table2[[#All],[Surname / First Name]],'Click here for your run details'!A448,Table2[[#All],[Excluded from Top 15 Run (Y/N)]],\"N\")","v":0},0]
["Wituschek Walter",null,null,1,1,"Non-Member",{"$f":"SUMIFS(Table2[[#All],[Overall Place]],Table2[[#All],[Surname / First Name]],$A449)/E449","v":70},{"$f":"SUMIFS(Table2[[#All],[Club Points]],Table2[[#All],[Surname / First Name]],'Click here for your run details'!A449,Table2[[#All],[Excluded from Top 15 Run (Y/N)]],\"N\")","v":0},{"$f":"COUNTIFS(Table2[[#All],[Surname / First Name]],'Click here for your run details'!A449,Table2[[#All],[Excluded from Top 15 Run (Y/N)]],\"N\")","v":0},0]
["Wylie Brendon",null,null,1,1,"Non-Member",{"$f":"SUMIFS(Table2[[#All],[Overall Place]],Table2[[#All],[Surname / First Name]],$A450)/E450","v":106},{"$f":"SUMIFS(Table2[[#All],[Club Points]],Table2[[#All],[Surname / First Name]],'Click here for your run details'!A450,Table2[[#All],[Excluded from Top 15 Run (Y/N)]],\"N\")","v":0},{"$f":"COUNTIFS(Table2[[#All],[Surname / First Name]],'Click here for your run details'!A450,Table2[[#All],[Excluded from Top 15 Run (Y/N)]],\"N\")","v":0},0]
["Young David",1,null,null,1,"Member",{"$f":"SUMIFS(Table2[[#All],[Overall Place]],Table2[[#All],[Surname / First Name]],$A451)/E451","v":61},{"$f":"SUMIFS(Table2[[#All],[Club Points]],Table2[[#All],[Surname / First Name]],'Click here for your run details'!A451,Table2[[#All],[Excluded from Top 15 Run (Y/N)]],\"N\")","v":102},{"$f":"COUNTIFS(Table2[[#All],[Surname / First Name]],'Click here for your run details'!A451,Table2[[#All],[Excluded from Top 15 Run (Y/N)]],\"N\")","v":1},102]
["All Runs",1817,23,501,2341]

{"sheet":"Long Course Detail(web version)","index":2,"n_rows":2344,"n_cols":10,"rows_kept":2344,"cut":false,"hidden":false,"merged":[]}
["Townsville Road Runners - 2016 Long Course Only Database"]
[null,null,null,null,null,null,null,null,"Members Only"]
["Date","Run","Distance","Overall Place","Surname / First Name","Time","Member/\nNon Member \nStatus","Member Only Place","Club Points","Excluded from Top 15 Run (Y/N)"]
["2016-03-12","Strand Run",7.4,1,"O'Regan Simon","28.42","Member",1,150,"N"]
["2016-03-12","Strand Run",7.4,2,"Coelho Dilip","29.49","Non-Member","N/A",0,"Y"]
["2016-03-12","Strand Run",7.4,3,"Buchholz Mark","29.58","Member",2,149,"N"]
["2016-03-12","Strand Run",7.4,4,"Hynes Shane","30.14","Member",3,148,"N"]
["2016-03-12","Strand Run",7.4,5,"Heames Sam","30.33","Non-Member","N/A",0,"Y"]
["2016-03-12","Strand Run",7.4,6,"Turnbull Deahne","31.31","Member",4,147,"N"]
["2016-03-12","Strand Run",7.4,7,"Boschen Matthew","31.38","Member",5,146,"N"]
["2016-03-12","Strand Run",7.4,8,"Garnett Adrian","31.42","Member",6,145,"N"]
["2016-03-12","Strand Run",7.4,9,"Stripp Deon","31.42","Member",7,0,"Y"]
["2016-03-12","Strand Run",7.4,10,"Pretorius Christiaan","31.57","Member",8,143,"N"]
["2016-03-12","Strand Run",7.4,11,"Di Giacomo Simon","32.18","Member-but exclude run > 1 month before joining","N/A",0,"Y"]
["2016-03-12","Strand Run",7.4,12,"Werbeloff Gavin","32.59","Member",9,142,"N"]
["2016-03-12","Strand Run",7.4,13,"Maguire Gerry","33.02","Member",10,141,"N"]
["2016-03-12","Strand Run",7.4,14,"Schonfeldt-Roy Sonja","33.16","Member",11,140,"N"]
["2016-03-12","Strand Run",7.4,15,"Watkins Meredith","33.43","Member",12,139,"N"]
["2016-03-12","Strand Run",7.4,16,"Marrinan Michael","33.47","Member",13,0,"Y"]
["2016-03-12","Strand Run",7.4,17,"Kemei Joseph","34.11","Non-Member","N/A",0,"Y"]
["2016-03-12","Strand Run",7.4,18,"Mentor Andre","34.14","Member",14,137,"N"]
["2016-03-12","Strand Run",7.4,19,"Hutcheson Steven","34.32","Member",15,136,"N"]
["2016-03-12","Strand Run",7.4,20,"Dunsten James","34.38","Non-Member","N/A",0,"Y"]
["2016-03-12","Strand Run",7.4,21,"Davies Liz","34.40","Non-Member","N/A",0,"Y"]
["2016-03-12","Strand Run",7.4,22,"Schick Gerard","34.46","Member",16,135,"N"]
["2016-03-12","Strand Run",7.4,23,"Brunker Julie","34.54","Member",17,134,"N"]
["2016-03-12","Strand Run",7.4,24,"Crawford Les","35.04","Member",18,0,"Y"]
["2016-03-12","Strand Run",7.4,25,"Nuttall John","35.09","Member",19,132,"N"]
["2016-03-12","Strand Run",7.4,26,"Day Paul","35.13","Member",20,131,"N"]
["2016-03-12","Strand Run",7.4,27,"Carter Brendan","35.15","Member",21,130,"N"]
["2016-03-12","Strand Run",7.4,28,"Hiette Terry","35.22","Member",22,129,"N"]
["2016-03-12","Strand Run",7.4,29,"Hiette Casey","35.27","Non-Member","N/A",0,"Y"]
["2016-03-12","Strand Run",7.4,30,"Roberto Garcia","35.48","Non-Member","N/A",0,"Y"]
["2016-03-12","Strand Run",7.4,31,"Guy William","35.50","Member",23,128,"N"]
["2016-03-12","Strand Run",7.4,32,"Doherty Bill","35.59","Member",24,0,"Y"]
["2016-03-12","Strand Run",7.4,33," No Name Recorded","36.05","Non-Member","N/A",0,"Y"]
["2016-03-12","Strand Run",7.4,34,"Vollmerhause Scott","36.27","Member",25,126,"N"]
["2016-03-12","Strand Run",7.4,35,"Tanner Geoff","36.30","Non-Member","N/A",0,"Y"]
["2016-03-12","Strand Run",7.4,36,"Nahrung David","36.34","Member",26,125,"N"]
["2016-03-12","Strand Run",7.4,37,"Hunter Michael","36.37","Member",27,124,"N"]
["2016-03-12","Strand Run",7.4,38,"Moore Stuart","36.46","Member",28,123,"N"]
["2016-03-12","Strand Run",7.4,39,"Norris Bernie","36.49","Non-Member","N/A",0,"Y"]
["2016-03-12","Strand Run",7.4,40,"Schmitt Riana","37.05","Member",29,122,"N"]
["2016-03-12","Strand Run",7.4,41,"Bradley Fraser","37.20","Member",30,0,"Y"]
["2016-03-12","Strand Run",7.4,42,"O'Regan Paul","37.38","Member",31,120,"N"]
["2016-03-12","Strand Run",7.4,43,"Reynolds Dan","37.49","Member",32,119,"N"]
["2016-03-12","Strand Run",7.4,44,"Evans Derrick","37.59","Member",33,0,"Y"]
["2016-03-12","Strand Run",7.4,45,"Mueller-Coons Mic","38.02","Member-but exclude run > 1 month before joining","N/A",0,"Y"]
["2016-03-12","Strand Run",7.4,46,"Hatchard Nicole","38.02","Non-Member","N/A",0,"Y"]
["2016-03-12","Strand Run",7.4,47,"Wever Simon","38.03","Non-Member","N/A",0,"Y"]
["2016-03-12","Strand Run",7.4,48,"Frazer Ian","38.06","Member",34,0,"Y"]
["2016-03-12","Strand Run",7.4,49,"Stanton Geoff","38.19","Member",35,116,"N"]
["2016-03-12","Strand Run",7.4,50,"O'Reilly Phil","38.30","Member",36,115,"N"]
["2016-03-12","Strand Run",7.4,51,"Newman Lyn","38.33","Member",37,114,"N"]
["2016-03-12","Strand Run",7.4,52,"Wing Gordon","38.52","Member",38,113,"N"]
["2016-03-12","Strand Run",7.4,53,"Sewell Dave","38.58","Member",39,112,"N"]
["2016-03-12","Strand Run",7.4,54,"Kiernan Sophie","39.23","Member",40,111,"N"]
["2016-03-12","Strand Run",7.4,55,"Lew Brendan","39.25","Member",41,110,"N"]
["2016-03-12","Strand Run",7.4,56,"Vincent Anoushka","39.38","Non-Member","N/A",0,"Y"]
["2016-03-12","Strand Run",7.4,57,"Mayhew Susan","39.60","Member",42,109,"N"]
["2016-03-12","Strand Run",7.4,58,"Fanning Terence","40.04","Member-but exclude run > 1 month before joining","N/A",0,"Y"]
["2016-03-12","Strand Run",7.4,59,"Kennedy Gillian","40.20","Member",43,108,"N"]
["2016-03-12","Strand Run",7.4,60,"Orth Sarah","40.26","Non-Member","N/A",0,"Y"]
["2016-03-12","Strand Run",7.4,61,"Bromham Gary","40.31","Non-Member","N/A",0,"Y"]
["2016-03-12","Strand Run",7.4,62,"Stanley Owen","40.56","Member",44,107,"N"]
["2016-03-12","Strand Run",7.4,63,"Nelson Jesslyn","41.18","Member",45,106,"N"]
["2016-03-12","Strand Run",7.4,64,"Gifford Kelly","41.19","Member",46,105,"N"]
["2016-03-12","Strand Run",7.4,65,"Walsh John","42.41","Member",47,104,"N"]
["2016-03-12","Strand Run",7.4,66,"Smith Aaron","42.46","Non-Member","N/A",0,"Y"]
["2016-03-12","Strand Run",7.4,67,"Jones Lisa","42.51","Member",48,103,"N"]
["2016-03-12","Strand Run",7.4,68,"Desailly Nicole","42.52","Member",49,0,"Y"]
["2016-03-12","Strand Run",7.4,69,"Frossling Annika","42.57","Member",50,101,"N"]
["2016-03-12","Strand Run",7.4,70,"Cox Sherry","43.06","Member",51,0,"Y"]
["2016-03-12","Strand Run",7.4,71,"Mcnabb Jim","43.32","Member",52,99,"N"]
["2016-03-12","Strand Run",7.4,72,"Malan Carsten","43.43","Non-Member","N/A",0,"Y"]
["2016-03-12","Strand Run",7.4,73,"Eriksen Dale","44.05","Member",53,98,"N"]
["2016-03-12","Strand Run",7.4,74,"Otto Annaliese","44.17","Member",54,97,"N"]
["2016-03-12","Strand Run",7.4,75,"Kirchner Jim","44.23","Member",55,96,"N"]
["2016-03-12","Strand Run",7.4,76,"Marrinan Isa","44.26","Member",56,0,"Y"]
["2016-03-12","Strand Run",7.4,77,"Hampton Dave","44.26","Member",57,94,"N"]
["2016-03-12","Strand Run",7.4,78,"Strid Angela","44.29","Member",58,93,"N"]
["2016-03-12","Strand Run",7.4,79,"Armstrong Sophie","44.29","Non-Member","N/A",0,"Y"]
["2016-03-12","Strand Run",7.4,80,"Labuschagne Celeste","44.38","Member",59,92,"N"]
["2016-03-12","Strand Run",7.4,81,"Smith Mathew","44.39","Member",60,91,"N"]
["2016-03-12","Strand Run",7.4,82,"Labuschagne Rosemarie","44.45","Member",61,0,"Y"]
["2016-03-12","Strand Run",7.4,83,"Freislich Natalie","44.50","Member",62,89,"N"]
["2016-03-12","Strand Run",7.4,84,"Collins Sarah","44.51","Member",63,88,"N"]
["2016-03-12","Strand Run",7.4,85,"Johnson Lia","45.30","Member",64,87,"N"]
["2016-03-12","Strand Run",7.4,86,"Isepy Chris","45.34","Member",65,86,"N"]
["2016-03-12","Strand Run",7.4,87,"Doherty Rosie","46.04","Member",66,85,"N"]
["2016-03-12","Strand Run",7.4,88,"Benedetto Giordan","46.04","Non-Member","N/A",0,"Y"]
["2016-03-12","Strand Run",7.4,89,"Lahiff Peter","46.05","Member",67,84,"N"]
["2016-03-12","Strand Run",7.4,90,"Tirendi Francesco","46.07","Member",68,0,"Y"]
["2016-03-12","Strand Run",7.4,91,"Daamen Antony","46.37","Member",69,0,"Y"]
["2016-03-12","Strand Run",7.4,92,"Mckeon Cathy","46.53","Non-Member","N/A",0,"Y"]
["2016-03-12","Strand Run",7.4,93,"Johnson Cat","46.60","Member",70,81,"N"]
["2016-03-12","Strand Run",7.4,94,"Barber Belinda","47.22","Member",71,80,"N"]
["2016-03-12","Strand Run",7.4,95,"Dicketts Kelly","47.22","Member",72,79,"N"]
["2016-03-12","Strand Run",7.4,96,"Palmer Luke","47.23","Member",73,78,"N"]
["2016-03-12","Strand Run",7.4,97,"Andersen David","47.41","Non-Member","N/A",0,"Y"]
["2016-03-12","Strand Run",7.4,98,"Patteson Kathy","47.58","Non-Member","N/A",0,"Y"]
["2016-03-12","Strand Run",7.4,99,"Keir Therese","49.13","Member",74,77,"N"]
["2016-03-12","Strand Run",7.4,100,"Sue Yek William","49.47","Member",75,0,"Y"]
["2016-03-12","Strand Run",7.4,101,"Muhlenberg Conny","50.03","Member",76,75,"N"]
["2016-03-12","Strand Run",7.4,102,"Pearce Jayson","50.11","Non-Member","N/A",0,"Y"]
["2016-03-12","Strand Run",7.4,103,"Hearn Jennifer","50.12","Member",77,74,"N"]
["2016-03-12","Strand Run",7.4,104,"Camakaris Catrina","50.20","Member",78,73,"N"]
["2016-03-12","Strand Run",7.4,105,"Doherty Susan","50.34","Member",79,0,"Y"]
["2016-03-12","Strand Run",7.4,106,"Bosworth Clare","50.58","Member",80,71,"N"]
["2016-03-12","Strand Run",7.4,107,"De Jong Jaap","51.01","Member",81,0,"Y"]
["2016-03-12","Strand Run",7.4,108,"Hooper Jan","52.13","Member",82,69,"N"]
["2016-03-12","Strand Run",7.4,109,"Thompson Wally","52.53","Member",83,68,"N"]
["2016-03-12","Strand Run",7.4,110,"Olsen John","53.19","Member",84,67,"N"]
["2016-03-12","Strand Run",7.4,111,"Ives Jim","53.22","Member",85,66,"N"]
["2016-03-12","Strand Run",7.4,112,"Beil Lyndie","56.20","Member",86,0,"Y"]
["2016-03-12","Strand Run",7.4,113,"Pain Tilley","56.21","Member",87,64,"N"]
["2016-03-12","Strand Run",7.4,114,"Leitch Cam","56.22","Member",88,63,"N"]
["2016-03-12","Strand Run",7.4,115,"Roberts Karen","57.11","Member",89,62,"N"]
["2016-03-12","Strand Run",7.4,116,"Bosworth Georill","59.29","Non-Member","N/A",0,"Y"]
["2016-03-12","Strand Run",7.4,117,"Sibley Jack","1.00.35","Member",90,61,"N"]
["2016-03-12","Strand Run",7.4,118,"Sinah Sam","1.02.17","Non-Member","N/A",0,"Y"]
["2016-03-12","Strand Run",7.4,119,"Burrowe Melanie","1.02.19","Non-Member","N/A",0,"Y"]
["2016-03-12","Strand Run",7.4,120,"Hobson Cheryl","1.02.25","Member",91,60,"N"]
["2016-03-12","Strand Run",7.4,121,"Gillham Claudia","1.07.07","Member",92,59,"N"]
["2016-03-12","Strand Run",7.4,122,"Kelso Sylvia","1.08.34","Member",93,58,"N"]
["2016-03-19","University 8K and 4K Time Trial",8,1,"Coelho Dilip","30.30","Non-Member","N/A",0,"Y"]
["2016-03-19","University 8K and 4K Time Trial",8,2,"Buchholz Mark","30.36","Member",1,150,"N"]
["2016-03-19","University 8K and 4K Time Trial",8,3,"Hynes Shane","30.50","Member",2,149,"N"]
["2016-03-19","University 8K and 4K Time Trial",8,4,"Harding Michael","31.54","Member",3,0,"Y"]
["2016-03-19","University 8K and 4K Time Trial",8,5,"Boschen Matthew","32.37","Member",4,147,"N"]
["2016-03-19","University 8K and 4K Time Trial",8,6,"Pretorius Christiaan","33.21","Member",5,146,"N"]
["2016-03-19","University 8K and 4K Time Trial",8,7,"Stripp Deon","33.54","Member",6,0,"Y"]
["2016-03-19","University 8K and 4K Time Trial",8,8,"Sun Sizhong","33.55","Member",7,144,"N"]
["2016-03-19","University 8K and 4K Time Trial",8,9,"Wallis Cameron","34.05","Member",8,0,"Y"]
["2016-03-19","University 8K and 4K Time Trial",8,10,"Hutcheson Steven","34.16","Member",9,142,"N"]
["2016-03-19","University 8K and 4K Time Trial",8,11,"Schonfeldt-Roy Sonja","34.25","Member",10,141,"N"]
["2016-03-19","University 8K and 4K Time Trial",8,12,"Werbeloff Gavin","34.30","Member",11,140,"N"]
["2016-03-19","University 8K and 4K Time Trial",8,13,"Kemei Joseph","34.34","Non-Member","N/A",0,"Y"]
["2016-03-19","University 8K and 4K Time Trial",8,14,"Watkins Meredith","34.37","Member",12,139,"N"]
["2016-03-19","University 8K and 4K Time Trial",8,15,"Mentor Andre","34.45","Member",13,138,"N"]
["2016-03-19","University 8K and 4K Time Trial",8,16,"Marrinan Michael","35.03","Member",14,0,"Y"]
["2016-03-19","University 8K and 4K Time Trial",8,17,"Stafford Erin","35.40","Member",15,0,"Y"]
["2016-03-19","University 8K and 4K Time Trial",8,18,"Brunker Julie","36.11","Member",16,135,"N"]
["2016-03-19","University 8K and 4K Time Trial",8,19,"Day Paul","36.17","Member",17,134,"N"]
["2016-03-19","University 8K and 4K Time Trial",8,20,"Carter Brendan","36.37","Member",18,133,"N"]
["2016-03-19","University 8K and 4K Time Trial",8,21,"Doherty Bill","36.40","Member",19,132,"N"]
["2016-03-19","University 8K and 4K Time Trial",8,22,"Crawford Les","36.42","Member",20,0,"Y"]
["2016-03-19","University 8K and 4K Time Trial",8,23,"Hiette Terry","36.46","Member",21,130,"N"]
["2016-03-19","University 8K and 4K Time Trial",8,24,"Sewell Dave","36.47","Member",22,129,"N"]
["2016-03-19","University 8K and 4K Time Trial",8,25,"Moore Stuart","37.16","Member",23,128,"N"]
["2016-03-19","University 8K and 4K Time Trial",8,26,"Hiette Casey","37.19","Non-Member","N/A",0,"Y"]
["2016-03-19","University 8K and 4K Time Trial",8,27,"Evans Derrick","37.29","Member",24,0,"Y"]
["2016-03-19","University 8K and 4K Time Trial",8,28,"Machin Jamie","38.13","Member-but exclude run > 1 month before joining","N/A",0,"Y"]
["2016-03-19","University 8K and 4K Time Trial",8,29,"Lew Brendan","38.14","Member",25,126,"N"]
["2016-03-19","University 8K and 4K Time Trial",8,30,"O'Regan Paul","38.21","Member",26,125,"N"]
["2016-03-19","University 8K and 4K Time Trial",8,31,"Frazer Ian","38.25","Member",27,124,"N"]
["2016-03-19","University 8K and 4K Time Trial",8,32,"Bradley Fraser","38.26","Member",28,0,"Y"]
["2016-03-19","University 8K and 4K Time Trial",8,33,"Vollmerhause Scott","38.30","Member",29,0,"Y"]
["2016-03-19","University 8K and 4K Time Trial",8,34,"Schmitt Riana","38.51","Member",30,121,"N"]
["2016-03-19","University 8K and 4K Time Trial",8,35,"Mugambi Sheba","39.13","Member",31,120,"N"]
["2016-03-19","University 8K and 4K Time Trial",8,36,"Prasser Mark","39.20","Member",32,119,"N"]
["2016-03-19","University 8K and 4K Time Trial",8,37,"Wever Simon","39.23","Non-Member","N/A",0,"Y"]
["2016-03-19","University 8K and 4K Time Trial",8,38,"Nicholson Trevor","39.32","Member",33,0,"Y"]
["2016-03-19","University 8K and 4K Time Trial",8,39,"Smales Clayton","40.00","Member",34,117,"N"]
["2016-03-19","University 8K and 4K Time Trial",8,40,"Ellershaw Robert","40.04","Member",35,116,"N"]
["2016-03-19","University 8K and 4K Time Trial",8,41,"Reynolds Dan","40.09","Member",36,115,"N"]
["2016-03-19","University 8K and 4K Time Trial",8,42,"Illman Stuart","40.12","Member",37,0,"Y"]
["2016-03-19","University 8K and 4K Time Trial",8,43,"Sewell Lara","40.22","Member",38,113,"N"]
["2016-03-19","University 8K and 4K Time Trial",8,44,"Newman Lyn","40.27","Member",39,112,"N"]
["2016-03-19","University 8K and 4K Time Trial",8,45,"Kennedy Gillian","41.23","Member",40,111,"N"]
["2016-03-19","University 8K and 4K Time Trial",8,46,"Mayhew Susan","41.48","Member",41,110,"N"]
["2016-03-19","University 8K and 4K Time Trial",8,47,"Doyle Rachel","41.51","Member",42,109,"N"]
["2016-03-19","University 8K and 4K Time Trial",8,48,"Cox Sherry","42.13","Member",43,0,"Y"]
["2016-03-19","University 8K and 4K Time Trial",8,49,"Gifford Kelly","42.42","Member",44,107,"N"]
["2016-03-19","University 8K and 4K Time Trial",8,50,"Newnham Colleen","43.09","Member",45,106,"N"]
["2016-03-19","University 8K and 4K Time Trial",8,51,"Donoghue Michael","43.39","Member",46,0,"Y"]
["2016-03-19","University 8K and 4K Time Trial",8,52,"Walsh John","43.56","Member",47,104,"N"]
["2016-03-19","University 8K and 4K Time Trial",8,53,"Barber Belinda","44.23","Member",48,103,"N"]
["2016-03-19","University 8K and 4K Time Trial",8,54,"Rich Keith","44.51","Member",49,102,"N"]
["2016-03-19","University 8K and 4K Time Trial",8,55,"Armstrong Sophie","45.11","Non-Member","N/A",0,"Y"]
["2016-03-19","University 8K and 4K Time Trial",8,56,"Marrinan Isa","45.16","Member",50,0,"Y"]
["2016-03-19","University 8K and 4K Time Trial",8,57,"Kirchner Jim","45.33","Member",51,100,"N"]
["2016-03-19","University 8K and 4K Time Trial",8,58,"Lahiff Peter","46.10","Member",52,99,"N"]
["2016-03-19","University 8K and 4K Time Trial",8,59,"Labuschagne Rosemarie","46.17","Member",53,0,"Y"]
["2016-03-19","University 8K and 4K Time Trial",8,60,"Collins Sarah","46.56","Member",54,97,"N"]
["2016-03-19","University 8K and 4K Time Trial",8,61,"Fanning Terence","47.04","Member-but exclude run > 1 month before joining","N/A",0,"Y"]
["2016-03-19","University 8K and 4K Time Trial",8,62,"Hampton Dave","47.19","Member",55,96,"N"]
["2016-03-19","University 8K and 4K Time Trial",8,63,"Isepy Chris","48.40","Member",56,95,"N"]
["2016-03-19","University 8K and 4K Time Trial",8,64,"Murakami Fiona","49.11","Member",57,94,"N"]
["2016-03-19","University 8K and 4K Time Trial",8,65,"Rubenach Mike","49.35","Member",58,93,"N"]
["2016-03-19","University 8K and 4K Time Trial",8,66,"Camakaris Catrina","49.42","Member",59,92,"N"]
["2016-03-19","University 8K and 4K Time Trial",8,67,"Hearn Jennifer","49.56","Member",60,91,"N"]
["2016-03-19","University 8K and 4K Time Trial",8,68,"Pain Tilley","50.24","Member",61,90,"N"]
["2016-03-19","University 8K and 4K Time Trial",8,69,"Sue Yek William","50.25","Member",62,89,"N"]
["2016-03-19","University 8K and 4K Time Trial",8,70,"Machin Pook","50.38","Member-but exclude run > 1 month before joining","N/A",0,"Y"]
["2016-03-19","University 8K and 4K Time Trial",8,71,"Hooper Jan","50.52","Member",63,88,"N"]
["2016-03-19","University 8K and 4K Time Trial",8,72,"Schadel Shona","51.34","Member",64,87,"N"]
["2016-03-19","University 8K and 4K Time Trial",8,73,"Doherty Susan","52.18","Member",65,0,"Y"]
["2016-03-19","University 8K and 4K Time Trial",8,74,"Bosworth Clare","53.04","Member",66,85,"N"]
["2016-03-19","University 8K and 4K Time Trial",8,75,"Leitch Cam","54.14","Member",67,84,"N"]
["2016-03-19","University 8K and 4K Time Trial",8,76,"Olsen John","54.15","Member",68,83,"N"]
["2016-03-19","University 8K and 4K Time Trial",8,77,"De Jong Jaap","55.01","Member",69,82,"N"]
["2016-03-19","University 8K and 4K Time Trial",8,78,"Sibley Jack","56.17","Member",70,81,"N"]
["2016-03-19","University 8K and 4K Time Trial",8,79,"Beil Lyndie","57.04","Member",71,0,"Y"]
["2016-03-19","University 8K and 4K Time Trial",8,80,"Gillham Angela","1.10.27","Member",72,79,"N"]
["2016-03-26","North Ward Hills",7.5,1,"Buchholz Mark","32.07","Member",1,150,"N"]
["2016-03-26","North Ward Hills",7.5,2,"Harding Michael",32.29,"Member",2,0,"Y"]
["2016-03-26","North Ward Hills",7.5,3,"Turnbull Deahne","33.26","Member",3,148,"N"]
["2016-03-26","North Ward Hills",7.5,4,"Pretorius Christiaan","33.43","Member",4,147,"N"]
["2016-03-26","North Ward Hills",7.5,5,"Stripp Deon","34.35","Member",5,0,"Y"]
["2016-03-26","North Ward Hills",7.5,6,"Wallis Cameron","34.46","Member",6,145,"N"]
["2016-03-26","North Ward Hills",7.5,7,"Werbeloff Gavin","35.47","Member",7,144,"N"]
["2016-03-26","North Ward Hills",7.5,8,"Watkins Meredith","36.06","Member",8,143,"N"]
["2016-03-26","North Ward Hills",7.5,9,"Kemei Joseph","36.40","Non-Member","N/A",0,"Y"]
["2016-03-26","North Ward Hills",7.5,10,"Illman Stuart","37.10","Member",9,142,"N"]
["2016-03-26","North Ward Hills",7.5,11,"Kerby William","37.10","Non-Member","N/A",0,"Y"]
["2016-03-26","North Ward Hills",7.5,12,"Sewell Dave","37.14","Member",10,141,"N"]
["2016-03-26","North Ward Hills",7.5,13,"Nuttall John","37.34","Member",11,140,"N"]
["2016-03-26","North Ward Hills",7.5,14,"Mentor Andre","37.52","Member",12,139,"N"]
["2016-03-26","North Ward Hills",7.5,15,"Crawford Les","38.12","Member",13,138,"N"]
["2016-03-26","North Ward Hills",7.5,16,"Vollmerhause Scott","38.34","Member",14,137,"N"]
["2016-03-26","North Ward Hills",7.5,17,"Reynolds Dan","38.55","Member",15,136,"N"]
["2016-03-26","North Ward Hills",7.5,18,"Day Paul","39.20","Member",16,135,"N"]
["2016-03-26","North Ward Hills",7.5,19,"Tanner Geoff","39.28","Non-Member","N/A",0,"Y"]
["2016-03-26","North Ward Hills",7.5,20,"Doherty Bill","39.33","Member",17,134,"N"]
["2016-03-26","North Ward Hills",7.5,21,"Frazer Ian","40.36","Member",18,133,"N"]
["2016-03-26","North Ward Hills",7.5,22,"Jones Lisa","41.23","Member",19,132,"N"]
["2016-03-26","North Ward Hills",7.5,23,"Hunter Michael","41.36","Member",20,131,"N"]
["2016-03-26","North Ward Hills",7.5,24,"Nahrung David","41.59","Member",21,130,"N"]
["2016-03-26","North Ward Hills",7.5,25,"Merton Holley","42.01","Non-Member","N/A",0,"Y"]
["2016-03-26","North Ward Hills",7.5,26,"Newman Lyn","42.08","Member",22,129,"N"]
["2016-03-26","North Ward Hills",7.5,27,"Turnbull Len","42.23","Non-Member","N/A",0,"Y"]
["2016-03-26","North Ward Hills",7.5,28,"Kennedy Gillian","42.50","Member",23,128,"N"]
["2016-03-26","North Ward Hills",7.5,29,"Flynn-Pittar Isis","43.43","Member-but exclude run > 1 month before joining","N/A",0,"Y"]
["2016-03-26","North Ward Hills",7.5,30,"Wheeler Jude","43.43","Non-Member","N/A",0,"Y"]
["2016-03-26","North Ward Hills",7.5,31,"Fanning Terence","43.47","Member",24,127,"N"]
["2016-03-26","North Ward Hills",7.5,32,"Nicholson Trevor","44.01","Member",25,126,"N"]
["2016-03-26","North Ward Hills",7.5,33,"Kiernan Sophie","44.52","Member",26,125,"N"]
["2016-03-26","North Ward Hills",7.5,34,"Desailly Nicole","44.58","Member",27,124,"N"]
["2016-03-26","North Ward Hills",7.5,35,"Mcnabb Jim","45.24","Member",28,123,"N"]
["2016-03-26","North Ward Hills",7.5,36,"Wharton David","45.57","Member",29,122,"N"]
["2016-03-26","North Ward Hills",7.5,37,"Jowett Anna","46.02","Member",30,121,"N"]
["2016-03-26","North Ward Hills",7.5,38,"Walsh John","46.34","Member",31,120,"N"]
["2016-03-26","North Ward Hills",7.5,39,"Daamen Antony","47.01","Member",32,119,"N"]
["2016-03-26","North Ward Hills",7.5,40,"Cox Sherry","47.05","Member",33,118,"N"]
["2016-03-26","North Ward Hills",7.5,41,"Hannay Andrew","47.16","Member",34,117,"N"]
["2016-03-26","North Ward Hills",7.5,42,"Rich Keith","47.29","Member",35,116,"N"]
["2016-03-26","North Ward Hills",7.5,43,"Marrinan Isa","47.38","Member",36,115,"N"]
["2016-03-26","North Ward Hills",7.5,44,"Tirendi Francesco","47.59","Member",37,114,"N"]
["2016-03-26","North Ward Hills",7.5,45,"Brooks Steve","48.06","Member",38,113,"N"]
["2016-03-26","North Ward Hills",7.5,46,"Murakami Fiona","48.29","Member",39,112,"N"]
["2016-03-26","North Ward Hills",7.5,47,"Donoghue Michael","48.39","Member",40,0,"Y"]
["2016-03-26","North Ward Hills",7.5,48,"Dicketts Kelly","48.40","Member",41,110,"N"]
["2016-03-26","North Ward Hills",7.5,49,"Labuschagne Rosemarie","48.41","Member",42,109,"N"]
["2016-03-26","North Ward Hills",7.5,50,"Benedetto Giordan","48.57","Non-Member","N/A",0,"Y"]
["2016-03-26","North Ward Hills",7.5,51,"Tsang Deffy","49.26","Member",43,108,"N"]
["2016-03-26","North Ward Hills",7.5,52,"Cullen David","49.33","Member-but exclude run > 1 month before joining","N/A",0,"Y"]
["2016-03-26","North Ward Hills",7.5,53,"Johnson Cat","50.59","Member",44,107,"N"]
["2016-03-26","North Ward Hills",7.5,54,"Mckeon Alana","51.52","Non-Member","N/A",0,"Y"]
["2016-03-26","North Ward Hills",7.5,55,"Alexopoulos Imelda","51.55","Member",45,106,"N"]
["2016-03-26","North Ward Hills",7.5,56,"Labuschagne Celeste","52.02","Member",46,105,"N"]
["2016-03-26","North Ward Hills",7.5,57,"Smith Mathew","52.03","Member",47,104,"N"]
["2016-03-26","North Ward Hills",7.5,58,"Keir Therese","52.06","Member",48,103,"N"]
["2016-03-26","North Ward Hills",7.5,59,"Patteson Kathy","52.07","Non-Member","N/A",0,"Y"]
["2016-03-26","North Ward Hills",7.5,60,"Mckeon Cathy","52.17","Non-Member","N/A",0,"Y"]
["2016-03-26","North Ward Hills",7.5,61,"Pearce Jayson","52.20","Non-Member","N/A",0,"Y"]
["2016-03-26","North Ward Hills",7.5,62,"Hearn Jennifer","52.24","Member",49,102,"N"]
["2016-03-26","North Ward Hills",7.5,63,"Hooper Jan","52.38","Member",50,101,"N"]
["2016-03-26","North Ward Hills",7.5,64,"Camakaris Catrina","52.55","Member",51,100,"N"]
["2016-03-26","North Ward Hills",7.5,65,"Brown Jenny","53.29","Member",52,99,"N"]
["2016-03-26","North Ward Hills",7.5,66,"Rubenach Mike","53.29","Member",53,98,"N"]
["2016-03-26","North Ward Hills",7.5,67,"Doherty Susan","53.52","Member",54,97,"N"]
["2016-03-26","North Ward Hills",7.5,68,"Doherty Rosie","53.53","Member",55,96,"N"]
["2016-03-26","North Ward Hills",7.5,69,"Morton Michelle","53.59","Non-Member","N/A",0,"Y"]
["2016-03-26","North Ward Hills",7.5,70,"Donoghue Mary","54.30","Member",56,0,"Y"]
["2016-03-26","North Ward Hills",7.5,71,"Mcgurry Patrick","54.34","Non-Member","N/A",0,"Y"]
["2016-03-26","North Ward Hills",7.5,72,"Stewart Vijaya","54.55","Non-Member","N/A",0,"Y"]
["2016-03-26","North Ward Hills",7.5,73,"Horscroft Susan","55.38","Member",57,94,"N"]
["2016-03-26","North Ward Hills",7.5,74,"Bosworth Clare","55.42","Member",58,93,"N"]
["2016-03-26","North Ward Hills",7.5,75,"Beil Lyndie","56.45","Member",59,0,"Y"]
["2016-03-26","North Ward Hills",7.5,76,"Mccormmac Cara","56.54","Non-Member","N/A",0,"Y"]
["2016-03-26","North Ward Hills",7.5,77,"Machin Pook","57.09","Member-but exclude run > 1 month before joining","N/A",0,"Y"]
["2016-03-26","North Ward Hills",7.5,78,"Bingly Sonia","58.10","Non-Member","N/A",0,"Y"]
["2016-03-26","North Ward Hills",7.5,79,"Letizia Brian","58.12","Member",60,91,"N"]
["2016-03-26","North Ward Hills",7.5,80,"Oats Cheryl","59.25","Non-Member","N/A",0,"Y"]
["2016-03-26","North Ward Hills",7.5,81,"Brooke-Taylor David","59.38","Member",61,90,"N"]
["2016-03-26","North Ward Hills",7.5,82,"Mcdonald Warren","59.53","Member",62,89,"N"]
["2016-03-26","North Ward Hills",7.5,83,"Sibley Jack","60.12","Member",63,88,"N"]
["2016-03-26","North Ward Hills",7.5,84,"Cameron Susanah","62.19","Non-Member","N/A",0,"Y"]
["2016-03-26","North Ward Hills",7.5,85,"Smith Kelly","62.20","Non-Member","N/A",0,"Y"]
["2016-03-26","North Ward Hills",7.5,86,"Daniel Peter","64.29","Member",64,87,"N"]
["2016-03-26","North Ward Hills",7.5,87,"Scott Joseph","64.31","Member",65,86,"N"]
["2016-03-26","North Ward Hills",7.5,88,"Gillham Claudia","80.13","Member",66,85,"N"]
["2016-04-02","Fairfield Waters Run",8.1999999999999993,1,"Hynes Shane","32.05","Member",1,150,"N"]
["2016-04-02","Fairfield Waters Run",8.1999999999999993,2,"Heames Sam","32.20","Non-Member","N/A",0,"Y"]
["2016-04-02","Fairfield Waters Run",8.1999999999999993,3,"Garnett Adrian","33.02","Member",2,149,"N"]
["2016-04-02","Fairfield Waters Run",8.1999999999999993,4,"Boschen Matthew","33.08","Member",3,148,"N"]
["2016-04-02","Fairfield Waters Run",8.1999999999999993,5,"Maguire Liz","33.21","Member",4,147,"N"]
["2016-04-02","Fairfield Waters Run",8.1999999999999993,6,"Wallis Cameron","34.02","Member",5,146,"N"]
["2016-04-02","Fairfield Waters Run",8.1999999999999993,7,"Maguire Gerry","34.10","Member",6,145,"N"]
["2016-04-02","Fairfield Waters Run",8.1999999999999993,8,"Hutcheson Steven","34.56","Member",7,144,"N"]
["2016-04-02","Fairfield Waters Run",8.1999999999999993,9,"Schonfeldt-Roy Sonja","35.05","Member",8,143,"N"]
["2016-04-02","Fairfield Waters Run",8.1999999999999993,10,"Stafford Erin","35.24","Member",9,142,"N"]
["2016-04-02","Fairfield Waters Run",8.1999999999999993,11,"Marrinan Michael","35.35","Member",10,141,"N"]
["2016-04-02","Fairfield Waters Run",8.1999999999999993,12,"Day Paul","36.04","Member",11,140,"N"]
["2016-04-02","Fairfield Waters Run",8.1999999999999993,13,"Watkins Meredith","36.12","Member",12,139,"N"]
["2016-04-02","Fairfield Waters Run",8.1999999999999993,14,"Kemei Joseph","36.34","Non-Member","N/A",0,"Y"]
["2016-04-02","Fairfield Waters Run",8.1999999999999993,15,"Hiette Terry","36.43","Member",13,138,"N"]
["2016-04-02","Fairfield Waters Run",8.1999999999999993,16,"Crawford Les","36.49","Member",14,137,"N"]
["2016-04-02","Fairfield Waters Run",8.1999999999999993,17,"Evans Derrick","36.58","Member",15,136,"N"]
["2016-04-02","Fairfield Waters Run",8.1999999999999993,18,"Cullen David","37.05","Member-but exclude run > 1 month before joining","N/A",0,"Y"]
["2016-04-02","Fairfield Waters Run",8.1999999999999993,19,"Sewell Dave","37.26","Member",16,135,"N"]
["2016-04-02","Fairfield Waters Run",8.1999999999999993,20,"Schick Gerard","37.29","Member",17,134,"N"]
["2016-04-02","Fairfield Waters Run",8.1999999999999993,21,"Doherty Bill","37.36","Member",18,133,"N"]
["2016-04-02","Fairfield Waters Run",8.1999999999999993,22,"Brunker Julie","37.46","Member",19,132,"N"]
["2016-04-02","Fairfield Waters Run",8.1999999999999993,23,"Carter Brendan","38.04","Member",20,131,"N"]
["2016-04-02","Fairfield Waters Run",8.1999999999999993,24,"Sewell Lara","38.29","Member",21,130,"N"]
["2016-04-02","Fairfield Waters Run",8.1999999999999993,25,"Hunter Michael","38.47","Member",22,129,"N"]
["2016-04-02","Fairfield Waters Run",8.1999999999999993,26,"Smales Clayton","38.53","Member",23,128,"N"]
["2016-04-02","Fairfield Waters Run",8.1999999999999993,27,"Frazer Ian","38.56","Member",24,127,"N"]
["2016-04-02","Fairfield Waters Run",8.1999999999999993,28,"Hyde Jevyn","39.05","Member",25,0,"Y"]
["2016-04-02","Fairfield Waters Run",8.1999999999999993,29,"Bradley Fraser","39.11","Member",26,125,"N"]
["2016-04-02","Fairfield Waters Run",8.1999999999999993,30,"Kiernan Sophie","39.17","Member",27,124,"N"]
["2016-04-02","Fairfield Waters Run",8.1999999999999993,31,"Brooks Steve","39.21","Member",28,123,"N"]
["2016-04-02","Fairfield Waters Run",8.1999999999999993,32,"Norris Bernie","39.22","Non-Member","N/A",0,"Y"]
["2016-04-02","Fairfield Waters Run",8.1999999999999993,33,"Weller Simon","39.23","Non-Member","N/A",0,"Y"]
["2016-04-02","Fairfield Waters Run",8.1999999999999993,34,"Nicholson Trevor","39.34","Member",29,122,"N"]
["2016-04-02","Fairfield Waters Run",8.1999999999999993,35,"Reynolds Dan","40.10","Member",30,121,"N"]
["2016-04-02","Fairfield Waters Run",8.1999999999999993,36,"Newman Lyn","40.18","Member",31,120,"N"]
["2016-04-02","Fairfield Waters Run",8.1999999999999993,37,"Hoggan John","40.20","Member",32,119,"N"]
["2016-04-02","Fairfield Waters Run",8.1999999999999993,38,"Illman Stuart","40.42","Member",33,118,"N"]
["2016-04-02","Fairfield Waters Run",8.1999999999999993,39,"O'Regan Paul","41.01","Member",34,117,"N"]
["2016-04-02","Fairfield Waters Run",8.1999999999999993,40,"O'Reilly Phil","41.14","Member",35,116,"N"]
["2016-04-02","Fairfield Waters Run",8.1999999999999993,41,"Wheeler Jude","41.21","Non-Member","N/A",0,"Y"]
["2016-04-02","Fairfield Waters Run",8.1999999999999993,42,"Flynn-Pittar Isis","41.21","Member-but exclude run > 1 month before joining","N/A",0,"Y"]
["2016-04-02","Fairfield Waters Run",8.1999999999999993,43,"Ellershaw Robert","41.26","Member",36,115,"N"]
["2016-04-02","Fairfield Waters Run",8.1999999999999993,44,"Morgan Emma","41.28","Non-Member","N/A",0,"Y"]
["2016-04-02","Fairfield Waters Run",8.1999999999999993,45,"Donoghue Michael","41.56","Member",37,0,"Y"]
["2016-04-02","Fairfield Waters Run",8.1999999999999993,46,"Mayhew Susan","41.56","Member",38,113,"N"]
["2016-04-02","Fairfield Waters Run",8.1999999999999993,47,"Cox Sherry","42.11","Member",39,0,"Y"]
["2016-04-02","Fairfield Waters Run",8.1999999999999993,48,"Prasser Mark","42.49","Member",40,111,"N"]
["2016-04-02","Fairfield Waters Run",8.1999999999999993,49,"Gustavson Russell","43.55","Non-Member","N/A",0,"Y"]
["2016-04-02","Fairfield Waters Run",8.1999999999999993,50,"Gifford Kelly","44.04","Member",41,110,"N"]
["2016-04-02","Fairfield Waters Run",8.1999999999999993,51,"Wenta Jason","44.23","Non-Member","N/A",0,"Y"]
["2016-04-02","Fairfield Waters Run",8.1999999999999993,52,"Nelson Jesslyn","44.26","Member",42,109,"N"]
["2016-04-02","Fairfield Waters Run",8.1999999999999993,53,"Malan Carsten","44.30","Non-Member","N/A",0,"Y"]
["2016-04-02","Fairfield Waters Run",8.1999999999999993,54,"Gilboy Arthur","44.49","Non-Member","N/A",0,"Y"]
["2016-04-02","Fairfield Waters Run",8.1999999999999993,55,"Daamen Antony","44.53","Member",43,108,"N"]
["2016-04-02","Fairfield Waters Run",8.1999999999999993,56,"Mcinnes Scott","44.58","Member",44,107,"N"]
["2016-04-02","Fairfield Waters Run",8.1999999999999993,57,"Eriksen Dale","45.05","Member",45,106,"N"]
["2016-04-02","Fairfield Waters Run",8.1999999999999993,58,"Rich Keith","45.27","Member",46,105,"N"]
["2016-04-02","Fairfield Waters Run",8.1999999999999993,59,"Wharton David","45.39","Member",47,104,"N"]
["2016-04-02","Fairfield Waters Run",8.1999999999999993,60,"Robets Stephen","45.41","Non-Member","N/A",0,"Y"]
["2016-04-02","Fairfield Waters Run",8.1999999999999993,61,"Marrinan Isa","45.46","Member",48,0,"Y"]
["2016-04-02","Fairfield Waters Run",8.1999999999999993,62,"Tirendi Francesco","46.08","Member",49,0,"Y"]
["2016-04-02","Fairfield Waters Run",8.1999999999999993,63,"Labuschagne Rosemarie","46.46","Member",50,0,"Y"]
["2016-04-02","Fairfield Waters Run",8.1999999999999993,64,"Groat Veronica","47.04","Member",51,100,"N"]
["2016-04-02","Fairfield Waters Run",8.1999999999999993,65,"Daunt Belinda","47.04","Member",52,99,"N"]
["2016-04-02","Fairfield Waters Run",8.1999999999999993,66,"Doyle Rachel","47.15","Member",53,98,"N"]
["2016-04-02","Fairfield Waters Run",8.1999999999999993,67,"Groose John","47.29","Non-Member","N/A",0,"Y"]
["2016-04-02","Fairfield Waters Run",8.1999999999999993,68,"Pratt Kathryn","48.03","Non-Member","N/A",0,"Y"]
["2016-04-02","Fairfield Waters Run",8.1999999999999993,69,"Tsang Deffy","48.35","Member",54,97,"N"]
["2016-04-02","Fairfield Waters Run",8.1999999999999993,70,"Hannay Andrew","48.39","Member",55,96,"N"]
["2016-04-02","Fairfield Waters Run",8.1999999999999993,71,"Labuschagne Celeste","49.04","Member",56,95,"N"]
["2016-04-02","Fairfield Waters Run",8.1999999999999993,72,"Johnson Cat","49.05","Member",57,94,"N"]
["2016-04-02","Fairfield Waters Run",8.1999999999999993,73,"Smith Mathew","49.07","Member",58,93,"N"]
["2016-04-02","Fairfield Waters Run",8.1999999999999993,74,"Doherty Rosie","49.08","Member",59,92,"N"]
["2016-04-02","Fairfield Waters Run",8.1999999999999993,75,"Jenkins Cass","49.12","Non-Member","N/A",0,"Y"]
["2016-04-02","Fairfield Waters Run",8.1999999999999993,76,"Freislich Natalie","49.22","Member",60,91,"N"]
["2016-04-02","Fairfield Waters Run",8.1999999999999993,77,"Garvie Diane","49.40","Member",61,90,"N"]
["2016-04-02","Fairfield Waters Run",8.1999999999999993,78,"Pearce Jayson","50.54","Non-Member","N/A",0,"Y"]
["2016-04-02","Fairfield Waters Run",8.1999999999999993,79,"Rubenach Mike","51.01","Member",62,89,"N"]
["2016-04-02","Fairfield Waters Run",8.1999999999999993,80,"Hooper Garry","51.02","Member",63,88,"N"]
["2016-04-02","Fairfield Waters Run",8.1999999999999993,81,"Muhlenberg Conny","51.14","Member",64,87,"N"]
["2016-04-02","Fairfield Waters Run",8.1999999999999993,82,"Keir Therese","51.24","Member",65,86,"N"]
["2016-04-02","Fairfield Waters Run",8.1999999999999993,83,"Horscroft Susan","51.30","Member",66,85,"N"]
["2016-04-02","Fairfield Waters Run",8.1999999999999993,84,"Sturtz James","51.44","Non-Member","N/A",0,"Y"]
["2016-04-02","Fairfield Waters Run",8.1999999999999993,85,"Machin Pook","51.55","Member-but exclude run > 1 month before joining","N/A",0,"Y"]
["2016-04-02","Fairfield Waters Run",8.1999999999999993,86,"Stewart Vijaya","52.03","Non-Member","N/A",0,"Y"]
["2016-04-02","Fairfield Waters Run",8.1999999999999993,87,"Davies Glen","52.14","Member",67,84,"N"]
["2016-04-02","Fairfield Waters Run",8.1999999999999993,88,"Evas Sorene","52.30","Non-Member","N/A",0,"Y"]
["2016-04-02","Fairfield Waters Run",8.1999999999999993,89,"Milani Marianne","52.30","Non-Member","N/A",0,"Y"]
["2016-04-02","Fairfield Waters Run",8.1999999999999993,90,"Catterall Ian R","52.31","Member",68,83,"N"]
["2016-04-02","Fairfield Waters Run",8.1999999999999993,91,"Hooper Jan","52.50","Member",69,82,"N"]
["2016-04-02","Fairfield Waters Run",8.1999999999999993,92,"Brown Jenny","53.07","Member",70,0,"Y"]
["2016-04-02","Fairfield Waters Run",8.1999999999999993,93,"Otto Annaliese","53.16","Member",71,80,"N"]
["2016-04-02","Fairfield Waters Run",8.1999999999999993,94,"Pain Tilley","53.20","Member",72,79,"N"]
["2016-04-02","Fairfield Waters Run",8.1999999999999993,95,"Donoghue Mary","53.51","Member",73,0,"Y"]
["2016-04-02","Fairfield Waters Run",8.1999999999999993,96,"Thompson Wally","54.01","Member",74,77,"N"]
["2016-04-02","Fairfield Waters Run",8.1999999999999993,97,"Cameron Susanah","54.38","Non-Member","N/A",0,"Y"]
["2016-04-02","Fairfield Waters Run",8.1999999999999993,98,"Doherty Susan","54.41","Member",75,0,"Y"]
["2016-04-02","Fairfield Waters Run",8.1999999999999993,99,"Daniel Ryan","56.07","Non-Member","N/A",0,"Y"]
["2016-04-02","Fairfield Waters Run",8.1999999999999993,100,"Beil Lyndie","57.30","Member",76,0,"Y"]
["2016-04-02","Fairfield Waters Run",8.1999999999999993,101,"Sibley Jack","58.27","Member",77,74,"N"]
["2016-04-02","Fairfield Waters Run",8.1999999999999993,102,"De Jong Jaap","58.47","Member",78,0,"Y"]
["2016-04-02","Fairfield Waters Run",8.1999999999999993,103,"Brooke-Taylor David","1.00.08","Member",79,72,"N"]
["2016-04-02","Fairfield Waters Run",8.1999999999999993,104,"Roberts Karen","1.00.40","Member",80,71,"N"]
["2016-04-02","Fairfield Waters Run",8.1999999999999993,105,"Kelso Sylvia","1.02.11","Member",81,70,"N"]
["2016-04-09","Railway Run",8.6999999999999993,1,"Harding Michael","34.49","Member",1,150,"N"]
["2016-04-09","Railway Run",8.6999999999999993,2,"Buchholz Mark","35.02","Member",2,149,"N"]
["2016-04-09","Railway Run",8.6999999999999993,3,"Hynes Shane","35.09","Member",3,148,"N"]
["2016-04-09","Railway Run",8.6999999999999993,4,"Ellett Greg","35.46","Non-Member","N/A",0,"Y"]
["2016-04-09","Railway Run",8.6999999999999993,5,"Nethery Yideg","36.35","Non-Member","N/A",0,"Y"]
["2016-04-09","Railway Run",8.6999999999999993,6,"Pretorius Christiaan","36.36","Member",4,147,"N"]
["2016-04-09","Railway Run",8.6999999999999993,7,"Wallis Cameron","36.43","Member",5,146,"N"]
["2016-04-09","Railway Run",8.6999999999999993,8,"Stripp Deon","37.13","Member",6,0,"Y"]
["2016-04-09","Railway Run",8.6999999999999993,9,"Shields Jeremy","37.57","Member",7,144,"N"]
["2016-04-09","Railway Run",8.6999999999999993,10,"Copp Philip","38.19","Member",8,143,"N"]
["2016-04-09","Railway Run",8.6999999999999993,11,"Marrinan Michael","38.42","Member",9,142,"N"]
["2016-04-09","Railway Run",8.6999999999999993,12,"Stafford Erin","38.45","Member",10,141,"N"]
["2016-04-09","Railway Run",8.6999999999999993,13,"Werbeloff Gavin","38.46","Member",11,140,"N"]
["2016-04-09","Railway Run",8.6999999999999993,14,"Kemei Joseph","39.57","Non-Member","N/A",0,"Y"]
["2016-04-09","Railway Run",8.6999999999999993,15,"Hyde Jevyn","40.23","Member",12,139,"N"]
["2016-04-09","Railway Run",8.6999999999999993,16,"Cullen David","41.05","Member",13,138,"N"]
["2016-04-09","Railway Run",8.6999999999999993,17,"Day Paul","41.06","Member",14,137,"N"]
["2016-04-09","Railway Run",8.6999999999999993,18,"Crawford Les","41.10","Member",15,136,"N"]
["2016-04-09","Railway Run",8.6999999999999993,19,"Kerby William","41.15","Non-Member","N/A",0,"Y"]
["2016-04-09","Railway Run",8.6999999999999993,20,"Evans Derrick","41.41","Member",16,135,"N"]
["2016-04-09","Railway Run",8.6999999999999993,21,"Doherty Bill","42.06","Member",17,134,"N"]
["2016-04-09","Railway Run",8.6999999999999993,22,"Sewell Dave","42.20","Member",18,133,"N"]
["2016-04-09","Railway Run",8.6999999999999993,23,"O'Regan Paul","42.59","Member",19,132,"N"]
["2016-04-09","Railway Run",8.6999999999999993,24,"Reynolds Dan","43.05","Member",20,131,"N"]
["2016-04-09","Railway Run",8.6999999999999993,25," No Name Recorded","43.09","Non-Member","N/A",0,"Y"]
["2016-04-09","Railway Run",8.6999999999999993,26,"Nahrung David","43.16","Member",21,130,"N"]
["2016-04-09","Railway Run",8.6999999999999993,27,"Flynn-Pittar Isis","43.20","Member-but exclude run > 1 month before joining","N/A",0,"Y"]
["2016-04-09","Railway Run",8.6999999999999993,28,"Wheeler Jude","43.22","Non-Member","N/A",0,"Y"]
["2016-04-09","Railway Run",8.6999999999999993,29,"Mueller-Coons Mic","43.43","Member-but exclude run > 1 month before joining","N/A",0,"Y"]
["2016-04-09","Railway Run",8.6999999999999993,30,"Frazer Ian","43.50","Member",22,129,"N"]
["2016-04-09","Railway Run",8.6999999999999993,31,"Nicholson Trevor","44.10","Member",23,128,"N"]
["2016-04-09","Railway Run",8.6999999999999993,32,"Bradley Fraser","44.13","Member",24,127,"N"]
["2016-04-09","Railway Run",8.6999999999999993,33,"Hunter Michael","44.20","Member",25,126,"N"]
["2016-04-09","Railway Run",8.6999999999999993,34,"Stanton Geoff","44.32","Member",26,125,"N"]
["2016-04-09","Railway Run",8.6999999999999993,35,"Schmitt Travis","44.41","Member",27,124,"N"]
["2016-04-09","Railway Run",8.6999999999999993,36,"Newman Lyn","44.43","Member",28,123,"N"]
["2016-04-09","Railway Run",8.6999999999999993,37,"Kennedy Gillian","45.08","Member",29,122,"N"]
["2016-04-09","Railway Run",8.6999999999999993,38,"Schmitt Riana","45.13","Member",30,121,"N"]
["2016-04-09","Railway Run",8.6999999999999993,39,"Kiernan Sophie","45.36","Member",31,120,"N"]
["2016-04-09","Railway Run",8.6999999999999993,40,"O'Reilly Phil","46.06","Member",32,119,"N"]
["2016-04-09","Railway Run",8.6999999999999993,41,"Kerrisk John","47.05","Non-Member","N/A",0,"Y"]
["2016-04-09","Railway Run",8.6999999999999993,42,"Brunker Julie","47.09","Member",33,118,"N"]
["2016-04-09","Railway Run",8.6999999999999993,43,"Mugambi Sheba","47.20","Member",34,117,"N"]
["2016-04-09","Railway Run",8.6999999999999993,44,"Mayhew Susan","47.48","Member",35,116,"N"]
["2016-04-09","Railway Run",8.6999999999999993,45,"Morgan Emma","47.55","Non-Member","N/A",0,"Y"]
["2016-04-09","Railway Run",8.6999999999999993,46,"Donoghue Michael","48.30","Member",36,0,"Y"]
["2016-04-09","Railway Run",8.6999999999999993,47,"Nelson Jesslyn","48.31","Member",37,114,"N"]
["2016-04-09","Railway Run",8.6999999999999993,48,"Bradshaw Carola","48.36","Non-Member","N/A",0,"Y"]
["2016-04-09","Railway Run",8.6999999999999993,49,"Fanning Terence","48.46","Member",38,113,"N"]
["2016-04-09","Railway Run",8.6999999999999993,50,"Gifford Kelly","48.52","Member",39,112,"N"]
["2016-04-09","Railway Run",8.6999999999999993,51,"Newnham Colleen","49.00","Member",40,111,"N"]
["2016-04-09","Railway Run",8.6999999999999993,52,"Wharton David","49.07","Member",41,110,"N"]
["2016-04-09","Railway Run",8.6999999999999993,53,"Eriksen Dale","49.43","Member",42,109,"N"]
["2016-04-09","Railway Run",8.6999999999999993,54,"Mcinnes Scott","49.52","Member",43,108,"N"]
["2016-04-09","Railway Run",8.6999999999999993,55,"Mcnabb Jim","50.01","Member",44,107,"N"]
["2016-04-09","Railway Run",8.6999999999999993,56,"Rich Keith","50.12","Member",45,106,"N"]
["2016-04-09","Railway Run",8.6999999999999993,57,"Johnson Lia","50.22","Member",46,105,"N"]
["2016-04-09","Railway Run",8.6999999999999993,58,"Doyle Rachel","50.37","Member",47,104,"N"]
["2016-04-09","Railway Run",8.6999999999999993,59,"Malan Carsten","51.07","Non-Member","N/A",0,"Y"]
["2016-04-09","Railway Run",8.6999999999999993,60,"Tirendi Francesco","51.25","Member",48,0,"Y"]
["2016-04-09","Railway Run",8.6999999999999993,61,"Marrinan Isa","51.36","Member",49,0,"Y"]
["2016-04-09","Railway Run",8.6999999999999993,62,"Daamen Antony","51.59","Member",50,0,"Y"]
["2016-04-09","Railway Run",8.6999999999999993,63,"Labuschagne Rosemarie","52.03","Member",51,0,"Y"]
["2016-04-09","Railway Run",8.6999999999999993,64,"Hooper Garry","52.16","Member",52,99,"N"]
["2016-04-09","Railway Run",8.6999999999999993,65,"Isepy Chris","52.41","Member",53,98,"N"]
["2016-04-09","Railway Run",8.6999999999999993,66,"Benedetto Giordan","53.05","Non-Member","N/A",0,"Y"]
["2016-04-09","Railway Run",8.6999999999999993,67,"Johnson Cat","54.20","Member",54,97,"N"]
["2016-04-09","Railway Run",8.6999999999999993,68,"Doherty Rosie","54.58","Member",55,96,"N"]
["2016-04-09","Railway Run",8.6999999999999993,69,"Hannay Andrew","55.06","Member",56,95,"N"]
["2016-04-09","Railway Run",8.6999999999999993,70,"Hampton Dave","55.34","Member",57,94,"N"]
["2016-04-09","Railway Run",8.6999999999999993,71,"Bosworth Clare","55.37","Member",58,93,"N"]
["2016-04-09","Railway Run",8.6999999999999993,72,"Keir Therese","56.08","Member",59,92,"N"]
["2016-04-09","Railway Run",8.6999999999999993,73,"Sue Yek William","56.19","Member",60,91,"N"]
["2016-04-09","Railway Run",8.6999999999999993,74,"Labuschagne Celeste","56.52","Member",61,90,"N"]
["2016-04-09","Railway Run",8.6999999999999993,75,"Smith Mathew","56.53","Member",62,89,"N"]
["2016-04-09","Railway Run",8.6999999999999993,76,"Rubenach Mike","57.03","Member",63,0,"Y"]
["2016-04-09","Railway Run",8.6999999999999993,77,"Patteson Kathy","57.14","Non-Member","N/A",0,"Y"]
["2016-04-09","Railway Run",8.6999999999999993,78,"Mcallister Helen","57.24","Non-Member","N/A",0,"Y"]
["2016-04-09","Railway Run",8.6999999999999993,79,"Beacom-Halliday Om","57.25","Non-Member","N/A",0,"Y"]
["2016-04-09","Railway Run",8.6999999999999993,80,"Catterall Ian R","57.31","Member",64,87,"N"]
["2016-04-09","Railway Run",8.6999999999999993,81,"Brown Jenny","57.33","Member",65,0,"Y"]
["2016-04-09","Railway Run",8.6999999999999993,82,"West Dane","58.24","Non-Member","N/A",0,"Y"]
["2016-04-09","Railway Run",8.6999999999999993,83,"Camakaris Catrina","58.43","Member",66,85,"N"]
["2016-04-09","Railway Run",8.6999999999999993,84,"Donoghue Mary","59.10","Member",67,0,"Y"]
["2016-04-09","Railway Run",8.6999999999999993,85,"Doherty Susan","59.13","Member",68,0,"Y"]
["2016-04-09","Railway Run",8.6999999999999993,86,"De Jong Jaap","59.34","Member",69,82,"N"]
["2016-04-09","Railway Run",8.6999999999999993,87,"Hooper Jan","1.00.59","Member",70,81,"N"]
["2016-04-09","Railway Run",8.6999999999999993,88,"Beil Lyndie","1.02.46","Member",71,0,"Y"]
["2016-04-09","Railway Run",8.6999999999999993,89,"Gilboy Arthur","1.02.47","Non-Member","N/A",0,"Y"]
["2016-04-09","Railway Run",8.6999999999999993,90,"Sibley Jack","1.04.28","Member",72,79,"N"]
["2016-04-09","Railway Run",8.6999999999999993,91,"Leitch Cam","1.04.30","Member",73,78,"N"]
["2016-04-09","Railway Run",8.6999999999999993,92,"Norton Nancy","1.06.40","Member",74,77,"N"]
["2016-04-09","Railway Run",8.6999999999999993,93,"Brooke-Taylor David","1.06.41","Member",75,76,"N"]
["2016-04-09","Railway Run",8.6999999999999993,94,"Marano John","1.06.59","Member",76,75,"N"]
["2016-04-16","River Lower Loop",6.9,1,"Murphy Sam","24.20","Non-Member","N/A",0,"Y"]
["2016-04-16","River Lower Loop",6.9,2,"Harding Michael","26.04","Member",1,150,"N"]
["2016-04-16","River Lower Loop",6.9,3,"Hynes Shane","26.08","Member",2,149,"N"]
["2016-04-16","River Lower Loop",6.9,4,"Buchholz Mark","26.11","Member",3,0,"Y"]
["2016-04-16","River Lower Loop",6.9,5,"Heames Sam","26.26","Non-Member","N/A",0,"Y"]
["2016-04-16","River Lower Loop",6.9,6,"Garnett Adrian","26.49","Member",4,147,"N"]
["2016-04-16","River Lower Loop",6.9,7,"Nethery Yideg","27.22","Non-Member","N/A",0,"Y"]
["2016-04-16","River Lower Loop",6.9,8,"Boschen Matthew","27.37","Member",5,146,"N"]
["2016-04-16","River Lower Loop",6.9,9,"Wallis Cameron","27.44","Member",6,145,"N"]
["2016-04-16","River Lower Loop",6.9,10,"Kerby William","27.48","Non-Member","N/A",0,"Y"]
["2016-04-16","River Lower Loop",6.9,11,"Stripp Deon","27.51","Member",7,0,"Y"]
["2016-04-16","River Lower Loop",6.9,12,"Di Giacomo Simon","28.19","Member",8,143,"N"]
["2016-04-16","River Lower Loop",6.9,13,"Hutcheson Steven","28.24","Member",9,142,"N"]
["2016-04-16","River Lower Loop",6.9,14,"Marrinan Michael","28.40","Member",10,141,"N"]
["2016-04-16","River Lower Loop",6.9,15,"Werbeloff Gavin","28.45","Member",11,140,"N"]
["2016-04-16","River Lower Loop",6.9,16,"Maguire Gerry","28.49","Member",12,139,"N"]
["2016-04-16","River Lower Loop",6.9,17,"Schonfeldt-Roy Sonja","28.56","Member",13,0,"Y"]
["2016-04-16","River Lower Loop",6.9,18,"Illman Stuart","29.04","Member",14,137,"N"]
["2016-04-16","River Lower Loop",6.9,19,"Moseley Jordan","29.08","Member",15,136,"N"]
["2016-04-16","River Lower Loop",6.9,20,"Stafford Erin","29.12","Member",16,0,"Y"]
["2016-04-16","River Lower Loop",6.9,21,"Mentor Andre","29.17","Member",17,134,"N"]
["2016-04-16","River Lower Loop",6.9,22,"Kemei Joseph","29.23","Non-Member","N/A",0,"Y"]
["2016-04-16","River Lower Loop",6.9,23,"Fitzsimmons Michael","29.27","Member",18,0,"Y"]
["2016-04-16","River Lower Loop",6.9,24,"Watkins Meredith","29.33","Member",19,0,"Y"]
["2016-04-16","River Lower Loop",6.9,25,"Day Paul","29.58","Member",20,131,"N"]
["2016-04-16","River Lower Loop",6.9,26,"Sewell Dave","30.27","Member",21,130,"N"]
["2016-04-16","River Lower Loop",6.9,27,"Crawford Les","30.30","Member",22,0,"Y"]
["2016-04-16","River Lower Loop",6.9,28,"Brunker Julie","30.42","Member",23,128,"N"]
["2016-04-16","River Lower Loop",6.9,29,"Evans Derrick","30.48","Member",24,0,"Y"]
["2016-04-16","River Lower Loop",6.9,30,"Nahrung David","31.13","Member",25,126,"N"]
["2016-04-16","River Lower Loop",6.9,31,"Doherty Bill","31.17","Member",26,0,"Y"]
["2016-04-16","River Lower Loop",6.9,32,"Schmitt Travis","31.34","Member",27,124,"N"]
["2016-04-16","River Lower Loop",6.9,33,"O'Regan Paul","31.50","Member",28,123,"N"]
["2016-04-16","River Lower Loop",6.9,34,"Wever Simon","31.52","Non-Member","N/A",0,"Y"]
["2016-04-16","River Lower Loop",6.9,35,"Kiernan Sophie","31.59","Member",29,122,"N"]
["2016-04-16","River Lower Loop",6.9,36,"Vollmerhause Scott","32.11","Member",30,0,"Y"]
["2016-04-16","River Lower Loop",6.9,37,"Smales Clayton","32.30","Member",31,120,"N"]
["2016-04-16","River Lower Loop",6.9,38,"Hedges David","32.36","Non-Member","N/A",0,"Y"]
["2016-04-16","River Lower Loop",6.9,39,"Flynn-Pittar Isis","32.52","Member-but exclude run > 1 month before joining","N/A",0,"Y"]
["2016-04-16","River Lower Loop",6.9,40,"Nicholson Trevor","33.01","Member",32,0,"Y"]
["2016-04-16","River Lower Loop",6.9,41,"Wheeler Jude","33.08","Non-Member","N/A",0,"Y"]
["2016-04-16","River Lower Loop",6.9,42,"Frazer Ian","33.18","Member",33,118,"N"]
["2016-04-16","River Lower Loop",6.9,43,"Mugambi Sheba","33.24","Member",34,117,"N"]
["2016-04-16","River Lower Loop",6.9,44,"Newman Lyn","33.28","Member",35,116,"N"]
["2016-04-16","River Lower Loop",6.9,45,"Hyde Jevyn","33.45","Member",36,0,"Y"]
["2016-04-16","River Lower Loop",6.9,46,"Schmitt Riana","33.50","Member",37,114,"N"]
["2016-04-16","River Lower Loop",6.9,47,"O'Reilly Phil","34.11","Member",38,0,"Y"]
["2016-04-16","River Lower Loop",6.9,48,"Sturtz James","34.12","Non-Member","N/A",0,"Y"]
["2016-04-16","River Lower Loop",6.9,49,"Sansalone Luca","34.54","Non-Member","N/A",0,"Y"]
["2016-04-16","River Lower Loop",6.9,50,"Kerrisk John","34.56","Non-Member","N/A",0,"Y"]
["2016-04-16","River Lower Loop",6.9,51,"Donoghue Michael","35.12","Member",39,0,"Y"]
["2016-04-16","River Lower Loop",6.9,52,"Eriksen Dale","35.18","Member",40,111,"N"]
["2016-04-16","River Lower Loop",6.9,53,"Kennedy Gillian","35.34","Member",41,110,"N"]
["2016-04-16","River Lower Loop",6.9,54,"Gifford Kelly","35.43","Member",42,109,"N"]
["2016-04-16","River Lower Loop",6.9,55,"Cox Sherry","35.43","Member",43,0,"Y"]
["2016-04-16","River Lower Loop",6.9,56,"Desailly Nicole","35.49","Member",44,107,"N"]
["2016-04-16","River Lower Loop",6.9,57,"Gustavson Russell","36.03","Non-Member","N/A",0,"Y"]
["2016-04-16","River Lower Loop",6.9,58,"Wharton David","36.06","Member",45,106,"N"]
["2016-04-16","River Lower Loop",6.9,59,"Malan Carsten","36.12","Non-Member","N/A",0,"Y"]
["2016-04-16","River Lower Loop",6.9,60,"Mcinnes Scott","36.27","Member",46,105,"N"]
["2016-04-16","River Lower Loop",6.9,61,"Mcnabb Jim","36.31","Member",47,104,"N"]
["2016-04-16","River Lower Loop",6.9,62,"Newnham Colleen","36.33","Member",48,0,"Y"]
["2016-04-16","River Lower Loop",6.9,63,"Kirby Adrian","36.37","Member",49,102,"N"]
["2016-04-16","River Lower Loop",6.9,64,"Jowett Anna","36.44","Member",50,101,"N"]
["2016-04-16","River Lower Loop",6.9,65,"Rich Keith","36.47","Member",51,100,"N"]
["2016-04-16","River Lower Loop",6.9,66,"Walsh John","37.33","Member",52,99,"N"]
["2016-04-16","River Lower Loop",6.9,67,"Jones Lisa","38.00","Member",53,98,"N"]
["2016-04-16","River Lower Loop",6.9,68,"Tirendi Francesco","38.10","Member",54,0,"Y"]
["2016-04-16","River Lower Loop",6.9,69,"Marrinan Isa","38.22","Member",55,0,"Y"]
["2016-04-16","River Lower Loop",6.9,70,"Doyle Rachel","38.32","Member",56,95,"N"]
["2016-04-16","River Lower Loop",6.9,71,"Palmer Luke","38.32","Member",57,94,"N"]
["2016-04-16","River Lower Loop",6.9,72,"Murakami Fiona","38.42","Member",58,93,"N"]
["2016-04-16","River Lower Loop",6.9,73,"Isepy Chris","38.48","Member",59,92,"N"]
["2016-04-16","River Lower Loop",6.9,74,"Tsang Deffy","38.49","Member",60,91,"N"]
["2016-04-16","River Lower Loop",6.9,75,"Barber Belinda","38.58","Member",61,90,"N"]
["2016-04-16","River Lower Loop",6.9,76,"Collins Sarah","38.59","Member",62,89,"N"]
["2016-04-16","River Lower Loop",6.9,77,"Hooper Garry","39.01","Member",63,88,"N"]
["2016-04-16","River Lower Loop",6.9,78,"Labuschagne Celeste","39.10","Member",64,0,"Y"]
["2016-04-16","River Lower Loop",6.9,79,"Smith Mathew","39.11","Member",65,86,"N"]
["2016-04-16","River Lower Loop",6.9,80,"Labuschagne Rosemarie","39.14","Member",66,0,"Y"]
["2016-04-16","River Lower Loop",6.9,81,"Winter Sarah","39.16","Non-Member","N/A",0,"Y"]
["2016-04-16","River Lower Loop",6.9,82,"Daamen Antony","39.40","Member",67,0,"Y"]
["2016-04-16","River Lower Loop",6.9,83,"Hampton Dave","39.52","Member",68,83,"N"]
["2016-04-16","River Lower Loop",6.9,84,"Lahiff Peter","39.59","Member",69,82,"N"]
["2016-04-16","River Lower Loop",6.9,85,"Johnson Cat","40.00","Member",70,81,"N"]
["2016-04-16","River Lower Loop",6.9,86,"Smith Aaron","40.08","Non-Member","N/A",0,"Y"]
["2016-04-16","River Lower Loop",6.9,87,"Dowel Mark","40.15","Member",71,80,"N"]
["2016-04-16","River Lower Loop",6.9,88,"Garvie Diane","40.28","Member",72,79,"N"]
["2016-04-16","River Lower Loop",6.9,89,"Hannay Andrew","40.29","Member",73,78,"N"]
["2016-04-16","River Lower Loop",6.9,90,"Doherty Rosie","40.46","Member",74,77,"N"]
["2016-04-16","River Lower Loop",6.9,91,"Schadel Patrick","41.08","Non-Member","N/A",0,"Y"]
["2016-04-16","River Lower Loop",6.9,92,"Schadel Shona","41.08","Member",75,76,"N"]
["2016-04-16","River Lower Loop",6.9,93,"Pain Tilley","41.09","Member",76,75,"N"]
["2016-04-16","River Lower Loop",6.9,94,"Rubenach Mike","41.32","Member",77,0,"Y"]
["2016-04-16","River Lower Loop",6.9,95,"Patteson Kathy","41.33","Non-Member","N/A",0,"Y"]
["2016-04-16","River Lower Loop",6.9,96,"Muhlenberg Conny","41.47","Member",78,73,"N"]
["2016-04-16","River Lower Loop",6.9,97,"Hearn Jennifer","41.50","Member",79,72,"N"]
["2016-04-16","River Lower Loop",6.9,98,"Siandri Zita","42.01","Non-Member","N/A",0,"Y"]
["2016-04-16","River Lower Loop",6.9,99,"Camakaris Catrina","42.21","Member",80,71,"N"]
["2016-04-16","River Lower Loop",6.9,100,"Keir Therese","42.36","Member",81,0,"Y"]
["2016-04-16","River Lower Loop",6.9,101,"Hooper Jan","42.37","Member",82,69,"N"]
["2016-04-16","River Lower Loop",6.9,102,"Donoghue Mary","42.45","Member",83,0,"Y"]
["2016-04-16","River Lower Loop",6.9,103,"Brown Jenny","43.02","Member",84,0,"Y"]
["2016-04-16","River Lower Loop",6.9,104,"Doherty Susan","43.13","Member",85,0,"Y"]
["2016-04-16","River Lower Loop",6.9,105,"Horscroft Susan","43.34","Member",86,65,"N"]
["2016-04-16","River Lower Loop",6.9,106,"Bosworth Clare","43.37","Member",87,64,"N"]
["2016-04-16","River Lower Loop",6.9,107,"Machin Pook","43.39","Member-but exclude run > 1 month before joining","N/A",0,"Y"]
["2016-04-16","River Lower Loop",6.9,108,"Pearce Jayson","43.56","Non-Member","N/A",0,"Y"]
["2016-04-16","River Lower Loop",6.9,109,"Dowel Lee","44.09","Member",88,63,"N"]
["2016-04-16","River Lower Loop",6.9,110,"Thompson Wally","44.55","Member",89,62,"N"]
["2016-04-16","River Lower Loop",6.9,111," No Name Recorded","45.42","Non-Member","N/A",0,"Y"]
["2016-04-16","River Lower Loop",6.9,112,"Norton Nancy","46.13","Member",90,61,"N"]
["2016-04-16","River Lower Loop",6.9,113,"Beil Lyndie","47.04","Member",91,0,"Y"]
["2016-04-16","River Lower Loop",6.9,114,"Sibley Jack","47.12","Member",92,59,"N"]
["2016-04-16","River Lower Loop",6.9,115,"Marano John","47.35","Member",93,58,"N"]
["2016-04-16","River Lower Loop",6.9,116,"Ives Jim","47.42","Member",94,57,"N"]
["2016-04-16","River Lower Loop",6.9,117,"Olsen John","47.46","Member",95,56,"N"]
["2016-04-16","River Lower Loop",6.9,118,"Letizia Brian","47.47","Member",96,55,"N"]
["2016-04-16","River Lower Loop",6.9,119,"Oats Cheryl","48.05","Non-Member","N/A",0,"Y"]
["2016-04-16","River Lower Loop",6.9,120,"Singleton Trish","48.41","Non-Member","N/A",0,"Y"]
["2016-04-16","River Lower Loop",6.9,121,"Hobson Cheryl","50.15","Member",97,54,"N"]
["2016-04-16","River Lower Loop",6.9,122,"Kelso Sylvia","54.13","Member",98,53,"N"]
["2016-04-16","River Lower Loop",6.9,123,"Gillham Claudia","57.02","Member",99,52,"N"]
["2016-04-23","Town Common Loop",12.3,1,"Hynes Shane","48.47","Member",1,150,"N"]
["2016-04-23","Town Common Loop",12.3,2,"Harding Michael","49.10","Member",2,0,"Y"]
["2016-04-23","Town Common Loop",12.3,3,"Buchholz Mark","49.27","Member",3,148,"N"]
["2016-04-23","Town Common Loop",12.3,4,"Stripp Deon","52.04","Member",4,147,"N"]
["2016-04-23","Town Common Loop",12.3,5,"Turnbull Deahne","52.07","Member",5,146,"N"]
["2016-04-23","Town Common Loop",12.3,6,"Boschen Matthew","52.17","Member",6,145,"N"]
["2016-04-23","Town Common Loop",12.3,7,"Di Giacomo Simon","52.45","Member",7,144,"N"]
["2016-04-23","Town Common Loop",12.3,8,"Wallis Cameron","53.04","Member",8,0,"Y"]
["2016-04-23","Town Common Loop",12.3,9,"Pretorius Christiaan","53.16","Member",9,142,"N"]
["2016-04-23","Town Common Loop",12.3,10,"Springall Gabriella","54.30","Member",10,0,"Y"]
["2016-04-23","Town Common Loop",12.3,11,"Marrinan Michael","54.44","Member",11,140,"N"]
["2016-04-23","Town Common Loop",12.3,12,"Werbeloff Gavin","54.58","Member",12,139,"N"]
["2016-04-23","Town Common Loop",12.3,13,"De Jersey Oliver","55.07","Non-Member","N/A",0,"Y"]
["2016-04-23","Town Common Loop",12.3,14,"Hutcheson Steven","55.10","Member",13,138,"N"]
["2016-04-23","Town Common Loop",12.3,15,"Illman Stuart","55.15","Member",14,137,"N"]
["2016-04-23","Town Common Loop",12.3,16,"Watkins Meredith","55.19","Member",15,136,"N"]
["2016-04-23","Town Common Loop",12.3,17,"Stafford Erin","55.25","Member",16,0,"Y"]
["2016-04-23","Town Common Loop",12.3,18,"Mentor Andre","55.48","Member",17,134,"N"]
["2016-04-23","Town Common Loop",12.3,19,"Fitzsimmons Michael","56.17","Member",18,0,"Y"]
["2016-04-23","Town Common Loop",12.3,20,"Nuttall John","56.54","Member",19,132,"N"]
["2016-04-23","Town Common Loop",12.3,21,"Latouf Sean","57.01","Non-Member","N/A",0,"Y"]
["2016-04-23","Town Common Loop",12.3,22,"Evans Derrick","57.50","Member",20,0,"Y"]
["2016-04-23","Town Common Loop",12.3,23,"Sewell Dave","57.55","Member",21,130,"N"]
["2016-04-23","Town Common Loop",12.3,24,"Gower Adam","57.57","Non-Member","N/A",0,"Y"]
["2016-04-23","Town Common Loop",12.3,25,"Maguire Gerry","58.10","Member",22,129,"N"]
["2016-04-23","Town Common Loop",12.3,26,"Crawford Les","58.13","Member",23,0,"Y"]
["2016-04-23","Town Common Loop",12.3,27,"Cullen David","58.15","Member",24,127,"N"]
["2016-04-23","Town Common Loop",12.3,28,"Schick Gerard","58.56","Member",25,126,"N"]
["2016-04-23","Town Common Loop",12.3,29,"Howarth Dave","59.06","Non-Member","N/A",0,"Y"]
["2016-04-23","Town Common Loop",12.3,30,"Ryan Zac","59.23","Non-Member","N/A",0,"Y"]
["2016-04-23","Town Common Loop",12.3,31,"Dowling Bradley","59.25","Member",26,125,"N"]
["2016-04-23","Town Common Loop",12.3,32,"Schmitt Riana","59.27","Member",27,124,"N"]
["2016-04-23","Town Common Loop",12.3,33,"Doherty Bill","59.32","Member",28,0,"Y"]
["2016-04-23","Town Common Loop",12.3,34,"Tanner Geoff","59.50","Non-Member","N/A",0,"Y"]
["2016-04-23","Town Common Loop",12.3,35,"Schmitt Travis","1.00.39","Member",29,122,"N"]
["2016-04-23","Town Common Loop",12.3,36,"Nahrung David","1.01.01","Member",30,121,"N"]
["2016-04-23","Town Common Loop",12.3,37,"Bradley Fraser","1.01.03","Member",31,0,"Y"]
["2016-04-23","Town Common Loop",12.3,38,"Nicholson Trevor","1.01.17","Member",32,0,"Y"]
["2016-04-23","Town Common Loop",12.3,39,"Kiernan Sophie","1.01.41","Member",33,118,"N"]
["2016-04-23","Town Common Loop",12.3,40,"Morgan Emma","1.01.50","Non-Member","N/A",0,"Y"]
["2016-04-23","Town Common Loop",12.3,41,"Stanton Geoff","1.01.58","Member",34,117,"N"]
["2016-04-23","Town Common Loop",12.3,42,"Mueller-Coons Mic","1.02.01","Member",35,116,"N"]
["2016-04-23","Town Common Loop",12.3,43,"Weller Simon","1.02.02","Non-Member","N/A",0,"Y"]
["2016-04-23","Town Common Loop",12.3,44,"Machin Jamie","1.03.06","Member-but exclude run > 1 month before joining","N/A",0,"Y"]
["2016-04-23","Town Common Loop",12.3,45,"Flynn-Pittar Isis","1.03.23","Member-but exclude run > 1 month before joining","N/A",0,"Y"]
["2016-04-23","Town Common Loop",12.3,46,"Mugambi Sheba","1.04.22","Member",36,115,"N"]
["2016-04-23","Town Common Loop",12.3,47,"Hatchard Nicole","1.04.32","Non-Member","N/A",0,"Y"]
["2016-04-23","Town Common Loop",12.3,48,"Kennedy Gillian","1.05.15","Member",37,114,"N"]
["2016-04-23","Town Common Loop",12.3,49,"O'Reilly Phil","1.06.24","Member",38,0,"Y"]
["2016-04-23","Town Common Loop",12.3,50,"Wheeler Jude","1.07.38","Non-Member","N/A",0,"Y"]
["2016-04-23","Town Common Loop",12.3,51,"Cox Sherry","1.08.09","Member",39,112,"N"]
["2016-04-23","Town Common Loop",12.3,52,"Gifford Kelly","1.09.14","Member",40,111,"N"]
["2016-04-23","Town Common Loop",12.3,53,"Daunt Belinda","1.09.22","Member",41,110,"N"]
["2016-04-23","Town Common Loop",12.3,54,"Desailly Nicole","1.09.24","Member",42,109,"N"]
["2016-04-23","Town Common Loop",12.3,55,"Groat Veronica","1.09.26","Member",43,108,"N"]
["2016-04-23","Town Common Loop",12.3,56,"Mcinnes Scott","1.10.02","Member",44,107,"N"]
["2016-04-23","Town Common Loop",12.3,57,"Dawson William","1.10.07","Member",45,106,"N"]
["2016-04-23","Town Common Loop",12.3,58,"Nelson Jesslyn","1.10.17","Member",46,105,"N"]
["2016-04-23","Town Common Loop",12.3,59,"Isepy Chris","1.10.32","Member",47,104,"N"]
["2016-04-23","Town Common Loop",12.3,60,"Doyle Rachel","1.10.48","Member",48,103,"N"]
["2016-04-23","Town Common Loop",12.3,61,"Young David","1.11.01","Member",49,102,"N"]
["2016-04-23","Town Common Loop",12.3,62,"Collins Sarah","1.11.15","Member",50,101,"N"]
["2016-04-23","Town Common Loop",12.3,63,"Orth Sarah","1.11.20","Non-Member","N/A",0,"Y"]
["2016-04-23","Town Common Loop",12.3,64,"Marrinan Isa","1.11.24","Member",51,0,"Y"]
["2016-04-23","Town Common Loop",12.3,65,"Johnson Lia","1.12.23","Member",52,99,"N"]
["2016-04-23","Town Common Loop",12.3,66,"Tirendi Francesco","1.13.21","Member",53,0,"Y"]
["2016-04-23","Town Common Loop",12.3,67,"Orth Michael","1.14.31","Non-Member","N/A",0,"Y"]
["2016-04-23","Town Common Loop",12.3,68,"Labuschagne Rosemarie","1.14.46","Member",54,0,"Y"]
["2016-04-23","Town Common Loop",12.3,69,"Mcnabb Jim","1.15.26","Member",55,0,"Y"]
["2016-04-23","Town Common Loop",12.3,70,"Hooper Garry","1.15.27","Member",56,95,"N"]
["2016-04-23","Town Common Loop",12.3,71,"Tsang Deffy","1.17.18","Member",57,94,"N"]
["2016-04-23","Town Common Loop",12.3,72,"Johnson Cat","1.17.33","Member",58,93,"N"]
["2016-04-23","Town Common Loop",12.3,73,"Malan Carsten","1.17.58","Non-Member","N/A",0,"Y"]
["2016-04-23","Town Common Loop",12.3,74,"Pearce Jayson","1.18.20","Non-Member","N/A",0,"Y"]
["2016-04-23","Town Common Loop",12.3,75,"Miller Anne","1.18.58","Non-Member","N/A",0,"Y"]
["2016-04-23","Town Common Loop",12.3,76,"Smales Clayton","1.18.58","Member",59,92,"N"]
["2016-04-23","Town Common Loop",12.3,77,"Hearn Jennifer","1.19.07","Member",60,91,"N"]
["2016-04-23","Town Common Loop",12.3,78,"Hampton Dave","1.19.35","Member",61,90,"N"]
["2016-04-23","Town Common Loop",12.3,79,"Keir Therese","1.19.53","Member",62,89,"N"]
["2016-04-23","Town Common Loop",12.3,80,"Mckeon Alana","1.20.48","Non-Member","N/A",0,"Y"]
["2016-04-23","Town Common Loop",12.3,81,"Hannay Andrew","1.20.50","Member",63,88,"N"]
["2016-04-23","Town Common Loop",12.3,82,"Neimanis Greta","1.21.21","Member-but exclude run > 1 month before joining","N/A",0,"Y"]
["2016-04-23","Town Common Loop",12.3,83,"Camakaris Catrina","1.21.43","Member",64,87,"N"]
["2016-04-23","Town Common Loop",12.3,84,"Rubenach Mike","1.22.04","Member",65,0,"Y"]
["2016-04-23","Town Common Loop",12.3,85,"Patteson Kathy","1.22.10","Non-Member","N/A",0,"Y"]
["2016-04-23","Town Common Loop",12.3,86,"Siandri Zita","1.23.36","Non-Member","N/A",0,"Y"]
["2016-04-23","Town Common Loop",12.3,87,"Hooper Jan","1.24.43","Member",66,85,"N"]
["2016-04-23","Town Common Loop",12.3,88,"Dowel Lee","1.25.14","Member",67,84,"N"]
["2016-04-23","Town Common Loop",12.3,89,"Smith Mathew","1.25.35","Member",68,0,"Y"]
["2016-04-23","Town Common Loop",12.3,90,"Labuschagne Celeste","1.25.36","Member",69,0,"Y"]
["2016-04-23","Town Common Loop",12.3,91,"Thompson Wally","1.25.51","Member",70,81,"N"]
["2016-04-23","Town Common Loop",12.3,92,"Leitch Cam","1.26.14","Member",71,80,"N"]
["2016-04-23","Town Common Loop",12.3,93,"Brown Jenny","1.26.15","Member",72,0,"Y"]
["2016-04-23","Town Common Loop",12.3,94,"Beil Lyndie","1.26.20","Member",73,0,"Y"]
["2016-04-23","Town Common Loop",12.3,95,"Marano John","1.26.24","Member",74,77,"N"]
["2016-04-23","Town Common Loop",12.3,96,"Oats Cheryl","1.29.33","Non-Member","N/A",0,"Y"]
["2016-04-23","Town Common Loop",12.3,97,"Bishop Kay","1.46.38","Non-Member","N/A",0,"Y"]
["2016-04-23","Town Common Loop",12.3,98,"Neimanis Kathleen","1.46.39","Member-but exclude run > 1 month before joining","N/A",0,"Y"]
["2016-04-23","Town Common Loop",12.3,99,"Turner Katie","1.46.40","Member",75,76,"N"]
["2016-04-30","Alligator Creek Circuit",9,1,"Buchholz Mark","41.57","Member",1,150,"N"]
["2016-04-30","Alligator Creek Circuit",9,2,"Stripp Deon","43.22","Member",2,149,"N"]
["2016-04-30","Alligator Creek Circuit",9,3,"Wallis Cameron","44.18","Member",3,148,"N"]
["2016-04-30","Alligator Creek Circuit",9,4,"Springall Gabriella","45.21","Member",4,147,"N"]
["2016-04-30","Alligator Creek Circuit",9,5,"Marrinan Michael","45.22","Member",5,146,"N"]
["2016-04-30","Alligator Creek Circuit",9,6,"Pretorius Christiaan","45.30","Member",6,145,"N"]
["2016-04-30","Alligator Creek Circuit",9,7,"Illman Stuart","45.33","Member",7,144,"N"]
["2016-04-30","Alligator Creek Circuit",9,8,"Schonfeldt-Roy Sonja","46.25","Member",8,143,"N"]
["2016-04-30","Alligator Creek Circuit",9,9,"Fitzsimmons Michael","46.59","Member",9,142,"N"]
["2016-04-30","Alligator Creek Circuit",9,10,"Cullen David","48.52","Member",10,141,"N"]
["2016-04-30","Alligator Creek Circuit",9,11,"Marshall Paul","49.09","Non-Member","N/A",0,"Y"]
["2016-04-30","Alligator Creek Circuit",9,12,"Evans Derrick","49.32","Member",11,140,"N"]
["2016-04-30","Alligator Creek Circuit",9,13,"Andress Greg","50.09","Non-Member","N/A",0,"Y"]
["2016-04-30","Alligator Creek Circuit",9,14,"Vollmerhause Scott","50.16","Member",12,139,"N"]
["2016-04-30","Alligator Creek Circuit",9,15,"Flynn-Pittar Isis","50.32","Member-but exclude run > 1 month before joining","N/A",0,"Y"]
["2016-04-30","Alligator Creek Circuit",9,16,"Wheeler Jude","52.17","Non-Member","N/A",0,"Y"]
["2016-04-30","Alligator Creek Circuit",9,17,"Machin Jamie","52.57","Member-but exclude run > 1 month before joining","N/A",0,"Y"]
["2016-04-30","Alligator Creek Circuit",9,18,"Schmitt Riana","53.48","Member",13,138,"N"]
["2016-04-30","Alligator Creek Circuit",9,19,"Schmitt Travis","54.11","Member",14,137,"N"]
["2016-04-30","Alligator Creek Circuit",9,20,"Sewell Lara","54.12","Member",15,136,"N"]
["2016-04-30","Alligator Creek Circuit",9,21,"Crawford Les","55.13","Member",16,135,"N"]
["2016-04-30","Alligator Creek Circuit",9,22,"Kennedy Gillian","56.16","Member",17,134,"N"]
["2016-04-30","Alligator Creek Circuit",9,23,"Nicholson Trevor","57.10","Member",18,133,"N"]
["2016-04-30","Alligator Creek Circuit",9,24,"Mcnabb Jim","57.33","Member",19,132,"N"]
["2016-04-30","Alligator Creek Circuit",9,25,"Desailly Nicole","57.52","Member",20,131,"N"]
["2016-04-30","Alligator Creek Circuit",9,26,"Gifford Kelly","59.00","Member",21,130,"N"]
["2016-04-30","Alligator Creek Circuit",9,27,"Daunt Belinda","59.44","Member",22,129,"N"]
["2016-04-30","Alligator Creek Circuit",9,28,"Rains Alex","59.45","Non-Member","N/A",0,"Y"]
["2016-04-30","Alligator Creek Circuit",9,29,"Groat Veronica","59.48","Member",23,128,"N"]
["2016-04-30","Alligator Creek Circuit",9,30,"Nelson Jesslyn","59.49","Member",24,127,"N"]
["2016-04-30","Alligator Creek Circuit",9,31,"Hastewell Brad","1.00.29","Non-Member","N/A",0,"Y"]
["2016-04-30","Alligator Creek Circuit",9,32,"Mcinnes Scott","1.02.35","Member",25,126,"N"]
["2016-04-30","Alligator Creek Circuit",9,33,"Labuschagne Rosemarie","1.05.01","Member",26,125,"N"]
["2016-04-30","Alligator Creek Circuit",9,34,"Marrinan Isa","1.06.44","Member",27,124,"N"]
["2016-04-30","Alligator Creek Circuit",9,35,"Johnson Cat","1.08.14","Member",28,123,"N"]
["2016-04-30","Alligator Creek Circuit",9,36," No Name Recorded","1.08.26","Non-Member","N/A",0,"Y"]
["2016-04-30","Alligator Creek Circuit",9,37,"Eriksen Dale","1.08.32","Member",29,122,"N"]
["2016-04-30","Alligator Creek Circuit",9,38,"Doherty Susan","1.09.00","Member",30,121,"N"]
["2016-04-30","Alligator Creek Circuit",9,39,"Cox Sherry","1.09.25","Member",31,120,"N"]
["2016-04-30","Alligator Creek Circuit",9,40,"Muhlenberg Conny","1.12.03","Member",32,119,"N"]
["2016-04-30","Alligator Creek Circuit",9,41,"Fanning Terence","1.13.15","Member",33,118,"N"]
["2016-04-30","Alligator Creek Circuit",9,42,"Otto Annaliese","1.15.27","Member",34,117,"N"]
["2016-04-30","Alligator Creek Circuit",9,43,"Silke Doug","1.19.31","Member",35,116,"N"]
["2016-04-30","Alligator Creek Circuit",9,44,"Beil Lyndie","1.21.46","Member",36,115,"N"]
["2016-04-30","Alligator Creek Circuit",9,45,"Knowles Sandra","1.22.28","Member",37,114,"N"]
["2016-04-30","Alligator Creek Circuit",9,46,"De Jong Jaap","1.23.37","Member",38,113,"N"]
["2016-04-30","Alligator Creek Circuit",9,47,"Oats Cheryl","1.24.47","Non-Member","N/A",0,"Y"]
["2016-04-30","Alligator Creek Circuit",9,48,"Mcdonald Warren","1.28.57","Member",39,112,"N"]
["2016-04-30","Alligator Creek Circuit",9,49,"Daniel Peter","1.35.08","Member",40,111,"N"]
["2016-04-30","Alligator Creek Circuit",9,50,"Daniel Ryan","1.35.09","Non-Member","N/A",0,"Y"]
["2016-04-30","Alligator Creek Circuit",9,51,"Andersen David","2.00.00","Non-Member","N/A",0,"Y"]
["2016-04-30","Alligator Creek Circuit",9,52,"Machin Pook","2.00.00","Member-but exclude run > 1 month before joining","N/A",0,"Y"]
["2016-05-14","Pallarenda 10km Time Trial",9.9,1,"Argent Troy","36.19","Non-Member","N/A",0,"Y"]
["2016-05-14","Pallarenda 10km Time Trial",9.9,2,"O'Regan Simon","38.33","Member",1,150,"N"]
["2016-05-14","Pallarenda 10km Time Trial",9.9,3,"Hyde Jevyn","38.34","Member",2,149,"N"]
["2016-05-14","Pallarenda 10km Time Trial",9.9,4,"Wallis Cameron","39.25","Member",3,148,"N"]
["2016-05-14","Pallarenda 10km Time Trial",9.9,5,"Turnbull Deahne","39.43","Member",4,147,"N"]
["2016-05-14","Pallarenda 10km Time Trial",9.9,6,"Stripp Deon","39.55","Member",5,146,"N"]
["2016-05-14","Pallarenda 10km Time Trial",9.9,7,"Springall Gabriella","40.01","Member",6,145,"N"]
["2016-05-14","Pallarenda 10km Time Trial",9.9,8,"Sun Sizhong","40.43","Member",7,144,"N"]
["2016-05-14","Pallarenda 10km Time Trial",9.9,9,"Marrinan Michael","41.08","Member",8,143,"N"]
["2016-05-14","Pallarenda 10km Time Trial",9.9,10,"Pretorius Christiaan","41.35","Member",9,142,"N"]
["2016-05-14","Pallarenda 10km Time Trial",9.9,11,"Vance David","41.49","Non-Member","N/A",0,"Y"]
["2016-05-14","Pallarenda 10km Time Trial",9.9,12,"Agius Shawn","42.20","Non-Member","N/A",0,"Y"]
["2016-05-14","Pallarenda 10km Time Trial",9.9,13,"Kemei Joseph","42.22","Non-Member","N/A",0,"Y"]
["2016-05-14","Pallarenda 10km Time Trial",9.9,14,"Mentor Andre","42.31","Member",10,141,"N"]
["2016-05-14","Pallarenda 10km Time Trial",9.9,15,"Fitzsimmons Michael","42.36","Member",11,140,"N"]
["2016-05-14","Pallarenda 10km Time Trial",9.9,16,"Di Giacomo Simon","42.50","Member",12,139,"N"]
["2016-05-14","Pallarenda 10km Time Trial",9.9,17,"Watkins Meredith","43.00","Member",13,138,"N"]
["2016-05-14","Pallarenda 10km Time Trial",9.9,18,"Nuttall John","43.30","Member",14,137,"N"]
["2016-05-14","Pallarenda 10km Time Trial",9.9,19,"Brunker Julie","43.39","Member",15,136,"N"]
["2016-05-14","Pallarenda 10km Time Trial",9.9,20,"Sewell Dave","43.44","Member",16,135,"N"]
["2016-05-14","Pallarenda 10km Time Trial",9.9,21,"Norris Bernie","44.15","Non-Member","N/A",0,"Y"]
["2016-05-14","Pallarenda 10km Time Trial",9.9,22,"Flores Monique","44.17","Non-Member","N/A",0,"Y"]
["2016-05-14","Pallarenda 10km Time Trial",9.9,23,"Crawford Les","44.26","Member",17,134,"N"]
["2016-05-14","Pallarenda 10km Time Trial",9.9,24,"Carter Brendan","44.45","Member",18,133,"N"]
["2016-05-14","Pallarenda 10km Time Trial",9.9,25,"Nahrung David","44.51","Member",19,132,"N"]
["2016-05-14","Pallarenda 10km Time Trial",9.9,26,"Hiette Casey","45.06","Non-Member","N/A",0,"Y"]
["2016-05-14","Pallarenda 10km Time Trial",9.9,27,"Vollmerhause Scott","45.16","Member",20,131,"N"]
["2016-05-14","Pallarenda 10km Time Trial",9.9,28,"Schick Gerard","45.22","Member",21,130,"N"]
["2016-05-14","Pallarenda 10km Time Trial",9.9,29,"Hiette Terry","45.27","Member",22,129,"N"]
["2016-05-14","Pallarenda 10km Time Trial",9.9,30,"Doherty Bill","45.31","Member",23,0,"Y"]
["2016-05-14","Pallarenda 10km Time Trial",9.9,31,"Wever Simon","45.54","Non-Member","N/A",0,"Y"]
["2016-05-14","Pallarenda 10km Time Trial",9.9,32,"Morgan Emma","46.03","Non-Member","N/A",0,"Y"]
["2016-05-14","Pallarenda 10km Time Trial",9.9,33,"Schmitt Travis","46.05","Member",24,127,"N"]
["2016-05-14","Pallarenda 10km Time Trial",9.9,34,"Cullen David","46.17","Member",25,126,"N"]
["2016-05-14","Pallarenda 10km Time Trial",9.9,35,"Hunter Michael","46.39","Member",26,125,"N"]
["2016-05-14","Pallarenda 10km Time Trial",9.9,36,"Bradley Fraser","46.46","Member",27,0,"Y"]
["2016-05-14","Pallarenda 10km Time Trial",9.9,37,"Gough Justin","47.02","Non-Member","N/A",0,"Y"]
["2016-05-14","Pallarenda 10km Time Trial",9.9,38,"Mueller-Coons Mic","47.26","Member",28,123,"N"]
["2016-05-14","Pallarenda 10km Time Trial",9.9,39,"Reynolds Dan","47.29","Member",29,122,"N"]
["2016-05-14","Pallarenda 10km Time Trial",9.9,40,"Nicholson Trevor","47.43","Member",30,121,"N"]
["2016-05-14","Pallarenda 10km Time Trial",9.9,41,"Roberts Len","47.46","Non-Member","N/A",0,"Y"]
["2016-05-14","Pallarenda 10km Time Trial",9.9,42,"Vincent Anoushka","49.32","Non-Member","N/A",0,"Y"]
["2016-05-14","Pallarenda 10km Time Trial",9.9,43,"Kerrisk John","49.33","Non-Member","N/A",0,"Y"]
["2016-05-14","Pallarenda 10km Time Trial",9.9,44,"Linning Clayton","49.50","Non-Member","N/A",0,"Y"]
["2016-05-14","Pallarenda 10km Time Trial",9.9,45,"Kennedy Gillian","49.56","Member",31,120,"N"]
["2016-05-14","Pallarenda 10km Time Trial",9.9,46,"Hobbs Lucas","50.17","Non-Member","N/A",0,"Y"]
["2016-05-14","Pallarenda 10km Time Trial",9.9,47,"Madill Robyn","50.19","Non-Member","N/A",0,"Y"]
["2016-05-14","Pallarenda 10km Time Trial",9.9,48,"Gilboy Arthur","50.49","Non-Member","N/A",0,"Y"]
["2016-05-14","Pallarenda 10km Time Trial",9.9,49,"Desailly Nicole","50.53","Member",32,119,"N"]
["2016-05-14","Pallarenda 10km Time Trial",9.9,50,"Walsh John","51.02","Member",33,118,"N"]
["2016-05-14","Pallarenda 10km Time Trial",9.9,51,"Mayhew Susan","51.13","Member",34,117,"N"]
["2016-05-14","Pallarenda 10km Time Trial",9.9,52,"Jones Addie","51.19","Non-Member","N/A",0,"Y"]
["2016-05-14","Pallarenda 10km Time Trial",9.9,53,"Gifford Kelly","51.27","Member",35,116,"N"]
["2016-05-14","Pallarenda 10km Time Trial",9.9,54,"Isepy Chris","51.57","Member",36,115,"N"]
["2016-05-14","Pallarenda 10km Time Trial",9.9,55,"Francis Alley","51.59","Non-Member","N/A",0,"Y"]
["2016-05-14","Pallarenda 10km Time Trial",9.9,56,"Nelson Jesslyn","52.02","Member",37,114,"N"]
["2016-05-14","Pallarenda 10km Time Trial",9.9,57,"Whatow Bayley","52.09","Non-Member","N/A",0,"Y"]
["2016-05-14","Pallarenda 10km Time Trial",9.9,58,"Coons-Mueller Sherry","52.19","Non-Member","N/A",0,"Y"]
["2016-05-14","Pallarenda 10km Time Trial",9.9,59,"Donoghue Michael","52.41","Member",38,0,"Y"]
["2016-05-14","Pallarenda 10km Time Trial",9.9,60,"Dawson William","53.37","Member",39,112,"N"]
["2016-05-14","Pallarenda 10km Time Trial",9.9,61,"Rich Keith","53.58","Member",40,111,"N"]
["2016-05-14","Pallarenda 10km Time Trial",9.9,62,"Jenkins Cass","54.07","Non-Member","N/A",0,"Y"]
["2016-05-14","Pallarenda 10km Time Trial",9.9,63,"Mcnabb Jim","54.11","Member",41,110,"N"]
["2016-05-14","Pallarenda 10km Time Trial",9.9,64,"Marrinan Isa","54.54","Member",42,109,"N"]
["2016-05-14","Pallarenda 10km Time Trial",9.9,65,"Rodden John","56.20","Non-Member","N/A",0,"Y"]
["2016-05-14","Pallarenda 10km Time Trial",9.9,66,"Tirendi Francesco","56.25","Member",43,0,"Y"]
["2016-05-14","Pallarenda 10km Time Trial",9.9,67,"Hampton Dave","56.35","Member",44,107,"N"]
["2016-05-14","Pallarenda 10km Time Trial",9.9,68,"Mckeon Alana","56.40","Non-Member","N/A",0,"Y"]
["2016-05-14","Pallarenda 10km Time Trial",9.9,69,"Lahiff Peter","57.25","Member",45,106,"N"]
["2016-05-14","Pallarenda 10km Time Trial",9.9,70,"Otto Annaliese","58.18","Member",46,105,"N"]
["2016-05-14","Pallarenda 10km Time Trial",9.9,71,"Hooper Garry","58.19","Member",47,104,"N"]
["2016-05-14","Pallarenda 10km Time Trial",9.9,72,"Labuschagne Rosemarie","58.24","Member",48,103,"N"]
["2016-05-14","Pallarenda 10km Time Trial",9.9,73,"Johnson Cat","58.35","Member",49,102,"N"]
["2016-05-14","Pallarenda 10km Time Trial",9.9,74,"Sue Yek William","59.31","Member",50,101,"N"]
["2016-05-14","Pallarenda 10km Time Trial",9.9,75,"Lean Scott","59.38","Non-Member","N/A",0,"Y"]
["2016-05-14","Pallarenda 10km Time Trial",9.9,76,"Catterall Ian R","59.59","Member",51,100,"N"]
["2016-05-14","Pallarenda 10km Time Trial",9.9,77,"Hearn Jennifer","1.00.12","Member",52,99,"N"]
["2016-05-14","Pallarenda 10km Time Trial",9.9,78,"Camakaris Catrina","1.00.20","Member",53,98,"N"]
["2016-05-14","Pallarenda 10km Time Trial",9.9,79,"Pearce Jayson","1.01.09","Non-Member","N/A",0,"Y"]
["2016-05-14","Pallarenda 10km Time Trial",9.9,80,"Keir Therese","1.01.23","Member",54,97,"N"]
["2016-05-14","Pallarenda 10km Time Trial",9.9,81,"Hooper Jan","1.01.44","Member",55,96,"N"]
["2016-05-14","Pallarenda 10km Time Trial",9.9,82,"Donoghue Mary","1.02.07","Member",56,95,"N"]
["2016-05-14","Pallarenda 10km Time Trial",9.9,83,"Machin Pook","1.02.12","Member",57,94,"N"]
["2016-05-14","Pallarenda 10km Time Trial",9.9,84,"Doherty Susan","1.03.41","Member",58,0,"Y"]
["2016-05-14","Pallarenda 10km Time Trial",9.9,85,"De Jong Jaap","1.03.56","Member",59,92,"N"]
["2016-05-14","Pallarenda 10km Time Trial",9.9,86,"Thompson Wally","1.04.00","Member",60,91,"N"]
["2016-05-14","Pallarenda 10km Time Trial",9.9,87,"Leitch Cam","1.04.33","Member",61,90,"N"]
["2016-05-14","Pallarenda 10km Time Trial",9.9,88,"Marano John","1.09.00","Member",62,89,"N"]
["2016-05-14","Pallarenda 10km Time Trial",9.9,89,"Beil Lyndie","1.09.32","Member",63,0,"Y"]
["2016-05-14","Pallarenda 10km Time Trial",9.9,90,"Labuschagne Celeste","1.11.29","Member",64,87,"N"]
["2016-05-14","Pallarenda 10km Time Trial",9.9,91,"Smith Mathew","1.11.31","Member",65,86,"N"]
["2016-05-21","Townsville Ten Miler (PC)",16.09,1,"O'Regan Simon","1.03.59","Member",1,150,"N"]
["2016-05-21","Townsville Ten Miler (PC)",16.09,2,"Kerrisk Jason","1.04.35","Non-Member","N/A",0,"Y"]
["2016-05-21","Townsville Ten Miler (PC)",16.09,3,"Hynes Shane","1.04.45","Member",2,149,"N"]
["2016-05-21","Townsville Ten Miler (PC)",16.09,4,"Buchholz Mark","1.05.10","Member",3,148,"N"]
["2016-05-21","Townsville Ten Miler (PC)",16.09,5,"Boschen Matthew","1.07.56","Member",4,147,"N"]
["2016-05-21","Townsville Ten Miler (PC)",16.09,6,"Springall Gabriella","1.08.56","Member",5,146,"N"]
["2016-05-21","Townsville Ten Miler (PC)",16.09,7,"Di Giacomo Simon","1.09.01","Member",6,145,"N"]
["2016-05-21","Townsville Ten Miler (PC)",16.09,8,"Stripp Deon","1.09.02","Member",7,0,"Y"]
["2016-05-21","Townsville Ten Miler (PC)",16.09,9,"Vance David","1.11.05","Non-Member","N/A",0,"Y"]
["2016-05-21","Townsville Ten Miler (PC)",16.09,10,"Sun Sizhong","1.11.19","Member",8,143,"N"]
["2016-05-21","Townsville Ten Miler (PC)",16.09,11,"Schonfeldt-Roy Sonja","1.11.59","Member",9,142,"N"]
["2016-05-21","Townsville Ten Miler (PC)",16.09,12,"Marrinan Michael","1.12.14","Member",10,141,"N"]
["2016-05-21","Townsville Ten Miler (PC)",16.09,13,"Illman Stuart","1.12.32","Member",11,140,"N"]
["2016-05-21","Townsville Ten Miler (PC)",16.09,14,"Werbeloff Gavin","1.12.33","Member",12,139,"N"]
["2016-05-21","Townsville Ten Miler (PC)",16.09,15,"Kemei Joseph","1.13.21","Non-Member","N/A",0,"Y"]
["2016-05-21","Townsville Ten Miler (PC)",16.09,16,"Fitzsimmons Michael","1.13.50","Member",13,138,"N"]
["2016-05-21","Townsville Ten Miler (PC)",16.09,17,"Evans Derrick","1.14.25","Member",14,137,"N"]
["2016-05-21","Townsville Ten Miler (PC)",16.09,18,"Nuttall John","1.15.05","Member",15,136,"N"]
["2016-05-21","Townsville Ten Miler (PC)",16.09,19,"Watkins Meredith","1.15.21","Member",16,0,"Y"]
["2016-05-21","Townsville Ten Miler (PC)",16.09,20,"Brunker Julie","1.15.41","Member",17,134,"N"]
["2016-05-21","Townsville Ten Miler (PC)",16.09,21,"Schick Gerard","1.16.57","Member",18,133,"N"]
["2016-05-21","Townsville Ten Miler (PC)",16.09,22,"Flores Monique","1.17.39","Non-Member","N/A",0,"Y"]
["2016-05-21","Townsville Ten Miler (PC)",16.09,23,"Cullen David","1.17.52","Member",19,132,"N"]
["2016-05-21","Townsville Ten Miler (PC)",16.09,24,"Vollmerhause Scott","1.18.06","Member",20,131,"N"]
["2016-05-21","Townsville Ten Miler (PC)",16.09,25,"Crawford Les","1.18.18","Member",21,0,"Y"]
["2016-05-21","Townsville Ten Miler (PC)",16.09,26,"O'Regan Paul","1.18.42","Member",22,129,"N"]
["2016-05-21","Townsville Ten Miler (PC)",16.09,27,"Stacey Joanne","1.19.32","Member",23,128,"N"]
["2016-05-21","Townsville Ten Miler (PC)",16.09,28,"Nicholson Trevor","1.19.48","Member",24,127,"N"]
["2016-05-21","Townsville Ten Miler (PC)",16.09,29,"Doherty Bill","1.19.52","Member",25,0,"Y"]
["2016-05-21","Townsville Ten Miler (PC)",16.09,30,"Smales Clayton","1.22.59","Member",26,125,"N"]
["2016-05-21","Townsville Ten Miler (PC)",16.09,31,"Morgan Emma","1.23.01","Non-Member","N/A",0,"Y"]
["2016-05-21","Townsville Ten Miler (PC)",16.09,32,"Frazer Ian","1.23.08","Member",27,124,"N"]
["2016-05-21","Townsville Ten Miler (PC)",16.09,33,"Ellershaw Robert","1.23.50","Member",28,123,"N"]
["2016-05-21","Townsville Ten Miler (PC)",16.09,34,"Flynn-Pittar Isis","1.24.14","Member",29,122,"N"]
["2016-05-21","Townsville Ten Miler (PC)",16.09,35,"Wheeler Jude","1.24.16","Non-Member","N/A",0,"Y"]
["2016-05-21","Townsville Ten Miler (PC)",16.09,36,"Reynolds Dan","1.24.32","Member",30,121,"N"]
["2016-05-21","Townsville Ten Miler (PC)",16.09,37,"Stanton Geoff","1.28.16","Member",31,120,"N"]
["2016-05-21","Townsville Ten Miler (PC)",16.09,38,"Kerrisk John","1.28.17","Non-Member","N/A",0,"Y"]
["2016-05-21","Townsville Ten Miler (PC)",16.09,39,"Cox Sherry","1.28.26","Member",32,119,"N"]
["2016-05-21","Townsville Ten Miler (PC)",16.09,40,"O'Reilly Phil","1.30.09","Member",33,118,"N"]
["2016-05-21","Townsville Ten Miler (PC)",16.09,41,"Mayhew Susan","1.31.02","Member",34,117,"N"]
["2016-05-21","Townsville Ten Miler (PC)",16.09,42,"Donoghue Michael","1.31.03","Member",35,0,"Y"]
["2016-05-21","Townsville Ten Miler (PC)",16.09,43,"Armit Brian","1.31.04","Member",36,115,"N"]
["2016-05-21","Townsville Ten Miler (PC)",16.09,44,"Standlay Leanne","1.31.42","Non-Member","N/A",0,"Y"]
["2016-05-21","Townsville Ten Miler (PC)",16.09,45,"Gustavson Russell","1.32.01","Non-Member","N/A",0,"Y"]
["2016-05-21","Townsville Ten Miler (PC)",16.09,46,"Jenkins Cass","1.32.10","Non-Member","N/A",0,"Y"]
["2016-05-21","Townsville Ten Miler (PC)",16.09,47,"Pearson Krystal","1.32.27","Member",37,114,"N"]
["2016-05-21","Townsville Ten Miler (PC)",16.09,48,"Isepy Chris","1.34.30","Member",38,113,"N"]
["2016-05-21","Townsville Ten Miler (PC)",16.09,49,"Nelson Jesslyn","1.34.51","Member",39,112,"N"]
["2016-05-21","Townsville Ten Miler (PC)",16.09,50,"Mcinnes Scott","1.36.21","Member",40,111,"N"]
["2016-05-21","Townsville Ten Miler (PC)",16.09,51,"Marrinan Isa","1.36.28","Member",41,110,"N"]
["2016-05-21","Townsville Ten Miler (PC)",16.09,52,"Rich Keith","1.36.32","Member",42,109,"N"]
["2016-05-21","Townsville Ten Miler (PC)",16.09,53,"Johnson Lia","1.38.03","Member",43,108,"N"]
["2016-05-21","Townsville Ten Miler (PC)",16.09,54,"Day Paul","1.38.05","Member",44,107,"N"]
["2016-05-21","Townsville Ten Miler (PC)",16.09,55,"Tirendi Francesco","1.38.58","Member",45,0,"Y"]
["2016-05-21","Townsville Ten Miler (PC)",16.09,56,"Malan Carsten","1.39.00","Non-Member","N/A",0,"Y"]
["2016-05-21","Townsville Ten Miler (PC)",16.09,57,"Mugambi Sheba","1.43.02","Member",46,105,"N"]
["2016-05-21","Townsville Ten Miler (PC)",16.09,58,"Rubenach Mike","1.43.03","Member",47,104,"N"]
["2016-05-21","Townsville Ten Miler (PC)",16.09,59,"Sue Yek William","1.45.03","Member",48,103,"N"]
["2016-05-21","Townsville Ten Miler (PC)",16.09,60,"Hawey Loretto","1.45.13","Non-Member","N/A",0,"Y"]
["2016-05-21","Townsville Ten Miler (PC)",16.09,61,"Johnson Cat","1.49.43","Member",49,102,"N"]
["2016-05-21","Townsville Ten Miler (PC)",16.09,62,"Garvie Diane","1.50.26","Member",50,101,"N"]
["2016-05-21","Townsville Ten Miler (PC)",16.09,63,"Keir Therese","1.50.48","Member",51,100,"N"]
["2016-05-21","Townsville Ten Miler (PC)",16.09,64,"Leitch Cam","1.50.50","Member",52,99,"N"]
["2016-05-21","Townsville Ten Miler (PC)",16.09,65,"Doherty Rosie","1.54.23","Member",53,98,"N"]
["2016-05-21","Townsville Ten Miler (PC)",16.09,66,"Doherty Susan","1.54.32","Member",54,97,"N"]
["2016-05-21","Townsville Ten Miler (PC)",16.09,67,"Brown Jenny","1.54.46","Member",55,96,"N"]
["2016-05-21","Townsville Ten Miler (PC)",16.09,68,"Beil Lyndie","2.04.53","Member",56,0,"Y"]
["2016-05-28","West Water Tanks",9.8000000000000007,1,"O'Regan Simon","41.53","Member",1,150,"N"]
["2016-05-28","West Water Tanks",9.8000000000000007,2,"Wallis Cameron","44.02","Member",2,149,"N"]
["2016-05-28","West Water Tanks",9.8000000000000007,3,"Turnbull Deahne","44.14","Member",3,148,"N"]
["2016-05-28","West Water Tanks",9.8000000000000007,4,"Springall Gabriella","44.30","Member",4,147,"N"]
["2016-05-28","West Water Tanks",9.8000000000000007,5,"Stripp Deon","44.54","Member",5,146,"N"]
["2016-05-28","West Water Tanks",9.8000000000000007,6,"Garnett Adrian","45.10","Member",6,145,"N"]
["2016-05-28","West Water Tanks",9.8000000000000007,7,"Vance David","45.33","Non-Member","N/A",0,"Y"]
["2016-05-28","West Water Tanks",9.8000000000000007,8,"Di Giacomo Simon","46.04","Member",7,144,"N"]
["2016-05-28","West Water Tanks",9.8000000000000007,9,"Marrinan Michael","46.15","Member",8,143,"N"]
["2016-05-28","West Water Tanks",9.8000000000000007,10,"Illman Stuart","46.34","Member",9,142,"N"]
["2016-05-28","West Water Tanks",9.8000000000000007,11,"Schonfeldt-Roy Sonja","48.06","Member",10,141,"N"]
["2016-05-28","West Water Tanks",9.8000000000000007,12,"Watkins Meredith","48.18","Member",11,140,"N"]
["2016-05-28","West Water Tanks",9.8000000000000007,13,"Maguire Gerry","49.25","Member",12,139,"N"]
["2016-05-28","West Water Tanks",9.8000000000000007,14,"Sewell Dave","49.58","Member",13,138,"N"]
["2016-05-28","West Water Tanks",9.8000000000000007,15,"Evans Derrick","50.43","Member",14,137,"N"]
["2016-05-28","West Water Tanks",9.8000000000000007,16,"Vollmerhause Scott","50.58","Member",15,136,"N"]
["2016-05-28","West Water Tanks",9.8000000000000007,17,"Crawford Les","51.41","Member",16,135,"N"]
["2016-05-28","West Water Tanks",9.8000000000000007,18,"Guy William","51.55","Member",17,134,"N"]
["2016-05-28","West Water Tanks",9.8000000000000007,19,"Schick Gerard","52.27","Member",18,133,"N"]
["2016-05-28","West Water Tanks",9.8000000000000007,20,"Kiernan Sophie","52.52","Member",19,132,"N"]
["2016-05-28","West Water Tanks",9.8000000000000007,21,"Wever Simon","52.58","Non-Member","N/A",0,"Y"]
["2016-05-28","West Water Tanks",9.8000000000000007,22,"Nahrung David","53.17","Member",20,131,"N"]
["2016-05-28","West Water Tanks",9.8000000000000007,23,"Norris Bernie","53.26","Non-Member","N/A",0,"Y"]
["2016-05-28","West Water Tanks",9.8000000000000007,24,"Bradley Fraser","53.55","Member",21,130,"N"]
["2016-05-28","West Water Tanks",9.8000000000000007,25,"Reynolds Dan","54.01","Member",22,129,"N"]
["2016-05-28","West Water Tanks",9.8000000000000007,26,"Cooper Belinda","54.13","Non-Member","N/A",0,"Y"]
["2016-05-28","West Water Tanks",9.8000000000000007,27,"Nicholson Trevor","54.26","Member",23,128,"N"]
["2016-05-28","West Water Tanks",9.8000000000000007,28,"Day Paul","56.19","Member",24,127,"N"]
["2016-05-28","West Water Tanks",9.8000000000000007,29,"Ellershaw Robert","56.41","Member",25,126,"N"]
["2016-05-28","West Water Tanks",9.8000000000000007,30,"Hunter Matthew","56.54","Member",26,125,"N"]
["2016-05-28","West Water Tanks",9.8000000000000007,31,"Newman Lyn","57.16","Member",27,124,"N"]
["2016-05-28","West Water Tanks",9.8000000000000007,32,"Desailly Nicole","57.43","Member",28,123,"N"]
["2016-05-28","West Water Tanks",9.8000000000000007,33,"Pearson Krystal","59.13","Member",29,122,"N"]
["2016-05-28","West Water Tanks",9.8000000000000007,34,"Walsh John","59.24","Member",30,121,"N"]
["2016-05-28","West Water Tanks",9.8000000000000007,35,"Flynn-Pittar Isis","59.39","Member",31,120,"N"]
["2016-05-28","West Water Tanks",9.8000000000000007,36,"Wheeler Jude","59.40","Non-Member","N/A",0,"Y"]
["2016-05-28","West Water Tanks",9.8000000000000007,37,"Nelson Jesslyn","59.41","Member",32,119,"N"]
["2016-05-28","West Water Tanks",9.8000000000000007,38,"Kerrisk John","59.43","Non-Member","N/A",0,"Y"]
["2016-05-28","West Water Tanks",9.8000000000000007,39,"Vincent Anoushka","1.00.16","Non-Member","N/A",0,"Y"]
["2016-05-28","West Water Tanks",9.8000000000000007,40,"Malan Carsten","1.00.18","Non-Member","N/A",0,"Y"]
["2016-05-28","West Water Tanks",9.8000000000000007,41,"Eriksen Dale","1.00.37","Member",33,118,"N"]
["2016-05-28","West Water Tanks",9.8000000000000007,42,"Isepy Chris","1.00.39","Member",34,117,"N"]
["2016-05-28","West Water Tanks",9.8000000000000007,43,"Donoghue Michael","1.00.45","Member",35,0,"Y"]
["2016-05-28","West Water Tanks",9.8000000000000007,44,"Johnson Lia","1.01.27","Member",36,115,"N"]
["2016-05-28","West Water Tanks",9.8000000000000007,45,"Mcnabb Jim","1.01.28","Member",37,114,"N"]
["2016-05-28","West Water Tanks",9.8000000000000007,46,"Fanning Terence","1.01.53","Member",38,113,"N"]
["2016-05-28","West Water Tanks",9.8000000000000007,47,"Armit Brian","1.02.07","Member",39,112,"N"]
["2016-05-28","West Water Tanks",9.8000000000000007,48,"Jenkins Cass","1.02.25","Non-Member","N/A",0,"Y"]
["2016-05-28","West Water Tanks",9.8000000000000007,49,"Kewy Dave","1.03.44","Non-Member","N/A",0,"Y"]
["2016-05-28","West Water Tanks",9.8000000000000007,50,"Tirendi Francesco","1.03.45","Member",40,111,"N"]
["2016-05-28","West Water Tanks",9.8000000000000007,51,"Jowett Anna","1.03.47","Member",41,110,"N"]
["2016-05-28","West Water Tanks",9.8000000000000007,52,"Labuschagne Rosemarie","1.03.50","Member",42,109,"N"]
["2016-05-28","West Water Tanks",9.8000000000000007,53,"Hannay Andrew","1.03.52","Member",43,108,"N"]
["2016-05-28","West Water Tanks",9.8000000000000007,54,"Dowel Mark","1.04.10","Member",44,107,"N"]
["2016-05-28","West Water Tanks",9.8000000000000007,55,"Daniel Ryan","1.05.15","Non-Member","N/A",0,"Y"]
["2016-05-28","West Water Tanks",9.8000000000000007,56,"Collins Sarah","1.05.16","Member",45,106,"N"]
["2016-05-28","West Water Tanks",9.8000000000000007,57,"Daamen Antony","1.05.26","Member",46,0,"Y"]
["2016-05-28","West Water Tanks",9.8000000000000007,58,"Marrinan Isa","1.05.35","Member",47,104,"N"]
["2016-05-28","West Water Tanks",9.8000000000000007,59," No Name Recorded","1.07.25","Non-Member","N/A",0,"Y"]
["2016-05-28","West Water Tanks",9.8000000000000007,60,"Sue Yek William","1.07.45","Member",48,103,"N"]
["2016-05-28","West Water Tanks",9.8000000000000007,61,"Dicketts Kelly","1.08.14","Member",49,102,"N"]
["2016-05-28","West Water Tanks",9.8000000000000007,62,"Labuschagne Celeste","1.08.34","Member",50,101,"N"]
["2016-05-28","West Water Tanks",9.8000000000000007,63,"Smith Mathew","1.08.35","Member",51,100,"N"]
["2016-05-28","West Water Tanks",9.8000000000000007,64,"Otto Annaliese","1.08.44","Member",52,99,"N"]
["2016-05-28","West Water Tanks",9.8000000000000007,65,"Donoghue Mary","1.09.06","Member",53,98,"N"]
["2016-05-28","West Water Tanks",9.8000000000000007,66,"Keir Therese","1.09.38","Member",54,97,"N"]
["2016-05-28","West Water Tanks",9.8000000000000007,67,"Patteson Kathy","1.09.57","Non-Member","N/A",0,"Y"]
["2016-05-28","West Water Tanks",9.8000000000000007,68,"Camakaris Catrina","1.11.08","Member",55,96,"N"]
["2016-05-28","West Water Tanks",9.8000000000000007,69,"Horscroft Susan","1.12.02","Member",56,95,"N"]
["2016-05-28","West Water Tanks",9.8000000000000007,70,"Roberts Karen","1.12.33","Member",57,94,"N"]
["2016-05-28","West Water Tanks",9.8000000000000007,71,"De Jeresy Stephen","1.12.59","Non-Member","N/A",0,"Y"]
["2016-05-28","West Water Tanks",9.8000000000000007,72,"De Jeresy Louise","1.13.04","Non-Member","N/A",0,"Y"]
["2016-05-28","West Water Tanks",9.8000000000000007,73,"Olsen John","1.13.11","Member",58,93,"N"]
["2016-05-28","West Water Tanks",9.8000000000000007,74,"Ives Jim","1.13.15","Member",59,92,"N"]
["2016-05-28","West Water Tanks",9.8000000000000007,75,"De Jong Jaap","1.14.23","Member",60,91,"N"]
["2016-05-28","West Water Tanks",9.8000000000000007,76,"Mcconochie Shelly","1.16.09","Non-Member","N/A",0,"Y"]
["2016-05-28","West Water Tanks",9.8000000000000007,77,"Letizia Brian","1.16.27","Member",61,90,"N"]
["2016-05-28","West Water Tanks",9.8000000000000007,78,"Beil Lyndie","1.19.32","Member",62,0,"Y"]
["2016-05-28","West Water Tanks",9.8000000000000007,79,"Sibley Jack","1.23.46","Member",63,88,"N"]
["2016-05-28","West Water Tanks",9.8000000000000007,80,"Norton Nancy","1.24.23","Member",64,87,"N"]
["2016-06-04","Ross River Dam 10km Time Trial (PC)",10,1,"Cooper Ben","35.40","Non-Member","N/A",0,"Y"]
["2016-06-04","Ross River Dam 10km Time Trial (PC)",10,2,"O'Regan Simon","36.50","Member",1,150,"N"]
["2016-06-04","Ross River Dam 10km Time Trial (PC)",10,3,"Kerrisk Jason","37.13","Non-Member","N/A",0,"Y"]
["2016-06-04","Ross River Dam 10km Time Trial (PC)",10,4,"Buchholz Mark","37.14","Member",2,149,"N"]
["2016-06-04","Ross River Dam 10km Time Trial (PC)",10,5,"Harding Michael","37.57","Member",3,0,"Y"]
["2016-06-04","Ross River Dam 10km Time Trial (PC)",10,6,"Sense Richmond","38.14","Non-Member","N/A",0,"Y"]
["2016-06-04","Ross River Dam 10km Time Trial (PC)",10,7,"Pitkethly Alex","38.17","Non-Member","N/A",0,"Y"]
["2016-06-04","Ross River Dam 10km Time Trial (PC)",10,8,"Wing Gordon","38.35","Member",4,147,"N"]
["2016-06-04","Ross River Dam 10km Time Trial (PC)",10,9,"Di Giacomo Simon","39.35","Member",5,146,"N"]
["2016-06-04","Ross River Dam 10km Time Trial (PC)",10,10,"Stripp Deon","39.46","Member",6,0,"Y"]
["2016-06-04","Ross River Dam 10km Time Trial (PC)",10,11,"Sun Sizhong","39.47","Member",7,144,"N"]
["2016-06-04","Ross River Dam 10km Time Trial (PC)",10,12,"Garnett Adrian","39.53","Member",8,143,"N"]
["2016-06-04","Ross River Dam 10km Time Trial (PC)",10,13,"Turnbull Deahne","40.13","Member",9,142,"N"]
["2016-06-04","Ross River Dam 10km Time Trial (PC)",10,14,"Wallis Cameron","41.40","Member",10,0,"Y"]
["2016-06-04","Ross River Dam 10km Time Trial (PC)",10,15,"Illman Stuart","41.55","Member",11,140,"N"]
["2016-06-04","Ross River Dam 10km Time Trial (PC)",10,16,"Vance David","42.11","Non-Member","N/A",0,"Y"]
["2016-06-04","Ross River Dam 10km Time Trial (PC)",10,17,"Norris Bernie","42.31","Non-Member","N/A",0,"Y"]
["2016-06-04","Ross River Dam 10km Time Trial (PC)",10,18,"Pretorius Christiaan","42.44","Member",12,139,"N"]
["2016-06-04","Ross River Dam 10km Time Trial (PC)",10,19,"Stafford Erin","42.49","Member",13,138,"N"]
["2016-06-04","Ross River Dam 10km Time Trial (PC)",10,20,"Schonfeldt-Roy Sonja","42.56","Member",14,0,"Y"]
["2016-06-04","Ross River Dam 10km Time Trial (PC)",10,21,"Fitzsimmons Michael","43.05","Member",15,0,"Y"]
["2016-06-04","Ross River Dam 10km Time Trial (PC)",10,22,"Evans Derrick","43.23","Member",16,135,"N"]
["2016-06-04","Ross River Dam 10km Time Trial (PC)",10,23,"Schick Gerard","44.15","Member",17,134,"N"]
["2016-06-04","Ross River Dam 10km Time Trial (PC)",10,24,"Hiette Casey","44.21","Non-Member","N/A",0,"Y"]
["2016-06-04","Ross River Dam 10km Time Trial (PC)",10,25,"Crawford Les","44.33","Member",18,133,"N"]
["2016-06-04","Ross River Dam 10km Time Trial (PC)",10,26,"Vollmerhause Scott","44.34","Member",19,132,"N"]
["2016-06-04","Ross River Dam 10km Time Trial (PC)",10,27,"Flynn-Pittar Isis","45.01","Member",20,131,"N"]
["2016-06-04","Ross River Dam 10km Time Trial (PC)",10,28,"Day Paul","45.40","Member",21,130,"N"]
["2016-06-04","Ross River Dam 10km Time Trial (PC)",10,29,"Doherty Bill","45.44","Member",22,0,"Y"]
["2016-06-04","Ross River Dam 10km Time Trial (PC)",10,30,"Wever Simon","45.55","Non-Member","N/A",0,"Y"]
["2016-06-04","Ross River Dam 10km Time Trial (PC)",10,31,"Morgan Emma","46.08","Non-Member","N/A",0,"Y"]
["2016-06-04","Ross River Dam 10km Time Trial (PC)",10,32,"Hiette Terry","46.30","Member",23,128,"N"]
["2016-06-04","Ross River Dam 10km Time Trial (PC)",10,33,"Wheeler Jude","46.39","Non-Member","N/A",0,"Y"]
["2016-06-04","Ross River Dam 10km Time Trial (PC)",10,34,"Smales Clayton","46.45","Member",24,127,"N"]
["2016-06-04","Ross River Dam 10km Time Trial (PC)",10,35,"Machin Jamie","46.59","Member",25,126,"N"]
["2016-06-04","Ross River Dam 10km Time Trial (PC)",10,36,"Stacey Joanne","47.01","Member",26,125,"N"]
["2016-06-04","Ross River Dam 10km Time Trial (PC)",10,37,"Bradley Fraser","47.11","Member",27,0,"Y"]
["2016-06-04","Ross River Dam 10km Time Trial (PC)",10,38,"Neimanis Peter","47.17","Member",28,123,"N"]
["2016-06-04","Ross River Dam 10km Time Trial (PC)",10,39,"Mugambi Sheba","47.22","Member",29,122,"N"]
["2016-06-04","Ross River Dam 10km Time Trial (PC)",10,40,"Nahrung David","47.25","Member",30,121,"N"]
["2016-06-04","Ross River Dam 10km Time Trial (PC)",10,41,"Guy William","47.25","Member",31,120,"N"]
["2016-06-04","Ross River Dam 10km Time Trial (PC)",10,42,"Nicholson Trevor","48.05","Member",32,0,"Y"]
["2016-06-04","Ross River Dam 10km Time Trial (PC)",10,43,"Ellershaw Robert","48.23","Member",33,118,"N"]
["2016-06-04","Ross River Dam 10km Time Trial (PC)",10,44,"Frazer Ian","48.32","Member",34,0,"Y"]
["2016-06-04","Ross River Dam 10km Time Trial (PC)",10,45,"Reynolds Dan","49.00","Member",35,116,"N"]
["2016-06-04","Ross River Dam 10km Time Trial (PC)",10,46,"Beavis Dave","49.50","Non-Member","N/A",0,"Y"]
["2016-06-04","Ross River Dam 10km Time Trial (PC)",10,47,"Sewell Lara","49.52","Member",36,115,"N"]
["2016-06-04","Ross River Dam 10km Time Trial (PC)",10,48,"Donoghue Michael","50.58","Member",37,0,"Y"]
["2016-06-04","Ross River Dam 10km Time Trial (PC)",10,49,"Cox Sherry","51.31","Member",38,113,"N"]
["2016-06-04","Ross River Dam 10km Time Trial (PC)",10,50,"Desailly Nicole","51.37","Member",39,112,"N"]
["2016-06-04","Ross River Dam 10km Time Trial (PC)",10,51,"Eriksen Dale","51.40","Member",40,111,"N"]
["2016-06-04","Ross River Dam 10km Time Trial (PC)",10,52,"Pearson Krystal","51.46","Member",41,110,"N"]
["2016-06-04","Ross River Dam 10km Time Trial (PC)",10,53,"Newnham Colleen","51.48","Member",42,109,"N"]
["2016-06-04","Ross River Dam 10km Time Trial (PC)",10,54,"Mcinnes Scott","53.07","Member",43,108,"N"]
["2016-06-04","Ross River Dam 10km Time Trial (PC)",10,55,"Doyle Rachel","53.43","Member",44,107,"N"]
["2016-06-04","Ross River Dam 10km Time Trial (PC)",10,56,"Isepy Chris","54.51","Member",45,106,"N"]
["2016-06-04","Ross River Dam 10km Time Trial (PC)",10,57,"Smith Mathew","55.40","Member",46,105,"N"]
["2016-06-04","Ross River Dam 10km Time Trial (PC)",10,58,"Labuschagne Celeste","55.41","Member",47,104,"N"]
["2016-06-04","Ross River Dam 10km Time Trial (PC)",10,59,"Marrinan Isa","55.56","Member",48,103,"N"]
["2016-06-04","Ross River Dam 10km Time Trial (PC)",10,60,"Tirendi Francesco","56.19","Member",49,0,"Y"]
["2016-06-04","Ross River Dam 10km Time Trial (PC)",10,61,"Slatcher Matthew","56.40","Non-Member","N/A",0,"Y"]
["2016-06-04","Ross River Dam 10km Time Trial (PC)",10,62,"Hampton Dave","56.40","Member",50,101,"N"]
["2016-06-04","Ross River Dam 10km Time Trial (PC)",10,63,"Labuschagne Rosemarie","57.14","Member",51,0,"Y"]
["2016-06-04","Ross River Dam 10km Time Trial (PC)",10,64,"Daamen Antony","57.30","Member",52,0,"Y"]
["2016-06-04","Ross River Dam 10km Time Trial (PC)",10,65,"Otto Annaliese","57.57","Member",53,98,"N"]
["2016-06-04","Ross River Dam 10km Time Trial (PC)",10,66,"Johnson Cat","58.11","Member",54,97,"N"]
["2016-06-04","Ross River Dam 10km Time Trial (PC)",10,67,"Armit Brian","58.28","Member",55,96,"N"]
["2016-06-04","Ross River Dam 10km Time Trial (PC)",10,68,"Rubenach Mike","58.46","Member",56,95,"N"]
["2016-06-04","Ross River Dam 10km Time Trial (PC)",10,69,"Pearce Jayson","58.54","Non-Member","N/A",0,"Y"]
["2016-06-04","Ross River Dam 10km Time Trial (PC)",10,70,"Sue Yek William","59.59","Member",57,94,"N"]
["2016-06-04","Ross River Dam 10km Time Trial (PC)",10,71,"Doherty Rosie","1.00.26","Member",58,93,"N"]
["2016-06-04","Ross River Dam 10km Time Trial (PC)",10,72,"Neimanis Greta","1.00.31","Member",59,92,"N"]
["2016-06-04","Ross River Dam 10km Time Trial (PC)",10,73,"Adrichem Jeannie","1.00.50","Non-Member","N/A",0,"Y"]
["2016-06-04","Ross River Dam 10km Time Trial (PC)",10,74,"Camakaris Catrina","1.01.21","Member",60,91,"N"]
["2016-06-04","Ross River Dam 10km Time Trial (PC)",10,75,"Horscroft Susan","1.02.18","Member",61,90,"N"]
["2016-06-04","Ross River Dam 10km Time Trial (PC)",10,76,"Donoghue Mary","1.02.54","Member",62,0,"Y"]
["2016-06-04","Ross River Dam 10km Time Trial (PC)",10,77,"Machin Pook","1.03.23","Member",63,88,"N"]
["2016-06-04","Ross River Dam 10km Time Trial (PC)",10,78,"Steel Dianne","1.03.38","Non-Member","N/A",0,"Y"]
["2016-06-04","Ross River Dam 10km Time Trial (PC)",10,79,"De Jong Jaap","1.04.11","Member",64,87,"N"]
["2016-06-04","Ross River Dam 10km Time Trial (PC)",10,80,"Doherty Susan","1.04.23","Member",65,0,"Y"]
["2016-06-04","Ross River Dam 10km Time Trial (PC)",10,81,"Pain Tilley","1.05.26","Member",66,85,"N"]
["2016-06-04","Ross River Dam 10km Time Trial (PC)",10,82,"Leitch Cam","1.05.27","Member",67,84,"N"]
["2016-06-04","Ross River Dam 10km Time Trial (PC)",10,83,"Neimanis Kathleen","1.05.45","Member",68,83,"N"]
["2016-06-04","Ross River Dam 10km Time Trial (PC)",10,84,"Brown Jenny","1.08.00","Member",69,0,"Y"]
["2016-06-04","Ross River Dam 10km Time Trial (PC)",10,85,"Beil Lyndie","1.15.10","Member",70,0,"Y"]
["2016-06-04","Ross River Dam 10km Time Trial (PC)",10,86,"Sibley Jack","1.15.12","Member",71,80,"N"]
["2016-06-04","Ross River Dam 10km Time Trial (PC)",10,87,"Turner Katie","1.19.13","Member",72,79,"N"]
["2016-06-04","Ross River Dam 10km Time Trial (PC)",10,88,"Gillham Claudia","1.27.05","Member",73,78,"N"]
["2016-06-11","Running Works Cross Country Series Race 1",6.4,1,"O'Regan Simon","23.17","Member",1,150,"N"]
["2016-06-11","Running Works Cross Country Series Race 1",6.4,2,"Harding Michael","24.31","Member",2,149,"N"]
["2016-06-11","Running Works Cross Country Series Race 1",6.4,3,"Di Giacomo Simon","24.34","Member",3,148,"N"]
["2016-06-11","Running Works Cross Country Series Race 1",6.4,4,"Buchholz Mark","24.45","Member",4,0,"Y"]
["2016-06-11","Running Works Cross Country Series Race 1",6.4,5,"Stripp Deon","25.10","Member",5,146,"N"]
["2016-06-11","Running Works Cross Country Series Race 1",6.4,6,"Pretorius Christiaan","26.14","Member",6,145,"N"]
["2016-06-11","Running Works Cross Country Series Race 1",6.4,7,"Turnbull Deahne","26.19","Member",7,144,"N"]
["2016-06-11","Running Works Cross Country Series Race 1",6.4,8,"Maguire Gerry","26.23","Member",8,143,"N"]
["2016-06-11","Running Works Cross Country Series Race 1",6.4,9,"Springall Gabriella","26.36","Member",9,0,"Y"]
["2016-06-11","Running Works Cross Country Series Race 1",6.4,10,"Fitzsimmons Michael","26.55","Member",10,141,"N"]
["2016-06-11","Running Works Cross Country Series Race 1",6.4,11,"Kelly Isobel","27.05","Member",11,140,"N"]
["2016-06-11","Running Works Cross Country Series Race 1",6.4,12,"Mentor Andre","27.15","Member",12,139,"N"]
["2016-06-11","Running Works Cross Country Series Race 1",6.4,13,"Marsh Oliver","27.20","Non-Member","N/A",0,"Y"]
["2016-06-11","Running Works Cross Country Series Race 1",6.4,14,"Flynn-Pittar Isis","27.26","Member",13,138,"N"]
["2016-06-11","Running Works Cross Country Series Race 1",6.4,15,"Watkins Meredith","27.26","Member",14,137,"N"]
["2016-06-11","Running Works Cross Country Series Race 1",6.4,16,"Schonfeldt-Roy Sonja","27.32","Member",15,0,"Y"]
["2016-06-11","Running Works Cross Country Series Race 1",6.4,17,"Kemei Joseph","28.13","Non-Member","N/A",0,"Y"]
["2016-06-11","Running Works Cross Country Series Race 1",6.4,18,"Schick Gerard","28.19","Member",16,135,"N"]
["2016-06-11","Running Works Cross Country Series Race 1",6.4,19,"Flores Monique","28.29","Non-Member","N/A",0,"Y"]
["2016-06-11","Running Works Cross Country Series Race 1",6.4,20,"Stafford Erin","28.31","Member",17,0,"Y"]
["2016-06-11","Running Works Cross Country Series Race 1",6.4,21,"Vollmerhause Scott","28.35","Member",18,133,"N"]
["2016-06-11","Running Works Cross Country Series Race 1",6.4,22,"Evans Derrick","28.40","Member",19,132,"N"]
["2016-06-11","Running Works Cross Country Series Race 1",6.4,23,"Crawford Les","28.50","Member",20,0,"Y"]
["2016-06-11","Running Works Cross Country Series Race 1",6.4,24,"Nahrung David","29.28","Member",21,130,"N"]
["2016-06-11","Running Works Cross Country Series Race 1",6.4,25,"Hunter Matthew","29.34","Member",22,129,"N"]
["2016-06-11","Running Works Cross Country Series Race 1",6.4,26,"Doherty Bill","29.36","Member",23,0,"Y"]
["2016-06-11","Running Works Cross Country Series Race 1",6.4,27,"Kiernan Sophie","29.46","Member",24,127,"N"]
["2016-06-11","Running Works Cross Country Series Race 1",6.4,28,"Brunker Julie","29.58","Member",25,126,"N"]
["2016-06-11","Running Works Cross Country Series Race 1",6.4,29,"Mcdowell Raewyn","30.16","Non-Member","N/A",0,"Y"]
["2016-06-11","Running Works Cross Country Series Race 1",6.4,30,"Stacey Joanne","30.21","Member",26,125,"N"]
["2016-06-11","Running Works Cross Country Series Race 1",6.4,31,"Bradley Fraser","30.53","Member",27,0,"Y"]
["2016-06-11","Running Works Cross Country Series Race 1",6.4,32,"Nicholson Trevor","31.16","Member",28,123,"N"]
["2016-06-11","Running Works Cross Country Series Race 1",6.4,33,"Frazer Ian","31.25","Member",29,122,"N"]
["2016-06-11","Running Works Cross Country Series Race 1",6.4,34,"Machin Jamie","32.25","Member",30,121,"N"]
["2016-06-11","Running Works Cross Country Series Race 1",6.4,35,"Clifford Tayla","32.26","Non-Member","N/A",0,"Y"]
["2016-06-11","Running Works Cross Country Series Race 1",6.4,36,"Ellershaw Robert","32.28","Member",31,120,"N"]
["2016-06-11","Running Works Cross Country Series Race 1",6.4,37,"Slatcher Matthew","32.38","Non-Member","N/A",0,"Y"]
["2016-06-11","Running Works Cross Country Series Race 1",6.4,38,"Gustavson Russell","33.14","Non-Member","N/A",0,"Y"]
["2016-06-11","Running Works Cross Country Series Race 1",6.4,39,"Newman Lyn","33.56","Member",32,119,"N"]
["2016-06-11","Running Works Cross Country Series Race 1",6.4,40,"Armit Brian","33.57","Member",33,118,"N"]
["2016-06-11","Running Works Cross Country Series Race 1",6.4,41,"Mckeon Alana","34.01","Non-Member","N/A",0,"Y"]
["2016-06-11","Running Works Cross Country Series Race 1",6.4,42,"Law Karinne","34.23","Non-Member","N/A",0,"Y"]
["2016-06-11","Running Works Cross Country Series Race 1",6.4,43,"May Jarrah","34.24","Non-Member","N/A",0,"Y"]
["2016-06-11","Running Works Cross Country Series Race 1",6.4,44,"Donoghue Michael","34.26","Member",34,117,"N"]
["2016-06-11","Running Works Cross Country Series Race 1",6.4,45,"Cox Sherry","34.34","Member",35,116,"N"]
["2016-06-11","Running Works Cross Country Series Race 1",6.4,46,"Eriksen Dale","34.39","Member",36,115,"N"]
["2016-06-11","Running Works Cross Country Series Race 1",6.4,46,"Desailly Nicole","34.39","Member",37,114,"N"]
["2016-06-11","Running Works Cross Country Series Race 1",6.4,47,"Kerrisk John","34.47","Non-Member","N/A",0,"Y"]
["2016-06-11","Running Works Cross Country Series Race 1",6.4,48,"Nelson Jesslyn","34.53","Member",38,113,"N"]
["2016-06-11","Running Works Cross Country Series Race 1",6.4,49,"Daamen Antony","35.50","Member",39,112,"N"]
["2016-06-11","Running Works Cross Country Series Race 1",6.4,50,"Rich Keith","35.56","Member",40,111,"N"]
["2016-06-11","Running Works Cross Country Series Race 1",6.4,51,"Tirendi Francesco","36.06","Member",41,110,"N"]
["2016-06-11","Running Works Cross Country Series Race 1",6.4,52,"Johnson Lia","36.16","Member",42,109,"N"]
["2016-06-11","Running Works Cross Country Series Race 1",6.4,53,"Marrinan Isa","36.26","Member",43,108,"N"]
["2016-06-11","Running Works Cross Country Series Race 1",6.4,54,"Mugambi Sheba","36.33","Member",44,107,"N"]
["2016-06-11","Running Works Cross Country Series Race 1",6.4,54,"Newnham Colleen","36.33","Member",45,0,"Y"]
["2016-06-11","Running Works Cross Country Series Race 1",6.4,55,"Smith Mathew","36.52","Member",46,105,"N"]
["2016-06-11","Running Works Cross Country Series Race 1",6.4,56,"Labuschagne Celeste","36.53","Member",47,104,"N"]
["2016-06-11","Running Works Cross Country Series Race 1",6.4,57,"Labuschagne Rosemarie","37.12","Member",48,0,"Y"]
["2016-06-11","Running Works Cross Country Series Race 1",6.4,58,"Doyle Rachel","37.29","Member",49,102,"N"]
["2016-06-11","Running Works Cross Country Series Race 1",6.4,59,"Garvie Diane","37.38","Member",50,101,"N"]
["2016-06-11","Running Works Cross Country Series Race 1",6.4,60,"Hampton Dave","37.57","Member",51,100,"N"]
["2016-06-11","Running Works Cross Country Series Race 1",6.4,61,"Muhlenberg Conny","39.10","Member",52,99,"N"]
["2016-06-11","Running Works Cross Country Series Race 1",6.4,62,"Miller Anne","39.27","Non-Member","N/A",0,"Y"]
["2016-06-11","Running Works Cross Country Series Race 1",6.4,63,"O'Connor Theresa","39.28","Non-Member","N/A",0,"Y"]
["2016-06-11","Running Works Cross Country Series Race 1",6.4,64,"Sue Yek William","39.29","Member",53,98,"N"]
["2016-06-11","Running Works Cross Country Series Race 1",6.4,65,"Otto Annaliese","40.05","Member",54,97,"N"]
["2016-06-11","Running Works Cross Country Series Race 1",6.4,66,"Parker Rod","40.17","Member",55,96,"N"]
["2016-06-11","Running Works Cross Country Series Race 1",6.4,67,"Machin Pook","40.19","Member",56,95,"N"]
["2016-06-11","Running Works Cross Country Series Race 1",6.4,68,"Keir Therese","40.32","Member",57,94,"N"]
["2016-06-11","Running Works Cross Country Series Race 1",6.4,69,"Brooke-Taylor David","40.41","Member",58,93,"N"]
["2016-06-11","Running Works Cross Country Series Race 1",6.4,70,"Donoghue Mary","40.47","Member",59,0,"Y"]
["2016-06-11","Running Works Cross Country Series Race 1",6.4,71,"Horscroft Susan","40.51","Member",60,91,"N"]
["2016-06-11","Running Works Cross Country Series Race 1",6.4,72,"Camakaris Catrina","40.58","Member",61,90,"N"]
["2016-06-11","Running Works Cross Country Series Race 1",6.4,73,"Doherty Margot","41.25","Member",62,89,"N"]
["2016-06-11","Running Works Cross Country Series Race 1",6.4,74,"Doherty Susan","41.26","Member",63,0,"Y"]
["2016-06-11","Running Works Cross Country Series Race 1",6.4,75,"Norton Nancy","43.07","Member",64,87,"N"]
["2016-06-11","Running Works Cross Country Series Race 1",6.4,76,"Beil Lyndie","44.00","Member",65,0,"Y"]
["2016-06-11","Running Works Cross Country Series Race 1",6.4,77,"Quinn Johanna","44.43","Member",66,85,"N"]
["2016-06-11","Running Works Cross Country Series Race 1",6.4,78,"Olsen John","45.04","Member",67,84,"N"]
["2016-06-11","Running Works Cross Country Series Race 1",6.4,79,"De Jong Jaap","45.36","Member",68,83,"N"]
["2016-06-11","Running Works Cross Country Series Race 1",6.4,80,"Sibley Jack","45.44","Member",69,82,"N"]
["2016-06-11","Running Works Cross Country Series Race 1",6.4,81,"Hobson Cheryl","48.27","Member",70,81,"N"]
["2016-06-11","Running Works Cross Country Series Race 1",6.4,82,"Turner Katie","51.35","Member",71,80,"N"]
["2016-06-18","Castle Hill Goat Track",6.2,1,"Harding Michael","28.07","Member",1,150,"N"]
["2016-06-18","Castle Hill Goat Track",6.2,2,"Budden Craig","28.58","Non-Member","N/A",0,"Y"]
["2016-06-18","Castle Hill Goat Track",6.2,3,"Turnbull Deahne","29.31","Member",2,149,"N"]
["2016-06-18","Castle Hill Goat Track",6.2,4,"Stripp Deon","29.49","Member",3,148,"N"]
["2016-06-18","Castle Hill Goat Track",6.2,5,"Hyde Jevyn","29.53","Member",4,147,"N"]
["2016-06-18","Castle Hill Goat Track",6.2,6,"Garnett Adrian","30.16","Member",5,146,"N"]
["2016-06-18","Castle Hill Goat Track",6.2,7,"Heames Sam","30.55","Non-Member","N/A",0,"Y"]
["2016-06-18","Castle Hill Goat Track",6.2,8,"Marrinan Michael","31.52","Member",6,145,"N"]
["2016-06-18","Castle Hill Goat Track",6.2,9,"Illman Stuart","32.13","Member",7,144,"N"]
["2016-06-18","Castle Hill Goat Track",6.2,10,"Watkins Meredith","32.17","Member",8,143,"N"]
["2016-06-18","Castle Hill Goat Track",6.2,11,"Sturtz James","33.45","Non-Member","N/A",0,"Y"]
["2016-06-18","Castle Hill Goat Track",6.2,12,"Pretorius Christiaan","33.47","Member",9,142,"N"]
["2016-06-18","Castle Hill Goat Track",6.2,13,"Nethery Yideg","33.50","Non-Member","N/A",0,"Y"]
["2016-06-18","Castle Hill Goat Track",6.2,14,"Schick Gerard","34.18","Member",10,141,"N"]
["2016-06-18","Castle Hill Goat Track",6.2,15,"Sun Sizhong","34.38","Member",11,140,"N"]
["2016-06-18","Castle Hill Goat Track",6.2,16,"Norris Bernie","35.03","Non-Member","N/A",0,"Y"]
["2016-06-18","Castle Hill Goat Track",6.2,17,"Kemei Joseph","35.34","Non-Member","N/A",0,"Y"]
["2016-06-18","Castle Hill Goat Track",6.2,18,"Reynolds Dan","35.54","Member",12,139,"N"]
["2016-06-18","Castle Hill Goat Track",6.2,19,"Doherty Bill","36.20","Member",13,138,"N"]
["2016-06-18","Castle Hill Goat Track",6.2,20,"Ellershaw Robert","38.00","Member",14,137,"N"]
["2016-06-18","Castle Hill Goat Track",6.2,21,"Bradley Fraser","38.12","Member",15,136,"N"]
["2016-06-18","Castle Hill Goat Track",6.2,22,"Newman Lyn","38.24","Member",16,135,"N"]
["2016-06-18","Castle Hill Goat Track",6.2,23,"Clifford Tayla","38.41","Non-Member","N/A",0,"Y"]
["2016-06-18","Castle Hill Goat Track",6.2,24,"Crawford Les","39.00","Member",17,134,"N"]
["2016-06-18","Castle Hill Goat Track",6.2,25,"Flynn-Pittar Isis","39.01","Member",18,133,"N"]
["2016-06-18","Castle Hill Goat Track",6.2,26,"May Jarrah","39.10","Non-Member","N/A",0,"Y"]
["2016-06-18","Castle Hill Goat Track",6.2,27,"Law Karinne","39.45","Non-Member","N/A",0,"Y"]
["2016-06-18","Castle Hill Goat Track",6.2,28,"Donoghue Michael","40.18","Member",19,132,"N"]
["2016-06-18","Castle Hill Goat Track",6.2,29,"Walsh John","40.59","Member",20,131,"N"]
["2016-06-18","Castle Hill Goat Track",6.2,30,"Nelson Jesslyn","42.06","Member",21,130,"N"]
["2016-06-18","Castle Hill Goat Track",6.2,31,"Miller Anne","42.32","Non-Member","N/A",0,"Y"]
["2016-06-18","Castle Hill Goat Track",6.2,32,"Rich Keith","42.54","Member",22,129,"N"]
["2016-06-18","Castle Hill Goat Track",6.2,33,"Labuschagne Rosemarie","43.18","Member",23,128,"N"]
["2016-06-18","Castle Hill Goat Track",6.2,34,"Sansalone Luca","43.22","Non-Member","N/A",0,"Y"]
["2016-06-18","Castle Hill Goat Track",6.2,35,"Mcnabb Jim","44.04","Member",24,127,"N"]
["2016-06-18","Castle Hill Goat Track",6.2,36,"Muhlenberg Conny","44.11","Member",25,126,"N"]
["2016-06-18","Castle Hill Goat Track",6.2,37,"Tirendi Francesco","44.18","Member",26,125,"N"]
["2016-06-18","Castle Hill Goat Track",6.2,38,"Marrinan Isa","44.34","Member",27,124,"N"]
["2016-06-18","Castle Hill Goat Track",6.2,39,"Kerrisk John","44.56","Non-Member","N/A",0,"Y"]
["2016-06-18","Castle Hill Goat Track",6.2,40,"Johnson Cat","45.22","Member",28,123,"N"]
["2016-06-18","Castle Hill Goat Track",6.2,41,"Mcinnes Scott","45.37","Member",29,122,"N"]
["2016-06-18","Castle Hill Goat Track",6.2,42,"Doherty Rosie","45.51","Member",30,121,"N"]
["2016-06-18","Castle Hill Goat Track",6.2,43,"Keir Therese","46.16","Member",31,120,"N"]
["2016-06-18","Castle Hill Goat Track",6.2,44,"Brown Jenny","46.23","Member",32,119,"N"]
["2016-06-18","Castle Hill Goat Track",6.2,45,"Donoghue Mary","47.06","Member",33,118,"N"]
["2016-06-18","Castle Hill Goat Track",6.2,46,"Doherty Susan","47.21","Member",34,117,"N"]
["2016-06-18","Castle Hill Goat Track",6.2,47,"Cullen David","47.53","Member",35,116,"N"]
["2016-06-18","Castle Hill Goat Track",6.2,48,"Eriksen Dale","48.55","Member",36,115,"N"]
["2016-06-18","Castle Hill Goat Track",6.2,49,"Patteson Kathy","48.57","Non-Member","N/A",0,"Y"]
["2016-06-18","Castle Hill Goat Track",6.2,50,"Siandri Zita","49.00","Non-Member","N/A",0,"Y"]
["2016-06-18","Castle Hill Goat Track",6.2,51,"Sue Yek William","49.04","Member",37,114,"N"]
["2016-06-18","Castle Hill Goat Track",6.2,52,"Cornell Janet","49.34","Non-Member","N/A",0,"Y"]
["2016-06-18","Castle Hill Goat Track",6.2,53,"Camakaris Catrina","50.15","Member",38,113,"N"]
["2016-06-18","Castle Hill Goat Track",6.2,54,"Beil Lyndie","50.42","Member",39,112,"N"]
["2016-06-18","Castle Hill Goat Track",6.2,55,"Olsen John","51.29","Member",40,111,"N"]
["2016-06-18","Castle Hill Goat Track",6.2,56,"De Jong Jaap","51.32","Member",41,110,"N"]
["2016-06-18","Castle Hill Goat Track",6.2,57,"Ives Jim","51.53","Member",42,109,"N"]
["2016-06-18","Castle Hill Goat Track",6.2,58,"Horscroft Susan","52.04","Member",43,108,"N"]
["2016-06-18","Castle Hill Goat Track",6.2,59,"Leitch Cam","52.10","Member",44,107,"N"]
["2016-06-18","Castle Hill Goat Track",6.2,60,"Labuschagne Celeste","52.13","Member",45,106,"N"]
["2016-06-18","Castle Hill Goat Track",6.2,61,"Smith Mathew","52.14","Member",46,105,"N"]
["2016-06-18","Castle Hill Goat Track",6.2,62,"Stewart Vijaya","52.24","Non-Member","N/A",0,"Y"]
["2016-06-18","Castle Hill Goat Track",6.2,63,"Machin Pook","53.30","Member",47,104,"N"]
["2016-06-18","Castle Hill Goat Track",6.2,64,"Roberts Karen","56.24","Member",48,103,"N"]
["2016-06-18","Castle Hill Goat Track",6.2,65,"Smales Clayton","56.47","Member",49,102,"N"]
["2016-06-18","Castle Hill Goat Track",6.2,66,"Brooke-Taylor David","58.27","Member",50,101,"N"]
["2016-06-18","Castle Hill Goat Track",6.2,67,"Ryan Tom","1.02.34","Non-Member","N/A",0,"Y"]
["2016-06-25","Rolling Thunder Run and Relay",22,1,"Buchholz Mark","1.29.52","Member",1,150,"N"]
["2016-06-25","Rolling Thunder Run and Relay",22,2,"Garnett Adrian","1.31.39","Member",2,149,"N"]
["2016-06-25","Rolling Thunder Run and Relay",22,3,"Hyde Jevyn","1.33.50","Member",3,148,"N"]
["2016-06-25","Rolling Thunder Run and Relay",22,4,"Stripp Deon","1.34.18","Member",4,147,"N"]
["2016-06-25","Rolling Thunder Run and Relay",22,5,"Vance David","1.36.36","Non-Member","N/A",0,"Y"]
["2016-06-25","Rolling Thunder Run and Relay",22,6,"Norris Bernie","1.37.14","Non-Member","N/A",0,"Y"]
["2016-06-25","Rolling Thunder Run and Relay",22,7,"Springall Gabriella","1.38.06","Member",5,146,"N"]
["2016-06-25","Rolling Thunder Run and Relay",22,8,"Schonfeldt-Roy Sonja","1.40.49","Member",6,145,"N"]
["2016-06-25","Rolling Thunder Run and Relay",22,9,"Pretorius Christiaan","1.42.34","Member",7,144,"N"]
["2016-06-25","Rolling Thunder Run and Relay",22,10,"Wallis Cameron","1.44.34","Member",8,0,"Y"]
["2016-06-25","Rolling Thunder Run and Relay",22,11,"Moore Stuart","1.48.35","Member",9,142,"N"]
["2016-06-25","Rolling Thunder Run and Relay",22,12,"O'Regan Paul","1.51.12","Member",10,141,"N"]
["2016-06-25","Rolling Thunder Run and Relay",22,13,"Doherty Bill","1.52.26","Member",11,140,"N"]
["2016-06-25","Rolling Thunder Run and Relay",22,14,"Guy William","1.52.52","Member",12,139,"N"]
["2016-06-25","Rolling Thunder Run and Relay",22,15,"Flynn-Pittar Isis","1.59.09","Member",13,138,"N"]
["2016-06-25","Rolling Thunder Run and Relay",22,16,"Wheeler Jude","1.59.13","Non-Member","N/A",0,"Y"]
["2016-06-25","Rolling Thunder Run and Relay",22,17,"Stacey Joanne","1.59.15","Member",14,137,"N"]
["2016-06-25","Rolling Thunder Run and Relay",22,18,"Flynn-Pittar Dee","2.02.57","Member",15,136,"N"]
["2016-06-25","Rolling Thunder Run and Relay",22,19,"Donoghue Michael","2.07.14","Member",16,135,"N"]
["2016-06-25","Rolling Thunder Run and Relay",22,20,"Tirendi Francesco","2.10.48","Member",17,134,"N"]
["2016-06-25","Rolling Thunder Run and Relay",22,21,"Newnham Colleen","2.10.55","Member",18,133,"N"]
["2016-06-25","Rolling Thunder Run and Relay",22,22,"Kirby Adrian","2.10.55","Member",19,132,"N"]
["2016-06-25","Rolling Thunder Run and Relay",22,23,"Johnson Lia","2.11.46","Member",20,131,"N"]
["2016-06-25","Rolling Thunder Run and Relay",22,24,"Doherty Rosie","2.17.31","Member",21,130,"N"]
["2016-06-25","Rolling Thunder Run and Relay",22,25,"Nelson Jesslyn","2.18.13","Member",22,129,"N"]
["2016-06-25","Rolling Thunder Run and Relay",22,26,"Wharton David","2.22.00","Member",23,128,"N"]
["2016-06-25","Rolling Thunder Run and Relay",22,27,"Dowel Mark","2.22.10","Member",24,127,"N"]
["2016-06-25","Rolling Thunder Run and Relay",22,28,"Doherty Susan","2.23.35","Member",25,126,"N"]
["2016-06-25","Rolling Thunder Run and Relay",22,29,"Dowel Lee","2.37.30","Member",26,125,"N"]
["2016-06-25","Rolling Thunder Run and Relay",22,30,"Puance Jayson","2.37.30","Non-Member","N/A",0,"Y"]
["2016-06-25","Rolling Thunder Run and Relay",22,31,"Daamen Antony","2.39.11","Member",27,124,"N"]
["2016-06-25","Rolling Thunder Run and Relay",22,32,"Rubenach Mike","2.41.15","Member",28,123,"N"]
["2016-06-25","Rolling Thunder Run and Relay",22,33,"Brown Jenny","2.41.28","Member",29,122,"N"]
["2016-06-25","Rolling Thunder Run and Relay",22,34,"Beil Lyndie","2.44.28","Member",30,121,"N"]
["2016-06-25","Rolling Thunder Run and Relay",22,35,"Stewart Vijaya","2.44.28","Non-Member","N/A",0,"Y"]
["2016-06-25","Rolling Thunder Run and Relay",22,36,"Harris James","9.00.00","Non-Member","N/A",0,"Y"]
["2016-07-02","Widges Hill Run",10,1,"Harding Michael","43.21","Member",1,150,"N"]
["2016-07-02","Widges Hill Run",10,2,"Turnbull Deahne","43.47","Member",2,149,"N"]
["2016-07-02","Widges Hill Run",10,3,"Wallis Cameron","44.33","Member",3,148,"N"]
["2016-07-02","Widges Hill Run",10,4,"Springall Gabriella","44.51","Member",4,147,"N"]
["2016-07-02","Widges Hill Run",10,5,"Wing Gordon","45.07","Member",5,146,"N"]
["2016-07-02","Widges Hill Run",10,6,"Henderson Daniel","46.45","Non-Member","N/A",0,"Y"]
["2016-07-02","Widges Hill Run",10,7,"Marrinan Michael","46.50","Member",6,145,"N"]
["2016-07-02","Widges Hill Run",10,8,"Sun Sizhong","46.52","Member",7,144,"N"]
["2016-07-02","Widges Hill Run",10,9,"Watkins Meredith","47.25","Member",8,143,"N"]
["2016-07-02","Widges Hill Run",10,10,"Stafford Erin","47.44","Member",9,142,"N"]
["2016-07-02","Widges Hill Run",10,11,"Werbeloff Gavin","48.56","Member",10,141,"N"]
["2016-07-02","Widges Hill Run",10,12,"Fitzsimmons Michael","49.12","Member",11,140,"N"]
["2016-07-02","Widges Hill Run",10,13,"Flynn-Pittar Isis","50.34","Member",12,139,"N"]
["2016-07-02","Widges Hill Run",10,14,"Hyde Jevyn","51.53","Member",13,138,"N"]
["2016-07-02","Widges Hill Run",10,15,"Mentor Andre","51.56","Member",14,137,"N"]
["2016-07-02","Widges Hill Run",10,16,"Fox Adam","52.20","Non-Member","N/A",0,"Y"]
["2016-07-02","Widges Hill Run",10,17,"Kemei Joseph","52.56","Non-Member","N/A",0,"Y"]
["2016-07-02","Widges Hill Run",10,18,"Doherty Bill","53.04","Member",15,136,"N"]
["2016-07-02","Widges Hill Run",10,19,"Crawford Les","53.10","Member",16,135,"N"]
["2016-07-02","Widges Hill Run",10,20,"Mcdonald Wayne","53.16","Non-Member","N/A",0,"Y"]
["2016-07-02","Widges Hill Run",10,21,"Reynolds Dan","53.31","Member",17,134,"N"]
["2016-07-02","Widges Hill Run",10,22,"Carter Brendan","54.44","Member",18,133,"N"]
["2016-07-02","Widges Hill Run",10,23,"Wheeler Jude","54.51","Non-Member","N/A",0,"Y"]
["2016-07-02","Widges Hill Run",10,24,"Sturtz James","54.53","Non-Member","N/A",0,"Y"]
["2016-07-02","Widges Hill Run",10,25,"Nicholson Trevor","55.17","Member",19,132,"N"]
["2016-07-02","Widges Hill Run",10,26,"Schmitt Travis","55.34","Member",20,131,"N"]
["2016-07-02","Widges Hill Run",10,27,"Schmitt Riana","55.42","Member",21,130,"N"]
["2016-07-02","Widges Hill Run",10,28,"Bradley Fraser","55.45","Member",22,129,"N"]
["2016-07-02","Widges Hill Run",10,29,"Ellershaw Robert","56.04","Member",23,128,"N"]
["2016-07-02","Widges Hill Run",10,30,"Flynn-Pittar Dee","56.26","Member",24,127,"N"]
["2016-07-02","Widges Hill Run",10,31,"Newman Lyn","57.17","Member",25,126,"N"]
["2016-07-02","Widges Hill Run",10,32,"Donoghue Michael","59.36","Member",26,125,"N"]
["2016-07-02","Widges Hill Run",10,33,"O'Reilly Phil","59.38","Member",27,124,"N"]
["2016-07-02","Widges Hill Run",10,34,"Walsh John","1.00.35","Member",28,123,"N"]
["2016-07-02","Widges Hill Run",10,35,"Pearson Krystal","1.01.28","Member",29,122,"N"]
["2016-07-02","Widges Hill Run",10,36,"Mcnabb Jim","1.01.33","Member",30,121,"N"]
["2016-07-02","Widges Hill Run",10,37,"Kelly Dave","1.01.36","Non-Member","N/A",0,"Y"]
["2016-07-02","Widges Hill Run",10,38,"Wharton David","1.02.07","Member",31,120,"N"]
["2016-07-02","Widges Hill Run",10,39,"Rich Keith","1.02.31","Member",32,119,"N"]
["2016-07-02","Widges Hill Run",10,40,"Tirendi Francesco","1.02.36","Member",33,118,"N"]
["2016-07-02","Widges Hill Run",10,41,"Mcinnes Scott","1.03.15","Member",34,117,"N"]
["2016-07-02","Widges Hill Run",10,42,"Nelson Jesslyn","1.03.53","Member",35,116,"N"]
["2016-07-02","Widges Hill Run",10,43,"Tsang Deffy","1.04.14","Member",36,115,"N"]
["2016-07-02","Widges Hill Run",10,44,"Fanning Terence","1.04.19","Member",37,114,"N"]
["2016-07-02","Widges Hill Run",10,45,"Miller Anne","1.04.37","Non-Member","N/A",0,"Y"]
["2016-07-02","Widges Hill Run",10,46,"Armit Brian","1.04.37","Member",38,113,"N"]
["2016-07-02","Widges Hill Run",10,47,"Malan Carsten","1.04.38","Non-Member","N/A",0,"Y"]
["2016-07-02","Widges Hill Run",10,48,"Hannay Andrew","1.06.24","Member",39,112,"N"]
["2016-07-02","Widges Hill Run",10,49,"Daamen Antony","1.08.37","Member",40,111,"N"]
["2016-07-02","Widges Hill Run",10,50,"Otto Annaliese","1.08.45","Member",41,110,"N"]
["2016-07-02","Widges Hill Run",10,51,"Dicketts Kelly","1.09.14","Member",42,109,"N"]
["2016-07-02","Widges Hill Run",10,52,"Doherty Susan","1.09.53","Member",43,108,"N"]
["2016-07-02","Widges Hill Run",10,53,"Patteson Kathy","1.10.26","Non-Member","N/A",0,"Y"]
["2016-07-02","Widges Hill Run",10,54,"Whittle Sara","1.10.36","Non-Member","N/A",0,"Y"]
["2016-07-02","Widges Hill Run",10,55,"Sue Yek William","1.11.15","Member",44,107,"N"]
["2016-07-02","Widges Hill Run",10,56,"Donoghue Mary","1.13.25","Member",45,106,"N"]
["2016-07-02","Widges Hill Run",10,57,"Stewart Vijaya","1.14.27","Non-Member","N/A",0,"Y"]
["2016-07-02","Widges Hill Run",10,58,"Letizia Brian","1.15.55","Member",46,105,"N"]
["2016-07-02","Widges Hill Run",10,59,"Beil Lyndie","1.18.13","Member",47,104,"N"]
["2016-07-08","3 Day Race-Day 1",9.5500000000000007,1,"O'Regan Simon","33.59","Member",1,150,"N"]
["2016-07-08","3 Day Race-Day 1",9.5500000000000007,2,"Harding Michael","35.43","Member",2,149,"N"]
["2016-07-08","3 Day Race-Day 1",9.5500000000000007,3,"Buchholz Mark","35.51","Member",3,148,"N"]
["2016-07-08","3 Day Race-Day 1",9.5500000000000007,4,"Copp Philip","36.00","Member",4,147,"N"]
["2016-07-08","3 Day Race-Day 1",9.5500000000000007,5,"Budden Craig","37.47","Non-Member","N/A",0,"Y"]
["2016-07-08","3 Day Race-Day 1",9.5500000000000007,6,"Wickam Gavin","37.52","Non-Member","N/A",0,"Y"]
["2016-07-08","3 Day Race-Day 1",9.5500000000000007,7,"Heames Sam","37.53","Non-Member","N/A",0,"Y"]
["2016-07-08","3 Day Race-Day 1",9.5500000000000007,8,"Boschen Matthew","38.20","Member",5,146,"N"]
["2016-07-08","3 Day Race-Day 1",9.5500000000000007,9,"Stripp Deon","38.24","Member",6,0,"Y"]
["2016-07-08","3 Day Race-Day 1",9.5500000000000007,10,"Turnbull Deahne","38.46","Member",7,144,"N"]
["2016-07-08","3 Day Race-Day 1",9.5500000000000007,11,"Wallis Cameron","38.52","Member",8,143,"N"]
["2016-07-08","3 Day Race-Day 1",9.5500000000000007,12,"Hyde Jevyn","39.58","Member",9,142,"N"]
["2016-07-08","3 Day Race-Day 1",9.5500000000000007,13,"Vance David","40.00","Non-Member","N/A",0,"Y"]
["2016-07-08","3 Day Race-Day 1",9.5500000000000007,14,"Maguire Gerry","40.01","Member",10,141,"N"]
["2016-07-08","3 Day Race-Day 1",9.5500000000000007,15,"Flores Monique","40.13","Non-Member","N/A",0,"Y"]
["2016-07-08","3 Day Race-Day 1",9.5500000000000007,16,"Schonfeldt-Roy Sonja","40.42","Member",11,140,"N"]
["2016-07-08","3 Day Race-Day 1",9.5500000000000007,17,"Stafford Erin","40.50","Member",12,139,"N"]
["2016-07-08","3 Day Race-Day 1",9.5500000000000007,18,"Pretorius Christiaan","41.05","Member",13,0,"Y"]
["2016-07-08","3 Day Race-Day 1",9.5500000000000007,19,"Fitzsimmons Michael","41.19","Member",14,0,"Y"]
["2016-07-08","3 Day Race-Day 1",9.5500000000000007,20,"Carter Brendan","41.49","Member",15,136,"N"]
["2016-07-08","3 Day Race-Day 1",9.5500000000000007,21,"Nuttall John","41.58","Member",16,135,"N"]
["2016-07-08","3 Day Race-Day 1",9.5500000000000007,22,"Flynn-Pittar Isis","42.14","Member",17,134,"N"]
["2016-07-08","3 Day Race-Day 1",9.5500000000000007,23,"Crawford Les","42.43","Member",18,133,"N"]
["2016-07-08","3 Day Race-Day 1",9.5500000000000007,24,"Guy William","43.00","Member",19,132,"N"]
["2016-07-08","3 Day Race-Day 1",9.5500000000000007,25,"Cullen David","43.03","Member",20,131,"N"]
["2016-07-08","3 Day Race-Day 1",9.5500000000000007,26,"Cheers Scott","43.05","Non-Member","N/A",0,"Y"]
["2016-07-08","3 Day Race-Day 1",9.5500000000000007,27,"Doherty Bill","43.53","Member",21,0,"Y"]
["2016-07-08","3 Day Race-Day 1",9.5500000000000007,28,"Day Paul","43.57","Member",22,129,"N"]
["2016-07-08","3 Day Race-Day 1",9.5500000000000007,29,"Wickam Alisa","44.01","Non-Member","N/A",0,"Y"]
["2016-07-08","3 Day Race-Day 1",9.5500000000000007,30,"O'Regan Paul","44.03","Member",23,128,"N"]
["2016-07-08","3 Day Race-Day 1",9.5500000000000007,31,"Neimanis Peter","44.11","Member",24,127,"N"]
["2016-07-08","3 Day Race-Day 1",9.5500000000000007,32,"Vollmerhause Scott","44.22","Member",25,126,"N"]
["2016-07-08","3 Day Race-Day 1",9.5500000000000007,33,"Wheeler Jude","45.11","Non-Member","N/A",0,"Y"]
["2016-07-08","3 Day Race-Day 1",9.5500000000000007,34,"Godier Jason","45.11","Non-Member","N/A",0,"Y"]
["2016-07-08","3 Day Race-Day 1",9.5500000000000007,35,"Bradley Fraser","45.23","Member",26,125,"N"]
["2016-07-08","3 Day Race-Day 1",9.5500000000000007,36,"Ellershaw Robert","45.49","Member",27,124,"N"]
["2016-07-08","3 Day Race-Day 1",9.5500000000000007,37,"Smales Clayton","46.13","Member",28,123,"N"]
["2016-07-08","3 Day Race-Day 1",9.5500000000000007,38,"Machin Jamie","46.16","Member",29,122,"N"]
["2016-07-08","3 Day Race-Day 1",9.5500000000000007,39,"Frazer Ian","46.24","Member",30,121,"N"]
["2016-07-08","3 Day Race-Day 1",9.5500000000000007,40,"Tracy Kristine","46.28","Non-Member","N/A",0,"Y"]
["2016-07-08","3 Day Race-Day 1",9.5500000000000007,41,"Gustavson Russell","47.33","Non-Member","N/A",0,"Y"]
["2016-07-08","3 Day Race-Day 1",9.5500000000000007,42,"Flynn-Pittar Dee","49.09","Member",31,120,"N"]
["2016-07-08","3 Day Race-Day 1",9.5500000000000007,43,"Hoggan John","49.14","Member",32,119,"N"]
["2016-07-08","3 Day Race-Day 1",9.5500000000000007,44,"O'Reilly Phil","49.36","Member",33,118,"N"]
["2016-07-08","3 Day Race-Day 1",9.5500000000000007,45,"Singleton Maree","50.30","Non-Member","N/A",0,"Y"]
["2016-07-08","3 Day Race-Day 1",9.5500000000000007,46,"Cox Sherry","50.51","Member",34,117,"N"]
["2016-07-08","3 Day Race-Day 1",9.5500000000000007,47,"Donoghue Michael","50.53","Member",35,116,"N"]
["2016-07-08","3 Day Race-Day 1",9.5500000000000007,48,"Smith Justin","52.15","Member",36,115,"N"]
["2016-07-08","3 Day Race-Day 1",9.5500000000000007,49,"Kirby Adrian","52.26","Member",37,114,"N"]
["2016-07-08","3 Day Race-Day 1",9.5500000000000007,50,"Newnham Colleen","52.27","Member",38,113,"N"]
["2016-07-08","3 Day Race-Day 1",9.5500000000000007,51,"Simpson Chris","52.30","Non-Member","N/A",0,"Y"]
["2016-07-08","3 Day Race-Day 1",9.5500000000000007,52,"Lindsey Craig","52.41","Non-Member","N/A",0,"Y"]
["2016-07-08","3 Day Race-Day 1",9.5500000000000007,53,"Tirendi Francesco","53.08","Member",39,112,"N"]
["2016-07-08","3 Day Race-Day 1",9.5500000000000007,54,"Thompson Rachael","53.45","Member",40,111,"N"]
["2016-07-08","3 Day Race-Day 1",9.5500000000000007,55,"Daamen Antony","55.02","Member",41,110,"N"]
["2016-07-08","3 Day Race-Day 1",9.5500000000000007,56,"Doherty Susan","58.12","Member",42,109,"N"]
["2016-07-08","3 Day Race-Day 1",9.5500000000000007,57,"Armit Brian","58.13","Member",43,108,"N"]
["2016-07-08","3 Day Race-Day 1",9.5500000000000007,58,"Neimanis Greta","58.39","Member",44,107,"N"]
["2016-07-08","3 Day Race-Day 1",9.5500000000000007,59,"Whittle Sara","58.40","Non-Member","N/A",0,"Y"]
["2016-07-08","3 Day Race-Day 1",9.5500000000000007,60,"Sue Yek William","58.49","Member",45,106,"N"]
["2016-07-08","3 Day Race-Day 1",9.5500000000000007,61,"Lipsey Jaymie","58.52","Non-Member","N/A",0,"Y"]
["2016-07-08","3 Day Race-Day 1",9.5500000000000007,62,"Cahill Rachel","1.01.48","Non-Member","N/A",0,"Y"]
["2016-07-08","3 Day Race-Day 1",9.5500000000000007,63,"Donoghue Mary","1.01.57","Member",46,105,"N"]
["2016-07-08","3 Day Race-Day 1",9.5500000000000007,64,"Garvie Diane","1.01.59","Member",47,104,"N"]
["2016-07-08","3 Day Race-Day 1",9.5500000000000007,65,"Neimanis Kathleen","1.02.00","Member",48,103,"N"]
["2016-07-08","3 Day Race-Day 1",9.5500000000000007,66,"Norton Nancy","1.06.34","Member",49,102,"N"]
["2016-07-08","3 Day Race-Day 1",9.5500000000000007,67,"Beil Lyndie","1.08.07","Member",50,101,"N"]
["2016-07-09","3 Day Race-Day 2",19.2,1,"O'Regan Simon","1.21.42","Member",1,150,"N"]
["2016-07-09","3 Day Race-Day 2",19.2,2,"Harding Michael","1.26.03","Member",2,149,"N"]
["2016-07-09","3 Day Race-Day 2",19.2,3,"Copp Philip","1.26.25","Member",3,148,"N"]
["2016-07-09","3 Day Race-Day 2",19.2,4,"Buchholz Mark","1.26.46","Member",4,0,"Y"]
["2016-07-09","3 Day Race-Day 2",19.2,5,"Budden Craig","1.27.41","Non-Member","N/A",0,"Y"]
["2016-07-09","3 Day Race-Day 2",19.2,6,"Turnbull Deahne","1.29.42","Member",5,146,"N"]
["2016-07-09","3 Day Race-Day 2",19.2,7,"Springall Gabriella","1.30.34","Member",6,145,"N"]
["2016-07-09","3 Day Race-Day 2",19.2,8,"Boschen Matthew","1.32.43","Member",7,144,"N"]
["2016-07-09","3 Day Race-Day 2",19.2,9,"Stripp Deon","1.33.25","Member",8,0,"Y"]
["2016-07-09","3 Day Race-Day 2",19.2,10,"Hyde Jevyn","1.34.37","Member",9,142,"N"]
["2016-07-09","3 Day Race-Day 2",19.2,11,"Wallis Cameron","1.35.05","Member",10,0,"Y"]
["2016-07-09","3 Day Race-Day 2",19.2,12,"Vance David","1.36.33","Non-Member","N/A",0,"Y"]
["2016-07-09","3 Day Race-Day 2",19.2,13,"Flores Monique","1.36.37","Non-Member","N/A",0,"Y"]
["2016-07-09","3 Day Race-Day 2",19.2,14,"Stafford Erin","1.37.09","Member",11,140,"N"]
["2016-07-09","3 Day Race-Day 2",19.2,15,"Werbeloff Gavin","1.38.38","Member",12,139,"N"]
["2016-07-09","3 Day Race-Day 2",19.2,16,"Godier Jason","1.38.46","Non-Member","N/A",0,"Y"]
["2016-07-09","3 Day Race-Day 2",19.2,17,"Schonfeldt-Roy Sonja","1.38.50","Member",13,138,"N"]
["2016-07-09","3 Day Race-Day 2",19.2,18,"Schick Gerard","1.41.03","Member",14,137,"N"]
["2016-07-09","3 Day Race-Day 2",19.2,19,"Nuttall John","1.41.13","Member",15,136,"N"]
["2016-07-09","3 Day Race-Day 2",19.2,20,"Carter Brendan","1.42.56","Member",16,135,"N"]
["2016-07-09","3 Day Race-Day 2",19.2,21,"Fitzsimmons Michael","1.43.40","Member",17,0,"Y"]
["2016-07-09","3 Day Race-Day 2",19.2,22,"Flynn-Pittar Isis","1.46.00","Member",18,133,"N"]
["2016-07-09","3 Day Race-Day 2",19.2,23,"Crawford Les","1.47.47","Member",19,0,"Y"]
["2016-07-09","3 Day Race-Day 2",19.2,24,"Doherty Bill","1.48.09","Member",20,131,"N"]
["2016-07-09","3 Day Race-Day 2",19.2,25,"Wickam Alisa","1.48.13","Non-Member","N/A",0,"Y"]
["2016-07-09","3 Day Race-Day 2",19.2,26,"Guy William","1.48.40","Member",21,130,"N"]
["2016-07-09","3 Day Race-Day 2",19.2,27,"Cheers Scott","1.49.11","Non-Member","N/A",0,"Y"]
["2016-07-09","3 Day Race-Day 2",19.2,28,"Brown Trevor","1.49.11","Non-Member","N/A",0,"Y"]
["2016-07-09","3 Day Race-Day 2",19.2,29,"Davies Glen","1.49.19","Member",22,129,"N"]
["2016-07-09","3 Day Race-Day 2",19.2,30,"Hunter Matthew","1.49.35","Member",23,128,"N"]
["2016-07-09","3 Day Race-Day 2",19.2,31,"Neimanis Peter","1.49.54","Member",24,127,"N"]
["2016-07-09","3 Day Race-Day 2",19.2,32,"Day Paul","1.51.36","Member",25,126,"N"]
["2016-07-09","3 Day Race-Day 2",19.2,33,"Vollmerhause Scott","1.51.38","Member",26,0,"Y"]
["2016-07-09","3 Day Race-Day 2",19.2,34,"Wheeler Jude","1.52.20","Non-Member","N/A",0,"Y"]
["2016-07-09","3 Day Race-Day 2",19.2,35,"Bradley Fraser","1.53.52","Member",27,0,"Y"]
["2016-07-09","3 Day Race-Day 2",19.2,36,"Mentor Andre","1.54.48","Member",28,123,"N"]
["2016-07-09","3 Day Race-Day 2",19.2,37,"Schmitt Riana","1.55.07","Member",29,122,"N"]
["2016-07-09","3 Day Race-Day 2",19.2,38,"Cullen David","1.55.55","Member",30,121,"N"]
["2016-07-09","3 Day Race-Day 2",19.2,39,"Flynn-Pittar Dee","1.57.04","Member",31,120,"N"]
["2016-07-09","3 Day Race-Day 2",19.2,40,"Frazer Ian","1.59.34","Member",32,119,"N"]
["2016-07-09","3 Day Race-Day 2",19.2,41,"Donoghue Michael","1.59.41","Member",33,118,"N"]
["2016-07-09","3 Day Race-Day 2",19.2,42,"Singleton Maree","2.00.29","Non-Member","N/A",0,"Y"]
["2016-07-09","3 Day Race-Day 2",19.2,43,"Newnham Colleen","2.01.21","Member",34,117,"N"]
["2016-07-09","3 Day Race-Day 2",19.2,44,"Cox Sherry","2.01.41","Member",35,116,"N"]
["2016-07-09","3 Day Race-Day 2",19.2,45,"Tsang Deffy","2.02.53","Member",36,115,"N"]
["2016-07-09","3 Day Race-Day 2",19.2,46,"Hoggan John","2.02.55","Member",37,114,"N"]
["2016-07-09","3 Day Race-Day 2",19.2,47,"Kelly Dave","2.05.23","Non-Member","N/A",0,"Y"]
["2016-07-09","3 Day Race-Day 2",19.2,48,"Smales Clayton","2.05.23","Member",38,113,"N"]
["2016-07-09","3 Day Race-Day 2",19.2,49,"Ellershaw Robert","2.05.39","Member",39,112,"N"]
["2016-07-09","3 Day Race-Day 2",19.2,50,"O'Reilly Phil","2.06.11","Member",40,0,"Y"]
["2016-07-09","3 Day Race-Day 2",19.2,51,"Rich Keith","2.06.44","Member",41,110,"N"]
["2016-07-09","3 Day Race-Day 2",19.2,52,"Collins Sarah","2.07.08","Member",42,109,"N"]
["2016-07-09","3 Day Race-Day 2",19.2,53,"Schmitt Travis","2.08.04","Member",43,108,"N"]
["2016-07-09","3 Day Race-Day 2",19.2,54,"Markwot Karen","2.08.20","Non-Member","N/A",0,"Y"]
["2016-07-09","3 Day Race-Day 2",19.2,55,"Sandley Leanne","2.08.33","Non-Member","N/A",0,"Y"]
["2016-07-09","3 Day Race-Day 2",19.2,56,"Mcnabb Jim","2.08.33","Member",44,107,"N"]
["2016-07-09","3 Day Race-Day 2",19.2,57,"Hooper Garry","2.08.35","Member",45,106,"N"]
["2016-07-09","3 Day Race-Day 2",19.2,58,"Tirendi Francesco","2.08.36","Member",46,0,"Y"]
["2016-07-09","3 Day Race-Day 2",19.2,59,"Dicketts Kelly","2.10.22","Member",47,104,"N"]
["2016-07-09","3 Day Race-Day 2",19.2,60,"Daamen Antony","2.10.44","Member",48,0,"Y"]
["2016-07-09","3 Day Race-Day 2",19.2,61,"Armit Brian","2.17.45","Member",49,102,"N"]
["2016-07-09","3 Day Race-Day 2",19.2,62,"Smith Wendy","2.22.27","Non-Member","N/A",0,"Y"]
["2016-07-09","3 Day Race-Day 2",19.2,63,"Whittle Sara","2.22.43","Non-Member","N/A",0,"Y"]
["2016-07-09","3 Day Race-Day 2",19.2,64,"Morf Christi ","2.22.56","Non-Member","N/A",0,"Y"]
["2016-07-09","3 Day Race-Day 2",19.2,65,"Alexopoulos Imelda","2.22.57","Member",50,101,"N"]
["2016-07-09","3 Day Race-Day 2",19.2,66,"Brown Jenny","2.25.37","Member",51,100,"N"]
["2016-07-09","3 Day Race-Day 2",19.2,67,"Doherty Susan","2.26.33","Member",52,99,"N"]
["2016-07-09","3 Day Race-Day 2",19.2,68,"Neimanis Greta","2.27.20","Member",53,98,"N"]
["2016-07-09","3 Day Race-Day 2",19.2,69,"Cahill Rachel","2.32.37","Non-Member","N/A",0,"Y"]
["2016-07-09","3 Day Race-Day 2",19.2,70,"Leitch Cam","2.32.38","Member",54,97,"N"]
["2016-07-09","3 Day Race-Day 2",19.2,71,"Garvie Diane","2.41.39","Member",55,96,"N"]
["2016-07-09","3 Day Race-Day 2",19.2,72,"Neimanis Kathleen","2.42.50","Member",56,95,"N"]
["2016-07-09","3 Day Race-Day 2",19.2,73,"Beil Lyndie","2.50.09","Member",57,0,"Y"]
["2016-07-09","3 Day Race-Day 2",19.2,74,"Simpson Chris","2.50.10","Non-Member","N/A",0,"Y"]
["2016-07-10","3 Day Race-Day 3",13.5,1,"O'Regan Simon","52.26","Member",1,150,"N"]
["2016-07-10","3 Day Race-Day 3",13.5,2,"Harding Michael","55.23","Member",2,149,"N"]
["2016-07-10","3 Day Race-Day 3",13.5,3,"Copp Philip","55.26","Member",3,148,"N"]
["2016-07-10","3 Day Race-Day 3",13.5,4,"Buchholz Mark","56.51","Member",4,0,"Y"]
["2016-07-10","3 Day Race-Day 3",13.5,5,"Budden Craig","57.59","Non-Member","N/A",0,"Y"]
["2016-07-10","3 Day Race-Day 3",13.5,6,"Turnbull Deahne","58.51","Member",5,146,"N"]
["2016-07-10","3 Day Race-Day 3",13.5,7,"Wallis Cameron","59.02","Member",6,145,"N"]
["2016-07-10","3 Day Race-Day 3",13.5,8,"Stripp Deon","59.29","Member",7,0,"Y"]
["2016-07-10","3 Day Race-Day 3",13.5,9,"Boschen Matthew","1.00.35","Member",8,143,"N"]
["2016-07-10","3 Day Race-Day 3",13.5,10,"Hyde Jevyn","1.01.38","Member",9,142,"N"]
["2016-07-10","3 Day Race-Day 3",13.5,11,"Vance David","1.01.50","Non-Member","N/A",0,"Y"]
["2016-07-10","3 Day Race-Day 3",13.5,12,"Flores Monique","1.02.17","Non-Member","N/A",0,"Y"]
["2016-07-10","3 Day Race-Day 3",13.5,13,"Werbeloff Gavin","1.02.22","Member",10,141,"N"]
["2016-07-10","3 Day Race-Day 3",13.5,14,"Wing Gordon","1.03.48","Member",11,140,"N"]
["2016-07-10","3 Day Race-Day 3",13.5,15,"Fitzsimmons Michael","1.03.52","Member",12,139,"N"]
["2016-07-10","3 Day Race-Day 3",13.5,16,"Stafford Erin","1.04.00","Member",13,138,"N"]
["2016-07-10","3 Day Race-Day 3",13.5,17,"Schonfeldt-Roy Sonja","1.04.18","Member",14,0,"Y"]
["2016-07-10","3 Day Race-Day 3",13.5,18,"Evans Derrick","1.04.54","Member",15,136,"N"]
["2016-07-10","3 Day Race-Day 3",13.5,19,"Andress Greg","1.05.23","Non-Member","N/A",0,"Y"]
["2016-07-10","3 Day Race-Day 3",13.5,20,"Schick Gerard","1.05.49","Member",16,135,"N"]
["2016-07-10","3 Day Race-Day 3",13.5,21,"Nuttall John","1.06.09","Member",17,134,"N"]
["2016-07-10","3 Day Race-Day 3",13.5,22,"Carter Brendan","1.06.59","Member",18,133,"N"]
["2016-07-10","3 Day Race-Day 3",13.5,23,"Pretorius Christiaan","1.08.04","Member",19,0,"Y"]
["2016-07-10","3 Day Race-Day 3",13.5,24,"Day Paul","1.08.11","Member",20,131,"N"]
["2016-07-10","3 Day Race-Day 3",13.5,25,"Crawford Les","1.09.17","Member",21,0,"Y"]
["2016-07-10","3 Day Race-Day 3",13.5,26,"Flynn-Pittar Isis","1.09.18","Member",22,129,"N"]
["2016-07-10","3 Day Race-Day 3",13.5,27,"Punshon Michael","1.09.28","Member",23,128,"N"]
["2016-07-10","3 Day Race-Day 3",13.5,28,"Guy William","1.09.53","Member",24,127,"N"]
["2016-07-10","3 Day Race-Day 3",13.5,29,"Doherty Bill","1.10.16","Member",25,0,"Y"]
["2016-07-10","3 Day Race-Day 3",13.5,30,"Frazer Ian","1.11.28","Member",26,125,"N"]
["2016-07-10","3 Day Race-Day 3",13.5,31,"Vollmerhause Scott","1.12.11","Member",27,0,"Y"]
["2016-07-10","3 Day Race-Day 3",13.5,32,"Ellershaw Robert","1.12.24","Member",28,123,"N"]
["2016-07-10","3 Day Race-Day 3",13.5,33,"Sturtz James","1.12.36","Non-Member","N/A",0,"Y"]
["2016-07-10","3 Day Race-Day 3",13.5,34,"Neimanis Peter","1.12.53","Member",29,122,"N"]
["2016-07-10","3 Day Race-Day 3",13.5,35,"Cheers Scott","1.12.54","Non-Member","N/A",0,"Y"]
["2016-07-10","3 Day Race-Day 3",13.5,36,"Bradley Fraser","1.13.12","Member",30,0,"Y"]
["2016-07-10","3 Day Race-Day 3",13.5,37,"Davies Glen","1.15.28","Member",31,120,"N"]
["2016-07-10","3 Day Race-Day 3",13.5,38,"Wheeler Jude","1.15.50","Non-Member","N/A",0,"Y"]
["2016-07-10","3 Day Race-Day 3",13.5,39,"Flynn-Pittar Dee","1.16.21","Member",32,119,"N"]
["2016-07-10","3 Day Race-Day 3",13.5,40,"Kiernan Sophie","1.16.22","Member",33,118,"N"]
["2016-07-10","3 Day Race-Day 3",13.5,41,"Singleton Maree","1.17.44","Non-Member","N/A",0,"Y"]
["2016-07-10","3 Day Race-Day 3",13.5,42,"Cox Sherry","1.17.56","Member",34,117,"N"]
["2016-07-10","3 Day Race-Day 3",13.5,43,"Donoghue Michael","1.19.07","Member",35,0,"Y"]
["2016-07-10","3 Day Race-Day 3",13.5,44,"Hoggan John","1.23.36","Member",36,115,"N"]
["2016-07-10","3 Day Race-Day 3",13.5,45,"O'Reilly Phil","1.23.54","Member",37,0,"Y"]
["2016-07-10","3 Day Race-Day 3",13.5,46,"Collins Sarah","1.27.09","Member",38,113,"N"]
["2016-07-10","3 Day Race-Day 3",13.5,47,"Tirendi Francesco","1.28.46","Member",39,112,"N"]
["2016-07-10","3 Day Race-Day 3",13.5,48,"Mckeon Alana","1.29.46","Non-Member","N/A",0,"Y"]
["2016-07-10","3 Day Race-Day 3",13.5,49,"Daamen Antony","1.30.37","Member",40,111,"N"]
["2016-07-10","3 Day Race-Day 3",13.5,50,"Newnham Colleen","1.30.39","Member",41,110,"N"]
["2016-07-10","3 Day Race-Day 3",13.5,51,"Mayhew Susan","1.30.40","Member",42,109,"N"]
["2016-07-10","3 Day Race-Day 3",13.5,52,"Neimanis Greta","1.31.47","Member",43,108,"N"]
["2016-07-10","3 Day Race-Day 3",13.5,53,"Sue Yek William","1.32.16","Member",44,107,"N"]
["2016-07-10","3 Day Race-Day 3",13.5,54,"Doherty Susan","1.34.19","Member",45,106,"N"]
["2016-07-10","3 Day Race-Day 3",13.5,55,"Donoghue Mary","1.34.29","Member",46,105,"N"]
["2016-07-10","3 Day Race-Day 3",13.5,56,"Cahill Rachel","1.41.40","Non-Member","N/A",0,"Y"]
["2016-07-10","3 Day Race-Day 3",13.5,57,"Whittle Sara","1.43.48","Non-Member","N/A",0,"Y"]
["2016-07-10","3 Day Race-Day 3",13.5,58,"Whittle Darrin","1.44.56","Non-Member","N/A",0,"Y"]
["2016-07-10","3 Day Race-Day 3",13.5,59,"Beil Lyndie","1.52.37","Member",47,104,"N"]
["2016-07-10","3 Day Race-Day 3",13.5,60,"Simpson Chris","1.52.39","Non-Member","N/A",0,"Y"]
["2016-07-11","3 Day Race-All 3 days completed",42.25,1,"O'Regan Simon","2.48.07","Member",1,150,"N"]
["2016-07-11","3 Day Race-All 3 days completed",42.25,2,"Harding Michael","2.57.09","Member",2,149,"N"]
["2016-07-11","3 Day Race-All 3 days completed",42.25,3,"Copp Philip","2.57.51","Member",3,148,"N"]
["2016-07-11","3 Day Race-All 3 days completed",42.25,4,"Buchholz Mark","2.59.28","Member",4,0,"Y"]
["2016-07-11","3 Day Race-All 3 days completed",42.25,5,"Budden Craig","3.03.27","Non-Member","N/A",0,"Y"]
["2016-07-11","3 Day Race-All 3 days completed",42.25,6,"Turnbull Deahne","3.07.19","Member",5,146,"N"]
["2016-07-11","3 Day Race-All 3 days completed",42.25,7,"Stripp Deon","3.11.18","Member",6,0,"Y"]
["2016-07-11","3 Day Race-All 3 days completed",42.25,8,"Boschen Matthew","3.11.38","Member",7,144,"N"]
["2016-07-11","3 Day Race-All 3 days completed",42.25,9,"Wallis Cameron","3.12.59","Member",8,0,"Y"]
["2016-07-11","3 Day Race-All 3 days completed",42.25,10,"Hyde Jevyn","3.16.13","Member",9,142,"N"]
["2016-07-11","3 Day Race-All 3 days completed",42.25,11,"Vance David","3.18.23","Non-Member","N/A",0,"Y"]
["2016-07-11","3 Day Race-All 3 days completed",42.25,12,"Flores Monique","3.19.07","Non-Member","N/A",0,"Y"]
["2016-07-11","3 Day Race-All 3 days completed",42.25,13,"Stafford Erin","3.21.59","Member",10,141,"N"]
["2016-07-11","3 Day Race-All 3 days completed",42.25,14,"Schonfeldt-Roy Sonja","3.23.50","Member",11,140,"N"]
["2016-07-11","3 Day Race-All 3 days completed",42.25,15,"Fitzsimmons Michael","3.28.51","Member",12,139,"N"]
["2016-07-11","3 Day Race-All 3 days completed",42.25,16,"Nuttall John","3.29.20","Member",13,138,"N"]
["2016-07-11","3 Day Race-All 3 days completed",42.25,17,"Carter Brendan","3.31.44","Member",14,137,"N"]
["2016-07-11","3 Day Race-All 3 days completed",42.25,18,"Flynn-Pittar Isis","3.37.32","Member",15,136,"N"]
["2016-07-11","3 Day Race-All 3 days completed",42.25,19,"Crawford Les","3.39.47","Member",16,135,"N"]
["2016-07-11","3 Day Race-All 3 days completed",42.25,20,"Guy William","3.41.33","Member",17,134,"N"]
["2016-07-11","3 Day Race-All 3 days completed",42.25,21,"Doherty Bill","3.42.18","Member",18,133,"N"]
["2016-07-11","3 Day Race-All 3 days completed",42.25,22,"Day Paul","3.43.44","Member",19,132,"N"]
["2016-07-11","3 Day Race-All 3 days completed",42.25,23,"Cheers Scott","3.45.10","Non-Member","N/A",0,"Y"]
["2016-07-11","3 Day Race-All 3 days completed",42.25,24,"Neimanis Peter","3.46.58","Member",20,131,"N"]
["2016-07-11","3 Day Race-All 3 days completed",42.25,25,"Vollmerhause Scott","3.48.11","Member",21,130,"N"]
["2016-07-11","3 Day Race-All 3 days completed",42.25,26,"Bradley Fraser","3.52.27","Member",22,129,"N"]
["2016-07-11","3 Day Race-All 3 days completed",42.25,27,"Wheeler Jude","3.53.21","Non-Member","N/A",0,"Y"]
["2016-07-11","3 Day Race-All 3 days completed",42.25,28,"Frazer Ian","3.57.26","Member",23,128,"N"]
["2016-07-11","3 Day Race-All 3 days completed",42.25,29,"Flynn-Pittar Dee","4.02.34","Member",24,127,"N"]
["2016-07-11","3 Day Race-All 3 days completed",42.25,30,"Ellershaw Robert","4.03.52","Member",25,126,"N"]
["2016-07-11","3 Day Race-All 3 days completed",42.25,31,"Singleton Maree","4.08.43","Non-Member","N/A",0,"Y"]
["2016-07-11","3 Day Race-All 3 days completed",42.25,32,"Donoghue Michael","4.09.41","Member",26,125,"N"]
["2016-07-11","3 Day Race-All 3 days completed",42.25,33,"Cox Sherry","4.10.28","Member",27,124,"N"]
["2016-07-11","3 Day Race-All 3 days completed",42.25,34,"Hoggan John","4.15.45","Member",28,123,"N"]
["2016-07-11","3 Day Race-All 3 days completed",42.25,35,"O'Reilly Phil","4.19.41","Member",29,122,"N"]
["2016-07-11","3 Day Race-All 3 days completed",42.25,36,"Newnham Colleen","4.24.27","Member",30,121,"N"]
["2016-07-11","3 Day Race-All 3 days completed",42.25,37,"Tirendi Francesco","4.30.30","Member",31,120,"N"]
["2016-07-11","3 Day Race-All 3 days completed",42.25,38,"Daamen Antony","4.36.23","Member",32,119,"N"]
["2016-07-11","3 Day Race-All 3 days completed",42.25,39,"Neimanis Greta","4.57.46","Member",33,118,"N"]
["2016-07-11","3 Day Race-All 3 days completed",42.25,40,"Doherty Susan","4.59.04","Member",34,117,"N"]
["2016-07-11","3 Day Race-All 3 days completed",42.25,41,"Whittle Sara","5.05.11","Non-Member","N/A",0,"Y"]
["2016-07-11","3 Day Race-All 3 days completed",42.25,42,"Cahill Rachel","5.16.05","Non-Member","N/A",0,"Y"]
["2016-07-11","3 Day Race-All 3 days completed",42.25,43,"Simpson Chris","5.35.19","Non-Member","N/A",0,"Y"]
["2016-07-11","3 Day Race-All 3 days completed",42.25,44,"Beil Lyndie","5.50.53","Member",35,116,"N"]
["2016-07-16","Running Works Cross Country Series  2",6,1,"Harding Michael","22.15","Member",1,150,"N"]
["2016-07-16","Running Works Cross Country Series  2",6,2,"Argent Troy","22.31","Non-Member","N/A",0,"Y"]
["2016-07-16","Running Works Cross Country Series  2",6,3,"Beacom-Halliday Om","23.29","Non-Member","N/A",0,"Y"]
["2016-07-16","Running Works Cross Country Series  2",6,4,"Heames Sam","23.50","Non-Member","N/A",0,"Y"]
["2016-07-16","Running Works Cross Country Series  2",6,5,"Garnett Adrian","23.53","Member",2,149,"N"]
["2016-07-16","Running Works Cross Country Series  2",6,6,"Springall Gabriella","24.10","Member",3,148,"N"]
["2016-07-16","Running Works Cross Country Series  2",6,7,"Stripp Deon","24.27","Member",4,147,"N"]
["2016-07-16","Running Works Cross Country Series  2",6,8,"Wallis Cameron","24.35","Member",5,146,"N"]
["2016-07-16","Running Works Cross Country Series  2",6,9,"Di Giacomo Simon","25.03","Member",6,145,"N"]
["2016-07-16","Running Works Cross Country Series  2",6,10,"Marrinan Michael","25.40","Member",7,144,"N"]
["2016-07-16","Running Works Cross Country Series  2",6,11,"Fitzsimmons Michael","25.57","Member",8,143,"N"]
["2016-07-16","Running Works Cross Country Series  2",6,12,"Schonfeldt-Roy Sonja","26.28","Member",9,142,"N"]
["2016-07-16","Running Works Cross Country Series  2",6,13,"Pretorius Christiaan","26.42","Member",10,141,"N"]
["2016-07-16","Running Works Cross Country Series  2",6,14,"Watkins Meredith","26.52","Member",11,140,"N"]
["2016-07-16","Running Works Cross Country Series  2",6,15,"Hyde Jevyn","27.02","Member",12,139,"N"]
["2016-07-16","Running Works Cross Country Series  2",6,16,"Evans Derrick","27.07","Member",13,138,"N"]
["2016-07-16","Running Works Cross Country Series  2",6,17,"Guy William","27.21","Member",14,137,"N"]
["2016-07-16","Running Works Cross Country Series  2",6,18,"Doherty Bill","28.22","Member",15,136,"N"]
["2016-07-16","Running Works Cross Country Series  2",6,19,"Sturtz James","29.43","Non-Member","N/A",0,"Y"]
["2016-07-16","Running Works Cross Country Series  2",6,20,"Carter Brendan","29.57","Member",16,135,"N"]
["2016-07-16","Running Works Cross Country Series  2",6,21,"Bradley Fraser","30.23","Member",17,134,"N"]
["2016-07-16","Running Works Cross Country Series  2",6,22,"Ellershaw Robert","30.29","Member",18,133,"N"]
["2016-07-16","Running Works Cross Country Series  2",6,23,"Drummond Karin","30.37","Non-Member","N/A",0,"Y"]
["2016-07-16","Running Works Cross Country Series  2",6,24,"Flynn-Pittar Dee","30.45","Member",19,132,"N"]
["2016-07-16","Running Works Cross Country Series  2",6,25,"Smith Justin","31.02","Member",20,131,"N"]
["2016-07-16","Running Works Cross Country Series  2",6,26,"Desailly Nicole","31.24","Member",21,130,"N"]
["2016-07-16","Running Works Cross Country Series  2",6,27,"O'Reilly Phil","31.41","Member",22,129,"N"]
["2016-07-16","Running Works Cross Country Series  2",6,28,"Donoghue Michael","31.54","Member",23,128,"N"]
["2016-07-16","Running Works Cross Country Series  2",6,29,"Bish John","32.21","Non-Member","N/A",0,"Y"]
["2016-07-16","Running Works Cross Country Series  2",6,30,"Newnham Colleen","33.21","Member",24,127,"N"]
["2016-07-16","Running Works Cross Country Series  2",6,31,"Collins Sarah","33.23","Member",25,126,"N"]
["2016-07-16","Running Works Cross Country Series  2",6,32,"Nelson Jesslyn","33.24","Member",26,125,"N"]
["2016-07-16","Running Works Cross Country Series  2",6,33,"Daamen Antony","33.36","Member",27,124,"N"]
["2016-07-16","Running Works Cross Country Series  2",6,34,"Mcinnes Scott","33.54","Member",28,123,"N"]
["2016-07-16","Running Works Cross Country Series  2",6,35,"Jenkins Cass","33.58","Non-Member","N/A",0,"Y"]
["2016-07-16","Running Works Cross Country Series  2",6,36,"Tsang Deffy","34.03","Member",29,122,"N"]
["2016-07-16","Running Works Cross Country Series  2",6,37,"Frossling Annika","34.23","Member",30,121,"N"]
["2016-07-16","Running Works Cross Country Series  2",6,38,"Kow Davis","34.26","Non-Member","N/A",0,"Y"]
["2016-07-16","Running Works Cross Country Series  2",6,39,"Simpson Chris","34.41","Non-Member","N/A",0,"Y"]
["2016-07-16","Running Works Cross Country Series  2",6,40,"Mcnabb Jim","35.17","Member",31,120,"N"]
["2016-07-16","Running Works Cross Country Series  2",6,41,"Otto Annaliese","36.33","Member",32,119,"N"]
["2016-07-16","Running Works Cross Country Series  2",6,42,"Doherty Margot","36.59","Member",33,118,"N"]
["2016-07-16","Running Works Cross Country Series  2",6,43,"Muhlenberg Conny","37.08","Member",34,117,"N"]
["2016-07-16","Running Works Cross Country Series  2",6,44,"Ryan Colin","37.43","Member",35,116,"N"]
["2016-07-16","Running Works Cross Country Series  2",6,45,"Doherty Susan","37.45","Member",36,115,"N"]
["2016-07-16","Running Works Cross Country Series  2",6,46,"Rubenach Mike","38.09","Member",37,114,"N"]
["2016-07-16","Running Works Cross Country Series  2",6,47,"Donoghue Mary","38.40","Member",38,113,"N"]
["2016-07-16","Running Works Cross Country Series  2",6,48,"Norton Nancy","38.47","Member",39,112,"N"]
["2016-07-16","Running Works Cross Country Series  2",6,49,"Sue Yek William","38.50","Member",40,111,"N"]
["2016-07-16","Running Works Cross Country Series  2",6,50,"Brown Jenny","38.54","Member",41,110,"N"]
["2016-07-16","Running Works Cross Country Series  2",6,51,"Machin Pook","38.59","Member",42,109,"N"]
["2016-07-16","Running Works Cross Country Series  2",6,52,"Scott Joseph","41.25","Member",43,108,"N"]
["2016-07-16","Running Works Cross Country Series  2",6,53,"Beil Lyndie","43.06","Member",44,107,"N"]
["2016-07-16","Running Works Cross Country Series  2",6,54,"Olsen John","44.40","Member",45,106,"N"]
["2016-07-16","Running Works Cross Country Series  2",6,55,"Ives Jim","44.42","Member",46,105,"N"]
["2016-07-16","Running Works Cross Country Series  2",6,56,"Daniel Peter","49.04","Member",47,104,"N"]
["2016-07-16","Running Works Cross Country Series  2",6,57,"Brooke-Taylor David","50.39","Member",48,103,"N"]
["2016-07-16","Running Works Cross Country Series  2",6,58,"Ryan Tom","52.11","Non-Member","N/A",0,"Y"]
["2016-07-23","Riverside Figure 8",16,1,"Bosco Vince","58.10","Non-Member","N/A",0,"Y"]
["2016-07-23","Riverside Figure 8",16,2,"Buchholz Mark","1.04.47","Member",1,150,"N"]
["2016-07-23","Riverside Figure 8",16,3,"Boschen Matthew","1.07.10","Member",2,149,"N"]
["2016-07-23","Riverside Figure 8",16,4,"Spriggs Jye","1.07.24","Non-Member","N/A",0,"Y"]
["2016-07-23","Riverside Figure 8",16,5,"Maguire Liz","1.07.54","Member",3,148,"N"]
["2016-07-23","Riverside Figure 8",16,6,"Stripp Deon","1.08.54","Member",4,147,"N"]
["2016-07-23","Riverside Figure 8",16,7,"Vance David","1.10.16","Non-Member","N/A",0,"Y"]
["2016-07-23","Riverside Figure 8",16,8,"Fitzsimmons Michael","1.10.26","Member",5,146,"N"]
["2016-07-23","Riverside Figure 8",16,9,"Moore Stuart","1.10.46","Member",6,145,"N"]
["2016-07-23","Riverside Figure 8",16,10,"Schonfeldt-Roy Sonja","1.11.03","Member",7,144,"N"]
["2016-07-23","Riverside Figure 8",16,11,"Illman Stuart","1.11.08","Member",8,143,"N"]
["2016-07-23","Riverside Figure 8",16,12,"Stafford Erin","1.12.10","Member",9,142,"N"]
["2016-07-23","Riverside Figure 8",16,13,"Nuttall John","1.12.40","Member",10,141,"N"]
["2016-07-23","Riverside Figure 8",16,14,"Evans Derrick","1.13.04","Member",11,140,"N"]
["2016-07-23","Riverside Figure 8",16,15,"Crawford Les","1.13.50","Member",12,139,"N"]
["2016-07-23","Riverside Figure 8",16,16,"Kemei Joseph","1.15.59","Non-Member","N/A",0,"Y"]
["2016-07-23","Riverside Figure 8",16,17,"Doherty Bill","1.16.04","Member",13,138,"N"]
["2016-07-23","Riverside Figure 8",16,18,"Mentor Andre","1.17.58","Member",14,137,"N"]
["2016-07-23","Riverside Figure 8",16,19,"Cullen David","1.18.41","Member",15,136,"N"]
["2016-07-23","Riverside Figure 8",16,20,"Norris Bernie","1.20.29","Non-Member","N/A",0,"Y"]
["2016-07-23","Riverside Figure 8",16,21,"Schmitt Travis","1.20.36","Member",16,135,"N"]
["2016-07-23","Riverside Figure 8",16,22,"Frazer Ian","1.20.43","Member",17,134,"N"]
["2016-07-23","Riverside Figure 8",16,23,"Bradley Fraser","1.21.11","Member",18,133,"N"]
["2016-07-23","Riverside Figure 8",16,24,"Kiernan Sophie","1.21.24","Member",19,132,"N"]
["2016-07-23","Riverside Figure 8",16,25,"Hunter Matthew","1.21.32","Member",20,131,"N"]
["2016-07-23","Riverside Figure 8",16,26,"Flynn-Pittar Isis","1.21.53","Member",21,130,"N"]
["2016-07-23","Riverside Figure 8",16,27,"Wheeler Jude","1.22.19","Non-Member","N/A",0,"Y"]
["2016-07-23","Riverside Figure 8",16,28,"Newman Lyn","1.23.19","Member",22,129,"N"]
["2016-07-23","Riverside Figure 8",16,29,"Smith Justin","1.23.32","Member",23,128,"N"]
["2016-07-23","Riverside Figure 8",16,30,"Schmitt Riana","1.24.01","Member",24,127,"N"]
["2016-07-23","Riverside Figure 8",16,31,"Davies Glen","1.24.29","Member",25,126,"N"]
["2016-07-23","Riverside Figure 8",16,32,"Cox Sherry","1.24.38","Member",26,125,"N"]
["2016-07-23","Riverside Figure 8",16,33,"Desailly Nicole","1.24.38","Member",27,124,"N"]
["2016-07-23","Riverside Figure 8",16,34,"Smales Clayton","1.25.43","Member",28,123,"N"]
["2016-07-23","Riverside Figure 8",16,35,"O'Reilly Phil","1.25.48","Member",29,122,"N"]
["2016-07-23","Riverside Figure 8",16,36,"Flynn-Pittar Dee","1.25.52","Member",30,121,"N"]
["2016-07-23","Riverside Figure 8",16,37,"Kenny Eamon","1.25.53","Non-Member","N/A",0,"Y"]
["2016-07-23","Riverside Figure 8",16,38,"Guy William","1.25.55","Member",31,120,"N"]
["2016-07-23","Riverside Figure 8",16,39,"Donoghue Michael","1.26.42","Member",32,119,"N"]
["2016-07-23","Riverside Figure 8",16,40,"Newnham Colleen","1.26.46","Member",33,118,"N"]
["2016-07-23","Riverside Figure 8",16,41,"Sansalone Luca","1.28.57","Non-Member","N/A",0,"Y"]
["2016-07-23","Riverside Figure 8",16,42,"Malan Carsten","1.29.13","Non-Member","N/A",0,"Y"]
["2016-07-23","Riverside Figure 8",16,43,"Mayhew Susan","1.30.24","Member",34,117,"N"]
["2016-07-23","Riverside Figure 8",16,44,"Collins Sarah","1.30.51","Member",35,116,"N"]
["2016-07-23","Riverside Figure 8",16,45,"Jenkins Cass","1.30.59","Non-Member","N/A",0,"Y"]
["2016-07-23","Riverside Figure 8",16,46,"Allen Nick","1.31.38","Non-Member","N/A",0,"Y"]
["2016-07-23","Riverside Figure 8",16,47,"Kelly Dave","1.31.51","Non-Member","N/A",0,"Y"]
["2016-07-23","Riverside Figure 8",16,48,"Tirendi Francesco","1.32.28","Member",36,115,"N"]
["2016-07-23","Riverside Figure 8",16,49,"Johnson Lia","1.32.37","Member",37,114,"N"]
["2016-07-23","Riverside Figure 8",16,50,"Armit Brian","1.32.38","Member",38,113,"N"]
["2016-07-23","Riverside Figure 8",16,51,"Tsang Deffy","1.33.45","Member",39,112,"N"]
["2016-07-23","Riverside Figure 8",16,52,"Isepy Chris","1.36.13","Member",40,111,"N"]
["2016-07-23","Riverside Figure 8",16,53,"Labuschagne Rosemarie","1.36.58","Member",41,110,"N"]
["2016-07-23","Riverside Figure 8",16,54,"Standlay Leanne","1.37.10","Non-Member","N/A",0,"Y"]
["2016-07-23","Riverside Figure 8",16,55,"Marrinan Isa","1.37.30","Member",42,109,"N"]
["2016-07-23","Riverside Figure 8",16,56,"Kerridge Liam","1.37.36","Non-Member","N/A",0,"Y"]
["2016-07-23","Riverside Figure 8",16,57,"Daamen Antony","1.38.38","Member",43,108,"N"]
["2016-07-23","Riverside Figure 8",16,58,"Sellers Tim","1.39.36","Non-Member","N/A",0,"Y"]
["2016-07-23","Riverside Figure 8",16,59,"Garvie Diane","1.39.57","Member",44,107,"N"]
["2016-07-23","Riverside Figure 8",16,60,"Otto Annaliese","1.40.22","Member",45,106,"N"]
["2016-07-23","Riverside Figure 8",16,61,"Gustavson Russell","1.40.24","Non-Member","N/A",0,"Y"]
["2016-07-23","Riverside Figure 8",16,62,"Donoghue Mary","1.44.07","Member",46,105,"N"]
["2016-07-23","Riverside Figure 8",16,63,"Catterall Ian R","1.45.03","Member",47,104,"N"]
["2016-07-23","Riverside Figure 8",16,64,"Johnson Cat","1.47.11","Member",48,103,"N"]
["2016-07-23","Riverside Figure 8",16,65,"Keir Therese","1.47.24","Member",49,102,"N"]
["2016-07-23","Riverside Figure 8",16,66,"Bosworth Clare","1.48.42","Member",50,101,"N"]
["2016-07-23","Riverside Figure 8",16,67,"Brown Jenny","1.48.50","Member",51,100,"N"]
["2016-07-23","Riverside Figure 8",16,68,"Doherty Susan","1.51.08","Member",52,99,"N"]
["2016-07-23","Riverside Figure 8",16,69,"Beil Lyndie","1.51.10","Member",53,98,"N"]
["2016-07-30","Running Works  Cross Country Series Race 3",6.5,1,"O'Regan Simon","23.09","Member",1,150,"N"]
["2016-07-30","Running Works  Cross Country Series Race 3",6.5,2,"Harding Michael","25.07","Member",2,149,"N"]
["2016-07-30","Running Works  Cross Country Series Race 3",6.5,3,"Garnett Adrian","25.36","Member",3,148,"N"]
["2016-07-30","Running Works  Cross Country Series Race 3",6.5,4,"Springall Gabriella","25.41","Member",4,147,"N"]
["2016-07-30","Running Works  Cross Country Series Race 3",6.5,5,"Di Giacomo Simon","26.39","Member",5,146,"N"]
["2016-07-30","Running Works  Cross Country Series Race 3",6.5,6,"Fitzsimmons Michael","27.11","Member",6,145,"N"]
["2016-07-30","Running Works  Cross Country Series Race 3",6.5,7,"Dunsten James","27.19","Non-Member","N/A",0,"Y"]
["2016-07-30","Running Works  Cross Country Series Race 3",6.5,8,"Watkins Meredith","27.21","Member",7,144,"N"]
["2016-07-30","Running Works  Cross Country Series Race 3",6.5,9,"Illman Stuart","27.29","Member",8,143,"N"]
["2016-07-30","Running Works  Cross Country Series Race 3",6.5,10,"Schonfeldt-Roy Sonja","27.36","Member",9,142,"N"]
["2016-07-30","Running Works  Cross Country Series Race 3",6.5,11,"Pretorius Christiaan","28.00","Member",10,141,"N"]
["2016-07-30","Running Works  Cross Country Series Race 3",6.5,12,"Schick Gerard","28.09","Member",11,140,"N"]
["2016-07-30","Running Works  Cross Country Series Race 3",6.5,13,"Kemei Joseph","28.20","Non-Member","N/A",0,"Y"]
["2016-07-30","Running Works  Cross Country Series Race 3",6.5,14,"Crawford Les","28.25","Member",12,139,"N"]
["2016-07-30","Running Works  Cross Country Series Race 3",6.5,15,"Guy William","28.26","Member",13,138,"N"]
["2016-07-30","Running Works  Cross Country Series Race 3",6.5,16,"Nuttall John","28.28","Member",14,137,"N"]
["2016-07-30","Running Works  Cross Country Series Race 3",6.5,17,"Cullen David","28.35","Member",15,136,"N"]
["2016-07-30","Running Works  Cross Country Series Race 3",6.5,18,"Doherty Bill","28.46","Member",16,135,"N"]
["2016-07-30","Running Works  Cross Country Series Race 3",6.5,19,"Evans Derrick","29.02","Member",17,134,"N"]
["2016-07-30","Running Works  Cross Country Series Race 3",6.5,20,"Werbeloff Gavin","29.21","Member",18,133,"N"]
["2016-07-30","Running Works  Cross Country Series Race 3",6.5,21,"Smales Clayton","29.34","Member",19,132,"N"]
["2016-07-30","Running Works  Cross Country Series Race 3",6.5,22,"Kiernan Sophie","29.39","Member",20,131,"N"]
["2016-07-30","Running Works  Cross Country Series Race 3",6.5,23,"Lloyd Andrew","29.47","Non-Member","N/A",0,"Y"]
["2016-07-30","Running Works  Cross Country Series Race 3",6.5,24,"Bradley Fraser","29.53","Member",21,130,"N"]
["2016-07-30","Running Works  Cross Country Series Race 3",6.5,25,"Weller Simon","29.55","Non-Member","N/A",0,"Y"]
["2016-07-30","Running Works  Cross Country Series Race 3",6.5,26,"Machin Jamie","30.00","Member",22,129,"N"]
["2016-07-30","Running Works  Cross Country Series Race 3",6.5,27,"Vollmerhause Scott","30.02","Member",23,128,"N"]
["2016-07-30","Running Works  Cross Country Series Race 3",6.5,28,"Nahrung David","30.50","Member",24,127,"N"]
["2016-07-30","Running Works  Cross Country Series Race 3",6.5,29,"Nicholson Trevor","31.12","Member",25,126,"N"]
["2016-07-30","Running Works  Cross Country Series Race 3",6.5,30,"Wheeler Jude","31.20","Non-Member","N/A",0,"Y"]
["2016-07-30","Running Works  Cross Country Series Race 3",6.5,31,"Hisuchi Tk","31.22","Non-Member","N/A",0,"Y"]
["2016-07-30","Running Works  Cross Country Series Race 3",6.5,32,"Flynn-Pittar Dee","31.50","Member",26,125,"N"]
["2016-07-30","Running Works  Cross Country Series Race 3",6.5,33,"Sturtz James","32.31","Non-Member","N/A",0,"Y"]
["2016-07-30","Running Works  Cross Country Series Race 3",6.5,34,"O'Reilly Phil","32.33","Member",27,124,"N"]
["2016-07-30","Running Works  Cross Country Series Race 3",6.5,35,"Ellershaw Robert","32.34","Member",28,123,"N"]
["2016-07-30","Running Works  Cross Country Series Race 3",6.5,36,"Desailly Nicole","33.00","Member",29,122,"N"]
["2016-07-30","Running Works  Cross Country Series Race 3",6.5,37,"Hoggan John","33.13","Member",30,121,"N"]
["2016-07-30","Running Works  Cross Country Series Race 3",6.5,38,"Donoghue Michael","33.21","Member",31,120,"N"]
["2016-07-30","Running Works  Cross Country Series Race 3",6.5,39,"Jowett Anna","33.30","Member",32,119,"N"]
["2016-07-30","Running Works  Cross Country Series Race 3",6.5,40,"Tsang Deffy","34.38","Member",33,118,"N"]
["2016-07-30","Running Works  Cross Country Series Race 3",6.5,41,"Wharton David","34.55","Member",34,117,"N"]
["2016-07-30","Running Works  Cross Country Series Race 3",6.5,42,"Mayhew Susan","35.05","Member",35,116,"N"]
["2016-07-30","Running Works  Cross Country Series Race 3",6.5,43,"Gifford Kelly","35.07","Member",36,115,"N"]
["2016-07-30","Running Works  Cross Country Series Race 3",6.5,44,"Newnham Colleen","35.13","Member",37,114,"N"]
["2016-07-30","Running Works  Cross Country Series Race 3",6.5,45,"Brunker Julie","35.14","Member",38,113,"N"]
["2016-07-30","Running Works  Cross Country Series Race 3",6.5,46,"Johnson Lia","35.31","Member",39,112,"N"]
["2016-07-30","Running Works  Cross Country Series Race 3",6.5,47,"Eriksen Dale","35.51","Member",40,111,"N"]
["2016-07-30","Running Works  Cross Country Series Race 3",6.5,48,"Lipsey Jaymie","35.56","Non-Member","N/A",0,"Y"]
["2016-07-30","Running Works  Cross Country Series Race 3",6.5,49,"Tirendi Francesco","36.50","Member",41,0,"Y"]
["2016-07-30","Running Works  Cross Country Series Race 3",6.5,50,"Pahoff J","37.08","Non-Member","N/A","N/A","N"]
["2016-07-30","Running Works  Cross Country Series Race 3",6.5,51,"Marrinan Isa","37.39","Member",42,109,"N"]
["2016-07-30","Running Works  Cross Country Series Race 3",6.5,52,"Labuschagne Rosemarie","37.52","Member",43,108,"N"]
["2016-07-30","Running Works  Cross Country Series Race 3",6.5,53,"Miller Anne","38.02","Non-Member","N/A",0,"Y"]
["2016-07-30","Running Works  Cross Country Series Race 3",6.5,54,"Daamen Antony","38.42","Member",44,0,"Y"]
["2016-07-30","Running Works  Cross Country Series Race 3",6.5,55,"Doherty Margot","38.44","Member",45,106,"N"]
["2016-07-30","Running Works  Cross Country Series Race 3",6.5,56,"Rubenach Mike","38.50","Member",46,105,"N"]
["2016-07-30","Running Works  Cross Country Series Race 3",6.5,57,"Ra Margaret","39.27","Non-Member","N/A",0,"Y"]
["2016-07-30","Running Works  Cross Country Series Race 3",6.5,58,"Donoghue Mary","40.09","Member",47,104,"N"]
["2016-07-30","Running Works  Cross Country Series Race 3",6.5,59,"Brown Jenny","41.25","Member",48,103,"N"]
["2016-07-30","Running Works  Cross Country Series Race 3",6.5,60,"Sue Yek William","41.25","Member",49,102,"N"]
["2016-07-30","Running Works  Cross Country Series Race 3",6.5,61,"Leitch Cam","41.27","Member",50,101,"N"]
["2016-07-30","Running Works  Cross Country Series Race 3",6.5,62,"Machin Pook","41.27","Member",51,100,"N"]
["2016-07-30","Running Works  Cross Country Series Race 3",6.5,63,"Norton Nancy","42.06","Member",52,99,"N"]
["2016-07-30","Running Works  Cross Country Series Race 3",6.5,64,"De Jong Jaap","44.20","Member",53,98,"N"]
["2016-07-30","Running Works  Cross Country Series Race 3",6.5,65,"Beil Lyndie","45.06","Member",54,97,"N"]
["2016-07-30","Running Works  Cross Country Series Race 3",6.5,66,"Ryan Tom","52.26","Non-Member","N/A",0,"Y"]
["2016-08-20","Two Tunnels",10.4,1,"O'Regan Simon","39.23","Member",1,150,"N"]
["2016-08-20","Two Tunnels",10.4,2,"Buchholz Mark","42.06","Member",2,149,"N"]
["2016-08-20","Two Tunnels",10.4,3,"Harding Michael","42.54","Member",3,0,"Y"]
["2016-08-20","Two Tunnels",10.4,4,"Stripp Deon","43.31","Member",4,147,"N"]
["2016-08-20","Two Tunnels",10.4,5,"Springall Gabriella","43.46","Member",5,146,"N"]
["2016-08-20","Two Tunnels",10.4,6,"Boschen Matthew","43.48","Member",6,145,"N"]
["2016-08-20","Two Tunnels",10.4,7,"Sun Sizhong","44.14","Member",7,144,"N"]
["2016-08-20","Two Tunnels",10.4,8,"Marrinan Michael","44.31","Member",8,143,"N"]
["2016-08-20","Two Tunnels",10.4,9,"Werbeloff Gavin","44.38","Member",9,142,"N"]
["2016-08-20","Two Tunnels",10.4,10,"Maguire Liz","44.43","Member",10,141,"N"]
["2016-08-20","Two Tunnels",10.4,11,"Fitzsimmons Michael","44.55","Member",11,140,"N"]
["2016-08-20","Two Tunnels",10.4,12,"Hyde Jevyn","45.07","Member",12,139,"N"]
["2016-08-20","Two Tunnels",10.4,13,"Gordon Tony","45.15","Member",13,138,"N"]
["2016-08-20","Two Tunnels",10.4,14,"Stafford Erin","45.24","Member",14,137,"N"]
["2016-08-20","Two Tunnels",10.4,15,"Evans Derrick","45.47","Member",15,136,"N"]
["2016-08-20","Two Tunnels",10.4,16,"Kemei Joseph","46.38","Non-Member","N/A",0,"Y"]
["2016-08-20","Two Tunnels",10.4,17,"Pretorius Christiaan","47.16","Member",16,0,"Y"]
["2016-08-20","Two Tunnels",10.4,18,"Vollmerhause Scott","47.51","Member",17,134,"N"]
["2016-08-20","Two Tunnels",10.4,19,"Crawford Les","47.55","Member",18,0,"Y"]
["2016-08-20","Two Tunnels",10.4,20,"Wever Simon","48.17","Non-Member","N/A",0,"Y"]
["2016-08-20","Two Tunnels",10.4,21,"Martin Lyle","50.32","Non-Member","N/A",0,"Y"]
["2016-08-20","Two Tunnels",10.4,22,"Smales Clayton","50.42","Member",19,132,"N"]
["2016-08-20","Two Tunnels",10.4,23,"Mugambi Sheba","50.46","Member",20,131,"N"]
["2016-08-20","Two Tunnels",10.4,24,"Bradley Fraser","50.55","Member",21,130,"N"]
["2016-08-20","Two Tunnels",10.4,25,"Brunker Julie","51.08","Member",22,129,"N"]
["2016-08-20","Two Tunnels",10.4,26,"Machin Jamie","51.14","Member",23,128,"N"]
["2016-08-20","Two Tunnels",10.4,27,"Nicholson Trevor","51.27","Member",24,127,"N"]
["2016-08-20","Two Tunnels",10.4,28,"Frazer Ian","51.33","Member",25,126,"N"]
["2016-08-20","Two Tunnels",10.4,29,"Newman Lyn","52.40","Member",26,125,"N"]
["2016-08-20","Two Tunnels",10.4,30,"O'Reilly Phil","53.30","Member",27,124,"N"]
["2016-08-20","Two Tunnels",10.4,31,"Flynn-Pittar Dee","54.21","Member",28,123,"N"]
["2016-08-20","Two Tunnels",10.4,32,"Flynn-Pittar Isis","54.22","Member",29,122,"N"]
["2016-08-20","Two Tunnels",10.4,33,"Moore Chris","54.46","Non-Member","N/A",0,"Y"]
["2016-08-20","Two Tunnels",10.4,34,"Pearson Krystal","54.46","Member",30,121,"N"]
["2016-08-20","Two Tunnels",10.4,35,"Walsh John","54.57","Member",31,120,"N"]
["2016-08-20","Two Tunnels",10.4,36,"Kelly Dave","55.56","Non-Member","N/A",0,"Y"]
["2016-08-20","Two Tunnels",10.4,37,"Malan Carsten","56.39","Non-Member","N/A",0,"Y"]
["2016-08-20","Two Tunnels",10.4,38,"Miller Anne","56.40","Non-Member","N/A",0,"Y"]
["2016-08-20","Two Tunnels",10.4,39,"Mcinnes Scott","56.42","Member",32,119,"N"]
["2016-08-20","Two Tunnels",10.4,40,"Rich Keith","57.09","Member",33,118,"N"]
["2016-08-20","Two Tunnels",10.4,41,"Johnson Lia","57.09","Member",34,117,"N"]
["2016-08-20","Two Tunnels",10.4,42,"Jenkins Cass","57.15","Non-Member","N/A",0,"Y"]
["2016-08-20","Two Tunnels",10.4,43,"Machin Alan","57.20","Non-Member","N/A",0,"Y"]
["2016-08-20","Two Tunnels",10.4,44,"Tirendi Francesco","58.18","Member",35,116,"N"]
["2016-08-20","Two Tunnels",10.4,45,"Fanning Terence","59.01","Member",36,115,"N"]
["2016-08-20","Two Tunnels",10.4,46,"Marrinan Isa","59.04","Member",37,114,"N"]
["2016-08-20","Two Tunnels",10.4,47,"Mcnabb Jim","59.05","Member",38,113,"N"]
["2016-08-20","Two Tunnels",10.4,48,"Labuschagne Rosemarie","1.00.49","Member",39,112,"N"]
["2016-08-20","Two Tunnels",10.4,49,"Pettingill Dylan","1.01.24","Non-Member","N/A",0,"Y"]
["2016-08-20","Two Tunnels",10.4,50,"Doherty Margot","1.01.35","Member",40,111,"N"]
["2016-08-20","Two Tunnels",10.4,51,"Lipsey Jaymie","1.01.42","Non-Member","N/A",0,"Y"]
["2016-08-20","Two Tunnels",10.4,52,"Armit Brian","1.01.44","Member",41,110,"N"]
["2016-08-20","Two Tunnels",10.4,53,"Eriksen Dale","1.02.22","Member",42,109,"N"]
["2016-08-20","Two Tunnels",10.4,54,"Daamen Antony","1.03.08","Member",43,108,"N"]
["2016-08-20","Two Tunnels",10.4,55,"Otto Annaliese","1.03.55","Member",44,107,"N"]
["2016-08-20","Two Tunnels",10.4,56,"Hearn Jennifer","1.04.08","Member",45,106,"N"]
["2016-08-20","Two Tunnels",10.4,57,"Smith Mathew","1.04.35","Member",46,105,"N"]
["2016-08-20","Two Tunnels",10.4,58,"Labuschagne Celeste","1.04.35","Member",47,104,"N"]
["2016-08-20","Two Tunnels",10.4,59,"Muhlenberg Conny","1.04.47","Member",48,103,"N"]
["2016-08-20","Two Tunnels",10.4,60,"Sue Yek William","1.04.57","Member",49,102,"N"]
["2016-08-20","Two Tunnels",10.4,61,"Machin Pook","1.05.09","Member",50,101,"N"]
["2016-08-20","Two Tunnels",10.4,62,"Jenkins Peter","1.05.15","Non-Member","N/A",0,"Y"]
["2016-08-20","Two Tunnels",10.4,63,"Brown Jenny","1.05.39","Member",51,100,"N"]
["2016-08-20","Two Tunnels",10.4,64,"Rubenach Mike","1.05.40","Member",52,99,"N"]
["2016-08-20","Two Tunnels",10.4,65,"Keir Therese","1.05.49","Member",53,98,"N"]
["2016-08-20","Two Tunnels",10.4,66,"Patteson Kathy","1.05.54","Non-Member","N/A",0,"Y"]
["2016-08-20","Two Tunnels",10.4,67,"Leitch Cam","1.05.54","Member",54,97,"N"]
["2016-08-20","Two Tunnels",10.4,68,"Ferguson Catherine","1.07.24","Non-Member","N/A",0,"Y"]
["2016-08-20","Two Tunnels",10.4,69,"Doherty Susan","1.08.42","Member",55,96,"N"]
["2016-08-20","Two Tunnels",10.4,70,"De Jong Jaap","1.09.45","Member",56,95,"N"]
["2016-08-20","Two Tunnels",10.4,71,"Corkhill Richard","1.09.45","Non-Member","N/A",0,"Y"]
["2016-08-20","Two Tunnels",10.4,72,"Pearce Jayson","1.10.16","Non-Member","N/A",0,"Y"]
["2016-08-20","Two Tunnels",10.4,73,"Mclean Craig","1.13.58","Non-Member","N/A",0,"Y"]
["2016-08-20","Two Tunnels",10.4,74,"Kelly Miranda","1.16.33","Non-Member","N/A",0,"Y"]
["2016-08-20","Two Tunnels",10.4,75,"Brooke-Taylor David","1.18.54","Member",57,94,"N"]
["2016-08-27","North Ward Circuit",8.6,1,"O'Regan Simon","34.34","Member",1,150,"N"]
["2016-08-27","North Ward Circuit",8.6,2,"Harding Michael","36.05","Member",2,149,"N"]
["2016-08-27","North Ward Circuit",8.6,3,"Turnbull Deahne","36.19","Member",3,148,"N"]
["2016-08-27","North Ward Circuit",8.6,4,"Springall Gabriella","36.48","Member",4,147,"N"]
["2016-08-27","North Ward Circuit",8.6,5,"Buchholz Mark","37.00","Member",5,0,"Y"]
["2016-08-27","North Ward Circuit",8.6,6,"Stripp Deon","37.26","Member",6,0,"Y"]
["2016-08-27","North Ward Circuit",8.6,7,"Di Giacomo Simon","37.45","Member",7,144,"N"]
["2016-08-27","North Ward Circuit",8.6,8,"Garnett Adrian","37.54","Member",8,143,"N"]
["2016-08-27","North Ward Circuit",8.6,9,"Werbeloff Gavin","39.33","Member",9,142,"N"]
["2016-08-27","North Ward Circuit",8.6,10,"Illman Stuart","39.59","Member",10,141,"N"]
["2016-08-27","North Ward Circuit",8.6,11,"Pretorius Christiaan","40.12","Member",11,140,"N"]
["2016-08-27","North Ward Circuit",8.6,12,"Machin Angus","40.13","Non-Member","N/A",0,"Y"]
["2016-08-27","North Ward Circuit",8.6,13,"Kemei Joseph","40.21","Non-Member","N/A",0,"Y"]
["2016-08-27","North Ward Circuit",8.6,14,"Stafford Erin","40.24","Member",12,139,"N"]
["2016-08-27","North Ward Circuit",8.6,15,"Evans Derrick","40.50","Member",13,138,"N"]
["2016-08-27","North Ward Circuit",8.6,16,"Schick Gerard","41.24","Member",14,137,"N"]
["2016-08-27","North Ward Circuit",8.6,17,"Elliott Clinton","41.25","Non-Member","N/A",0,"Y"]
["2016-08-27","North Ward Circuit",8.6,18,"Sun Sizhong","41.33","Member",15,136,"N"]
["2016-08-27","North Ward Circuit",8.6,19,"Fitzsimmons Michael","41.40","Member",16,0,"Y"]
["2016-08-27","North Ward Circuit",8.6,20,"Boschen Matthew","41.45","Member",17,0,"Y"]
["2016-08-27","North Ward Circuit",8.6,21,"Marrinan Michael","41.45","Member",18,0,"Y"]
["2016-08-27","North Ward Circuit",8.6,22,"Andres Greg","41.46","Non-Member","N/A",0,"Y"]
["2016-08-27","North Ward Circuit",8.6,23,"Sewell Lara","42.00","Member",19,132,"N"]
["2016-08-27","North Ward Circuit",8.6,24,"Vollmerhause Scott","42.02","Member",20,131,"N"]
["2016-08-27","North Ward Circuit",8.6,25,"Howarth Dane","42.06","Non-Member","N/A",0,"Y"]
["2016-08-27","North Ward Circuit",8.6,26,"Cullen David","42.07","Member",21,130,"N"]
["2016-08-27","North Ward Circuit",8.6,27,"Gordon Tony","43.45","Member",22,129,"N"]
["2016-08-27","North Ward Circuit",8.6,28,"Weever Simon","43.46","Non-Member","N/A",0,"Y"]
["2016-08-27","North Ward Circuit",8.6,29,"Crawford Les","44.09","Member",23,0,"Y"]
["2016-08-27","North Ward Circuit",8.6,30,"Machin Jamie","44.46","Member",24,127,"N"]
["2016-08-27","North Ward Circuit",8.6,31,"Carter Brendan","45.14","Member",25,126,"N"]
["2016-08-27","North Ward Circuit",8.6,32,"Lightbound Paul","45.49","Non-Member","N/A",0,"Y"]
["2016-08-27","North Ward Circuit",8.6,33,"Flynn-Pittar Dee","45.55","Member",26,125,"N"]
["2016-08-27","North Ward Circuit",8.6,34,"Bradley Fraser","46.05","Member",27,0,"Y"]
["2016-08-27","North Ward Circuit",8.6,35,"Desailly Nicole","46.08","Member",28,123,"N"]
["2016-08-27","North Ward Circuit",8.6,36,"Walsh John","48.26","Member",29,122,"N"]
["2016-08-27","North Ward Circuit",8.6,37,"Newnham Colleen","48.53","Member",30,121,"N"]
["2016-08-27","North Ward Circuit",8.6,38,"Johnson Lia","49.29","Member",31,120,"N"]
["2016-08-27","North Ward Circuit",8.6,39,"Donoghue Michael","49.30","Member",32,119,"N"]
["2016-08-27","North Ward Circuit",8.6,40,"Cox Sherry","50.15","Member",33,118,"N"]
["2016-08-27","North Ward Circuit",8.6,41,"Machin Alan","50.18","Non-Member","N/A",0,"Y"]
["2016-08-27","North Ward Circuit",8.6,42,"Rich Keith","50.22","Member",34,117,"N"]
["2016-08-27","North Ward Circuit",8.6,43,"Miller Anne","50.30","Non-Member","N/A",0,"Y"]
["2016-08-27","North Ward Circuit",8.6,44,"Mcinnes Scott","50.31","Member",35,116,"N"]
["2016-08-27","North Ward Circuit",8.6,45,"Malan Carsten","50.45","Non-Member","N/A",0,"Y"]
["2016-08-27","North Ward Circuit",8.6,46,"Kerrisk John","50.46","Non-Member","N/A",0,"Y"]
["2016-08-27","North Ward Circuit",8.6,47,"Kelly Dave","50.47","Non-Member","N/A",0,"Y"]
["2016-08-27","North Ward Circuit",8.6,48,"Hoggan John","50.48","Member",36,115,"N"]
["2016-08-27","North Ward Circuit",8.6,49,"Marrinan Isa","52.23","Member",37,114,"N"]
["2016-08-27","North Ward Circuit",8.6,50,"Labuschagne Rosemarie","52.31","Member",38,113,"N"]
["2016-08-27","North Ward Circuit",8.6,51,"Mcnabb Jim","53.19","Member",39,112,"N"]
["2016-08-27","North Ward Circuit",8.6,52,"Fanning Terence","53.22","Member",40,111,"N"]
["2016-08-27","North Ward Circuit",8.6,53,"Otto Annaliese","54.55","Member",41,110,"N"]
["2016-08-27","North Ward Circuit",8.6,54,"De Jersey Sophie","55.58","Non-Member","N/A",0,"Y"]
["2016-08-27","North Ward Circuit",8.6,55,"Wharton David","56.14","Member",42,109,"N"]
["2016-08-27","North Ward Circuit",8.6,56,"De Jersey Stephen","56.29","Non-Member","N/A",0,"Y"]
["2016-08-27","North Ward Circuit",8.6,57,"Johnson Cat","56.48","Member",43,108,"N"]
["2016-08-27","North Ward Circuit",8.6,58,"Keir Therese","56.56","Member",44,107,"N"]
["2016-08-27","North Ward Circuit",8.6,59,"Cornell Janet","57.06","Non-Member","N/A",0,"Y"]
["2016-08-27","North Ward Circuit",8.6,60,"Labuschagne Celeste","57.23","Member",45,106,"N"]
["2016-08-27","North Ward Circuit",8.6,61,"Smith Mathew","57.24","Member",46,105,"N"]
["2016-08-27","North Ward Circuit",8.6,62,"Brown Jenny","58.26","Member",47,104,"N"]
["2016-08-27","North Ward Circuit",8.6,63,"Sue Yek William","58.26","Member",48,103,"N"]
["2016-08-27","North Ward Circuit",8.6,64,"Machin Pook","58.41","Member",49,102,"N"]
["2016-08-27","North Ward Circuit",8.6,65,"Pain Tilley","59.13","Member",50,101,"N"]
["2016-08-27","North Ward Circuit",8.6,66,"Rubenach Mike","59.49","Member",51,100,"N"]
["2016-08-27","North Ward Circuit",8.6,67,"Donoghue Mary","59.59","Member",52,99,"N"]
["2016-08-27","North Ward Circuit",8.6,68,"Olsen John","1.00.16","Member",53,98,"N"]
["2016-08-27","North Ward Circuit",8.6,69,"De Jong Jaap","1.00.17","Member",54,97,"N"]
["2016-08-27","North Ward Circuit",8.6,70,"Beil Lyndie","1.00.28","Member",55,0,"Y"]
["2016-08-27","North Ward Circuit",8.6,71,"De Jersey Louise","1.02.36","Non-Member","N/A",0,"Y"]
["2016-08-27","North Ward Circuit",8.6,72,"Brooke-Taylor David","1.04.29","Member",56,95,"N"]
["2016-08-27","North Ward Circuit",8.6,73,"Oats Cheryl","1.04.50","Non-Member","N/A",0,"Y"]
["2016-08-27","North Ward Circuit",8.6,74,"Hobson Cheryl","1.10.00","Member",57,94,"N"]
["2016-09-10","Loam Island Loop",9.8000000000000007,1,"Harding Michael","37.36","Member",1,150,"N"]
["2016-09-10","Loam Island Loop",9.8000000000000007,2,"Buchholz Mark","37.57","Member",2,149,"N"]
["2016-09-10","Loam Island Loop",9.8000000000000007,3,"Stripp Deon","39.16","Member",3,148,"N"]
["2016-09-10","Loam Island Loop",9.8000000000000007,4,"Boschen Matthew","39.44","Member",4,147,"N"]
["2016-09-10","Loam Island Loop",9.8000000000000007,5,"Springall Gabriella","40.06","Member",5,146,"N"]
["2016-09-10","Loam Island Loop",9.8000000000000007,6,"Wallis Cameron","40.57","Member",6,145,"N"]
["2016-09-10","Loam Island Loop",9.8000000000000007,7,"Maguire Liz","41.11","Member",7,144,"N"]
["2016-09-10","Loam Island Loop",9.8000000000000007,8,"Sun Sizhong","41.24","Member",8,143,"N"]
["2016-09-10","Loam Island Loop",9.8000000000000007,9,"Marrinan Michael","41.33","Member",9,142,"N"]
["2016-09-10","Loam Island Loop",9.8000000000000007,10,"Fitzsimmons Michael","41.53","Member",10,141,"N"]
["2016-09-10","Loam Island Loop",9.8000000000000007,11,"Kirby Lee","42.53","Non-Member","N/A",0,"Y"]
["2016-09-10","Loam Island Loop",9.8000000000000007,12,"Stafford Erin","43.09","Member",11,140,"N"]
["2016-09-10","Loam Island Loop",9.8000000000000007,13,"Kimei Joseph","43.26","Non-Member","N/A",0,"Y"]
["2016-09-10","Loam Island Loop",9.8000000000000007,14,"Mentor Andre","43.38","Member",12,139,"N"]
["2016-09-10","Loam Island Loop",9.8000000000000007,15,"Gordon Tony","44.25","Member",13,138,"N"]
["2016-09-10","Loam Island Loop",9.8000000000000007,16,"Schick Gerard","44.53","Member",14,137,"N"]
["2016-09-10","Loam Island Loop",9.8000000000000007,17,"Cullen David","45.13","Member",15,136,"N"]
["2016-09-10","Loam Island Loop",9.8000000000000007,18,"Brunker Julie","45.38","Member",16,135,"N"]
["2016-09-10","Loam Island Loop",9.8000000000000007,19,"Sewell Lara","45.38","Member",17,134,"N"]
["2016-09-10","Loam Island Loop",9.8000000000000007,20,"Crawford Les","45.55","Member",18,0,"Y"]
["2016-09-10","Loam Island Loop",9.8000000000000007,21,"Wever Simon","45.59","Non-Member","N/A",0,"Y"]
["2016-09-10","Loam Island Loop",9.8000000000000007,22,"Bradley Fraser","46.32","Member",19,132,"N"]
["2016-09-10","Loam Island Loop",9.8000000000000007,23,"Abdullan Aden","48.31","Non-Member","N/A",0,"Y"]
["2016-09-10","Loam Island Loop",9.8000000000000007,24,"Pearson Krystal","48.32","Member",20,131,"N"]
["2016-09-10","Loam Island Loop",9.8000000000000007,25,"Frazer Ian","48.43","Member",21,130,"N"]
["2016-09-10","Loam Island Loop",9.8000000000000007,26,"Eusson John","50.08","Non-Member","N/A",0,"Y"]
["2016-09-10","Loam Island Loop",9.8000000000000007,27,"Newman Lyn","50.11","Member",22,129,"N"]
["2016-09-10","Loam Island Loop",9.8000000000000007,28,"Smith Justin","50.12","Member",23,128,"N"]
["2016-09-10","Loam Island Loop",9.8000000000000007,29,"Donoghue Michael","50.28","Member",24,127,"N"]
["2016-09-10","Loam Island Loop",9.8000000000000007,30,"O'Reilly Phil","50.59","Member",25,126,"N"]
["2016-09-10","Loam Island Loop",9.8000000000000007,31,"Cox Sherry","51.11","Member",26,125,"N"]
["2016-09-10","Loam Island Loop",9.8000000000000007,32,"Kerrisk John","51.24","Non-Member","N/A",0,"Y"]
["2016-09-10","Loam Island Loop",9.8000000000000007,33,"Walsh John","51.26","Member",27,124,"N"]
["2016-09-10","Loam Island Loop",9.8000000000000007,34,"Keller Dave","52.27","Non-Member","N/A",0,"Y"]
["2016-09-10","Loam Island Loop",9.8000000000000007,35,"Tsang Deffy","53.18","Member",28,123,"N"]
["2016-09-10","Loam Island Loop",9.8000000000000007,36,"Malan Carstan","53.26","Non-Member","N/A",0,"Y"]
["2016-09-10","Loam Island Loop",9.8000000000000007,37,"Fanning Terence","53.30","Member",29,122,"N"]
["2016-09-10","Loam Island Loop",9.8000000000000007,38,"Quinnes Darryl","53.34","Non-Member","N/A",0,"Y"]
["2016-09-10","Loam Island Loop",9.8000000000000007,39,"Kim Gill","53.36","Non-Member","N/A",0,"Y"]
["2016-09-10","Loam Island Loop",9.8000000000000007,40,"Gifford Kelly","53.45","Member",30,121,"N"]
["2016-09-10","Loam Island Loop",9.8000000000000007,41,"Miller Anne","54.11","Non-Member","N/A",0,"Y"]
["2016-09-10","Loam Island Loop",9.8000000000000007,42,"Mcinnes Scott","54.11","Member",31,120,"N"]
["2016-09-10","Loam Island Loop",9.8000000000000007,43,"Hannay Andrew","54.12","Member",32,119,"N"]
["2016-09-10","Loam Island Loop",9.8000000000000007,44,"Davies Glen","54.14","Member",33,118,"N"]
["2016-09-10","Loam Island Loop",9.8000000000000007,45,"Otto Annaliese","55.51","Member",34,117,"N"]
["2016-09-10","Loam Island Loop",9.8000000000000007,46,"Tirendi Francesco","56.33","Member",35,116,"N"]
["2016-09-10","Loam Island Loop",9.8000000000000007,47,"Labuschagne Rosemarie","56.59","Member",36,115,"N"]
["2016-09-10","Loam Island Loop",9.8000000000000007,48,"Wharton David","59.36","Member",37,114,"N"]
["2016-09-10","Loam Island Loop",9.8000000000000007,49,"Smith Mathew","1.00.54","Member",38,113,"N"]
["2016-09-10","Loam Island Loop",9.8000000000000007,50,"Labuschagne Celeste","1.00.55","Member",39,112,"N"]
["2016-09-10","Loam Island Loop",9.8000000000000007,51,"Muhlenberg Conny","1.02.36","Member",40,111,"N"]
["2016-09-10","Loam Island Loop",9.8000000000000007,52,"Donoghue Mary","1.03.16","Member",41,110,"N"]
["2016-09-10","Loam Island Loop",9.8000000000000007,53,"Keir Therese","1.03.41","Member",42,109,"N"]
["2016-09-10","Loam Island Loop",9.8000000000000007,54,"Brooke-Taylor David","1.08.31","Member",43,108,"N"]
["2016-09-10","Loam Island Loop",9.8000000000000007,55,"Garvie Diane","1.09.28","Member",44,107,"N"]
["2016-09-10","Loam Island Loop",9.8000000000000007,56,"Hooper Jan","1.09.28","Member",45,106,"N"]
["2016-09-10","Loam Island Loop",9.8000000000000007,57,"Beil Lyndie","1.11.23","Member",46,105,"N"]
["2016-09-10","Loam Island Loop",9.8000000000000007,58,"Oats Cheryl","1.11.33","Non-Member","N/A",0,"Y"]
["2016-09-17","Motorway Loop",6,1,"O'Regan Simon","22.02","Member",1,150,"N"]
["2016-09-17","Motorway Loop",6,2,"Harding Michael","22.07","Member",2,149,"N"]
["2016-09-17","Motorway Loop",6,3,"Stripp Deon","23.37","Member",3,148,"N"]
["2016-09-17","Motorway Loop",6,4,"Di Giacomo Simon","24.13","Member",4,147,"N"]
["2016-09-17","Motorway Loop",6,5,"Garnett Adrian","24.18","Member",5,146,"N"]
["2016-09-17","Motorway Loop",6,6,"Springall Gabriella","24.20","Member",6,145,"N"]
["2016-09-17","Motorway Loop",6,7,"Heames Sam","24.29","Non-Member","N/A",0,"Y"]
["2016-09-17","Motorway Loop",6,8,"Hyde Jevyn","24.44","Member",7,144,"N"]
["2016-09-17","Motorway Loop",6,9,"Sun Sizhong","24.47","Member",8,143,"N"]
["2016-09-17","Motorway Loop",6,10,"Fitzsimmons Michael","24.58","Member",9,142,"N"]
["2016-09-17","Motorway Loop",6,11,"Wallis Cameron","25.20","Member",10,0,"Y"]
["2016-09-17","Motorway Loop",6,12,"Schonfeldt-Roy Sonja","25.36","Member",11,140,"N"]
["2016-09-17","Motorway Loop",6,13,"Kirby Lee","25.48","Non-Member","N/A",0,"Y"]
["2016-09-17","Motorway Loop",6,14,"Illman Stuart","25.55","Member",12,139,"N"]
["2016-09-17","Motorway Loop",6,15,"Stafford Erin","25.56","Member",13,138,"N"]
["2016-09-17","Motorway Loop",6,16,"Watkins Meredith","26.13","Member",14,137,"N"]
["2016-09-17","Motorway Loop",6,17,"Punshon Michael","26.31","Member",15,136,"N"]
["2016-09-17","Motorway Loop",6,18,"Kemei Joseph","26.48","Non-Member","N/A",0,"Y"]
["2016-09-17","Motorway Loop",6,19,"Maguire Gerry","26.57","Member",16,135,"N"]
["2016-09-17","Motorway Loop",6,20,"Gordon Tony","27.14","Member",17,134,"N"]
["2016-09-17","Motorway Loop",6,21,"Doherty Bill","27.22","Member",18,133,"N"]
["2016-09-17","Motorway Loop",6,22,"Evans Derrick","27.36","Member",19,132,"N"]
["2016-09-17","Motorway Loop",6,23,"Norris Bernie","27.46","Non-Member","N/A",0,"Y"]
["2016-09-17","Motorway Loop",6,24,"Crawford Les","28.01","Member",20,0,"Y"]
["2016-09-17","Motorway Loop",6,25,"Guy William","28.01","Member",21,130,"N"]
["2016-09-17","Motorway Loop",6,26,"Brunker Julie","28.53","Member",22,129,"N"]
["2016-09-17","Motorway Loop",6,27,"Nicholson Trevor","29.26","Member",23,128,"N"]
["2016-09-17","Motorway Loop",6,28,"Smith Justin","29.34","Member",24,127,"N"]
["2016-09-17","Motorway Loop",6,29,"Newman Lyn","29.47","Member",25,126,"N"]
["2016-09-17","Motorway Loop",6,30,"Frazer Ian","29.53","Member",26,125,"N"]
["2016-09-17","Motorway Loop",6,31,"Hiette Terry","30.39","Member",27,124,"N"]
["2016-09-17","Motorway Loop",6,32,"Walsh John","31.02","Member",28,123,"N"]
["2016-09-17","Motorway Loop",6,33,"O'Reilly Phil","31.08","Member",29,122,"N"]
["2016-09-17","Motorway Loop",6,34,"Newnham Colleen","31.11","Member",30,121,"N"]
["2016-09-17","Motorway Loop",6,35,"Sewell Lara","31.16","Member",31,120,"N"]
["2016-09-17","Motorway Loop",6,36,"Desailly Nicole","31.35","Member",32,119,"N"]
["2016-09-17","Motorway Loop",6,37,"Cox Sherry","31.37","Member",33,118,"N"]
["2016-09-17","Motorway Loop",6,38,"Donoghue Michael","31.57","Member",34,117,"N"]
["2016-09-17","Motorway Loop",6,39,"Vollmerhause Scott","32.01","Member",35,0,"Y"]
["2016-09-17","Motorway Loop",6,40,"Davies Glen","32.09","Member",36,115,"N"]
["2016-09-17","Motorway Loop",6,41,"Mugambi Sheba","32.13","Member",37,114,"N"]
["2016-09-17","Motorway Loop",6,42,"Reilly Dave","32.16","Non-Member","N/A",0,"Y"]
["2016-09-17","Motorway Loop",6,43,"Miller Anne","32.18","Non-Member","N/A",0,"Y"]
["2016-09-17","Motorway Loop",6,44,"Mcinnes Scott","33.07","Member",38,113,"N"]
["2016-09-17","Motorway Loop",6,45,"Labuschagne Celeste","33.08","Member",39,112,"N"]
["2016-09-17","Motorway Loop",6,46,"Isepy Chris","33.30","Member",40,111,"N"]
["2016-09-17","Motorway Loop",6,47,"Marrinan Isa","33.31","Member",41,110,"N"]
["2016-09-17","Motorway Loop",6,48,"Labuschagne Rosemarie","33.55","Member",42,109,"N"]
["2016-09-17","Motorway Loop",6,49,"Wharton David","33.59","Member",43,108,"N"]
["2016-09-17","Motorway Loop",6,50,"Hampton Dave","34.29","Member",44,107,"N"]
["2016-09-17","Motorway Loop",6,51,"Garvie Diane","35.04","Member",45,106,"N"]
["2016-09-17","Motorway Loop",6,52,"Otto Annaliese","35.35","Member",46,105,"N"]
["2016-09-17","Motorway Loop",6,53,"Johnson Cat","36.10","Member",47,104,"N"]
["2016-09-17","Motorway Loop",6,54,"Doherty Margot","36.21","Member",48,103,"N"]
["2016-09-17","Motorway Loop",6,55,"Rubenach Mike","36.35","Member",49,102,"N"]
["2016-09-17","Motorway Loop",6,56,"Doherty Rosie","36.43","Member",50,101,"N"]
["2016-09-17","Motorway Loop",6,57,"Muhlenberg Conny","37.08","Member",51,100,"N"]
["2016-09-17","Motorway Loop",6,58,"Keir Therese","37.15","Member",52,99,"N"]
["2016-09-17","Motorway Loop",6,59,"Donoghue Mary","37.24","Member",53,98,"N"]
["2016-09-17","Motorway Loop",6,60,"Brown Jenny","38.01","Member",54,97,"N"]
["2016-09-17","Motorway Loop",6,61,"Brooke-Taylor David","38.24","Member",55,96,"N"]
["2016-09-17","Motorway Loop",6,62,"Armit Brian","38.33","Member",56,95,"N"]
["2016-09-17","Motorway Loop",6,63,"Doherty Susan","38.58","Member",57,0,"Y"]
["2016-09-17","Motorway Loop",6,64,"Ives Jim","39.21","Member",58,93,"N"]
["2016-09-17","Motorway Loop",6,65,"Olsen John","39.23","Member",59,92,"N"]
["2016-09-17","Motorway Loop",6,66,"De Jong Jaap","39.35","Member",60,91,"N"]
["2016-09-17","Motorway Loop",6,67,"Daamen Antony","40.48","Member",61,0,"Y"]
["2016-09-17","Motorway Loop",6,68,"Beil Lyndie","41.24","Member",62,0,"Y"]
["2016-09-17","Motorway Loop",6,69,"Oats Cheryl","41.42","Non-Member","N/A",0,"Y"]
["2016-09-17","Motorway Loop",6,70,"Mcdonald Warren","44.46","Member",63,88,"N"]
["2016-09-17","Motorway Loop",6,71,"Hobson Cheryl","46.18","Member",64,87,"N"]
["2016-09-17","Motorway Loop",6,72,"Sibley Jack","46.19","Member",65,86,"N"]
["2016-09-17","Motorway Loop",6,73,"Daniel Peter","50.31","Member",66,85,"N"]
["2016-09-17","Motorway Loop",6,74,"Mcnabb Jim","51.01","Member",67,0,"Y"]
["2016-09-17","Motorway Loop",6,75,"Gillham Claudia","51.02","Member",68,83,"N"]
["2016-09-24","Around the Hill ANQ Championships",11.6,1,"Argent Troy","46.44","Non-Member","N/A",0,"Y"]
["2016-09-24","Around the Hill ANQ Championships",11.6,2,"Anderson Julia","48.05","Non-Member","N/A",0,"Y"]
["2016-09-24","Around the Hill ANQ Championships",11.6,3,"Burns Norm","48.31","Non-Member","N/A",0,"Y"]
["2016-09-24","Around the Hill ANQ Championships",11.6,4,"Watts Shiloh","51.32","Non-Member","N/A",0,"Y"]
["2016-09-24","Around the Hill ANQ Championships",11.6,5,"Buchholz Mark","51.44","Member",1,150,"N"]
["2016-09-24","Around the Hill ANQ Championships",11.6,6,"Heames# Sam","51.46","Non-Member","N/A",0,"Y"]
["2016-09-24","Around the Hill ANQ Championships",11.6,7,"Wing Gordon","51.49","Member",2,149,"N"]
["2016-09-24","Around the Hill ANQ Championships",11.6,8,"Di Giacomo Simon","52.24","Member",3,148,"N"]
["2016-09-24","Around the Hill ANQ Championships",11.6,9,"Vance David","52.44","Non-Member","N/A",0,"Y"]
["2016-09-24","Around the Hill ANQ Championships",11.6,10,"Wallis Cameron","52.52","Member",4,147,"N"]
["2016-09-24","Around the Hill ANQ Championships",11.6,11,"Hyde Jevyn","53.28","Member",5,146,"N"]
["2016-09-24","Around the Hill ANQ Championships",11.6,12,"Sun Sizhong","53.40","Member",6,145,"N"]
["2016-09-24","Around the Hill ANQ Championships",11.6,13,"Kirby# Lee","53.43","Non-Member","N/A",0,"Y"]
["2016-09-24","Around the Hill ANQ Championships",11.6,14,"Springall Gabriella","53.51","Member",7,0,"Y"]
["2016-09-24","Around the Hill ANQ Championships",11.6,15,"Stafford Erin","54.21","Member",8,143,"N"]
["2016-09-24","Around the Hill ANQ Championships",11.6,16,"Watkins Meredith","54.35","Member",9,142,"N"]
["2016-09-24","Around the Hill ANQ Championships",11.6,17,"Fitzsimmons Michael","55.04","Member",10,141,"N"]
["2016-09-24","Around the Hill ANQ Championships",11.6,18,"Marrinan Michael","55.36","Member",11,140,"N"]
["2016-09-24","Around the Hill ANQ Championships",11.6,19,"Bird Deven","56.08","Non-Member","N/A",0,"Y"]
["2016-09-24","Around the Hill ANQ Championships",11.6,20,"Sewell Lara","56.40","Member",12,139,"N"]
["2016-09-24","Around the Hill ANQ Championships",11.6,21,"Kimei# Joseph","56.47","Non-Member","N/A",0,"Y"]
["2016-09-24","Around the Hill ANQ Championships",11.6,22,"Punshon Michael","57.08","Member",13,138,"N"]
["2016-09-24","Around the Hill ANQ Championships",11.6,23,"Illman Stuart","57.22","Member",14,137,"N"]
["2016-09-24","Around the Hill ANQ Championships",11.6,24,"Brunker Julie","57.45","Member",15,136,"N"]
["2016-09-24","Around the Hill ANQ Championships",11.6,25,"Dunstan James","57.52","Non-Member","N/A",0,"Y"]
["2016-09-24","Around the Hill ANQ Championships",11.6,26,"Wells Sharyn","57.54","Non-Member","N/A",0,"Y"]
["2016-09-24","Around the Hill ANQ Championships",11.6,27,"Cullen David","58.18","Member",16,135,"N"]
["2016-09-24","Around the Hill ANQ Championships",11.6,28,"Flynn-Pittar Isis","58.42","Member",17,134,"N"]
["2016-09-24","Around the Hill ANQ Championships",11.6,29,"Crawford Les","58.58","Member",18,133,"N"]
["2016-09-24","Around the Hill ANQ Championships",11.6,30,"Newman# Pat","59.04","Non-Member","N/A",0,"Y"]
["2016-09-24","Around the Hill ANQ Championships",11.6,31,"Mentor Andre","1.00.53","Member",19,132,"N"]
["2016-09-24","Around the Hill ANQ Championships",11.6,32,"Webber Bridget","1.01.09","Non-Member","N/A",0,"Y"]
["2016-09-24","Around the Hill ANQ Championships",11.6,33,"Vollmerhause Scott","1.01.12","Member",20,131,"N"]
["2016-09-24","Around the Hill ANQ Championships",11.6,34,"Hiette Terry","1.02.32","Member",21,130,"N"]
["2016-09-24","Around the Hill ANQ Championships",11.6,35,"Quinney# Darryl","1.02.32","Non-Member","N/A",0,"Y"]
["2016-09-24","Around the Hill ANQ Championships",11.6,36,"Nicholson Trevor","1.02.54","Member",22,129,"N"]
["2016-09-24","Around the Hill ANQ Championships",11.6,37,"Bradley Fraser","1.02.56","Member",23,128,"N"]
["2016-09-24","Around the Hill ANQ Championships",11.6,38,"Newman Lyn","1.05.22","Member",24,127,"N"]
["2016-09-24","Around the Hill ANQ Championships",11.6,39,"Watson Shane","1.05.37","Non-Member","N/A",0,"Y"]
["2016-09-24","Around the Hill ANQ Championships",11.6,40,"O'Reilly Phil","1.07.32","Member",25,126,"N"]
["2016-09-24","Around the Hill ANQ Championships",11.6,41,"Mugambi Sheba","1.07.59","Member",26,125,"N"]
["2016-09-24","Around the Hill ANQ Championships",11.6,42,"Desailly Nicole","1.08.14","Member",27,124,"N"]
["2016-09-24","Around the Hill ANQ Championships",11.6,43,"Nuttall John","1.09.11","Member",28,123,"N"]
["2016-09-24","Around the Hill ANQ Championships",11.6,44,"Day Paul","1.09.48","Member",29,122,"N"]
["2016-09-24","Around the Hill ANQ Championships",11.6,45,"Mayhew Susan","1.10.15","Member",30,121,"N"]
["2016-09-24","Around the Hill ANQ Championships",11.6,46,"Norris# Bernie","1.12.55","Non-Member","N/A",0,"Y"]
["2016-09-24","Around the Hill ANQ Championships",11.6,47,"Tirendi Francesco","1.13.31","Member",31,120,"N"]
["2016-09-24","Around the Hill ANQ Championships",11.6,48,"Kelly# Dave","1.14.34","Non-Member","N/A",0,"Y"]
["2016-09-24","Around the Hill ANQ Championships",11.6,49,"Banaghan Peter","1.14.35","Non-Member","N/A",0,"Y"]
["2016-09-24","Around the Hill ANQ Championships",11.6,50,"Labuschagne Celeste","1.16.04","Member",32,119,"N"]
["2016-09-24","Around the Hill ANQ Championships",11.6,51,"Smith Mathew","1.16.04","Member",33,118,"N"]
["2016-09-24","Around the Hill ANQ Championships",11.6,52,"Labuschagne Rosemarie","1.16.24","Member",34,117,"N"]
["2016-09-24","Around the Hill ANQ Championships",11.6,53,"Miller Anne","1.16.30","Non-Member","N/A",0,"Y"]
["2016-09-24","Around the Hill ANQ Championships",11.6,54,"Hannay Andrew","1.16.30","Member",35,116,"N"]
["2016-09-24","Around the Hill ANQ Championships",11.6,55,"Wharton David","1.16.56","Member",36,115,"N"]
["2016-09-24","Around the Hill ANQ Championships",11.6,56,"Mcnabb Jim","1.17.45","Member",37,114,"N"]
["2016-09-24","Around the Hill ANQ Championships",11.6,57,"Daamen Antony","1.18.12","Member",38,113,"N"]
["2016-09-24","Around the Hill ANQ Championships",11.6,58,"Hoet# Greet","1.18.37","Non-Member","N/A",0,"Y"]
["2016-09-24","Around the Hill ANQ Championships",11.6,59,"Machin Pook","1.18.40","Member",39,112,"N"]
["2016-09-24","Around the Hill ANQ Championships",11.6,60,"Rubenach Mike","1.21.18","Member",40,111,"N"]
["2016-09-24","Around the Hill ANQ Championships",11.6,61,"Donoghue Mary","1.21.22","Member",41,110,"N"]
["2016-09-24","Around the Hill ANQ Championships",11.6,62,"Brown Jenny","1.21.42","Member",42,109,"N"]
["2016-09-24","Around the Hill ANQ Championships",11.6,63,"De Jong Jaap","1.23.26","Member",43,108,"N"]
["2016-09-24","Around the Hill ANQ Championships",11.6,64,"Otto Annaliese","1.25.20","Member",44,107,"N"]
["2016-09-24","Around the Hill ANQ Championships",11.6,65,"Beil Lyndie","1.26.03","Member",45,106,"N"]
["2016-09-24","Around the Hill ANQ Championships",11.6,66,"Chapman-Mears Verity","1.27.38","Non-Member","N/A",0,"Y"]
["2016-09-24","Around the Hill ANQ Championships",11.6,67,"Brooke-Taylor David","1.27.42","Member",46,105,"N"]
["2016-09-24","Around the Hill ANQ Championships",11.6,68,"Sibley Jack","1.32.34","Member",47,104,"N"]
["2016-09-24","Around the Hill ANQ Championships",11.6,69,"Leitch Cam","1.47.31","Member",48,103,"N"]
["2016-08-05","TRF 42.2k",42.2,1,"Stedman Sam","2.43.58","Member",1,150,"N"]
["2016-08-05","TRF 42.2k",42.2,2,"Copp Philip","3.00.11","Member",2,149,"N"]
["2016-08-05","TRF 42.2k",42.2,3,"Boschen Matthew","3.12.39","Member",3,148,"N"]
["2016-08-05","TRF 42.2k",42.2,4,"Stripp Deon","3.14.40","Member",4,147,"N"]
["2016-08-05","TRF 42.2k",42.2,5,"Garnett Adrian","3.17.35","Member",5,146,"N"]
["2016-08-05","TRF 42.2k",42.2,6,"Schonfeldt-Roy Sonja","3.27.09","Member",6,145,"N"]
["2016-08-05","TRF 42.2k",42.2,7,"Mentor Andre","3.32.53","Member",7,144,"N"]
["2016-08-05","TRF 42.2k",42.2,8,"O'Regan Paul","3.46.33","Member",8,143,"N"]
["2016-08-05","TRF 42.2k",42.2,9,"Evans Derrick","3.48.55","Member",9,142,"N"]
["2016-08-05","TRF 42.2k",42.2,10,"Smales Clayton","3.58.04","Member",10,141,"N"]
["2016-08-05","TRF 42.2k",42.2,11,"Flynn-Pittar Isis","3.58.16","Member",11,140,"N"]
["2016-08-05","TRF 42.2k",42.2,12,"Hyde Jevyn","3.58.54","Member",12,139,"N"]
["2016-08-05","TRF 42.2k",42.2,13,"Nuttall John","4.00.19","Member",13,138,"N"]
["2016-08-05","TRF 42.2k",42.2,14,"Gordon Tony","4.10.04","Member",14,137,"N"]
["2016-08-05","TRF 42.2k",42.2,15,"Rutherford Trish","4.16.18","Member",15,136,"N"]
["2016-08-05","TRF 42.2k",42.2,16,"Flynn-Pittar Dee","4.16.33","Member",16,135,"N"]
["2016-08-05","TRF 42.2k",42.2,17,"Day Paul","4.23.41","Member",17,134,"N"]
["2016-08-05","TRF 42.2k",42.2,18,"Stanton Geoff","4.36.14","Member",18,133,"N"]
["2016-08-05","TRF 42.2k",42.2,19,"Guy William","4.41.11","Member",19,132,"N"]
["2016-08-05","TRF 42.2k",42.2,20,"Neimanis Peter","4.41.14","Member",20,131,"N"]
["2016-08-05","TRF 42.2k",42.2,21,"Hoggan John","4.41.16","Member",21,130,"N"]
["2016-08-05","TRF 42.2k",42.2,22,"Mcinnes Scott","4.42.35","Member",22,129,"N"]
["2016-08-06","TRF 21.1k",21.1,1,"Buchholz Mark","1.29.22","Member",1,150,"N"]
["2016-08-06","TRF 21.1k",21.1,2,"Turnbull Deahne","1.31.11","Member",2,149,"N"]
["2016-08-06","TRF 21.1k",21.1,3,"Werbeloff Gavin","1.34.19","Member",3,148,"N"]
["2016-08-06","TRF 21.1k",21.1,4,"Illman Stuart","1.34.21","Member",4,147,"N"]
["2016-08-06","TRF 21.1k",21.1,5,"Fitzsimmons Michael","1.34.43","Member",5,146,"N"]
["2016-08-06","TRF 21.1k",21.1,6,"Stafford Erin","1.34.46","Member",6,145,"N"]
["2016-08-06","TRF 21.1k",21.1,7,"Schick Gerard","1.38.32","Member",7,144,"N"]
["2016-08-06","TRF 21.1k",21.1,8,"Schmitt Travis","1.41.04","Member",8,143,"N"]
["2016-08-06","TRF 21.1k",21.1,9,"Carter Brendan","1.45.02","Member",9,142,"N"]
["2016-08-06","TRF 21.1k",21.1,10,"Bradley Fraser","1.46.56","Member",10,141,"N"]
["2016-08-06","TRF 21.1k",21.1,11,"Hunter Matthew","1.47.11","Member",11,140,"N"]
["2016-08-06","TRF 21.1k",21.1,12,"Nicholson Trevor","1.47.13","Member",12,139,"N"]
["2016-08-06","TRF 21.1k",21.1,13,"Vollmerhause Scott","1.51.08","Member",13,138,"N"]
["2016-08-06","TRF 21.1k",21.1,14,"Cox Sherry","1.51.31","Member",14,137,"N"]
["2016-08-06","TRF 21.1k",21.1,15,"Kirby Adrian","1.55.51","Member",15,136,"N"]
["2016-08-06","TRF 21.1k",21.1,16,"Davies Glen","1.58.46","Member",16,135,"N"]
["2016-08-06","TRF 21.1k",21.1,17,"Murakami Fiona","1.59.06","Member",17,134,"N"]
["2016-08-06","TRF 21.1k",21.1,18,"Schmitt Riana","2.00.09","Member",18,133,"N"]
["2016-08-06","TRF 21.1k",21.1,19,"Nelson Jesslyn","2.03.25","Member",19,132,"N"]
["2016-08-06","TRF 21.1k",21.1,20,"Tirendi Francesco","2.03.54","Member",20,131,"N"]
["2016-08-06","TRF 21.1k",21.1,21,"Rich Keith","2.04.20","Member",21,130,"N"]
["2016-08-06","TRF 21.1k",21.1,22,"Collins Sarah","2.04.45","Member",22,129,"N"]
["2016-08-06","TRF 21.1k",21.1,23,"Pearson Krystal","2.05.20","Member",23,128,"N"]
["2016-08-06","TRF 21.1k",21.1,24,"Daamen Antony","2.06.00","Member",24,127,"N"]
["2016-08-06","TRF 21.1k",21.1,25,"Rubenach Mike","2.08.27","Member",25,126,"N"]
["2016-08-06","TRF 21.1k",21.1,26,"Labuschagne Rosemarie","2.10.02","Member",26,125,"N"]
["2016-08-06","TRF 21.1k",21.1,27,"Isepy Chris","2.15.06","Member",27,124,"N"]
["2016-08-06","TRF 21.1k",21.1,28,"Machin Pook","2.15.44","Member",28,123,"N"]
["2016-08-06","TRF 21.1k",21.1,29,"Bosworth Clare","2.16.21","Member",29,122,"N"]
["2016-08-06","TRF 21.1k",21.1,30,"Leitch Cam","2.22.11","Member",30,121,"N"]
["2016-08-06","TRF 21.1k",21.1,31,"Brown Jenny","2.27.43","Member",31,120,"N"]
["2016-08-06","TRF 21.1k",21.1,32,"Beil Lyndie","2.43.00","Member",32,119,"N"]
["2016-09-03","King Queen of hill",8.3000000000000007,1,"STEDMAN SAM","31.52","Member",1,150,"N"]
["2016-09-03","King Queen of hill",8.3000000000000007,2,"Argent Troy","32.33","Non-Member","N/A",0,"Y"]
["2016-09-03","King Queen of hill",8.3000000000000007,3,"Pierce Sam","34.10","Non-Member","N/A",0,"Y"]
["2016-09-03","King Queen of hill",8.3000000000000007,4,"Budden Craig","34.26","Non-Member","N/A",0,"Y"]
["2016-09-03","King Queen of hill",8.3000000000000007,5,"Anderson Ian","34.41","Non-Member","N/A",0,"Y"]
["2016-09-03","King Queen of hill",8.3000000000000007,6,"Anderson Julia","34.55","Non-Member","N/A",0,"Y"]
["2016-09-03","King Queen of hill",8.3000000000000007,7,"HARDING MICHAEL","35.12","Member",2,149,"N"]
["2016-09-03","King Queen of hill",8.3000000000000007,8,"Copp Philip","35.25","Member",3,148,"N"]
["2016-09-03","King Queen of hill",8.3000000000000007,9,"SPRINGALL GABRIELLA","35.34","Member",4,147,"N"]
["2016-09-03","King Queen of hill",8.3000000000000007,10,"Wabber Simon","36.07","Non-Member","N/A",0,"Y"]
["2016-09-03","King Queen of hill",8.3000000000000007,11,"Stripp Deon","36.44","Member",5,146,"N"]
["2016-09-03","King Queen of hill",8.3000000000000007,12,"WALLIS CAMERON","37.21","Member",6,145,"N"]
["2016-09-03","King Queen of hill",8.3000000000000007,13,"Farmer Matthew","37.30","Non-Member","N/A",0,"Y"]
["2016-09-03","King Queen of hill",8.3000000000000007,14,"Bird Deven","37.32","Non-Member","N/A",0,"Y"]
["2016-09-03","King Queen of hill",8.3000000000000007,15,"Whitty Chris","37.39","Non-Member","N/A",0,"Y"]
["2016-09-03","King Queen of hill",8.3000000000000007,16,"Pickering Jeralyn","37.41","Non-Member","N/A",0,"Y"]
["2016-09-03","King Queen of hill",8.3000000000000007,17,"Kirby Lee","38.06","Non-Member","N/A",0,"Y"]
["2016-09-03","King Queen of hill",8.3000000000000007,18,"Searfe Kieran","38.12","Non-Member","N/A",0,"Y"]
["2016-09-03","King Queen of hill",8.3000000000000007,19,"Werbeloff Gavin","38.17","Member",7,144,"N"]
["2016-09-03","King Queen of hill",8.3000000000000007,20,"Smigle Rickie","38.18","Non-Member","N/A",0,"Y"]
["2016-09-03","King Queen of hill",8.3000000000000007,21,"Watkins Meredith","38.42","Member",8,143,"N"]
["2016-09-03","King Queen of hill",8.3000000000000007,22,"PUNSHON MICHAEL","39.30","Member",9,142,"N"]
["2016-09-03","King Queen of hill",8.3000000000000007,23,"Dunstan Jamie","39.42","Non-Member","N/A",0,"Y"]
["2016-09-03","King Queen of hill",8.3000000000000007,24,"Boschen Matthew","39.43","Member",10,0,"Y"]
["2016-09-03","King Queen of hill",8.3000000000000007,25,"Pretorius Christiaan","40.08","Member",11,140,"N"]
["2016-09-03","King Queen of hill",8.3000000000000007,26,"Nolan Adam","40.17","Non-Member","N/A",0,"Y"]
["2016-09-03","King Queen of hill",8.3000000000000007,27,"Doherty Bill","40.22","Member",12,139,"N"]
["2016-09-03","King Queen of hill",8.3000000000000007,28,"Simpson Samantha","40.41","Non-Member","N/A",0,"Y"]
["2016-09-03","King Queen of hill",8.3000000000000007,29,"Crawley John","40.54","Non-Member","N/A",0,"Y"]
["2016-09-03","King Queen of hill",8.3000000000000007,30,"Goding Garry","41.24","Non-Member","N/A",0,"Y"]
["2016-09-03","King Queen of hill",8.3000000000000007,31,"Mewman Pat","41.30","Non-Member","N/A",0,"Y"]
["2016-09-03","King Queen of hill",8.3000000000000007,32,"Wilkinson Jane","41.58","Non-Member","N/A",0,"Y"]
["2016-09-03","King Queen of hill",8.3000000000000007,33,"Maguire Matthew","41.59","Member",13,138,"N"]
["2016-09-03","King Queen of hill",8.3000000000000007,34,"Coe Damian","42.06","Non-Member","N/A",0,"Y"]
["2016-09-03","King Queen of hill",8.3000000000000007,35,"Wilton Brad","42.20","Non-Member","N/A",0,"Y"]
["2016-09-03","King Queen of hill",8.3000000000000007,36,"NUTTALL JOHN","42.26","Member",14,137,"N"]
["2016-09-03","King Queen of hill",8.3000000000000007,37,"Caddy Tim","42.38","Non-Member","N/A",0,"Y"]
["2016-09-03","King Queen of hill",8.3000000000000007,38,"Daroon Lowe","42.51","Non-Member","N/A",0,"Y"]
["2016-09-03","King Queen of hill",8.3000000000000007,39,"Miles Stephanie","43.14","Non-Member","N/A",0,"Y"]
["2016-09-03","King Queen of hill",8.3000000000000007,40,"Lubicz Troy","43.25","Non-Member","N/A",0,"Y"]
["2016-09-03","King Queen of hill",8.3000000000000007,41,"Scandlyn Keith","43.34","Non-Member","N/A",0,"Y"]
["2016-09-03","King Queen of hill",8.3000000000000007,42,"Machin Jamie","44.02","Member",15,136,"N"]
["2016-09-03","King Queen of hill",8.3000000000000007,43,"Tracey Krissi","44.09","Non-Member","N/A",0,"Y"]
["2016-09-03","King Queen of hill",8.3000000000000007,44,"Hunter Matthew","44.16","Member",16,135,"N"]
["2016-09-03","King Queen of hill",8.3000000000000007,45,"Reeve Blake","44.47","Non-Member","N/A",0,"Y"]
["2016-09-03","King Queen of hill",8.3000000000000007,46,"Northfield Rodney","45.10","Non-Member","N/A",0,"Y"]
["2016-09-03","King Queen of hill",8.3000000000000007,47,"Donoghue Michael","45.38","Member",17,134,"N"]
["2016-09-03","King Queen of hill",8.3000000000000007,48,"Thompson Marie","45.50","Non-Member","N/A",0,"Y"]
["2016-09-03","King Queen of hill",8.3000000000000007,49,"MUGAMBI SHEBA","46.11","Member",18,133,"N"]
["2016-09-03","King Queen of hill",8.3000000000000007,50,"O'Reilly Phil","46.40","Member",19,132,"N"]
["2016-09-03","King Queen of hill",8.3000000000000007,51,"McMahon Alan","46.41","Non-Member","N/A",0,"Y"]
["2016-09-03","King Queen of hill",8.3000000000000007,52,"Baker Nick","46.53","Non-Member","N/A",0,"Y"]
["2016-09-03","King Queen of hill",8.3000000000000007,53,"MacDonalds Leed","47.01","Non-Member","N/A",0,"Y"]
["2016-09-03","King Queen of hill",8.3000000000000007,54,"Connor Jade","47.13","Non-Member","N/A",0,"Y"]
["2016-09-03","King Queen of hill",8.3000000000000007,55,"Bisset Jim","47.55","Non-Member","N/A",0,"Y"]
["2016-09-03","King Queen of hill",8.3000000000000007,56,"Morf Cristi","48.44","Non-Member","N/A",0,"Y"]
["2016-09-03","King Queen of hill",8.3000000000000007,57,"Kelly Dave","48.54","Non-Member","N/A",0,"Y"]
["2016-09-03","King Queen of hill",8.3000000000000007,58,"Malan Carsten","49.10","Non-Member","N/A",0,"Y"]
["2016-09-03","King Queen of hill",8.3000000000000007,59,"White Jodie","49.20","Non-Member","N/A",0,"Y"]
["2016-09-03","King Queen of hill",8.3000000000000007,60,"King Virginia","49.47","Non-Member","N/A",0,"Y"]
["2016-09-03","King Queen of hill",8.3000000000000007,61,"Costello Emma","49.50","Non-Member","N/A",0,"Y"]
["2016-09-03","King Queen of hill",8.3000000000000007,62,"dowling donna","50.12","Member",20,131,"N"]
["2016-09-03","King Queen of hill",8.3000000000000007,63,"Newnham Colleen","50.27","Member",21,130,"N"]
["2016-09-03","King Queen of hill",8.3000000000000007,64,"Frossling Annika","50.39","Member",22,129,"N"]
["2016-09-03","King Queen of hill",8.3000000000000007,65,"Name Recorded No","51.00","Non-Member","N/A",0,"Y"]
["2016-09-03","King Queen of hill",8.3000000000000007,66,"HYDE JEVYN","51.08","Member",23,0,"Y"]
["2016-09-03","King Queen of hill",8.3000000000000007,67,"Norris Bernie","51.09","Non-Member","N/A",0,"Y"]
["2016-09-03","King Queen of hill",8.3000000000000007,68,"Marrinan Isa","51.23","Member",24,127,"N"]
["2016-09-03","King Queen of hill",8.3000000000000007,69,"Dawes Mike","51.26","Non-Member","N/A",0,"Y"]
["2016-09-03","King Queen of hill",8.3000000000000007,70,"Wituschek Walter","51.35","Non-Member","N/A",0,"Y"]
["2016-09-03","King Queen of hill",8.3000000000000007,71,"Szczotko Matthew","52.02","Non-Member","N/A",0,"Y"]
["2016-09-03","King Queen of hill",8.3000000000000007,72,"LABUSCHAGNE ROSEMARIE","52.17","Member",25,126,"N"]
["2016-09-03","King Queen of hill",8.3000000000000007,73,"Hampton Dave","52.58","Member",26,125,"N"]
["2016-09-03","King Queen of hill",8.3000000000000007,74,"Hartwell Ngaire","53.17","Non-Member","N/A",0,"Y"]
["2016-09-03","King Queen of hill",8.3000000000000007,75,"Rubenach Mike","54.52","Member",27,124,"N"]
["2016-09-03","King Queen of hill",8.3000000000000007,76,"Lloyd Rose","55.07","Non-Member","N/A",0,"Y"]
["2016-09-03","King Queen of hill",8.3000000000000007,77,"Donoghue Mary","55.08","Member",28,123,"N"]
["2016-09-03","King Queen of hill",8.3000000000000007,78,"Ware Melissa","55.27","Non-Member","N/A",0,"Y"]
["2016-09-03","King Queen of hill",8.3000000000000007,79,"Brown Jenny","55.32","Member",29,122,"N"]
["2016-09-03","King Queen of hill",8.3000000000000007,80,"Grubba Tracey","55.40","Non-Member","N/A",0,"Y"]
["2016-09-03","King Queen of hill",8.3000000000000007,81,"Brodmann Ariadne","55.41","Non-Member","N/A",0,"Y"]
["2016-09-03","King Queen of hill",8.3000000000000007,82,"Fanning Jenny","55.43","Non-Member","N/A",0,"Y"]
["2016-09-03","King Queen of hill",8.3000000000000007,83,"Miles Danny","55.52","Non-Member","N/A",0,"Y"]
["2016-09-03","King Queen of hill",8.3000000000000007,84,"Dohnaler Janet","56.05","Non-Member","N/A",0,"Y"]
["2016-09-03","King Queen of hill",8.3000000000000007,85,"Livock Jayden","56.06","Non-Member","N/A",0,"Y"]
["2016-09-03","King Queen of hill",8.3000000000000007,86,"Cornell Janet","56.33","Non-Member","N/A",0,"Y"]
["2016-09-03","King Queen of hill",8.3000000000000007,87,"Machin Pook","56.35","Member",30,121,"N"]
["2016-09-03","King Queen of hill",8.3000000000000007,88,"Horrocks Paul","57.01","Non-Member","N/A",0,"Y"]
["2016-09-03","King Queen of hill",8.3000000000000007,89,"Hutchinson Di","57.17","Non-Member","N/A",0,"Y"]
["2016-09-03","King Queen of hill",8.3000000000000007,90,"Doherty Rosie","57.20","Member",31,120,"N"]
["2016-09-03","King Queen of hill",8.3000000000000007,91,"Brooke-Taylor David","57.48","Member",32,119,"N"]
["2016-09-03","King Queen of hill",8.3000000000000007,92,"Jaycock Russell","57.54","Non-Member","N/A",0,"Y"]
["2016-09-03","King Queen of hill",8.3000000000000007,93,"IVES JIM","58.11","Member",33,118,"N"]
["2016-09-03","King Queen of hill",8.3000000000000007,94,"OLSEN JOHN","58.20","Member",34,117,"N"]
["2016-09-03","King Queen of hill",8.3000000000000007,95,"DOHERTY SUSAN","58.45","Member",35,116,"N"]
["2016-09-03","King Queen of hill",8.3000000000000007,96,"DAAMEN ANTONY","58.55","Member",36,115,"N"]
["2016-09-03","King Queen of hill",8.3000000000000007,97,"Rayner Mark","59.52","Non-Member","N/A",0,"Y"]
["2016-09-03","King Queen of hill",8.3000000000000007,98,"Rayner Nicole","1.00.31","Non-Member","N/A",0,"Y"]
["2016-09-03","King Queen of hill",8.3000000000000007,99,"Beil Lyndie","1.00.48","Member",37,114,"N"]
["2016-09-03","King Queen of hill",8.3000000000000007,100,"Horscroft Susan","1.00.56","Member",38,113,"N"]
["2016-09-03","King Queen of hill",8.3000000000000007,101,"De Jong Jaap","1.01.14","Member",39,112,"N"]
["2016-09-03","King Queen of hill",8.3000000000000007,102,"Russell Susan","1.01.39","Non-Member","N/A",0,"Y"]
["2016-09-03","King Queen of hill",8.3000000000000007,103,"Hudson Allan","1.01.41","Non-Member","N/A",0,"Y"]
["2016-09-03","King Queen of hill",8.3000000000000007,104,"Turner Loren","1.03.11","Non-Member","N/A",0,"Y"]
["2016-09-03","King Queen of hill",8.3000000000000007,105,"Hyde Natalie","1.04.02","Non-Member","N/A",0,"Y"]
["2016-09-03","King Queen of hill",8.3000000000000007,106,"Wylie Brendon","1.05.26","Non-Member","N/A",0,"Y"]
["2016-09-03","King Queen of hill",8.3000000000000007,107,"Palmer James","1.07.48","Non-Member","N/A",0,"Y"]
["2016-09-03","King Queen of hill",8.3000000000000007,108,"Palmer Tim","1.07.49","Non-Member","N/A",0,"Y"]
["2016-09-03","King Queen of hill",8.3000000000000007,109,"BECK BETTY","1.12.48","Member",40,111,"N"]
["2016-09-03","King Queen of hill",8.3000000000000007,110,"Williams Vic","1.57.13","Non-Member","N/A",0,"Y"]
["2016-10-01","East Water Tanks",9,1,"Budden Craig","41.05","Non-Member","N/A",0,"Y"]
["2016-10-01","East Water Tanks",9,2,"Springall Gabriella","42.22","Member",1,150,"N"]
["2016-10-01","East Water Tanks",9,3,"Garnett Adrian","43.00","Member",2,149,"N"]
["2016-10-01","East Water Tanks",9,4,"Wallis Cameron","43.15","Member",3,148,"N"]
["2016-10-01","East Water Tanks",9,5,"Kirby Lee","45.22","Non-Member","N/A",0,"Y"]
["2016-10-01","East Water Tanks",9,6,"Stripp Deon","46.09","Member",4,147,"N"]
["2016-10-01","East Water Tanks",9,7,"Boschen Matthew","46.17","Member",5,146,"N"]
["2016-10-01","East Water Tanks",9,8,"Gordon Tony","47.36","Member",6,145,"N"]
["2016-10-01","East Water Tanks",9,9,"Marrinan Michael","48.12","Member",7,144,"N"]
["2016-10-01","East Water Tanks",9,10,"Punshon Michael","49.29","Member",8,143,"N"]
["2016-10-01","East Water Tanks",9,11,"Hyde Jevyn","51.01","Member",9,142,"N"]
["2016-10-01","East Water Tanks",9,12,"Kemei Joseph","51.04","Non-Member","N/A",0,"Y"]
["2016-10-01","East Water Tanks",9,13,"Cullen David","51.12","Member",10,141,"N"]
["2016-10-01","East Water Tanks",9,14,"Doherty Bill","51.21","Member",11,140,"N"]
["2016-10-01","East Water Tanks",9,15,"Brunker Julie","51.45","Member",12,139,"N"]
["2016-10-01","East Water Tanks",9,16,"Norra Bernie","51.49","Non-Member","N/A",0,"Y"]
["2016-10-01","East Water Tanks",9,17,"Scott Tim","52.07","Non-Member","N/A",0,"Y"]
["2016-10-01","East Water Tanks",9,18,"Crawford Les","53.31","Member",13,138,"N"]
["2016-10-01","East Water Tanks",9,19,"Guy William","53.37","Member",14,137,"N"]
["2016-10-01","East Water Tanks",9,20,"Bradley Fraser","54.46","Member",15,136,"N"]
["2016-10-01","East Water Tanks",9,21,"Hunter Matthew","56.46","Member",16,135,"N"]
["2016-10-01","East Water Tanks",9,22,"Nicholson Trevor","57.04","Member",17,134,"N"]
["2016-10-01","East Water Tanks",9,23,"Carter Brendan","57.27","Member",18,133,"N"]
["2016-10-01","East Water Tanks",9,24,"Machin Jamie","57.28","Member",19,132,"N"]
["2016-10-01","East Water Tanks",9,25,"Desailly Nicole","57.32","Member",20,131,"N"]
["2016-10-01","East Water Tanks",9,26,"Newnham Colleen","57.33","Member",21,130,"N"]
["2016-10-01","East Water Tanks",9,27,"Smith Justin","57.36","Member",22,129,"N"]
["2016-10-01","East Water Tanks",9,28,"Flynn-Pittar Dee","58.18","Member",23,128,"N"]
["2016-10-01","East Water Tanks",9,29,"Kelly David","59.51","Non-Member","N/A",0,"Y"]
["2016-10-01","East Water Tanks",9,30,"Donoghue Michael","1.00.00","Member",24,127,"N"]
["2016-10-01","East Water Tanks",9,31,"Hoggan John","1.01.29","Member",25,126,"N"]
["2016-10-01","East Water Tanks",9,32,"Miller Anne","1.02.20","Non-Member","N/A",0,"Y"]
["2016-10-01","East Water Tanks",9,33,"Hannay Andrew","1.02.21","Member",26,125,"N"]
["2016-10-01","East Water Tanks",9,34,"Gifford Kelly","1.02.25","Member",27,124,"N"]
["2016-10-01","East Water Tanks",9,35,"Marrinan Isa","1.03.09","Member",28,123,"N"]
["2016-10-01","East Water Tanks",9,36,"Labuschagne Rosemarie","1.03.30","Member",29,122,"N"]
["2016-10-01","East Water Tanks",9,37,"Smales Clayton","1.05.01","Member",30,121,"N"]
["2016-10-01","East Water Tanks",9,38,"Tirendi Francesco","1.05.24","Member",31,120,"N"]
["2016-10-01","East Water Tanks",9,39,"Smith Mathew","1.06.40","Member",32,119,"N"]
["2016-10-01","East Water Tanks",9,40,"Labuschagne Celeste","1.06.41","Member",33,118,"N"]
["2016-10-01","East Water Tanks",9,41,"Mcnabb Jim","1.06.44","Member",34,117,"N"]
["2016-10-01","East Water Tanks",9,42,"Daamen Antony","1.07.01","Member",35,116,"N"]
["2016-10-01","East Water Tanks",9,43,"Brown Jenny","1.09.28","Member",36,115,"N"]
["2016-10-01","East Water Tanks",9,44,"Donoghue Mary","1.09.56","Member",37,114,"N"]
["2016-10-01","East Water Tanks",9,45,"Rubenach Mike","1.10.44","Member",38,113,"N"]
["2016-10-01","East Water Tanks",9,46,"De Jong Jaap","1.10.55","Member",39,112,"N"]
["2016-10-01","East Water Tanks",9,47,"Doherty Susan","1.11.15","Member",40,111,"N"]
["2016-10-01","East Water Tanks",9,48,"Machin Pook","1.14.31","Member",41,110,"N"]
["2016-10-01","East Water Tanks",9,49,"Catterall Ian R","1.17.01","Member",42,109,"N"]
["2016-10-01","East Water Tanks",9,50,"Brooke-Taylor David","1.19.40","Member",43,108,"N"]
["2016-10-01","East Water Tanks",9,51,"Beil Lyndie","1.20.14","Member",44,107,"N"]
["2016-10-01","East Water Tanks",9,52,"Mcdonald Warren","1.24.18","Member",45,106,"N"]